Workbook

Sheet Adjust Excel Settings First
B1: First, and once only, adjust your settings on Excel
B2: To ensure that the profiling system will work on your computer, it is necessary to adjust the security settings on Excel. The instructions are presented below. Once you've made this adjustment, you will not have to do so again.
B4: For Excel 2007 and 2010
B5: Click the File Menu then select 'Options' at the lower right-hand side
B6: Within 'Options', select 'Trust Centre' from the left sidebar and click the 'Trust Centre Settings' button at the lower right
B17: Within the Trust Centre Settings dialog window, select Macro Settings from the left sidebar. Then select the 'Enable All Macros' option and click OK
C24: For inquiries, please contact Hayden Brown, of the City of Greater Dandenong, at hbrown@cgd.vic.gov.au

Sheet Paste CCD Numbers Here
C1: CREATE YOUR PROFILE: 3 steps | K1: Name of Locality H
C2: u Paste up to 100 Destination Zone numbers in the cells, below | K2: Test with 2021 Data
C3: v. Type locality name in the white box at right
C4: w. Click the button, above right, to create & view your profile
E5: Based on the findings of the 2021 Census | I5: Destination Zones areas are relatively small geographic areas,
I6: for which Census 2021 findings about place of employment
I7: have been aggregated by the ABS.
I9: To select the destination zones which match the area you wish to profile,
I10: you will need a mapping program - such as 'MapInfo' - and a layer
I11: which shows the destination zones areas across Victoria.
I12: To contact the mapping specialists at your council, or
I13: phone the Australian Bureau of Statistics. Otherwise,
I14: contact Hayden Brown on hbrown@cgd.vic.gov.au, and a copy
I15: of this map layer will be sent to you on disk.
I17: Once you have this layer, use a mapping program to view the
I18: area of interest (that is, the area you want to profile), then overlay
I19: it with the map layer showing the destination zones. This will allow
I20: you to read the destination zones (which are 9-digit numbers) that
I21: correspond to the area you wish to profile. The destination zones
I22: are the map layer in the field headed 'DZN_2021_AUST_GDA94.shp"
I24: Now copy and paste, or just type, the numbers of the required
I25: destination zones matching the area you wish to profile, into
I26: the white cells at the left, starting with the uppermost
I27: white cell, and proceeding downward.
I29: It is important that no cell in this list be left blank, until you reach
I30: the end of your list of destination zones, as the system will complete
I31: its work as soon as it encounters an empty cell.

Sheet Data (hidden)
A2: SA1s | B2: Result | C2: Names
D3: 210010001 | E3: 210010002 | F3: 210010003 | G3: 210010004 | H3: 210013331 | I3: 210013350 | J3: 210023330 | K3: 210023332 | L3: 210023337 | M3: 210023338 | N3: 210023341 | O3: 210023342 | P3: 210023343 | Q3: 210023344 | R3: 210023345 | S3: 210023351 | T3: 210053363 | U3: 210053364 | V3: 210053365 | W3: 210060001 | X3: 210060002 | Y3: 210063370 | Z3: 210063371 | AA3: 210073283 | AB3: 210083352 | AC3: 210083353 | AD3: 210083354 | AE3: 210083356 | AF3: 210083358 | AG3: 210083359 | AH3: 210083360 | AI3: 214810001 | AJ3: 214810002 | AK3: 214810003 | AL3: 214810004 | AM3: 214810005 | AN3: 214810006 | AO3: 214820001 | AP3: 214820002 | AQ3: 214820003 | AR3: 214820004 | AS3: 214820005 | AT3: 214820006 | AU3: 214820007 | AV3: 214830001 | AW3: 214830002 | AX3: 214830003 | AY3: 214830004 | AZ3: 214830005 | BA3: 214840001 | BB3: 214840002 | BC3: 214840003 | BD3: 210093377 | BE3: 210093381 | BF3: 210093383 | BG3: 210093384 | BH3: 210093385 | BI3: 210103362 | BJ3: 210103374 | BK3: 210103375 | BL3: 210103376 | BM3: 210110001 | BN3: 210110002 | BO3: 210113372 | BP3: 210123386 | BQ3: 210123387 | BR3: 210123388 | BS3: 210133392 | BT3: 210133393 | BU3: 210143394 | BV3: 210143395 | BW3: 210153284 | BX3: 210153285 | BY3: 210163506 | BZ3: 210170001 | CA3: 210170002 | CB3: 210170003 | CC3: 210180001 | CD3: 210183436 | CE3: 210183441 | CF3: 210183442 | CG3: 210183445 | CH3: 210183446 | CI3: 210183447 | CJ3: 210183448 | CK3: 210183449 | CL3: 210183450 | CM3: 210183452 | CN3: 210183453 | CO3: 210183454 | CP3: 210183455 | CQ3: 210183456 | CR3: 210183457 | CS3: 210183458 | CT3: 210183468 | CU3: 210183483 | CV3: 210183499 | CW3: 210190001 | CX3: 210190002 | CY3: 210193459 | CZ3: 210193460 | DA3: 210193461 | DB3: 210193462 | DC3: 210193463 | DD3: 210193464 | DE3: 210193465 | DF3: 210193466 | DG3: 210203473 | DH3: 210203474 | DI3: 210203475 | DJ3: 210203476 | DK3: 210203477 | DL3: 210203480 | DM3: 210203481 | DN3: 210203482 | DO3: 210203486 | DP3: 210203502 | DQ3: 210213469 | DR3: 210213470 | DS3: 210213471 | DT3: 210213478 | DU3: 210213479 | DV3: 210213504 | DW3: 210220001 | DX3: 210220002 | DY3: 210223437 | DZ3: 210223438 | EA3: 210223439 | EB3: 210223467 | EC3: 210223472 | ED3: 210223493 | EE3: 210223494 | EF3: 210223495 | EG3: 210223496 | EH3: 210223497 | EI3: 210223498 | EJ3: 210223501 | EK3: 210233500 | EL3: 210243503 | EM3: 210243505 | EN3: 210250001 | EO3: 210250002 | EP3: 210250003 | EQ3: 210253485 | ER3: 210253487 | ES3: 210253488 | ET3: 210253490 | EU3: 210263510 | EV3: 210263511 | EW3: 210273520 | EX3: 210273522 | EY3: 210280001 | EZ3: 210280002 | FA3: 210283521 | FB3: 210283523 | FC3: 210283525 | FD3: 210293508 | FE3: 210293509 | FF3: 210293512 | FG3: 210300001 | FH3: 210300002 | FI3: 210303526 | FJ3: 210310001 | FK3: 210310002 | FL3: 210313543 | FM3: 210323513 | FN3: 210323514 | FO3: 210323515 | FP3: 210330001 | FQ3: 210333516 | FR3: 210333518 | FS3: 210333519 | FT3: 210340001 | FU3: 210340002 | FV3: 210350001 | FW3: 210353286 | FX3: 210353290 | FY3: 210363274 | FZ3: 210363275 | GA3: 210373239 | GB3: 210373240 | GC3: 210373241 | GD3: 210373242 | GE3: 210373243 | GF3: 210373244 | GG3: 210373245 | GH3: 210373252 | GI3: 210390001 | GJ3: 210393191 | GK3: 210393192 | GL3: 210393193 | GM3: 210393194 | GN3: 210393195 | GO3: 210393196 | GP3: 210393197 | GQ3: 210393199 | GR3: 210393200 | GS3: 210393201 | GT3: 210393202 | GU3: 210393203 | GV3: 210393204 | GW3: 210393205 | GX3: 210393206 | GY3: 210393207 | GZ3: 210393208 | HA3: 210393209 | HB3: 210393210 | HC3: 210393211 | HD3: 210393212 | HE3: 210393213 | HF3: 210393214 | HG3: 210393215 | HH3: 210393216 | HI3: 210393217 | HJ3: 210393218 | HK3: 210403161 | HL3: 210403162 | HM3: 210403163 | HN3: 210403219 | HO3: 210403222 | HP3: 210403223 | HQ3: 210403224 | HR3: 210403225 | HS3: 210420001 | HT3: 210420002 | HU3: 210420003 | HV3: 210420004 | HW3: 210423236 | HX3: 210423248 | HY3: 210423249 | HZ3: 210423250 | IA3: 210423251 | IB3: 210430001 | IC3: 210430002 | ID3: 210433186 | IE3: 210433188 | IF3: 210433190 | IG3: 210433291 | IH3: 210433293 | II3: 210433294 | IJ3: 210440001 | IK3: 210440002 | IL3: 210450001 | IM3: 210450002 | IN3: 210450003 | IO3: 210450004 | IP3: 210453151 | IQ3: 210453152 | IR3: 210453154 | IS3: 210453156 | IT3: 210453158 | IU3: 210463226 | IV3: 210463227 | IW3: 210463228 | IX3: 210463229 | IY3: 210463230 | IZ3: 210473168 | JA3: 210473170 | JB3: 210473171 | JC3: 210473172 | JD3: 210473173 | JE3: 210473174 | JF3: 210473175 | JG3: 210473176 | JH3: 210473177 | JI3: 210473184 | JJ3: 210473220 | JK3: 210473221 | JL3: 214850001 | JM3: 214850002 | JN3: 214850003 | JO3: 214860001 | JP3: 214860002 | JQ3: 214860003 | JR3: 214860004 | JS3: 214860005 | JT3: 214860006 | JU3: 214860007 | JV3: 214860008 | JW3: 214860009 | JX3: 214860010 | JY3: 214870001 | JZ3: 214870002 | KA3: 214870003 | KB3: 214870004 | KC3: 214870005 | KD3: 214870006 | KE3: 214880001 | KF3: 214880002 | KG3: 214880003 | KH3: 214880004 | KI3: 214880005 | KJ3: 210483259 | KK3: 210483261 | KL3: 210483263 | KM3: 210483264 | KN3: 210493270 | KO3: 210493271 | KP3: 210493272 | KQ3: 210493273 | KR3: 210510001 | KS3: 210513260 | KT3: 210513265 | KU3: 210523257 | KV3: 210523266 | KW3: 210530001 | KX3: 210530002 | KY3: 210533267 | KZ3: 210533269 | LA3: 214890001 | LB3: 214890002 | LC3: 214900001 | LD3: 214900002 | LE3: 214900003 | LF3: 210543596 | LG3: 210543597 | LH3: 210543598 | LI3: 210553580 | LJ3: 210553582 | LK3: 210560001 | LL3: 210560002 | LM3: 210563591 | LN3: 210563594 | LO3: 210573577 | LP3: 210573578 | LQ3: 210573583 | LR3: 210583579 | LS3: 210583581 | LT3: 210593586 | LU3: 210593587 | LV3: 210603584 | LW3: 210603585 | LX3: 210613732 | LY3: 210623602 | LZ3: 210623603 | MA3: 210630001 | MB3: 210630002 | MC3: 210633574 | MD3: 210640001 | ME3: 210640002 | MF3: 210653624 | MG3: 210653625 | MH3: 210660001 | MI3: 210660002 | MJ3: 210660003 | MK3: 210673627 | ML3: 210673628 | MM3: 210673629 | MN3: 210683607 | MO3: 210683608 | MP3: 210693630 | MQ3: 210693631 | MR3: 210693632 | MS3: 210693637 | MT3: 210693638 | MU3: 210703604 | MV3: 210703605 | MW3: 210713633 | MX3: 210713634 | MY3: 210723609 | MZ3: 210723610 | NA3: 210723635 | NB3: 210723636 | NC3: 210730001 | ND3: 210730002 | NE3: 210733611 | NF3: 210733614 | NG3: 210733616 | NH3: 210753606 | NI3: 214910001 | NJ3: 214910002 | NK3: 214910003 | NL3: 214910004 | NM3: 214910005 | NN3: 214910006 | NO3: 214910007 | NP3: 214920001 | NQ3: 214920002 | NR3: 214920003 | NS3: 214920004 | NT3: 214920005 | NU3: 214920006 | NV3: 214920007 | NW3: 210760001 | NX3: 210760002 | NY3: 210760003 | NZ3: 210760004 | OA3: 210760005 | OB3: 210763726 | OC3: 210763730 | OD3: 210773720 | OE3: 210773723 | OF3: 210780001 | OG3: 210780002 | OH3: 210780003 | OI3: 210780004 | OJ3: 210790001 | OK3: 210790002 | OL3: 210790003 | OM3: 210790004 | ON3: 210790005 | OO3: 210790006 | OP3: 210790007 | OQ3: 210790008 | OR3: 210803651 | OS3: 210813639 | OT3: 210813648 | OU3: 210823641 | OV3: 210823649 | OW3: 210823650 | OX3: 210833642 | OY3: 210843640 | OZ3: 210843643 | PA3: 210850001 | PB3: 210853644 | PC3: 210853646 | PD3: 210863647 | PE3: 210870001 | PF3: 210873749 | PG3: 210873751 | PH3: 210883755 | PI3: 210890001 | PJ3: 210890002 | PK3: 210900001 | PL3: 210903745 | PM3: 210903746 | PN3: 210903747 | PO3: 210910001 | PP3: 210913733 | PQ3: 210913734 | PR3: 210923752 | PS3: 210933736 | PT3: 210933737 | PU3: 210933738 | PV3: 210933739 | PW3: 210933740 | PX3: 210933741 | PY3: 210933742 | PZ3: 210933743 | QA3: 210933744 | QB3: 210943700 | QC3: 210943701 | QD3: 210943718 | QE3: 210943719 | QF3: 210950001 | QG3: 210950002 | QH3: 210953679 | QI3: 210953680 | QJ3: 210953681 | QK3: 210953683 | QL3: 210953684 | QM3: 210953685 | QN3: 210953686 | QO3: 210960001 | QP3: 210960002 | QQ3: 210960003 | QR3: 210960004 | QS3: 210963689 | QT3: 210963690 | QU3: 210963691 | QV3: 210963692 | QW3: 210963693 | QX3: 210963694 | QY3: 210963695 | QZ3: 210963696 | RA3: 210963697 | RB3: 210963699 | RC3: 210983703 | RD3: 214930001 | RE3: 214930002 | RF3: 214930003 | RG3: 214930004 | RH3: 214930005 | RI3: 214930006 | RJ3: 214930007 | RK3: 214940001 | RL3: 214940002 | RM3: 214940003 | RN3: 214940004 | RO3: 214940005 | RP3: 214940006 | RQ3: 214940007 | RR3: 214940008 | RS3: 210993658 | RT3: 211003654 | RU3: 211003661 | RV3: 211003664 | RW3: 211003665 | RX3: 211010001 | RY3: 211010002 | RZ3: 211013657 | SA3: 211013659 | SB3: 211013660 | SC3: 211023662 | SD3: 211023663 | SE3: 211023666 | SF3: 211030001 | SG3: 211030002 | SH3: 211033667 | SI3: 211033668 | SJ3: 211033669 | SK3: 211033670 | SL3: 211033673 | SM3: 211033674 | SN3: 211033675 | SO3: 211033676 | SP3: 211043652 | SQ3: 211043653 | SR3: 211061636 | SS3: 211061637 | ST3: 211061638 | SU3: 211061658 | SV3: 211071639 | SW3: 211071640 | SX3: 211071642 | SY3: 211071643 | SZ3: 211071645 | TA3: 211071646 | TB3: 211071651 | TC3: 211091660 | TD3: 211091662 | TE3: 211091663 | TF3: 211091668 | TG3: 214950001 | TH3: 214950002 | TI3: 214950003 | TJ3: 214950004 | TK3: 214950005 | TL3: 214960001 | TM3: 214960002 | TN3: 214960003 | TO3: 214960004 | TP3: 214960005 | TQ3: 214960006 | TR3: 214960007 | TS3: 214960008 | TT3: 214970001 | TU3: 214970002 | TV3: 214970003 | TW3: 214970004 | TX3: 214970005 | TY3: 214970006 | TZ3: 214970007 | UA3: 214980001 | UB3: 214980002 | UC3: 214980003 | UD3: 211101759 | UE3: 211101760 | UF3: 211101762 | UG3: 211101763 | UH3: 211101764 | UI3: 211101765 | UJ3: 211101766 | UK3: 211120001 | UL3: 211120002 | UM3: 211120003 | UN3: 211120004 | UO3: 211121778 | UP3: 211121780 | UQ3: 211121781 | UR3: 211121782 | US3: 211121783 | UT3: 211121784 | UU3: 211121785 | UV3: 214990001 | UW3: 214990002 | UX3: 214990003 | UY3: 214990004 | UZ3: 214990005 | VA3: 214990006 | VB3: 214990007 | VC3: 214990008 | VD3: 214990009 | VE3: 214990010 | VF3: 215000001 | VG3: 215000002 | VH3: 215000003 | VI3: 215000004 | VJ3: 215000005 | VK3: 211130001 | VL3: 211131490 | VM3: 211131491 | VN3: 211131493 | VO3: 211131494 | VP3: 211151484 | VQ3: 211151486 | VR3: 211151487 | VS3: 211151488 | VT3: 211151489 | VU3: 211151495 | VV3: 211160001 | VW3: 211160002 | VX3: 211160003 | VY3: 211161497 | VZ3: 211161498 | WA3: 211161499 | WB3: 211161501 | WC3: 211161502 | WD3: 211161503 | WE3: 215010001 | WF3: 215010002 | WG3: 215010003 | WH3: 215010004 | WI3: 215020001 | WJ3: 215020002 | WK3: 215020003 | WL3: 215020004 | WM3: 215020005 | WN3: 215020006 | WO3: 211170001 | WP3: 211170002 | WQ3: 211170003 | WR3: 211170004 | WS3: 211170005 | WT3: 211170006 | WU3: 211170007 | WV3: 211170008 | WW3: 211171112 | WX3: 211171114 | WY3: 211171116 | WZ3: 211171118 | XA3: 211171119 | XB3: 211171130 | XC3: 211180001 | XD3: 211180002 | XE3: 211180003 | XF3: 211180004 | XG3: 211180005 | XH3: 211180006 | XI3: 211180007 | XJ3: 211180008 | XK3: 211180009 | XL3: 211180010 | XM3: 211180011 | XN3: 211181077 | XO3: 211181080 | XP3: 211190001 | XQ3: 211190002 | XR3: 211191099 | XS3: 211191100 | XT3: 211191101 | XU3: 211191103 | XV3: 211201133 | XW3: 211210001 | XX3: 211210002 | XY3: 211211120 | XZ3: 211211121 | YA3: 211211122 | YB3: 211211132 | YC3: 211211480 | YD3: 211240001 | YE3: 211240002 | YF3: 211241135 | YG3: 211241136 | YH3: 211241137 | YI3: 211241138 | YJ3: 211241139 | YK3: 211241140 | YL3: 211251087 | YM3: 211251090 | YN3: 211251091 | YO3: 211251092 | YP3: 211251093 | YQ3: 211271104 | YR3: 211271105 | YS3: 211271106 | YT3: 215030001 | YU3: 215030002 | YV3: 215030003 | YW3: 215030004 | YX3: 215030005 | YY3: 215030006 | YZ3: 215030007 | ZA3: 215030008 | ZB3: 215030009 | ZC3: 215030010 | ZD3: 215030011 | ZE3: 215030012 | ZF3: 215030013 | ZG3: 215030014 | ZH3: 215030015 | ZI3: 215030016 | ZJ3: 215030017 | ZK3: 215030018 | ZL3: 215030019 | ZM3: 215030020 | ZN3: 215030021 | ZO3: 215030022 | ZP3: 215030023 | ZQ3: 215030024 | ZR3: 215030025 | ZS3: 215030026 | ZT3: 215030027 | ZU3: 215030028 | ZV3: 215030029 | ZW3: 215040001 | ZX3: 215040002 | ZY3: 215040003 | ZZ3: 215040004 | AAA3: 215040005 | AAB3: 215040006 | AAC3: 215040007 | AAD3: 215040008 | AAE3: 215040009 | AAF3: 215050001 | AAG3: 215050002 | AAH3: 215050003 | AAI3: 215050004 | AAJ3: 215050005 | AAK3: 215050006 | AAL3: 215050007 | AAM3: 215050008 | AAN3: 215050009 | AAO3: 215050010 | AAP3: 215050011 | AAQ3: 215050012 | AAR3: 215050013 | AAS3: 215050014 | AAT3: 215050015 | AAU3: 215050016 | AAV3: 215050017 | AAW3: 215050018 | AAX3: 215050019 | AAY3: 215050020 | AAZ3: 215050021 | ABA3: 215050022 | ABB3: 215050023 | ABC3: 215050024 | ABD3: 215050025 | ABE3: 215050026 | ABF3: 215050027 | ABG3: 215050028 | ABH3: 215050029 | ABI3: 215050030 | ABJ3: 215050031 | ABK3: 215050032 | ABL3: 215060001 | ABM3: 215060002 | ABN3: 215060003 | ABO3: 215060004 | ABP3: 215060005 | ABQ3: 215060006 | ABR3: 215060007 | ABS3: 215060008 | ABT3: 215060009 | ABU3: 215060010 | ABV3: 215070001 | ABW3: 215080001 | ABX3: 215080002 | ABY3: 215080003 | ABZ3: 215080004 | ACA3: 215080005 | ACB3: 215090001 | ACC3: 215090002 | ACD3: 215090003 | ACE3: 215090004 | ACF3: 215090005 | ACG3: 215090006 | ACH3: 215090007 | ACI3: 215090008 | ACJ3: 215100001 | ACK3: 215100002 | ACL3: 215100003 | ACM3: 215100004 | ACN3: 215100005 | ACO3: 211281168 | ACP3: 211281169 | ACQ3: 211281170 | ACR3: 211281180 | ACS3: 211281181 | ACT3: 211281182 | ACU3: 211281183 | ACV3: 211281184 | ACW3: 211291142 | ACX3: 211291143 | ACY3: 211291144 | ACZ3: 211291145 | ADA3: 211301171 | ADB3: 211301175 | ADC3: 211301177 | ADD3: 211301178 | ADE3: 211301179 | ADF3: 211341146 | ADG3: 211341147 | ADH3: 211341148 | ADI3: 211341149 | ADJ3: 211341150 | ADK3: 211341152 | ADL3: 211341153 | ADM3: 211341154 | ADN3: 211341155 | ADO3: 211341165 | ADP3: 211341166 | ADQ3: 215110001 | ADR3: 215110002 | ADS3: 215110003 | ADT3: 215110004 | ADU3: 215110005 | ADV3: 215110006 | ADW3: 215110007 | ADX3: 215110008 | ADY3: 215110009 | ADZ3: 215110010 | AEA3: 215110011 | AEB3: 215110012 | AEC3: 215120001 | AED3: 215120002 | AEE3: 215120003 | AEF3: 215120004 | AEG3: 215120005 | AEH3: 215120006 | AEI3: 215120007 | AEJ3: 215120008 | AEK3: 215120009 | AEL3: 215120010 | AEM3: 215130001 | AEN3: 215130002 | AEO3: 215130003 | AEP3: 215130004 | AEQ3: 215130005 | AER3: 215140001 | AES3: 215140002 | AET3: 215140003 | AEU3: 215140004 | AEV3: 215140005 | AEW3: 215140006 | AEX3: 215140007 | AEY3: 211351208 | AEZ3: 211351209 | AFA3: 211351210 | AFB3: 211352794 | AFC3: 211352795 | AFD3: 211361211 | AFE3: 211361212 | AFF3: 211361213 | AFG3: 211361214 | AFH3: 211361215 | AFI3: 211361216 | AFJ3: 211361217 | AFK3: 211361218 | AFL3: 211361219 | AFM3: 211361220 | AFN3: 211381221 | AFO3: 211381222 | AFP3: 211381223 | AFQ3: 211381224 | AFR3: 211381225 | AFS3: 211382796 | AFT3: 211382797 | AFU3: 215150001 | AFV3: 215150002 | AFW3: 215150003 | AFX3: 215150004 | AFY3: 215160001 | AFZ3: 215160002 | AGA3: 215160003 | AGB3: 215160004 | AGC3: 215160005 | AGD3: 215160006 | AGE3: 215160007 | AGF3: 211391248 | AGG3: 211391249 | AGH3: 211391250 | AGI3: 211391251 | AGJ3: 211391252 | AGK3: 211391253 | AGL3: 211401131 | AGM3: 211401226 | AGN3: 211401227 | AGO3: 211401258 | AGP3: 211411240 | AGQ3: 211411241 | AGR3: 211411242 | AGS3: 211411243 | AGT3: 211411244 | AGU3: 211411245 | AGV3: 211411246 | AGW3: 211411247 | AGX3: 211421228 | AGY3: 211421229 | AGZ3: 211421230 | AHA3: 211421231 | AHB3: 211421232 | AHC3: 211421233 | AHD3: 211421234 | AHE3: 211421235 | AHF3: 211421236 | AHG3: 211421237 | AHH3: 211421238 | AHI3: 211421239 | AHJ3: 211431259 | AHK3: 211431260 | AHL3: 211431261 | AHM3: 211431262 | AHN3: 211431263 | AHO3: 211431264 | AHP3: 211451254 | AHQ3: 211451255 | AHR3: 211451256 | AHS3: 211451257 | AHT3: 211451265 | AHU3: 211451266 | AHV3: 215170001 | AHW3: 215170002 | AHX3: 215170003 | AHY3: 215170004 | AHZ3: 215170005 | AIA3: 215170006 | AIB3: 215170007 | AIC3: 215170008 | AID3: 215170009 | AIE3: 215170010 | AIF3: 215170011 | AIG3: 215170012 | AIH3: 215170013 | AII3: 215170014 | AIJ3: 215170015 | AIK3: 215170016 | AIL3: 215170017 | AIM3: 215170018 | AIN3: 215170019 | AIO3: 215170020 | AIP3: 215180001 | AIQ3: 215180002 | AIR3: 215180003 | AIS3: 215180004 | AIT3: 215180005 | AIU3: 215180006 | AIV3: 215180007 | AIW3: 215180008 | AIX3: 211460001 | AIY3: 211462022 | AIZ3: 211462024 | AJA3: 211462025 | AJB3: 211462033 | AJC3: 211471999 | AJD3: 211472003 | AJE3: 211472004 | AJF3: 211472005 | AJG3: 211472006 | AJH3: 211472007 | AJI3: 211472008 | AJJ3: 211482009 | AJK3: 211482010 | AJL3: 211482011 | AJM3: 211482012 | AJN3: 211482013 | AJO3: 211482014 | AJP3: 211482015 | AJQ3: 211482016 | AJR3: 211482017 | AJS3: 211482018 | AJT3: 211492035 | AJU3: 211492036 | AJV3: 211492037 | AJW3: 211492038 | AJX3: 211492039 | AJY3: 211492040 | AJZ3: 211492041 | AKA3: 211492042 | AKB3: 211492043 | AKC3: 211492044 | AKD3: 211492045 | AKE3: 211492046 | AKF3: 211492047 | AKG3: 211492048 | AKH3: 211492049 | AKI3: 211492050 | AKJ3: 211500001 | AKK3: 211500002 | AKL3: 211502023 | AKM3: 211502026 | AKN3: 211502028 | AKO3: 211502029 | AKP3: 211502030 | AKQ3: 211502031 | AKR3: 211502032 | AKS3: 211502034 | AKT3: 211522052 | AKU3: 211522053 | AKV3: 211522054 | AKW3: 211522055 | AKX3: 211522056 | AKY3: 211522057 | AKZ3: 211522058 | ALA3: 211522059 | ALB3: 211522060 | ALC3: 211522061 | ALD3: 211522062 | ALE3: 211522063 | ALF3: 211522078 | ALG3: 211542095 | ALH3: 211542097 | ALI3: 211542098 | ALJ3: 211542099 | ALK3: 211551996 | ALL3: 211551997 | ALM3: 211551998 | ALN3: 211552000 | ALO3: 211552001 | ALP3: 211552002 | ALQ3: 211552019 | ALR3: 211552020 | ALS3: 211552021 | ALT3: 215190001 | ALU3: 215190002 | ALV3: 215190003 | ALW3: 215190004 | ALX3: 215190005 | ALY3: 215190006 | ALZ3: 215200001 | AMA3: 215200002 | AMB3: 215200003 | AMC3: 215200004 | AMD3: 215200005 | AME3: 215200006 | AMF3: 215200007 | AMG3: 215200008 | AMH3: 215210001 | AMI3: 215210002 | AMJ3: 215210003 | AMK3: 215210004 | AML3: 215210005 | AMM3: 215210006 | AMN3: 215210007 | AMO3: 215210008 | AMP3: 215220001 | AMQ3: 215220002 | AMR3: 215220003 | AMS3: 215220004 | AMT3: 215220005 | AMU3: 215220006 | AMV3: 215220007 | AMW3: 215220008 | AMX3: 215220009 | AMY3: 211562120 | AMZ3: 211562129 | ANA3: 211562130 | ANB3: 211562131 | ANC3: 211562132 | AND3: 211562133 | ANE3: 211572119 | ANF3: 211572121 | ANG3: 211572122 | ANH3: 211572123 | ANI3: 211572124 | ANJ3: 211572125 | ANK3: 211572126 | ANL3: 211572127 | ANM3: 211572128 | ANN3: 211572152 | ANO3: 211592148 | ANP3: 211592149 | ANQ3: 211592151 | ANR3: 211592153 | ANS3: 211592154 | ANT3: 211592155 | ANU3: 211592156 | ANV3: 211592157 | ANW3: 211602144 | ANX3: 211602145 | ANY3: 211602146 | ANZ3: 211602147 | AOA3: 211602150 | AOB3: 214240001 | AOC3: 214240002 | AOD3: 214240003 | AOE3: 214240004 | AOF3: 214250001 | AOG3: 214250002 | AOH3: 214250003 | AOI3: 214250004 | AOJ3: 214250005 | AOK3: 211612326 | AOL3: 211612341 | AOM3: 211612342 | AON3: 211612343 | AOO3: 211612344 | AOP3: 211612345 | AOQ3: 211612346 | AOR3: 211612347 | AOS3: 211612348 | AOT3: 211612349 | AOU3: 211612351 | AOV3: 211622318 | AOW3: 211622331 | AOX3: 211622335 | AOY3: 211622339 | AOZ3: 211622340 | APA3: 211630001 | APB3: 211630002 | APC3: 211630003 | APD3: 211630004 | APE3: 211630005 | APF3: 211630006 | APG3: 211630007 | APH3: 211630008 | API3: 211632260 | APJ3: 211632266 | APK3: 211632267 | APL3: 211632268 | APM3: 211632275 | APN3: 211632276 | APO3: 211632277 | APP3: 211632280 | APQ3: 211632281 | APR3: 211632282 | APS3: 211632283 | APT3: 211632284 | APU3: 211632285 | APV3: 211642286 | APW3: 211642287 | APX3: 211642288 | APY3: 211642289 | APZ3: 211642290 | AQA3: 211642291 | AQB3: 211642292 | AQC3: 211652258 | AQD3: 211652259 | AQE3: 211652261 | AQF3: 211652262 | AQG3: 211652263 | AQH3: 211652264 | AQI3: 211652265 | AQJ3: 211662320 | AQK3: 211662330 | AQL3: 211662332 | AQM3: 211662333 | AQN3: 211662334 | AQO3: 211662336 | AQP3: 211662337 | AQQ3: 211662338 | AQR3: 211672255 | AQS3: 211672256 | AQT3: 211672257 | AQU3: 211672270 | AQV3: 211672271 | AQW3: 211672272 | AQX3: 211672273 | AQY3: 211682603 | AQZ3: 211682605 | ARA3: 211682606 | ARB3: 211682610 | ARC3: 211692581 | ARD3: 211692582 | ARE3: 211692583 | ARF3: 211692584 | ARG3: 211692585 | ARH3: 211692586 | ARI3: 211692587 | ARJ3: 211692588 | ARK3: 211692589 | ARL3: 211692590 | ARM3: 211692591 | ARN3: 211692592 | ARO3: 211692593 | ARP3: 211692594 | ARQ3: 211692595 | ARR3: 211692596 | ARS3: 211692597 | ART3: 211692598 | ARU3: 211692599 | ARV3: 211692600 | ARW3: 211692601 | ARX3: 211692602 | ARY3: 211702575 | ARZ3: 211702576 | ASA3: 211702577 | ASB3: 211702578 | ASC3: 211702579 | ASD3: 211702580 | ASE3: 211712607 | ASF3: 211712611 | ASG3: 211712612 | ASH3: 211712613 | ASI3: 211712618 | ASJ3: 211712620 | ASK3: 211722621 | ASL3: 211722622 | ASM3: 211722623 | ASN3: 211722624 | ASO3: 211722625 | ASP3: 211722626 | ASQ3: 211722627 | ASR3: 211722628 | ASS3: 211722629 | AST3: 211722630 | ASU3: 211732604 | ASV3: 211732608 | ASW3: 211732609 | ASX3: 211732614 | ASY3: 211732615 | ASZ3: 211732616 | ATA3: 211732617 | ATB3: 211732619 | ATC3: 211742677 | ATD3: 211742679 | ATE3: 211742687 | ATF3: 211742688 | ATG3: 211742689 | ATH3: 211742690 | ATI3: 211742691 | ATJ3: 211742692 | ATK3: 211742693 | ATL3: 211742694 | ATM3: 211742695 | ATN3: 211742696 | ATO3: 211742697 | ATP3: 211742698 | ATQ3: 211742699 | ATR3: 211742700 | ATS3: 211762658 | ATT3: 211762659 | ATU3: 211762660 | ATV3: 211762661 | ATW3: 211762662 | ATX3: 211762663 | ATY3: 211762664 | ATZ3: 211762665 | AUA3: 211772631 | AUB3: 211772632 | AUC3: 211772642 | AUD3: 211772643 | AUE3: 211772644 | AUF3: 211772669 | AUG3: 211772670 | AUH3: 211772671 | AUI3: 211772672 | AUJ3: 211772673 | AUK3: 211772674 | AUL3: 211772675 | AUM3: 211782635 | AUN3: 211782636 | AUO3: 211782637 | AUP3: 211782638 | AUQ3: 211782639 | AUR3: 211782654 | AUS3: 211782655 | AUT3: 211782656 | AUU3: 211792646 | AUV3: 211792647 | AUW3: 211792648 | AUX3: 211792649 | AUY3: 211792650 | AUZ3: 211792651 | AVA3: 211792652 | AVB3: 211792653 | AVC3: 211802184 | AVD3: 211802185 | AVE3: 211802186 | AVF3: 211802187 | AVG3: 211812666 | AVH3: 211812667 | AVI3: 211812668 | AVJ3: 211822633 | AVK3: 211822634 | AVL3: 211822640 | AVM3: 211822641 | AVN3: 211822645 | AVO3: 211822657 | AVP3: 211822676 | AVQ3: 211822678 | AVR3: 214260001 | AVS3: 214260002 | AVT3: 214260003 | AVU3: 214260004 | AVV3: 214260005 | AVW3: 214270001 | AVX3: 214270002 | AVY3: 214270003 | AVZ3: 211832729 | AWA3: 211832788 | AWB3: 211832789 | AWC3: 211842728 | AWD3: 211842730 | AWE3: 211842731 | AWF3: 211842732 | AWG3: 211842733 | AWH3: 211842746 | AWI3: 211852771 | AWJ3: 211852772 | AWK3: 211852773 | AWL3: 211852775 | AWM3: 211852776 | AWN3: 211852777 | AWO3: 211852778 | AWP3: 211862779 | AWQ3: 211862780 | AWR3: 211862781 | AWS3: 211862784 | AWT3: 211862785 | AWU3: 211862786 | AWV3: 211862787 | AWW3: 211872774 | AWX3: 211872790 | AWY3: 211882704 | AWZ3: 211882705 | AXA3: 211882706 | AXB3: 211882707 | AXC3: 211882708 | AXD3: 211882709 | AXE3: 211882710 | AXF3: 211882711 | AXG3: 211882712 | AXH3: 211882713 | AXI3: 211882714 | AXJ3: 211882715 | AXK3: 211882716 | AXL3: 211882717 | AXM3: 211882718 | AXN3: 211882734 | AXO3: 211882754 | AXP3: 211892782 | AXQ3: 211892783 | AXR3: 211892791 | AXS3: 211892792 | AXT3: 211892793 | AXU3: 211902721 | AXV3: 211902736 | AXW3: 211902737 | AXX3: 211902738 | AXY3: 211902739 | AXZ3: 211902740 | AYA3: 211902741 | AYB3: 211902742 | AYC3: 211902743 | AYD3: 211902744 | AYE3: 211912750 | AYF3: 211912751 | AYG3: 211912752 | AYH3: 211912753 | AYI3: 211912755 | AYJ3: 211912756 | AYK3: 211912757 | AYL3: 211912758 | AYM3: 211912759 | AYN3: 211912761 | AYO3: 211912762 | AYP3: 211912763 | AYQ3: 211922735 | AYR3: 211932719 | AYS3: 211932720 | AYT3: 211932722 | AYU3: 211932723 | AYV3: 211932724 | AYW3: 211932725 | AYX3: 211932726 | AYY3: 211932727 | AYZ3: 211940001 | AZA3: 211942798 | AZB3: 211942799 | AZC3: 211942800 | AZD3: 211942801 | AZE3: 211942804 | AZF3: 211942817 | AZG3: 211942818 | AZH3: 211942819 | AZI3: 211942820 | AZJ3: 211942821 | AZK3: 211942822 | AZL3: 211942823 | AZM3: 211952805 | AZN3: 211952806 | AZO3: 211952807 | AZP3: 211952808 | AZQ3: 211952809 | AZR3: 211952810 | AZS3: 211952811 | AZT3: 211952812 | AZU3: 211952813 | AZV3: 211952814 | AZW3: 211952815 | AZX3: 211952816 | AZY3: 211961737 | AZZ3: 211961756 | BAA3: 211961758 | BAB3: 211971740 | BAC3: 211971745 | BAD3: 211971747 | BAE3: 211971748 | BAF3: 211971749 | BAG3: 211971750 | BAH3: 211971751 | BAI3: 211971753 | BAJ3: 211971754 | BAK3: 211971755 | BAL3: 211980001 | BAM3: 211980002 | BAN3: 211981714 | BAO3: 211981715 | BAP3: 211981717 | BAQ3: 211981718 | BAR3: 211981727 | BAS3: 211981728 | BAT3: 211981729 | BAU3: 211981730 | BAV3: 211990001 | BAW3: 211990002 | BAX3: 211990003 | BAY3: 211990004 | BAZ3: 211991712 | BBA3: 211991713 | BBB3: 211991720 | BBC3: 211991722 | BBD3: 211991723 | BBE3: 211991724 | BBF3: 211991725 | BBG3: 212001700 | BBH3: 212001701 | BBI3: 212001702 | BBJ3: 212001703 | BBK3: 212001704 | BBL3: 212001705 | BBM3: 212001706 | BBN3: 212001708 | BBO3: 212001710 | BBP3: 212010001 | BBQ3: 212011698 | BBR3: 212011699 | BBS3: 212011711 | BBT3: 212021734 | BBU3: 212021735 | BBV3: 212021736 | BBW3: 212021739 | BBX3: 212021741 | BBY3: 212021742 | BBZ3: 212021752 | BCA3: 212030001 | BCB3: 212030002 | BCC3: 212031719 | BCD3: 212031731 | BCE3: 212031733 | BCF3: 212041738 | BCG3: 212041743 | BCH3: 212041744 | BCI3: 212041746 | BCJ3: 212041757 | BCK3: 212051788 | BCL3: 212051789 | BCM3: 212051790 | BCN3: 212051813 | BCO3: 214280001 | BCP3: 214280002 | BCQ3: 214280003 | BCR3: 214280004 | BCS3: 214280005 | BCT3: 214280006 | BCU3: 214280007 | BCV3: 214280008 | BCW3: 214280009 | BCX3: 214280010 | BCY3: 214280011 | BCZ3: 214280012 | BDA3: 214280013 | BDB3: 214280014 | BDC3: 214280015 | BDD3: 214280016 | BDE3: 214280017 | BDF3: 214280018 | BDG3: 214280019 | BDH3: 214280020 | BDI3: 214280021 | BDJ3: 214280022 | BDK3: 214290001 | BDL3: 214290002 | BDM3: 214290003 | BDN3: 214290004 | BDO3: 214290005 | BDP3: 215230001 | BDQ3: 215230002 | BDR3: 215230003 | BDS3: 215240001 | BDT3: 215240002 | BDU3: 215240003 | BDV3: 215240004 | BDW3: 215250001 | BDX3: 215250002 | BDY3: 215250003 | BDZ3: 215250004 | BEA3: 215250005 | BEB3: 215260001 | BEC3: 215260002 | BED3: 215260003 | BEE3: 215260004 | BEF3: 215260005 | BEG3: 215260006 | BEH3: 212091907 | BEI3: 212091908 | BEJ3: 212091909 | BEK3: 212091910 | BEL3: 212091911 | BEM3: 212091912 | BEN3: 212091913 | BEO3: 212091914 | BEP3: 212091915 | BEQ3: 212091917 | BER3: 212091919 | BES3: 212091924 | BET3: 212101933 | BEU3: 212101934 | BEV3: 212101935 | BEW3: 212113599 | BEX3: 212113600 | BEY3: 212113601 | BEZ3: 212121936 | BFA3: 212121937 | BFB3: 212121938 | BFC3: 212121939 | BFD3: 212121940 | BFE3: 212131922 | BFF3: 212131923 | BFG3: 212131929 | BFH3: 212131931 | BFI3: 212141906 | BFJ3: 212141916 | BFK3: 212141918 | BFL3: 212141920 | BFM3: 212141921 | BFN3: 212151925 | BFO3: 212151926 | BFP3: 212151927 | BFQ3: 212151928 | BFR3: 212151930 | BFS3: 212151932 | BFT3: 212161960 | BFU3: 212161969 | BFV3: 212171958 | BFW3: 212171959 | BFX3: 212201961 | BFY3: 212201964 | BFZ3: 212201965 | BGA3: 212201966 | BGB3: 212201967 | BGC3: 212211962 | BGD3: 212211968 | BGE3: 212211969 | BGF3: 212231979 | BGG3: 212231980 | BGH3: 212231981 | BGI3: 212231982 | BGJ3: 212231983 | BGK3: 212231984 | BGL3: 212231985 | BGM3: 212231986 | BGN3: 212231987 | BGO3: 212231988 | BGP3: 212231990 | BGQ3: 212243588 | BGR3: 212243589 | BGS3: 212243590 | BGT3: 212243593 | BGU3: 212251953 | BGV3: 212251954 | BGW3: 212251955 | BGX3: 212251956 | BGY3: 212251957 | BGZ3: 214310001 | BHA3: 214310002 | BHB3: 214310003 | BHC3: 214320001 | BHD3: 214320002 | BHE3: 214320003 | BHF3: 214320004 | BHG3: 214320005 | BHH3: 214320006 | BHI3: 214320007 | BHJ3: 214320008 | BHK3: 214320009 | BHL3: 214320010 | BHM3: 214320011 | BHN3: 214320012 | BHO3: 214330001 | BHP3: 214330002 | BHQ3: 214330003 | BHR3: 214350001 | BHS3: 214350002 | BHT3: 214350003 | BHU3: 214350004 | BHV3: 214360001 | BHW3: 214360002 | BHX3: 214360003 | BHY3: 214360004 | BHZ3: 214360005 | BIA3: 214370001 | BIB3: 214370002 | BIC3: 214370003 | BID3: 215270001 | BIE3: 215270002 | BIF3: 215280001 | BIG3: 215290001 | BIH3: 215290002 | BII3: 215290003 | BIJ3: 215300001 | BIK3: 215300002 | BIL3: 215300003 | BIM3: 215300004 | BIN3: 215310001 | BIO3: 215310002 | BIP3: 215310003 | BIQ3: 215320001 | BIR3: 215320002 | BIS3: 212261528 | BIT3: 212261529 | BIU3: 212261530 | BIV3: 212271518 | BIW3: 212281309 | BIX3: 212281310 | BIY3: 212281314 | BIZ3: 212281315 | BJA3: 212281316 | BJB3: 212281317 | BJC3: 212281318 | BJD3: 212281326 | BJE3: 212281864 | BJF3: 212301523 | BJG3: 212301531 | BJH3: 212301532 | BJI3: 212311515 | BJJ3: 212311516 | BJK3: 212311517 | BJL3: 212311519 | BJM3: 215330001 | BJN3: 215330002 | BJO3: 215330003 | BJP3: 215340001 | BJQ3: 215340002 | BJR3: 215340003 | BJS3: 215340004 | BJT3: 212320001 | BJU3: 212320002 | BJV3: 212320003 | BJW3: 212320004 | BJX3: 212323536 | BJY3: 212333535 | BJZ3: 212333539 | BKA3: 212333540 | BKB3: 212333541 | BKC3: 212343528 | BKD3: 212343529 | BKE3: 212353530 | BKF3: 212353531 | BKG3: 212353532 | BKH3: 212353533 | BKI3: 212361675 | BKJ3: 212361676 | BKK3: 212361677 | BKL3: 212361678 | BKM3: 212361679 | BKN3: 212361680 | BKO3: 212361681 | BKP3: 212371694 | BKQ3: 212371695 | BKR3: 212371696 | BKS3: 212371697 | BKT3: 214390001 | BKU3: 214400001 | BKV3: 215350001 | BKW3: 215350002 | BKX3: 215350003 | BKY3: 215350004 | BKZ3: 215360001 | BLA3: 215360002 | BLB3: 215370001 | BLC3: 215370002 | BLD3: 215380001 | BLE3: 215380002 | BLF3: 215380003 | BLG3: 215380004 | BLH3: 215380005 | BLI3: 212400001 | BLJ3: 212400002 | BLK3: 212400003 | BLL3: 212400004 | BLM3: 212400005 | BLN3: 212400006 | BLO3: 212400007 | BLP3: 212401901 | BLQ3: 212401904 | BLR3: 212401905 | BLS3: 215390001 | BLT3: 215390002 | BLU3: 215400001 | BLV3: 215400002 | BLW3: 215400003 | BLX3: 215400004 | BLY3: 215400005 | BLZ3: 215400006 | BMA3: 215410001 | BMB3: 215410002 | BMC3: 215410003 | BMD3: 215410004 | BME3: 215410005 | BMF3: 212420001 | BMG3: 212420002 | BMH3: 212420003 | BMI3: 212420004 | BMJ3: 212420005 | BMK3: 212420006 | BML3: 212421837 | BMM3: 212421840 | BMN3: 212421841 | BMO3: 212421842 | BMP3: 212421845 | BMQ3: 212431838 | BMR3: 212431839 | BMS3: 212431843 | BMT3: 212431851 | BMU3: 212431852 | BMV3: 212431853 | BMW3: 212431854 | BMX3: 212431855 | BMY3: 212431856 | BMZ3: 212431857 | BNA3: 212431858 | BNB3: 212431859 | BNC3: 212431860 | BND3: 212431861 | BNE3: 212451836 | BNF3: 212451847 | BNG3: 212451848 | BNH3: 212451850 | BNI3: 212451874 | BNJ3: 212460001 | BNK3: 212460002 | BNL3: 212460003 | BNM3: 212460004 | BNN3: 212461875 | BNO3: 212461876 | BNP3: 212461877 | BNQ3: 212461891 | BNR3: 212471862 | BNS3: 212471863 | BNT3: 212481865 | BNU3: 212501832 | BNV3: 212501833 | BNW3: 212501834 | BNX3: 212501835 | BNY3: 214410001 | BNZ3: 214410002 | BOA3: 214410003 | BOB3: 214410004 | BOC3: 214410005 | BOD3: 214420001 | BOE3: 214420002 | BOF3: 214430001 | BOG3: 214430002 | BOH3: 214430003 | BOI3: 214430004 | BOJ3: 214430005 | BOK3: 214430006 | BOL3: 214430007 | BOM3: 214430008 | BON3: 214430009 | BOO3: 214430010 | BOP3: 214430011 | BOQ3: 214450001 | BOR3: 215420001 | BOS3: 215430001 | BOT3: 215430002 | BOU3: 215440001 | BOV3: 215440002 | BOW3: 215440003 | BOX3: 215440004 | BOY3: 215440005 | BOZ3: 215440006 | BPA3: 215450001 | BPB3: 215450002 | BPC3: 215450003 | BPD3: 212512370 | BPE3: 212512371 | BPF3: 212512372 | BPG3: 212512373 | BPH3: 212512374 | BPI3: 212512375 | BPJ3: 212512376 | BPK3: 212512377 | BPL3: 212512378 | BPM3: 212512379 | BPN3: 212512410 | BPO3: 212540001 | BPP3: 212540002 | BPQ3: 212540003 | BPR3: 212540004 | BPS3: 212542391 | BPT3: 212542393 | BPU3: 212542394 | BPV3: 212542396 | BPW3: 212542413 | BPX3: 212542414 | BPY3: 212552415 | BPZ3: 212552416 | BQA3: 212552417 | BQB3: 212562418 | BQC3: 212562420 | BQD3: 212562423 | BQE3: 212562424 | BQF3: 212562425 | BQG3: 212562428 | BQH3: 212562429 | BQI3: 212562430 | BQJ3: 212572427 | BQK3: 212572431 | BQL3: 212580001 | BQM3: 212582426 | BQN3: 212592406 | BQO3: 212592407 | BQP3: 212592408 | BQQ3: 212592409 | BQR3: 212592411 | BQS3: 212602395 | BQT3: 212602397 | BQU3: 212602398 | BQV3: 212602399 | BQW3: 212602400 | BQX3: 212602401 | BQY3: 212602403 | BQZ3: 212602404 | BRA3: 212602405 | BRB3: 214460001 | BRC3: 214460002 | BRD3: 214460003 | BRE3: 214460004 | BRF3: 214460005 | BRG3: 214460006 | BRH3: 214460007 | BRI3: 214460008 | BRJ3: 214460009 | BRK3: 214460010 | BRL3: 214460011 | BRM3: 214460012 | BRN3: 214460013 | BRO3: 214460014 | BRP3: 214470001 | BRQ3: 214470002 | BRR3: 214470003 | BRS3: 214470004 | BRT3: 214470005 | BRU3: 214470006 | BRV3: 214470007 | BRW3: 214480001 | BRX3: 214480002 | BRY3: 214480003 | BRZ3: 214480004 | BSA3: 214480005 | BSB3: 214480006 | BSC3: 214480007 | BSD3: 214480008 | BSE3: 214480009 | BSF3: 214490001 | BSG3: 214490002 | BSH3: 212612100 | BSI3: 212612101 | BSJ3: 212612102 | BSK3: 212612103 | BSL3: 212612113 | BSM3: 212612114 | BSN3: 212612115 | BSO3: 212612116 | BSP3: 212612117 | BSQ3: 212612118 | BSR3: 212612141 | BSS3: 212622104 | BST3: 212622105 | BSU3: 212622106 | BSV3: 212622107 | BSW3: 212622108 | BSX3: 212622109 | BSY3: 212622110 | BSZ3: 212622111 | BTA3: 212622112 | BTB3: 212632432 | BTC3: 212632433 | BTD3: 212632434 | BTE3: 212632435 | BTF3: 212632437 | BTG3: 212632440 | BTH3: 212652461 | BTI3: 212652462 | BTJ3: 212652463 | BTK3: 212652464 | BTL3: 212652465 | BTM3: 212652466 | BTN3: 212660001 | BTO3: 212660002 | BTP3: 212660003 | BTQ3: 212660004 | BTR3: 212660005 | BTS3: 212660006 | BTT3: 212660007 | BTU3: 212660008 | BTV3: 212660009 | BTW3: 212660010 | BTX3: 212660011 | BTY3: 212662476 | BTZ3: 212662481 | BUA3: 212662482 | BUB3: 212662484 | BUC3: 212662485 | BUD3: 212662486 | BUE3: 212662487 | BUF3: 212662489 | BUG3: 212662490 | BUH3: 212662492 | BUI3: 212662493 | BUJ3: 212662494 | BUK3: 212662495 | BUL3: 212672439 | BUM3: 212672467 | BUN3: 212672468 | BUO3: 212672469 | BUP3: 212672470 | BUQ3: 212672471 | BUR3: 212672472 | BUS3: 212672474 | BUT3: 212672475 | BUU3: 212672477 | BUV3: 212672478 | BUW3: 212682495 | BUX3: 212682496 | BUY3: 212682497 | BUZ3: 214500001 | BVA3: 214500002 | BVB3: 214500003 | BVC3: 214500004 | BVD3: 214500005 | BVE3: 214500006 | BVF3: 214500007 | BVG3: 214500008 | BVH3: 214500009 | BVI3: 214500010 | BVJ3: 214500011 | BVK3: 214510001 | BVL3: 214510002 | BVM3: 214510003 | BVN3: 214510004 | BVO3: 214510005 | BVP3: 214510006 | BVQ3: 214510007 | BVR3: 214510008 | BVS3: 214510009 | BVT3: 214510010 | BVU3: 214520001 | BVV3: 214520002 | BVW3: 214520003 | BVX3: 212692297 | BVY3: 212692299 | BVZ3: 212692319 | BWA3: 212692321 | BWB3: 212692322 | BWC3: 212692323 | BWD3: 212692324 | BWE3: 212702301 | BWF3: 212702304 | BWG3: 212702305 | BWH3: 212702306 | BWI3: 212702307 | BWJ3: 212702308 | BWK3: 212702309 | BWL3: 212702310 | BWM3: 212702311 | BWN3: 212702312 | BWO3: 212710001 | BWP3: 212712314 | BWQ3: 212712315 | BWR3: 212712316 | BWS3: 212712317 | BWT3: 212712325 | BWU3: 212712328 | BWV3: 212712329 | BWW3: 212722298 | BWX3: 212722300 | BWY3: 212722302 | BWZ3: 212722303 | BXA3: 212722313 | BXB3: 212732293 | BXC3: 212732294 | BXD3: 212732295 | BXE3: 212732296 | BXF3: 212742508 | BXG3: 212742509 | BXH3: 212742510 | BXI3: 212752520 | BXJ3: 212752536 | BXK3: 212752550 | BXL3: 212752551 | BXM3: 212752552 | BXN3: 212762553 | BXO3: 212762554 | BXP3: 212762555 | BXQ3: 212762556 | BXR3: 212762557 | BXS3: 212762558 | BXT3: 212762559 | BXU3: 212772521 | BXV3: 212772522 | BXW3: 212772524 | BXX3: 212772527 | BXY3: 212782531 | BXZ3: 212782538 | BYA3: 212782539 | BYB3: 212782540 | BYC3: 212782543 | BYD3: 212782544 | BYE3: 212782545 | BYF3: 212782546 | BYG3: 212782547 | BYH3: 212782548 | BYI3: 212782549 | BYJ3: 212782566 | BYK3: 212782568 | BYL3: 212782569 | BYM3: 212782570 | BYN3: 212792560 | BYO3: 212792561 | BYP3: 212792562 | BYQ3: 212792563 | BYR3: 212792572 | BYS3: 212792573 | BYT3: 212802525 | BYU3: 212802526 | BYV3: 212802528 | BYW3: 212802542 | BYX3: 212812523 | BYY3: 212812534 | BYZ3: 212812535 | BZA3: 212812537 | BZB3: 212812541 | BZC3: 212822513 | BZD3: 212822514 | BZE3: 212822515 | BZF3: 212822516 | BZG3: 212822517 | BZH3: 212822518 | BZI3: 212822519 | BZJ3: 212832529 | BZK3: 212832530 | BZL3: 212832532 | BZM3: 212842511 | BZN3: 212842512 | BZO3: 212852533 | BZP3: 212852564 | BZQ3: 212852565 | BZR3: 212852567 | BZS3: 212852571 | BZT3: 212852574 | BZU3: 212860001 | BZV3: 212860002 | BZW3: 212862498 | BZX3: 212862500 | BZY3: 212862503 | BZZ3: 212862504 | CAA3: 212862505 | CAB3: 212862506 | CAC3: 212862507 | CAD3: 212863731 | CAE3: 212892931 | CAF3: 212892932 | CAG3: 212892933 | CAH3: 212892935 | CAI3: 212892936 | CAJ3: 212892937 | CAK3: 212892938 | CAL3: 212892939 | CAM3: 212892940 | CAN3: 212892941 | CAO3: 212892942 | CAP3: 212892943 | CAQ3: 215460001 | CAR3: 215460002 | CAS3: 215460003 | CAT3: 215460004 | CAU3: 215460005 | CAV3: 215460006 | CAW3: 215460007 | CAX3: 215460008 | CAY3: 215470001 | CAZ3: 215470002 | CBA3: 215470003 | CBB3: 215470004 | CBC3: 215470005 | CBD3: 215470006 | CBE3: 215470007 | CBF3: 215470008 | CBG3: 215470009 | CBH3: 215480001 | CBI3: 215480002 | CBJ3: 215480003 | CBK3: 215480004 | CBL3: 215480005 | CBM3: 215480006 | CBN3: 215490001 | CBO3: 215490002 | CBP3: 215490003 | CBQ3: 215490004 | CBR3: 215490005 | CBS3: 215490006 | CBT3: 215490007 | CBU3: 215500001 | CBV3: 215500002 | CBW3: 215500003 | CBX3: 215500004 | CBY3: 215500005 | CBZ3: 215500006 | CCA3: 215500007 | CCB3: 215510001 | CCC3: 215510002 | CCD3: 215510003 | CCE3: 215510004 | CCF3: 215510005 | CCG3: 215510006 | CCH3: 215510007 | CCI3: 215520001 | CCJ3: 215520002 | CCK3: 215520003 | CCL3: 215520004 | CCM3: 215520005 | CCN3: 215520006 | CCO3: 215520007 | CCP3: 215520008 | CCQ3: 215520009 | CCR3: 215520010 | CCS3: 212932981 | CCT3: 212932983 | CCU3: 212932984 | CCV3: 212932985 | CCW3: 212932987 | CCX3: 212932988 | CCY3: 212932989 | CCZ3: 212932999 | CDA3: 212933002 | CDB3: 212950001 | CDC3: 212950002 | CDD3: 212950003 | CDE3: 212953043 | CDF3: 212953044 | CDG3: 212953045 | CDH3: 212970001 | CDI3: 212970002 | CDJ3: 212970003 | CDK3: 212970004 | CDL3: 212973033 | CDM3: 212973035 | CDN3: 212973036 | CDO3: 212973037 | CDP3: 212973038 | CDQ3: 212990001 | CDR3: 212993003 | CDS3: 212993004 | CDT3: 212993005 | CDU3: 212993006 | CDV3: 212993030 | CDW3: 212993031 | CDX3: 212993039 | CDY3: 214530001 | CDZ3: 214530002 | CEA3: 214530003 | CEB3: 214540001 | CEC3: 214540002 | CED3: 214540003 | CEE3: 214550001 | CEF3: 214550002 | CEG3: 214560001 | CEH3: 214560002 | CEI3: 214560003 | CEJ3: 214560004 | CEK3: 214560005 | CEL3: 214560006 | CEM3: 214560007 | CEN3: 215530001 | CEO3: 215530002 | CEP3: 215540001 | CEQ3: 215540002 | CER3: 213003012 | CES3: 213003013 | CET3: 213003014 | CEU3: 213003015 | CEV3: 213003016 | CEW3: 213003017 | CEX3: 213003018 | CEY3: 213003019 | CEZ3: 213003020 | CFA3: 213033007 | CFB3: 213033054 | CFC3: 213033056 | CFD3: 213033057 | CFE3: 213033058 | CFF3: 213033059 | CFG3: 213040001 | CFH3: 213040002 | CFI3: 213040003 | CFJ3: 213043011 | CFK3: 213060001 | CFL3: 213063026 | CFM3: 213063027 | CFN3: 213080001 | CFO3: 213083050 | CFP3: 213083051 | CFQ3: 213083052 | CFR3: 213083055 | CFS3: 214570001 | CFT3: 214570002 | CFU3: 214570003 | CFV3: 214580001 | CFW3: 214580002 | CFX3: 215550001 | CFY3: 215550002 | CFZ3: 215560001 | CGA3: 215570001 | CGB3: 215570002 | CGC3: 215580001 | CGD3: 215590001 | CGE3: 215600001 | CGF3: 215600002 | CGG3: 215600003 | CGH3: 215610001 | CGI3: 215610002 | CGJ3: 215620001 | CGK3: 215620002 | CGL3: 213090001 | CGM3: 213092702 | CGN3: 213092703 | CGO3: 213092764 | CGP3: 213092765 | CGQ3: 213100001 | CGR3: 213100002 | CGS3: 213100003 | CGT3: 213100004 | CGU3: 213100005 | CGV3: 213100006 | CGW3: 213102769 | CGX3: 213102770 | CGY3: 213122861 | CGZ3: 213122862 | CHA3: 213122863 | CHB3: 213122864 | CHC3: 213122865 | CHD3: 213122866 | CHE3: 213122867 | CHF3: 213122868 | CHG3: 213132745 | CHH3: 213132747 | CHI3: 213132748 | CHJ3: 213132749 | CHK3: 213162859 | CHL3: 213162860 | CHM3: 213162893 | CHN3: 213162925 | CHO3: 213172911 | CHP3: 213172912 | CHQ3: 213172913 | CHR3: 213172914 | CHS3: 213172915 | CHT3: 213172916 | CHU3: 213172917 | CHV3: 213172918 | CHW3: 213172920 | CHX3: 213172921 | CHY3: 213172922 | CHZ3: 213172923 | CIA3: 213172924 | CIB3: 213172926 | CIC3: 213182887 | CID3: 213182905 | CIE3: 213182906 | CIF3: 213182908 | CIG3: 213182910 | CIH3: 214590001 | CII3: 214590002 | CIJ3: 214590003 | CIK3: 214590004 | CIL3: 214600001 | CIM3: 214600002 | CIN3: 214600003 | CIO3: 214600005 | CIP3: 214600006 | CIQ3: 214600007 | CIR3: 215630001 | CIS3: 215630002 | CIT3: 215630003 | CIU3: 215630004 | CIV3: 215630005 | CIW3: 215630006 | CIX3: 215630007 | CIY3: 215630008 | CIZ3: 215630009 | CJA3: 215630010 | CJB3: 215630011 | CJC3: 215630012 | CJD3: 215630013 | CJE3: 215630014 | CJF3: 215640001 | CJG3: 215640002 | CJH3: 215640003 | CJI3: 215640004 | CJJ3: 215640005 | CJK3: 215640006 | CJL3: 215640007 | CJM3: 215640008 | CJN3: 215640009 | CJO3: 215640010 | CJP3: 215640011 | CJQ3: 215640012 | CJR3: 215640013 | CJS3: 215640014 | CJT3: 215640015 | CJU3: 215640016 | CJV3: 215640017 | CJW3: 215640018 | CJX3: 215640019 | CJY3: 215640020 | CJZ3: 215640021 | CKA3: 215640022 | CKB3: 215640023 | CKC3: 215640024 | CKD3: 215640025 | CKE3: 215640026 | CKF3: 215640027 | CKG3: 215640028 | CKH3: 215640029 | CKI3: 215640030 | CKJ3: 215640031 | CKK3: 215640032 | CKL3: 215640033 | CKM3: 215640034 | CKN3: 215640035 | CKO3: 215640036 | CKP3: 215640037 | CKQ3: 215650001 | CKR3: 215650002 | CKS3: 215650003 | CKT3: 215650004 | CKU3: 215650005 | CKV3: 215650006 | CKW3: 215650007 | CKX3: 215650008 | CKY3: 215650009 | CKZ3: 215650010 | CLA3: 215660001 | CLB3: 215660002 | CLC3: 215660003 | CLD3: 215660004 | CLE3: 215660005 | CLF3: 215660006 | CLG3: 213192188 | CLH3: 213192189 | CLI3: 213192214 | CLJ3: 213192215 | CLK3: 213192250 | CLL3: 213192251 | CLM3: 213192252 | CLN3: 213192253 | CLO3: 213192254 | CLP3: 213210001 | CLQ3: 213210002 | CLR3: 213210003 | CLS3: 213212199 | CLT3: 213212207 | CLU3: 213212208 | CLV3: 213212209 | CLW3: 213212210 | CLX3: 213212211 | CLY3: 213212212 | CLZ3: 213212213 | CMA3: 213220001 | CMB3: 213220002 | CMC3: 213220003 | CMD3: 213220004 | CME3: 213220005 | CMF3: 213222220 | CMG3: 213222221 | CMH3: 213222223 | CMI3: 213222224 | CMJ3: 213222226 | CMK3: 213222227 | CML3: 213222228 | CMM3: 213222230 | CMN3: 213232237 | CMO3: 213232239 | CMP3: 213232240 | CMQ3: 213232241 | CMR3: 213232248 | CMS3: 213232249 | CMT3: 213242233 | CMU3: 213242234 | CMV3: 213242235 | CMW3: 213242236 | CMX3: 213242238 | CMY3: 213242242 | CMZ3: 213242243 | CNA3: 213242244 | CNB3: 213242245 | CNC3: 213242246 | CND3: 213242247 | CNE3: 213252190 | CNF3: 213252191 | CNG3: 213252192 | CNH3: 213252193 | CNI3: 213252194 | CNJ3: 213252195 | CNK3: 213252196 | CNL3: 213252216 | CNM3: 213252218 | CNN3: 213252219 | CNO3: 213260001 | CNP3: 213260002 | CNQ3: 213260003 | CNR3: 213260004 | CNS3: 213262158 | CNT3: 213262160 | CNU3: 213262162 | CNV3: 213262164 | CNW3: 213262165 | CNX3: 213262177 | CNY3: 213262179 | CNZ3: 213262180 | COA3: 213262181 | COB3: 213262182 | COC3: 213262183 | COD3: 213270001 | COE3: 213270002 | COF3: 213272198 | COG3: 213272200 | COH3: 213272201 | COI3: 213272202 | COJ3: 213272203 | COK3: 213272204 | COL3: 213272205 | COM3: 215670001 | CON3: 215670002 | COO3: 215670003 | COP3: 215670004 | COQ3: 215670005 | COR3: 215670006 | COS3: 215670007 | COT3: 215670008 | COU3: 215670009 | COV3: 215680001 | COW3: 215680002 | COX3: 215680003 | COY3: 215680004 | COZ3: 215680005 | CPA3: 215680006 | CPB3: 215680007 | CPC3: 215680008 | CPD3: 215680009 | CPE3: 213280001 | CPF3: 213280002 | CPG3: 213281354 | CPH3: 213281355 | CPI3: 213281373 | CPJ3: 213291371 | CPK3: 213311311 | CPL3: 213311312 | CPM3: 213321295 | CPN3: 213321306 | CPO3: 213321307 | CPP3: 213321308 | CPQ3: 213331304 | CPR3: 213331305 | CPS3: 213331370 | CPT3: 213340001 | CPU3: 213340002 | CPV3: 213341296 | CPW3: 213341297 | CPX3: 213341299 | CPY3: 213341300 | CPZ3: 213341301 | CQA3: 213341302 | CQB3: 213341303 | CQC3: 213350001 | CQD3: 213350002 | CQE3: 213350003 | CQF3: 213350004 | CQG3: 213351330 | CQH3: 213351331 | CQI3: 213351353 | CQJ3: 213351372 | CQK3: 213360001 | CQL3: 213360002 | CQM3: 213360003 | CQN3: 213360004 | CQO3: 213360005 | CQP3: 213361338 | CQQ3: 213361340 | CQR3: 213361341 | CQS3: 213361342 | CQT3: 213371361 | CQU3: 213371362 | CQV3: 213371363 | CQW3: 213371364 | CQX3: 213371365 | CQY3: 213371366 | CQZ3: 213371367 | CRA3: 213371368 | CRB3: 213371369 | CRC3: 213381333 | CRD3: 213381334 | CRE3: 213381335 | CRF3: 213381336 | CRG3: 213381345 | CRH3: 213381347 | CRI3: 213381348 | CRJ3: 213381349 | CRK3: 213381350 | CRL3: 213381351 | CRM3: 213391313 | CRN3: 213391324 | CRO3: 213391325 | CRP3: 213401319 | CRQ3: 213401320 | CRR3: 213401321 | CRS3: 213401322 | CRT3: 213401323 | CRU3: 213401327 | CRV3: 213401328 | CRW3: 215690001 | CRX3: 215690002 | CRY3: 215690003 | CRZ3: 215690004 | CSA3: 215690005 | CSB3: 215690006 | CSC3: 215700001 | CSD3: 215700002 | CSE3: 215700003 | CSF3: 215700004 | CSG3: 215700005 | CSH3: 213410001 | CSI3: 213410002 | CSJ3: 213410003 | CSK3: 213411383 | CSL3: 213411384 | CSM3: 213411387 | CSN3: 213411388 | CSO3: 213411391 | CSP3: 213421377 | CSQ3: 213421379 | CSR3: 213421380 | CSS3: 213431374 | CST3: 213431375 | CSU3: 213431390 | CSV3: 213431392 | CSW3: 213431393 | CSX3: 213431394 | CSY3: 213431395 | CSZ3: 213431396 | CTA3: 213431397 | CTB3: 213431398 | CTC3: 213431399 | CTD3: 213431400 | CTE3: 213431401 | CTF3: 213431402 | CTG3: 213441413 | CTH3: 213441414 | CTI3: 213441415 | CTJ3: 213441417 | CTK3: 213441418 | CTL3: 213441419 | CTM3: 213441420 | CTN3: 213441421 | CTO3: 213441422 | CTP3: 213441423 | CTQ3: 213441424 | CTR3: 213451376 | CTS3: 213461403 | CTT3: 213461404 | CTU3: 213461405 | CTV3: 213461406 | CTW3: 213461407 | CTX3: 213461408 | CTY3: 213461409 | CTZ3: 213461410 | CUA3: 213461411 | CUB3: 213461412 | CUC3: 213461416 | CUD3: 213471467 | CUE3: 213471468 | CUF3: 213471469 | CUG3: 213471470 | CUH3: 213471471 | CUI3: 213471472 | CUJ3: 213471474 | CUK3: 213480001 | CUL3: 213480002 | CUM3: 213480003 | CUN3: 213480004 | CUO3: 213480005 | CUP3: 213480006 | CUQ3: 213481443 | CUR3: 213481445 | CUS3: 213481446 | CUT3: 213481447 | CUU3: 213481449 | CUV3: 213481450 | CUW3: 213481452 | CUX3: 213481453 | CUY3: 213481454 | CUZ3: 213481455 | CVA3: 213481456 | CVB3: 213481458 | CVC3: 213491444 | CVD3: 213491451 | CVE3: 213491473 | CVF3: 213491475 | CVG3: 213491477 | CVH3: 213491478 | CVI3: 213491479 | CVJ3: 213491480 | CVK3: 213500001 | CVL3: 213501436 | CVM3: 213501437 | CVN3: 213511440 | CVO3: 213511441 | CVP3: 213511442 | CVQ3: 213511460 | CVR3: 213511461 | CVS3: 213511462 | CVT3: 213511463 | CVU3: 213511464 | CVV3: 213511465 | CVW3: 213511466 | CVX3: 213521425 | CVY3: 213521426 | CVZ3: 213521427 | CWA3: 213521428 | CWB3: 213521429 | CWC3: 213521430 | CWD3: 213521431 | CWE3: 213521432 | CWF3: 213521433 | CWG3: 213521435 | CWH3: 213521439 | CWI3: 213530001 | CWJ3: 213530002 | CWK3: 213530003 | CWL3: 213533380 | CWM3: 213581545 | CWN3: 213581558 | CWO3: 213581559 | CWP3: 213581560 | CWQ3: 213581561 | CWR3: 213590001 | CWS3: 213590002 | CWT3: 213590003 | CWU3: 213590004 | CWV3: 213590005 | CWW3: 213591533 | CWX3: 213601538 | CWY3: 214610001 | CWZ3: 214620001 | CXA3: 214630001 | CXB3: 214630002 | CXC3: 214630003 | CXD3: 214630004 | CXE3: 215710001 | CXF3: 215710002 | CXG3: 215720001 | CXH3: 215720002 | CXI3: 215730001 | CXJ3: 215740001 | CXK3: 215740002 | CXL3: 215740003 | CXM3: 215750001 | CXN3: 215750002 | CXO3: 215750003 | CXP3: 215760001 | CXQ3: 215760002 | CXR3: 215760003 | CXS3: 215770001 | CXT3: 215770002 | CXU3: 215770003 | CXV3: 215770004 | CXW3: 215770005 | CXX3: 215770006 | CXY3: 215780001 | CXZ3: 215780002 | CYA3: 215780003 | CYB3: 215780004 | CYC3: 215780005 | CYD3: 213611590 | CYE3: 213611592 | CYF3: 213611596 | CYG3: 213611598 | CYH3: 213611600 | CYI3: 213611603 | CYJ3: 213611605 | CYK3: 213611606 | CYL3: 213611607 | CYM3: 213611608 | CYN3: 213621591 | CYO3: 213621593 | CYP3: 213621594 | CYQ3: 213621595 | CYR3: 213621597 | CYS3: 213621599 | CYT3: 213621601 | CYU3: 213621602 | CYV3: 213630001 | CYW3: 213631378 | CYX3: 213631381 | CYY3: 213631607 | CYZ3: 213631608 | CZA3: 213631609 | CZB3: 213631610 | CZC3: 213631611 | CZD3: 213631612 | CZE3: 213631613 | CZF3: 213631614 | CZG3: 213631615 | CZH3: 213631616 | CZI3: 213631617 | CZJ3: 213631618 | CZK3: 213631619 | CZL3: 213631620 | CZM3: 213680001 | CZN3: 213680002 | CZO3: 213680003 | CZP3: 213680004 | CZQ3: 213680005 | CZR3: 213681571 | CZS3: 213681574 | CZT3: 213681575 | CZU3: 213681577 | CZV3: 213681578 | CZW3: 213681579 | CZX3: 213681580 | CZY3: 213681583 | CZZ3: 213681584 | DAA3: 213681587 | DAB3: 213681623 | DAC3: 213681624 | DAD3: 214640001 | DAE3: 214640002 | DAF3: 214640003 | DAG3: 214660001 | DAH3: 214660002 | DAI3: 214670001 | DAJ3: 214670002 | DAK3: 214670003 | DAL3: 214670004 | DAM3: 214670005 | DAN3: 214670007 | DAO3: 214670008 | DAP3: 214680001 | DAQ3: 214680002 | DAR3: 214680003 | DAS3: 214680004 | DAT3: 214680005 | DAU3: 214680006 | DAV3: 214680007 | DAW3: 215790001 | DAX3: 215790002 | DAY3: 215800001 | DAZ3: 215800002 | DBA3: 215800003 | DBB3: 215810001 | DBC3: 215810002 | DBD3: 215820001 | DBE3: 215830001 | DBF3: 215830002 | DBG3: 215830003 | DBH3: 215830004 | DBI3: 215830005 | DBJ3: 215830006 | DBK3: 215840001 | DBL3: 215850001 | DBM3: 215850002 | DBN3: 215860001 | DBO3: 215860002 | DBP3: 215860003 | DBQ3: 215860004 | DBR3: 215860005 | DBS3: 215870001 | DBT3: 215870002 | DBU3: 215870003 | DBV3: 215880001 | DBW3: 215880002 | DBX3: 215880003 | DBY3: 215890001 | DBZ3: 215890002 | DCA3: 215900001 | DCB3: 215900002 | DCC3: 213703066 | DCD3: 213703067 | DCE3: 213703069 | DCF3: 213703070 | DCG3: 213710001 | DCH3: 213710002 | DCI3: 213710003 | DCJ3: 213710004 | DCK3: 213710005 | DCL3: 213710006 | DCM3: 213710007 | DCN3: 213710008 | DCO3: 213710009 | DCP3: 213710010 | DCQ3: 213713074 | DCR3: 213713078 | DCS3: 213713080 | DCT3: 213713081 | DCU3: 213713082 | DCV3: 213713083 | DCW3: 213720001 | DCX3: 213720002 | DCY3: 213723088 | DCZ3: 213723089 | DDA3: 213733071 | DDB3: 213733072 | DDC3: 213733073 | DDD3: 213733075 | DDE3: 213733085 | DDF3: 213743063 | DDG3: 213743064 | DDH3: 213743090 | DDI3: 213753068 | DDJ3: 213753091 | DDK3: 213753092 | DDL3: 213753093 | DDM3: 213753094 | DDN3: 213753095 | DDO3: 213763065 | DDP3: 213773119 | DDQ3: 213773126 | DDR3: 213773127 | DDS3: 213773128 | DDT3: 213783096 | DDU3: 213783101 | DDV3: 213783104 | DDW3: 213783114 | DDX3: 213783115 | DDY3: 213783116 | DDZ3: 213783117 | DEA3: 213783120 | DEB3: 213783125 | DEC3: 213783129 | DED3: 213783136 | DEE3: 213793097 | DEF3: 213793098 | DEG3: 213793099 | DEH3: 213793100 | DEI3: 213793102 | DEJ3: 213793103 | DEK3: 213793105 | DEL3: 213793106 | DEM3: 213793108 | DEN3: 213813145 | DEO3: 213813146 | DEP3: 213813148 | DEQ3: 213813149 | DER3: 213813150 | DES3: 213823131 | DET3: 213823132 | DEU3: 213823134 | DEV3: 213823140 | DEW3: 213833113 | DEX3: 213833121 | DEY3: 213833122 | DEZ3: 213833130 | DFA3: 213843118 | DFB3: 213843123 | DFC3: 213843124 | DFD3: 213850001 | DFE3: 213853107 | DFF3: 213853109 | DFG3: 213853110 | DFH3: 213853111 | DFI3: 213853112 | DFJ3: 215910001 | DFK3: 215910002 | DFL3: 215910003 | DFM3: 215910004 | DFN3: 215910005 | DFO3: 215920001 | DFP3: 215920002 | DFQ3: 215920003 | DFR3: 213863390 | DFS3: 213863391 | DFT3: 213873389 | DFU3: 213883396 | DFV3: 213890001 | DFW3: 213890002 | DFX3: 213903404 | DFY3: 213903405 | DFZ3: 213903406 | DGA3: 213903407 | DGB3: 213913398 | DGC3: 213913399 | DGD3: 213920001 | DGE3: 213920002 | DGF3: 213923400 | DGG3: 213933402 | DGH3: 213933403 | DGI3: 213943408 | DGJ3: 213943409 | DGK3: 213943410 | DGL3: 213943411 | DGM3: 213953414 | DGN3: 213960001 | DGO3: 213960002 | DGP3: 213980001 | DGQ3: 213983423 | DGR3: 213983426 | DGS3: 213993417 | DGT3: 213993425 | DGU3: 214690001 | DGV3: 214690002 | DGW3: 214690003 | DGX3: 214690004 | DGY3: 214700001 | DGZ3: 214700002 | DHA3: 214000001 | DHB3: 214000002 | DHC3: 214000003 | DHD3: 214003419 | DHE3: 214003420 | DHF3: 214010001 | DHG3: 214010002 | DHH3: 214010003 | DHI3: 214020001 | DHJ3: 214023430 | DHK3: 214023431 | DHL3: 214033432 | DHM3: 214033433 | DHN3: 214040001 | DHO3: 214040002 | DHP3: 214043431 | DHQ3: 214053435 | DHR3: 214063554 | DHS3: 214063555 | DHT3: 214073556 | DHU3: 214073557 | DHV3: 214073558 | DHW3: 214083561 | DHX3: 214090001 | DHY3: 214093559 | DHZ3: 214103562 | DIA3: 214103563 | DIB3: 214113569 | DIC3: 214113572 | DID3: 214123568 | DIE3: 214133570 | DIF3: 214133571 | DIG3: 214133573 | DIH3: 214140001 | DII3: 214153552 | DIJ3: 214160001 | DIK3: 214160002 | DIL3: 214160003 | DIM3: 214160004 | DIN3: 214163548 | DIO3: 214163551 | DIP3: 214183564 | DIQ3: 214190001 | DIR3: 214190002 | DIS3: 214193553 | DIT3: 215930001 | DIU3: 215930002 | DIV3: 215940001 | DIW3: 215940002 | DIX3: 215940003 | DIY3: 215940004 | DIZ3: 215940005 | DJA3: 214203316 | DJB3: 214203317 | DJC3: 214203318 | DJD3: 214203319 | DJE3: 214210001 | DJF3: 214210002 | DJG3: 214213321 | DJH3: 214220001 | DJI3: 214220002 | DJJ3: 214220003 | DJK3: 214220004 | DJL3: 214233322 | DJM3: 214233323 | DJN3: 214233324 | DJO3: 214233325 | DJP3: 214710001 | DJQ3: 214710002 | DJR3: 214710003 | DJS3: 214720001 | DJT3: 214720002 | DJU3: 214720003 | DJV3: 214720004 | DJW3: 214730001 | DJX3: 214740001 | DJY3: 214740002 | DJZ3: 214750001 | DKA3: 214750002 | DKB3: 214760001 | DKC3: 214760002 | DKD3: 214770001 | DKE3: 214770002 | DKF3: 214770003 | DKG3: 214770004 | DKH3: 214780001 | DKI3: 214780002 | DKJ3: 214780003 | DKK3: 214780004 | DKL3: 214790001 | DKM3: 214790002 | DKN3: 214790003 | DKO3: 214790004 | DKP3: 214800001 | DKQ3: 214800002 | DKR3: 214800003 | DKS3: 214800004 | DKT3: 214800005 | DKU3: 214800006 | DKV3: 214800007 | DKW3: 214800008 | DKX3: 214800009
A4: =IF('Paste CCD Numbers Here'!D5>0,'Paste CCD Numbers Here'!D5,0) -> 0 | C4: Agriculture, Forestry and Fishing | D4: 12 | E4: 0 | F4: 3 | G4: 3 | H4: 13 | I4: 5 | J4: 3 | K4: 0 | L4: 0 | M4: 0 | N4: 0 | O4: 16 | P4: 3 | Q4: 0 | R4: 0 | S4: 4 | T4: 0 | U4: 17 | V4: 15 | W4: 40 | X4: 8 | Y4: 35 | Z4: 0 | AA4: 47 | AB4: 30 | AC4: 17 | AD4: 3 | AE4: 21 | AF4: 61 | AG4: 29 | AH4: 19 | AI4: 0 | AJ4: 0 | AK4: 0 | AL4: 13 | AM4: 0 | AN4: 6 | AO4: 0 | AP4: 0 | AQ4: 3 | AR4: 16 | AS4: 0 | AT4: 0 | AU4: 0 | AV4: 0 | AW4: 0 | AX4: 3 | AY4: 3 | AZ4: 0 | BA4: 9 | BB4: 3 | BC4: 0 | BD4: 171 | BE4: 10 | BF4: 52 | BG4: 6 | BH4: 38 | BI4: 210 | BJ4: 3 | BK4: 187 | BL4: 3 | BM4: 226 | BN4: 86 | BO4: 12 | BP4: 163 | BQ4: 36 | BR4: 119 | BS4: 281 | BT4: 17 | BU4: 311 | BV4: 3 | BW4: 130 | BX4: 23 | BY4: 35 | BZ4: 147 | CA4: 5 | CB4: 107 | CC4: 4 | CD4: 7 | CE4: 5 | CF4: 0 | CG4: 4 | CH4: 0 | CI4: 0 | CJ4: 5 | CK4: 0 | CL4: 0 | CM4: 5 | CN4: 0 | CO4: 0 | CP4: 7 | CQ4: 9 | CR4: 13 | CS4: 7 | CT4: 0 | CU4: 0 | CV4: 3 | CW4: 4 | CX4: 3 | CY4: 3 | CZ4: 0 | DA4: 0 | DB4: 0 | DC4: 0 | DD4: 9 | DE4: 3 | DF4: 0 | DG4: 3 | DH4: 0 | DI4: 16 | DJ4: 0 | DK4: 0 | DL4: 0 | DM4: 0 | DN4: 5 | DO4: 15 | DP4: 43 | DQ4: 0 | DR4: 0 | DS4: 7 | DT4: 5 | DU4: 0 | DV4: 0 | DW4: 0 | DX4: 0 | DY4: 0 | DZ4: 0 | EA4: 5 | EB4: 4 | EC4: 0 | ED4: 0 | EE4: 17 | EF4: 7 | EG4: 0 | EH4: 0 | EI4: 0 | EJ4: 0 | EK4: 17 | EL4: 24 | EM4: 11 | EN4: 20 | EO4: 46 | EP4: 0 | EQ4: 0 | ER4: 0 | ES4: 0 | ET4: 28 | EU4: 153 | EV4: 48 | EW4: 24 | EX4: 6 | EY4: 38 | EZ4: 67 | FA4: 59 | FB4: 144 | FC4: 9 | FD4: 32 | FE4: 0 | FF4: 82 | FG4: 88 | FH4: 80 | FI4: 16 | FJ4: 46 | FK4: 18 | FL4: 8 | FM4: 191 | FN4: 81 | FO4: 122 | FP4: 3 | FQ4: 630 | FR4: 411 | FS4: 9 | FT4: 22 | FU4: 78 | FV4: 125 | FW4: 0 | FX4: 410 | FY4: 453 | FZ4: 18 | GA4: 0 | GB4: 3 | GC4: 0 | GD4: 0 | GE4: 0 | GF4: 0 | GG4: 6 | GH4: 0 | GI4: 0 | GJ4: 28 | GK4: 37 | GL4: 0 | GM4: 5 | GN4: 3 | GO4: 0 | GP4: 0 | GQ4: 0 | GR4: 4 | GS4: 3 | GT4: 9 | GU4: 0 | GV4: 6 | GW4: 0 | GX4: 0 | GY4: 0 | GZ4: 0 | HA4: 0 | HB4: 4 | HC4: 3 | HD4: 0 | HE4: 0 | HF4: 0 | HG4: 0 | HH4: 6 | HI4: 0 | HJ4: 0 | HK4: 0 | HL4: 6 | HM4: 9 | HN4: 0 | HO4: 0 | HP4: 3 | HQ4: 6 | HR4: 0 | HS4: 3 | HT4: 0 | HU4: 30 | HV4: 3 | HW4: 4 | HX4: 0 | HY4: 5 | HZ4: 0 | IA4: 0 | IB4: 97 | IC4: 5 | ID4: 50 | IE4: 3 | IF4: 10 | IG4: 22 | IH4: 30 | II4: 74 | IJ4: 7 | IK4: 20 | IL4: 3 | IM4: 34 | IN4: 0 | IO4: 0 | IP4: 0 | IQ4: 0 | IR4: 3 | IS4: 11 | IT4: 0 | IU4: 0 | IV4: 0 | IW4: 3 | IX4: 26 | IY4: 0 | IZ4: 0 | JA4: 0 | JB4: 16 | JC4: 0 | JD4: 8 | JE4: 42 | JF4: 0 | JG4: 3 | JH4: 0 | JI4: 5 | JJ4: 0 | JK4: 0 | JL4: 10 | JM4: 0 | JN4: 0 | JO4: 0 | JP4: 0 | JQ4: 11 | JR4: 5 | JS4: 0 | JT4: 0 | JU4: 0 | JV4: 52 | JW4: 8 | JX4: 0 | JY4: 13 | JZ4: 4 | KA4: 0 | KB4: 0 | KC4: 0 | KD4: 0 | KE4: 4 | KF4: 4 | KG4: 0 | KH4: 0 | KI4: 8 | KJ4: 12 | KK4: 4 | KL4: 34 | KM4: 6 | KN4: 11 | KO4: 4 | KP4: 7 | KQ4: 4 | KR4: 47 | KS4: 0 | KT4: 50 | KU4: 43 | KV4: 23 | KW4: 75 | KX4: 3 | KY4: 3 | KZ4: 23 | LA4: 10 | LB4: 34 | LC4: 3 | LD4: 55 | LE4: 9 | LF4: 67 | LG4: 11 | LH4: 243 | LI4: 46 | LJ4: 545 | LK4: 6 | LL4: 24 | LM4: 10 | LN4: 83 | LO4: 332 | LP4: 19 | LQ4: 5 | LR4: 5 | LS4: 399 | LT4: 28 | LU4: 44 | LV4: 120 | LW4: 122 | LX4: 6 | LY4: 7 | LZ4: 258 | MA4: 59 | MB4: 51 | MC4: 61 | MD4: 180 | ME4: 243 | MF4: 138 | MG4: 8 | MH4: 50 | MI4: 41 | MJ4: 9 | MK4: 195 | ML4: 81 | MM4: 575 | MN4: 97 | MO4: 5 | MP4: 9 | MQ4: 3 | MR4: 216 | MS4: 0 | MT4: 0 | MU4: 9 | MV4: 110 | MW4: 59 | MX4: 220 | MY4: 91 | MZ4: 7 | NA4: 19 | NB4: 534 | NC4: 4 | ND4: 37 | NE4: 3 | NF4: 0 | NG4: 7 | NH4: 290 | NI4: 0 | NJ4: 0 | NK4: 15 | NL4: 3 | NM4: 32 | NN4: 36 | NO4: 0 | NP4: 6 | NQ4: 0 | NR4: 0 | NS4: 21 | NT4: 12 | NU4: 24 | NV4: 10 | NW4: 157 | NX4: 27 | NY4: 127 | NZ4: 16 | OA4: 4 | OB4: 11 | OC4: 105 | OD4: 181 | OE4: 278 | OF4: 382 | OG4: 32 | OH4: 91 | OI4: 14 | OJ4: 268 | OK4: 11 | OL4: 357 | OM4: 10 | ON4: 17 | OO4: 13 | OP4: 38 | OQ4: 7 | OR4: 0 | OS4: 53 | OT4: 59 | OU4: 46 | OV4: 470 | OW4: 244 | OX4: 0 | OY4: 74 | OZ4: 65 | PA4: 18 | PB4: 372 | PC4: 46 | PD4: 84 | PE4: 10 | PF4: 3 | PG4: 803 | PH4: 26 | PI4: 514 | PJ4: 73 | PK4: 401 | PL4: 4 | PM4: 185 | PN4: 94 | PO4: 65 | PP4: 7 | PQ4: 17 | PR4: 0 | PS4: 84 | PT4: 20 | PU4: 19 | PV4: 14 | PW4: 11 | PX4: 52 | PY4: 179 | PZ4: 35 | QA4: 80 | QB4: 48 | QC4: 118 | QD4: 12 | QE4: 92 | QF4: 6 | QG4: 11 | QH4: 0 | QI4: 0 | QJ4: 0 | QK4: 0 | QL4: 4 | QM4: 5 | QN4: 14 | QO4: 48 | QP4: 0 | QQ4: 0 | QR4: 66 | QS4: 4 | QT4: 0 | QU4: 0 | QV4: 0 | QW4: 7 | QX4: 0 | QY4: 0 | QZ4: 0 | RA4: 5 | RB4: 8 | RC4: 64 | RD4: 35 | RE4: 5 | RF4: 3 | RG4: 0 | RH4: 41 | RI4: 10 | RJ4: 4 | RK4: 7 | RL4: 9 | RM4: 0 | RN4: 0 | RO4: 4 | RP4: 11 | RQ4: 0 | RR4: 0 | RS4: 10 | RT4: 112 | RU4: 22 | RV4: 104 | RW4: 44 | RX4: 138 | RY4: 8 | RZ4: 609 | SA4: 58 | SB4: 12 | SC4: 401 | SD4: 56 | SE4: 69 | SF4: 10 | SG4: 0 | SH4: 8 | SI4: 6 | SJ4: 3 | SK4: 3 | SL4: 3 | SM4: 8 | SN4: 11 | SO4: 0 | SP4: 452 | SQ4: 43 | SR4: 3 | SS4: 9 | ST4: 0 | SU4: 0 | SV4: 0 | SW4: 0 | SX4: 0 | SY4: 0 | SZ4: 0 | TA4: 0 | TB4: 0 | TC4: 0 | TD4: 0 | TE4: 0 | TF4: 0 | TG4: 3 | TH4: 0 | TI4: 0 | TJ4: 0 | TK4: 0 | TL4: 0 | TM4: 0 | TN4: 0 | TO4: 0 | TP4: 0 | TQ4: 5 | TR4: 4 | TS4: 0 | TT4: 0 | TU4: 0 | TV4: 0 | TW4: 0 | TX4: 6 | TY4: 0 | TZ4: 0 | UA4: 0 | UB4: 0 | UC4: 0 | UD4: 0 | UE4: 5 | UF4: 16 | UG4: 0 | UH4: 4 | UI4: 11 | UJ4: 0 | UK4: 0 | UL4: 0 | UM4: 0 | UN4: 0 | UO4: 0 | UP4: 0 | UQ4: 0 | UR4: 0 | US4: 0 | UT4: 0 | UU4: 0 | UV4: 0 | UW4: 3 | UX4: 6 | UY4: 0 | UZ4: 0 | VA4: 0 | VB4: 3 | VC4: 0 | VD4: 0 | VE4: 0 | VF4: 0 | VG4: 0 | VH4: 0 | VI4: 0 | VJ4: 0 | VK4: 0 | VL4: 0 | VM4: 0 | VN4: 0 | VO4: 0 | VP4: 4 | VQ4: 7 | VR4: 0 | VS4: 0 | VT4: 0 | VU4: 0 | VV4: 0 | VW4: 0 | VX4: 0 | VY4: 0 | VZ4: 0 | WA4: 0 | WB4: 0 | WC4: 0 | WD4: 0 | WE4: 5 | WF4: 3 | WG4: 0 | WH4: 4 | WI4: 0 | WJ4: 3 | WK4: 0 | WL4: 0 | WM4: 5 | WN4: 0 | WO4: 0 | WP4: 3 | WQ4: 0 | WR4: 5 | WS4: 0 | WT4: 0 | WU4: 0 | WV4: 0 | WW4: 0 | WX4: 3 | WY4: 0 | WZ4: 7 | XA4: 3 | XB4: 0 | XC4: 0 | XD4: 0 | XE4: 0 | XF4: 3 | XG4: 0 | XH4: 0 | XI4: 0 | XJ4: 0 | XK4: 0 | XL4: 0 | XM4: 33 | XN4: 3 | XO4: 27 | XP4: 17 | XQ4: 5 | XR4: 0 | XS4: 0 | XT4: 0 | XU4: 6 | XV4: 12 | XW4: 0 | XX4: 22 | XY4: 0 | XZ4: 0 | YA4: 6 | YB4: 0 | YC4: 0 | YD4: 0 | YE4: 0 | YF4: 0 | YG4: 0 | YH4: 3 | YI4: 0 | YJ4: 0 | YK4: 0 | YL4: 21 | YM4: 0 | YN4: 0 | YO4: 10 | YP4: 0 | YQ4: 0 | YR4: 11 | YS4: 0 | YT4: 6 | YU4: 3 | YV4: 0 | YW4: 12 | YX4: 8 | YY4: 0 | YZ4: 0 | ZA4: 0 | ZB4: 0 | ZC4: 0 | ZD4: 0 | ZE4: 0 | ZF4: 0 | ZG4: 0 | ZH4: 11 | ZI4: 0 | ZJ4: 0 | ZK4: 0 | ZL4: 0 | ZM4: 0 | ZN4: 0 | ZO4: 0 | ZP4: 0 | ZQ4: 0 | ZR4: 0 | ZS4: 0 | ZT4: 3 | ZU4: 0 | ZV4: 0 | ZW4: 0 | ZX4: 0 | ZY4: 0 | ZZ4: 0 | AAA4: 0 | AAB4: 0 | AAC4: 0 | AAD4: 0 | AAE4: 0 | AAF4: 16 | AAG4: 9 | AAH4: 3 | AAI4: 80 | AAJ4: 0 | AAK4: 0 | AAL4: 4 | AAM4: 3 | AAN4: 0 | AAO4: 0 | AAP4: 15 | AAQ4: 0 | AAR4: 0 | AAS4: 38 | AAT4: 0 | AAU4: 3 | AAV4: 0 | AAW4: 0 | AAX4: 0 | AAY4: 0 | AAZ4: 0 | ABA4: 0 | ABB4: 0 | ABC4: 0 | ABD4: 6 | ABE4: 0 | ABF4: 0 | ABG4: 0 | ABH4: 0 | ABI4: 0 | ABJ4: 0 | ABK4: 0 | ABL4: 26 | ABM4: 6 | ABN4: 0 | ABO4: 3 | ABP4: 0 | ABQ4: 0 | ABR4: 0 | ABS4: 4 | ABT4: 6 | ABU4: 0 | ABV4: 0 | ABW4: 0 | ABX4: 0 | ABY4: 44 | ABZ4: 10 | ACA4: 3 | ACB4: 0 | ACC4: 7 | ACD4: 0 | ACE4: 0 | ACF4: 0 | ACG4: 23 | ACH4: 0 | ACI4: 0 | ACJ4: 0 | ACK4: 0 | ACL4: 0 | ACM4: 0 | ACN4: 0 | ACO4: 4 | ACP4: 23 | ACQ4: 0 | ACR4: 3 | ACS4: 0 | ACT4: 3 | ACU4: 0 | ACV4: 0 | ACW4: 0 | ACX4: 4 | ACY4: 0 | ACZ4: 0 | ADA4: 0 | ADB4: 3 | ADC4: 0 | ADD4: 11 | ADE4: 4 | ADF4: 0 | ADG4: 3 | ADH4: 0 | ADI4: 0 | ADJ4: 0 | ADK4: 0 | ADL4: 0 | ADM4: 0 | ADN4: 0 | ADO4: 0 | ADP4: 0 | ADQ4: 0 | ADR4: 8 | ADS4: 0 | ADT4: 10 | ADU4: 0 | ADV4: 21 | ADW4: 11 | ADX4: 37 | ADY4: 11 | ADZ4: 0 | AEA4: 22 | AEB4: 0 | AEC4: 8 | AED4: 4 | AEE4: 0 | AEF4: 0 | AEG4: 4 | AEH4: 0 | AEI4: 6 | AEJ4: 3 | AEK4: 11 | AEL4: 0 | AEM4: 0 | AEN4: 0 | AEO4: 8 | AEP4: 0 | AEQ4: 5 | AER4: 0 | AES4: 5 | AET4: 0 | AEU4: 0 | AEV4: 0 | AEW4: 15 | AEX4: 0 | AEY4: 0 | AEZ4: 3 | AFA4: 0 | AFB4: 0 | AFC4: 3 | AFD4: 0 | AFE4: 0 | AFF4: 0 | AFG4: 0 | AFH4: 0 | AFI4: 0 | AFJ4: 0 | AFK4: 6 | AFL4: 0 | AFM4: 0 | AFN4: 0 | AFO4: 0 | AFP4: 0 | AFQ4: 0 | AFR4: 5 | AFS4: 4 | AFT4: 0 | AFU4: 6 | AFV4: 0 | AFW4: 17 | AFX4: 0 | AFY4: 6 | AFZ4: 0 | AGA4: 4 | AGB4: 0 | AGC4: 0 | AGD4: 0 | AGE4: 0 | AGF4: 0 | AGG4: 21 | AGH4: 0 | AGI4: 5 | AGJ4: 0 | AGK4: 4 | AGL4: 0 | AGM4: 0 | AGN4: 6 | AGO4: 0 | AGP4: 0 | AGQ4: 0 | AGR4: 4 | AGS4: 3 | AGT4: 0 | AGU4: 0 | AGV4: 0 | AGW4: 0 | AGX4: 0 | AGY4: 0 | AGZ4: 0 | AHA4: 9 | AHB4: 0 | AHC4: 19 | AHD4: 0 | AHE4: 0 | AHF4: 0 | AHG4: 0 | AHH4: 0 | AHI4: 0 | AHJ4: 0 | AHK4: 0 | AHL4: 0 | AHM4: 5 | AHN4: 0 | AHO4: 0 | AHP4: 0 | AHQ4: 0 | AHR4: 0 | AHS4: 0 | AHT4: 15 | AHU4: 0 | AHV4: 0 | AHW4: 8 | AHX4: 15 | AHY4: 6 | AHZ4: 0 | AIA4: 4 | AIB4: 0 | AIC4: 0 | AID4: 0 | AIE4: 0 | AIF4: 0 | AIG4: 4 | AIH4: 0 | AII4: 0 | AIJ4: 0 | AIK4: 0 | AIL4: 0 | AIM4: 0 | AIN4: 0 | AIO4: 4 | AIP4: 0 | AIQ4: 0 | AIR4: 0 | AIS4: 0 | AIT4: 0 | AIU4: 6 | AIV4: 3 | AIW4: 7 | AIX4: 3 | AIY4: 0 | AIZ4: 0 | AJA4: 0 | AJB4: 0 | AJC4: 0 | AJD4: 5 | AJE4: 0 | AJF4: 5 | AJG4: 0 | AJH4: 0 | AJI4: 0 | AJJ4: 0 | AJK4: 0 | AJL4: 0 | AJM4: 0 | AJN4: 0 | AJO4: 0 | AJP4: 0 | AJQ4: 0 | AJR4: 0 | AJS4: 0 | AJT4: 0 | AJU4: 0 | AJV4: 0 | AJW4: 0 | AJX4: 0 | AJY4: 0 | AJZ4: 0 | AKA4: 0 | AKB4: 0 | AKC4: 0 | AKD4: 0 | AKE4: 0 | AKF4: 0 | AKG4: 0 | AKH4: 0 | AKI4: 0 | AKJ4: 0 | AKK4: 0 | AKL4: 0 | AKM4: 0 | AKN4: 3 | AKO4: 3 | AKP4: 0 | AKQ4: 12 | AKR4: 0 | AKS4: 6 | AKT4: 0 | AKU4: 3 | AKV4: 0 | AKW4: 3 | AKX4: 0 | AKY4: 0 | AKZ4: 20 | ALA4: 0 | ALB4: 0 | ALC4: 0 | ALD4: 5 | ALE4: 0 | ALF4: 6 | ALG4: 0 | ALH4: 7 | ALI4: 11 | ALJ4: 4 | ALK4: 0 | ALL4: 0 | ALM4: 28 | ALN4: 0 | ALO4: 0 | ALP4: 0 | ALQ4: 0 | ALR4: 0 | ALS4: 6 | ALT4: 10 | ALU4: 0 | ALV4: 0 | ALW4: 0 | ALX4: 0 | ALY4: 0 | ALZ4: 0 | AMA4: 0 | AMB4: 0 | AMC4: 0 | AMD4: 3 | AME4: 4 | AMF4: 0 | AMG4: 0 | AMH4: 0 | AMI4: 0 | AMJ4: 0 | AMK4: 17 | AML4: 0 | AMM4: 0 | AMN4: 0 | AMO4: 0 | AMP4: 0 | AMQ4: 3 | AMR4: 0 | AMS4: 0 | AMT4: 4 | AMU4: 0 | AMV4: 3 | AMW4: 0 | AMX4: 0 | AMY4: 0 | AMZ4: 3 | ANA4: 0 | ANB4: 0 | ANC4: 0 | AND4: 0 | ANE4: 0 | ANF4: 0 | ANG4: 0 | ANH4: 0 | ANI4: 0 | ANJ4: 0 | ANK4: 0 | ANL4: 9 | ANM4: 3 | ANN4: 0 | ANO4: 0 | ANP4: 0 | ANQ4: 0 | ANR4: 0 | ANS4: 0 | ANT4: 0 | ANU4: 8 | ANV4: 0 | ANW4: 21 | ANX4: 0 | ANY4: 0 | ANZ4: 0 | AOA4: 0 | AOB4: 0 | AOC4: 0 | AOD4: 0 | AOE4: 0 | AOF4: 0 | AOG4: 0 | AOH4: 0 | AOI4: 3 | AOJ4: 0 | AOK4: 0 | AOL4: 0 | AOM4: 0 | AON4: 0 | AOO4: 0 | AOP4: 0 | AOQ4: 4 | AOR4: 0 | AOS4: 0 | AOT4: 0 | AOU4: 0 | AOV4: 0 | AOW4: 0 | AOX4: 0 | AOY4: 4 | AOZ4: 0 | APA4: 4 | APB4: 0 | APC4: 0 | APD4: 0 | APE4: 0 | APF4: 0 | APG4: 0 | APH4: 0 | API4: 0 | APJ4: 0 | APK4: 0 | APL4: 0 | APM4: 0 | APN4: 0 | APO4: 0 | APP4: 0 | APQ4: 0 | APR4: 0 | APS4: 0 | APT4: 0 | APU4: 0 | APV4: 0 | APW4: 0 | APX4: 0 | APY4: 4 | APZ4: 3 | AQA4: 0 | AQB4: 0 | AQC4: 0 | AQD4: 0 | AQE4: 4 | AQF4: 0 | AQG4: 0 | AQH4: 0 | AQI4: 0 | AQJ4: 0 | AQK4: 0 | AQL4: 0 | AQM4: 0 | AQN4: 0 | AQO4: 0 | AQP4: 0 | AQQ4: 0 | AQR4: 0 | AQS4: 11 | AQT4: 0 | AQU4: 0 | AQV4: 0 | AQW4: 0 | AQX4: 0 | AQY4: 0 | AQZ4: 4 | ARA4: 0 | ARB4: 0 | ARC4: 0 | ARD4: 0 | ARE4: 3 | ARF4: 0 | ARG4: 0 | ARH4: 0 | ARI4: 0 | ARJ4: 0 | ARK4: 0 | ARL4: 0 | ARM4: 0 | ARN4: 0 | ARO4: 0 | ARP4: 0 | ARQ4: 3 | ARR4: 0 | ARS4: 0 | ART4: 0 | ARU4: 0 | ARV4: 0 | ARW4: 0 | ARX4: 0 | ARY4: 3 | ARZ4: 0 | ASA4: 0 | ASB4: 3 | ASC4: 0 | ASD4: 0 | ASE4: 4 | ASF4: 0 | ASG4: 0 | ASH4: 4 | ASI4: 7 | ASJ4: 3 | ASK4: 0 | ASL4: 0 | ASM4: 0 | ASN4: 0 | ASO4: 0 | ASP4: 0 | ASQ4: 6 | ASR4: 0 | ASS4: 0 | AST4: 4 | ASU4: 0 | ASV4: 0 | ASW4: 0 | ASX4: 0 | ASY4: 0 | ASZ4: 9 | ATA4: 0 | ATB4: 0 | ATC4: 0 | ATD4: 0 | ATE4: 5 | ATF4: 0 | ATG4: 0 | ATH4: 0 | ATI4: 0 | ATJ4: 0 | ATK4: 0 | ATL4: 0 | ATM4: 0 | ATN4: 3 | ATO4: 0 | ATP4: 0 | ATQ4: 0 | ATR4: 0 | ATS4: 0 | ATT4: 0 | ATU4: 4 | ATV4: 0 | ATW4: 0 | ATX4: 0 | ATY4: 0 | ATZ4: 0 | AUA4: 0 | AUB4: 0 | AUC4: 0 | AUD4: 8 | AUE4: 0 | AUF4: 0 | AUG4: 0 | AUH4: 0 | AUI4: 0 | AUJ4: 0 | AUK4: 0 | AUL4: 0 | AUM4: 0 | AUN4: 0 | AUO4: 0 | AUP4: 0 | AUQ4: 0 | AUR4: 0 | AUS4: 0 | AUT4: 0 | AUU4: 0 | AUV4: 0 | AUW4: 0 | AUX4: 3 | AUY4: 0 | AUZ4: 3 | AVA4: 0 | AVB4: 0 | AVC4: 0 | AVD4: 0 | AVE4: 0 | AVF4: 0 | AVG4: 0 | AVH4: 0 | AVI4: 0 | AVJ4: 0 | AVK4: 0 | AVL4: 0 | AVM4: 0 | AVN4: 0 | AVO4: 0 | AVP4: 0 | AVQ4: 0 | AVR4: 0 | AVS4: 0 | AVT4: 0 | AVU4: 0 | AVV4: 0 | AVW4: 0 | AVX4: 0 | AVY4: 0 | AVZ4: 5 | AWA4: 0 | AWB4: 0 | AWC4: 6 | AWD4: 6 | AWE4: 4 | AWF4: 5 | AWG4: 16 | AWH4: 0 | AWI4: 0 | AWJ4: 0 | AWK4: 0 | AWL4: 0 | AWM4: 3 | AWN4: 0 | AWO4: 0 | AWP4: 0 | AWQ4: 0 | AWR4: 0 | AWS4: 4 | AWT4: 0 | AWU4: 0 | AWV4: 0 | AWW4: 0 | AWX4: 24 | AWY4: 3 | AWZ4: 0 | AXA4: 0 | AXB4: 0 | AXC4: 0 | AXD4: 0 | AXE4: 0 | AXF4: 0 | AXG4: 0 | AXH4: 0 | AXI4: 0 | AXJ4: 0 | AXK4: 7 | AXL4: 0 | AXM4: 0 | AXN4: 0 | AXO4: 0 | AXP4: 6 | AXQ4: 0 | AXR4: 0 | AXS4: 0 | AXT4: 0 | AXU4: 0 | AXV4: 0 | AXW4: 0 | AXX4: 0 | AXY4: 0 | AXZ4: 0 | AYA4: 0 | AYB4: 0 | AYC4: 0 | AYD4: 3 | AYE4: 0 | AYF4: 0 | AYG4: 0 | AYH4: 0 | AYI4: 6 | AYJ4: 0 | AYK4: 14 | AYL4: 4 | AYM4: 0 | AYN4: 0 | AYO4: 67 | AYP4: 167 | AYQ4: 0 | AYR4: 0 | AYS4: 4 | AYT4: 0 | AYU4: 4 | AYV4: 0 | AYW4: 0 | AYX4: 4 | AYY4: 23 | AYZ4: 0 | AZA4: 0 | AZB4: 0 | AZC4: 15 | AZD4: 0 | AZE4: 0 | AZF4: 0 | AZG4: 8 | AZH4: 5 | AZI4: 0 | AZJ4: 0 | AZK4: 6 | AZL4: 13 | AZM4: 0 | AZN4: 0 | AZO4: 3 | AZP4: 0 | AZQ4: 0 | AZR4: 0 | AZS4: 0 | AZT4: 0 | AZU4: 0 | AZV4: 0 | AZW4: 9 | AZX4: 0 | AZY4: 0 | AZZ4: 4 | BAA4: 0 | BAB4: 0 | BAC4: 0 | BAD4: 0 | BAE4: 0 | BAF4: 0 | BAG4: 0 | BAH4: 0 | BAI4: 4 | BAJ4: 0 | BAK4: 0 | BAL4: 0 | BAM4: 0 | BAN4: 0 | BAO4: 0 | BAP4: 7 | BAQ4: 0 | BAR4: 0 | BAS4: 0 | BAT4: 0 | BAU4: 4 | BAV4: 0 | BAW4: 0 | BAX4: 23 | BAY4: 15 | BAZ4: 0 | BBA4: 0 | BBB4: 0 | BBC4: 0 | BBD4: 0 | BBE4: 0 | BBF4: 0 | BBG4: 0 | BBH4: 0 | BBI4: 0 | BBJ4: 0 | BBK4: 0 | BBL4: 0 | BBM4: 14 | BBN4: 0 | BBO4: 0 | BBP4: 0 | BBQ4: 0 | BBR4: 0 | BBS4: 0 | BBT4: 0 | BBU4: 0 | BBV4: 0 | BBW4: 0 | BBX4: 3 | BBY4: 0 | BBZ4: 0 | BCA4: 0 | BCB4: 4 | BCC4: 0 | BCD4: 6 | BCE4: 3 | BCF4: 0 | BCG4: 0 | BCH4: 0 | BCI4: 0 | BCJ4: 0 | BCK4: 6 | BCL4: 53 | BCM4: 0 | BCN4: 0 | BCO4: 0 | BCP4: 0 | BCQ4: 0 | BCR4: 0 | BCS4: 0 | BCT4: 0 | BCU4: 0 | BCV4: 0 | BCW4: 0 | BCX4: 0 | BCY4: 4 | BCZ4: 0 | BDA4: 0 | BDB4: 12 | BDC4: 0 | BDD4: 0 | BDE4: 4 | BDF4: 0 | BDG4: 0 | BDH4: 0 | BDI4: 0 | BDJ4: 0 | BDK4: 0 | BDL4: 5 | BDM4: 0 | BDN4: 0 | BDO4: 0 | BDP4: 0 | BDQ4: 0 | BDR4: 0 | BDS4: 0 | BDT4: 0 | BDU4: 0 | BDV4: 0 | BDW4: 0 | BDX4: 0 | BDY4: 0 | BDZ4: 0 | BEA4: 3 | BEB4: 97 | BEC4: 0 | BED4: 0 | BEE4: 3 | BEF4: 0 | BEG4: 0 | BEH4: 0 | BEI4: 0 | BEJ4: 0 | BEK4: 0 | BEL4: 0 | BEM4: 0 | BEN4: 0 | BEO4: 18 | BEP4: 0 | BEQ4: 0 | BER4: 0 | BES4: 0 | BET4: 4 | BEU4: 0 | BEV4: 6 | BEW4: 17 | BEX4: 44 | BEY4: 150 | BEZ4: 17 | BFA4: 0 | BFB4: 49 | BFC4: 3 | BFD4: 28 | BFE4: 0 | BFF4: 3 | BFG4: 0 | BFH4: 15 | BFI4: 0 | BFJ4: 11 | BFK4: 0 | BFL4: 8 | BFM4: 0 | BFN4: 0 | BFO4: 0 | BFP4: 0 | BFQ4: 0 | BFR4: 10 | BFS4: 0 | BFT4: 0 | BFU4: 21 | BFV4: 0 | BFW4: 0 | BFX4: 0 | BFY4: 0 | BFZ4: 0 | BGA4: 0 | BGB4: 0 | BGC4: 0 | BGD4: 0 | BGE4: 0 | BGF4: 0 | BGG4: 28 | BGH4: 0 | BGI4: 4 | BGJ4: 34 | BGK4: 0 | BGL4: 11 | BGM4: 0 | BGN4: 0 | BGO4: 10 | BGP4: 0 | BGQ4: 28 | BGR4: 0 | BGS4: 3 | BGT4: 24 | BGU4: 26 | BGV4: 10 | BGW4: 4 | BGX4: 0 | BGY4: 14 | BGZ4: 5 | BHA4: 0 | BHB4: 0 | BHC4: 3 | BHD4: 0 | BHE4: 0 | BHF4: 0 | BHG4: 0 | BHH4: 0 | BHI4: 0 | BHJ4: 3 | BHK4: 4 | BHL4: 33 | BHM4: 0 | BHN4: 0 | BHO4: 0 | BHP4: 0 | BHQ4: 19 | BHR4: 5 | BHS4: 0 | BHT4: 0 | BHU4: 0 | BHV4: 0 | BHW4: 3 | BHX4: 0 | BHY4: 0 | BHZ4: 0 | BIA4: 10 | BIB4: 5 | BIC4: 0 | BID4: 0 | BIE4: 366 | BIF4: 0 | BIG4: 0 | BIH4: 0 | BII4: 0 | BIJ4: 51 | BIK4: 0 | BIL4: 0 | BIM4: 0 | BIN4: 4 | BIO4: 0 | BIP4: 0 | BIQ4: 3 | BIR4: 0 | BIS4: 6 | BIT4: 8 | BIU4: 0 | BIV4: 24 | BIW4: 11 | BIX4: 0 | BIY4: 0 | BIZ4: 14 | BJA4: 0 | BJB4: 11 | BJC4: 12 | BJD4: 24 | BJE4: 14 | BJF4: 0 | BJG4: 0 | BJH4: 0 | BJI4: 0 | BJJ4: 0 | BJK4: 0 | BJL4: 0 | BJM4: 0 | BJN4: 0 | BJO4: 0 | BJP4: 0 | BJQ4: 0 | BJR4: 0 | BJS4: 0 | BJT4: 5 | BJU4: 14 | BJV4: 17 | BJW4: 7 | BJX4: 3 | BJY4: 6 | BJZ4: 0 | BKA4: 8 | BKB4: 7 | BKC4: 28 | BKD4: 10 | BKE4: 141 | BKF4: 6 | BKG4: 11 | BKH4: 138 | BKI4: 0 | BKJ4: 9 | BKK4: 0 | BKL4: 0 | BKM4: 0 | BKN4: 10 | BKO4: 0 | BKP4: 0 | BKQ4: 0 | BKR4: 0 | BKS4: 0 | BKT4: 0 | BKU4: 0 | BKV4: 0 | BKW4: 0 | BKX4: 0 | BKY4: 0 | BKZ4: 0 | BLA4: 0 | BLB4: 0 | BLC4: 0 | BLD4: 0 | BLE4: 0 | BLF4: 0 | BLG4: 3 | BLH4: 0 | BLI4: 20 | BLJ4: 8 | BLK4: 0 | BLL4: 0 | BLM4: 0 | BLN4: 7 | BLO4: 3 | BLP4: 0 | BLQ4: 0 | BLR4: 10 | BLS4: 3 | BLT4: 18 | BLU4: 0 | BLV4: 46 | BLW4: 0 | BLX4: 0 | BLY4: 0 | BLZ4: 0 | BMA4: 0 | BMB4: 9 | BMC4: 0 | BMD4: 0 | BME4: 0 | BMF4: 0 | BMG4: 0 | BMH4: 3 | BMI4: 0 | BMJ4: 0 | BMK4: 0 | BML4: 0 | BMM4: 0 | BMN4: 0 | BMO4: 11 | BMP4: 8 | BMQ4: 0 | BMR4: 0 | BMS4: 0 | BMT4: 0 | BMU4: 4 | BMV4: 50 | BMW4: 13 | BMX4: 62 | BMY4: 16 | BMZ4: 0 | BNA4: 3 | BNB4: 0 | BNC4: 13 | BND4: 0 | BNE4: 7 | BNF4: 0 | BNG4: 0 | BNH4: 0 | BNI4: 3 | BNJ4: 10 | BNK4: 0 | BNL4: 0 | BNM4: 0 | BNN4: 17 | BNO4: 0 | BNP4: 0 | BNQ4: 13 | BNR4: 0 | BNS4: 0 | BNT4: 34 | BNU4: 9 | BNV4: 5 | BNW4: 0 | BNX4: 0 | BNY4: 0 | BNZ4: 0 | BOA4: 0 | BOB4: 0 | BOC4: 0 | BOD4: 0 | BOE4: 0 | BOF4: 6 | BOG4: 0 | BOH4: 0 | BOI4: 0 | BOJ4: 0 | BOK4: 0 | BOL4: 0 | BOM4: 0 | BON4: 3 | BOO4: 0 | BOP4: 3 | BOQ4: 12 | BOR4: 0 | BOS4: 0 | BOT4: 0 | BOU4: 0 | BOV4: 0 | BOW4: 0 | BOX4: 5 | BOY4: 14 | BOZ4: 0 | BPA4: 0 | BPB4: 0 | BPC4: 0 | BPD4: 0 | BPE4: 0 | BPF4: 0 | BPG4: 0 | BPH4: 0 | BPI4: 8 | BPJ4: 6 | BPK4: 0 | BPL4: 0 | BPM4: 0 | BPN4: 0 | BPO4: 3 | BPP4: 0 | BPQ4: 6 | BPR4: 0 | BPS4: 0 | BPT4: 0 | BPU4: 0 | BPV4: 0 | BPW4: 7 | BPX4: 10 | BPY4: 4 | BPZ4: 0 | BQA4: 6 | BQB4: 0 | BQC4: 0 | BQD4: 0 | BQE4: 3 | BQF4: 0 | BQG4: 0 | BQH4: 0 | BQI4: 0 | BQJ4: 0 | BQK4: 0 | BQL4: 17 | BQM4: 10 | BQN4: 0 | BQO4: 8 | BQP4: 5 | BQQ4: 0 | BQR4: 4 | BQS4: 3 | BQT4: 0 | BQU4: 0 | BQV4: 0 | BQW4: 0 | BQX4: 3 | BQY4: 0 | BQZ4: 0 | BRA4: 0 | BRB4: 0 | BRC4: 0 | BRD4: 0 | BRE4: 0 | BRF4: 5 | BRG4: 0 | BRH4: 4 | BRI4: 0 | BRJ4: 0 | BRK4: 9 | BRL4: 0 | BRM4: 0 | BRN4: 5 | BRO4: 0 | BRP4: 0 | BRQ4: 3 | BRR4: 0 | BRS4: 0 | BRT4: 0 | BRU4: 0 | BRV4: 8 | BRW4: 0 | BRX4: 0 | BRY4: 0 | BRZ4: 6 | BSA4: 0 | BSB4: 0 | BSC4: 4 | BSD4: 0 | BSE4: 0 | BSF4: 16 | BSG4: 0 | BSH4: 0 | BSI4: 5 | BSJ4: 0 | BSK4: 5 | BSL4: 0 | BSM4: 0 | BSN4: 0 | BSO4: 0 | BSP4: 0 | BSQ4: 0 | BSR4: 0 | BSS4: 0 | BST4: 7 | BSU4: 0 | BSV4: 4 | BSW4: 0 | BSX4: 15 | BSY4: 0 | BSZ4: 53 | BTA4: 4 | BTB4: 18 | BTC4: 0 | BTD4: 28 | BTE4: 0 | BTF4: 5 | BTG4: 0 | BTH4: 0 | BTI4: 0 | BTJ4: 0 | BTK4: 0 | BTL4: 3 | BTM4: 0 | BTN4: 0 | BTO4: 0 | BTP4: 0 | BTQ4: 0 | BTR4: 0 | BTS4: 0 | BTT4: 5 | BTU4: 0 | BTV4: 0 | BTW4: 0 | BTX4: 0 | BTY4: 0 | BTZ4: 7 | BUA4: 0 | BUB4: 7 | BUC4: 0 | BUD4: 0 | BUE4: 0 | BUF4: 0 | BUG4: 0 | BUH4: 6 | BUI4: 3 | BUJ4: 0 | BUK4: 4 | BUL4: 0 | BUM4: 0 | BUN4: 0 | BUO4: 0 | BUP4: 4 | BUQ4: 0 | BUR4: 0 | BUS4: 0 | BUT4: 0 | BUU4: 0 | BUV4: 0 | BUW4: 0 | BUX4: 8 | BUY4: 0 | BUZ4: 0 | BVA4: 0 | BVB4: 0 | BVC4: 0 | BVD4: 0 | BVE4: 0 | BVF4: 0 | BVG4: 0 | BVH4: 0 | BVI4: 0 | BVJ4: 0 | BVK4: 3 | BVL4: 0 | BVM4: 0 | BVN4: 0 | BVO4: 0 | BVP4: 0 | BVQ4: 0 | BVR4: 0 | BVS4: 3 | BVT4: 0 | BVU4: 0 | BVV4: 4 | BVW4: 5 | BVX4: 0 | BVY4: 0 | BVZ4: 0 | BWA4: 0 | BWB4: 0 | BWC4: 0 | BWD4: 0 | BWE4: 3 | BWF4: 3 | BWG4: 0 | BWH4: 0 | BWI4: 0 | BWJ4: 0 | BWK4: 0 | BWL4: 0 | BWM4: 0 | BWN4: 0 | BWO4: 0 | BWP4: 8 | BWQ4: 0 | BWR4: 0 | BWS4: 0 | BWT4: 0 | BWU4: 0 | BWV4: 0 | BWW4: 0 | BWX4: 0 | BWY4: 0 | BWZ4: 0 | BXA4: 0 | BXB4: 0 | BXC4: 0 | BXD4: 0 | BXE4: 0 | BXF4: 67 | BXG4: 12 | BXH4: 7 | BXI4: 5 | BXJ4: 0 | BXK4: 0 | BXL4: 3 | BXM4: 3 | BXN4: 5 | BXO4: 0 | BXP4: 24 | BXQ4: 28 | BXR4: 7 | BXS4: 24 | BXT4: 102 | BXU4: 0 | BXV4: 3 | BXW4: 0 | BXX4: 10 | BXY4: 0 | BXZ4: 0 | BYA4: 0 | BYB4: 5 | BYC4: 12 | BYD4: 0 | BYE4: 0 | BYF4: 0 | BYG4: 0 | BYH4: 12 | BYI4: 35 | BYJ4: 65 | BYK4: 4 | BYL4: 79 | BYM4: 72 | BYN4: 22 | BYO4: 9 | BYP4: 49 | BYQ4: 244 | BYR4: 41 | BYS4: 202 | BYT4: 0 | BYU4: 0 | BYV4: 6 | BYW4: 0 | BYX4: 0 | BYY4: 6 | BYZ4: 0 | BZA4: 5 | BZB4: 58 | BZC4: 16 | BZD4: 34 | BZE4: 6 | BZF4: 14 | BZG4: 63 | BZH4: 20 | BZI4: 6 | BZJ4: 76 | BZK4: 15 | BZL4: 27 | BZM4: 6 | BZN4: 6 | BZO4: 5 | BZP4: 106 | BZQ4: 53 | BZR4: 17 | BZS4: 40 | BZT4: 153 | BZU4: 103 | BZV4: 24 | BZW4: 96 | BZX4: 33 | BZY4: 0 | BZZ4: 14 | CAA4: 3 | CAB4: 11 | CAC4: 5 | CAD4: 30 | CAE4: 3 | CAF4: 5 | CAG4: 16 | CAH4: 5 | CAI4: 22 | CAJ4: 6 | CAK4: 20 | CAL4: 3 | CAM4: 4 | CAN4: 10 | CAO4: 102 | CAP4: 25 | CAQ4: 3 | CAR4: 0 | CAS4: 19 | CAT4: 0 | CAU4: 0 | CAV4: 4 | CAW4: 0 | CAX4: 0 | CAY4: 37 | CAZ4: 21 | CBA4: 137 | CBB4: 29 | CBC4: 30 | CBD4: 12 | CBE4: 27 | CBF4: 0 | CBG4: 89 | CBH4: 40 | CBI4: 101 | CBJ4: 193 | CBK4: 6 | CBL4: 134 | CBM4: 70 | CBN4: 20 | CBO4: 0 | CBP4: 3 | CBQ4: 0 | CBR4: 4 | CBS4: 0 | CBT4: 0 | CBU4: 21 | CBV4: 0 | CBW4: 13 | CBX4: 5 | CBY4: 0 | CBZ4: 0 | CCA4: 8 | CCB4: 25 | CCC4: 4 | CCD4: 4 | CCE4: 11 | CCF4: 0 | CCG4: 4 | CCH4: 0 | CCI4: 16 | CCJ4: 0 | CCK4: 0 | CCL4: 0 | CCM4: 0 | CCN4: 0 | CCO4: 4 | CCP4: 0 | CCQ4: 0 | CCR4: 0 | CCS4: 5 | CCT4: 0 | CCU4: 8 | CCV4: 0 | CCW4: 3 | CCX4: 0 | CCY4: 3 | CCZ4: 0 | CDA4: 9 | CDB4: 0 | CDC4: 0 | CDD4: 0 | CDE4: 0 | CDF4: 0 | CDG4: 7 | CDH4: 7 | CDI4: 0 | CDJ4: 32 | CDK4: 15 | CDL4: 0 | CDM4: 0 | CDN4: 13 | CDO4: 0 | CDP4: 3 | CDQ4: 0 | CDR4: 10 | CDS4: 0 | CDT4: 26 | CDU4: 4 | CDV4: 0 | CDW4: 37 | CDX4: 0 | CDY4: 0 | CDZ4: 6 | CEA4: 0 | CEB4: 4 | CEC4: 0 | CED4: 0 | CEE4: 0 | CEF4: 0 | CEG4: 0 | CEH4: 0 | CEI4: 0 | CEJ4: 0 | CEK4: 0 | CEL4: 0 | CEM4: 0 | CEN4: 3 | CEO4: 0 | CEP4: 0 | CEQ4: 10 | CER4: 0 | CES4: 3 | CET4: 0 | CEU4: 3 | CEV4: 0 | CEW4: 13 | CEX4: 0 | CEY4: 0 | CEZ4: 0 | CFA4: 0 | CFB4: 45 | CFC4: 165 | CFD4: 19 | CFE4: 9 | CFF4: 313 | CFG4: 4 | CFH4: 0 | CFI4: 0 | CFJ4: 0 | CFK4: 0 | CFL4: 0 | CFM4: 8 | CFN4: 38 | CFO4: 16 | CFP4: 5 | CFQ4: 341 | CFR4: 93 | CFS4: 0 | CFT4: 3 | CFU4: 4 | CFV4: 4 | CFW4: 0 | CFX4: 3 | CFY4: 0 | CFZ4: 117 | CGA4: 0 | CGB4: 4 | CGC4: 4 | CGD4: 35 | CGE4: 0 | CGF4: 0 | CGG4: 0 | CGH4: 0 | CGI4: 0 | CGJ4: 3 | CGK4: 4 | CGL4: 0 | CGM4: 0 | CGN4: 0 | CGO4: 17 | CGP4: 0 | CGQ4: 5 | CGR4: 0 | CGS4: 0 | CGT4: 0 | CGU4: 36 | CGV4: 0 | CGW4: 0 | CGX4: 0 | CGY4: 0 | CGZ4: 0 | CHA4: 0 | CHB4: 0 | CHC4: 0 | CHD4: 0 | CHE4: 0 | CHF4: 0 | CHG4: 0 | CHH4: 39 | CHI4: 0 | CHJ4: 0 | CHK4: 0 | CHL4: 0 | CHM4: 0 | CHN4: 0 | CHO4: 0 | CHP4: 3 | CHQ4: 3 | CHR4: 0 | CHS4: 0 | CHT4: 0 | CHU4: 0 | CHV4: 7 | CHW4: 0 | CHX4: 3 | CHY4: 4 | CHZ4: 6 | CIA4: 0 | CIB4: 0 | CIC4: 8 | CID4: 9 | CIE4: 0 | CIF4: 13 | CIG4: 0 | CIH4: 0 | CII4: 0 | CIJ4: 4 | CIK4: 0 | CIL4: 0 | CIM4: 3 | CIN4: 0 | CIO4: 3 | CIP4: 0 | CIQ4: 3 | CIR4: 0 | CIS4: 0 | CIT4: 3 | CIU4: 3 | CIV4: 0 | CIW4: 0 | CIX4: 0 | CIY4: 4 | CIZ4: 0 | CJA4: 5 | CJB4: 0 | CJC4: 0 | CJD4: 0 | CJE4: 0 | CJF4: 0 | CJG4: 0 | CJH4: 65 | CJI4: 8 | CJJ4: 0 | CJK4: 4 | CJL4: 27 | CJM4: 50 | CJN4: 0 | CJO4: 19 | CJP4: 25 | CJQ4: 3 | CJR4: 8 | CJS4: 11 | CJT4: 18 | CJU4: 0 | CJV4: 0 | CJW4: 12 | CJX4: 0 | CJY4: 4 | CJZ4: 15 | CKA4: 0 | CKB4: 0 | CKC4: 7 | CKD4: 4 | CKE4: 11 | CKF4: 0 | CKG4: 8 | CKH4: 5 | CKI4: 3 | CKJ4: 0 | CKK4: 3 | CKL4: 12 | CKM4: 3 | CKN4: 0 | CKO4: 0 | CKP4: 20 | CKQ4: 0 | CKR4: 0 | CKS4: 0 | CKT4: 5 | CKU4: 0 | CKV4: 37 | CKW4: 3 | CKX4: 7 | CKY4: 0 | CKZ4: 0 | CLA4: 3 | CLB4: 0 | CLC4: 0 | CLD4: 16 | CLE4: 17 | CLF4: 14 | CLG4: 0 | CLH4: 0 | CLI4: 0 | CLJ4: 0 | CLK4: 0 | CLL4: 0 | CLM4: 0 | CLN4: 4 | CLO4: 0 | CLP4: 0 | CLQ4: 0 | CLR4: 0 | CLS4: 0 | CLT4: 0 | CLU4: 0 | CLV4: 0 | CLW4: 0 | CLX4: 0 | CLY4: 0 | CLZ4: 0 | CMA4: 0 | CMB4: 0 | CMC4: 0 | CMD4: 0 | CME4: 0 | CMF4: 0 | CMG4: 0 | CMH4: 0 | CMI4: 6 | CMJ4: 0 | CMK4: 0 | CML4: 0 | CMM4: 0 | CMN4: 0 | CMO4: 0 | CMP4: 0 | CMQ4: 0 | CMR4: 0 | CMS4: 0 | CMT4: 0 | CMU4: 0 | CMV4: 0 | CMW4: 0 | CMX4: 0 | CMY4: 25 | CMZ4: 0 | CNA4: 0 | CNB4: 0 | CNC4: 0 | CND4: 0 | CNE4: 3 | CNF4: 0 | CNG4: 0 | CNH4: 0 | CNI4: 4 | CNJ4: 0 | CNK4: 0 | CNL4: 9 | CNM4: 14 | CNN4: 0 | CNO4: 0 | CNP4: 0 | CNQ4: 0 | CNR4: 0 | CNS4: 0 | CNT4: 5 | CNU4: 0 | CNV4: 0 | CNW4: 0 | CNX4: 0 | CNY4: 0 | CNZ4: 0 | COA4: 0 | COB4: 7 | COC4: 0 | COD4: 0 | COE4: 0 | COF4: 0 | COG4: 0 | COH4: 0 | COI4: 0 | COJ4: 0 | COK4: 0 | COL4: 0 | COM4: 0 | CON4: 9 | COO4: 3 | COP4: 3 | COQ4: 0 | COR4: 0 | COS4: 0 | COT4: 22 | COU4: 0 | COV4: 0 | COW4: 0 | COX4: 0 | COY4: 0 | COZ4: 0 | CPA4: 0 | CPB4: 0 | CPC4: 0 | CPD4: 4 | CPE4: 0 | CPF4: 4 | CPG4: 7 | CPH4: 0 | CPI4: 0 | CPJ4: 6 | CPK4: 0 | CPL4: 0 | CPM4: 0 | CPN4: 0 | CPO4: 0 | CPP4: 0 | CPQ4: 0 | CPR4: 0 | CPS4: 0 | CPT4: 0 | CPU4: 0 | CPV4: 0 | CPW4: 7 | CPX4: 0 | CPY4: 0 | CPZ4: 0 | CQA4: 0 | CQB4: 0 | CQC4: 0 | CQD4: 0 | CQE4: 0 | CQF4: 0 | CQG4: 0 | CQH4: 0 | CQI4: 0 | CQJ4: 3 | CQK4: 0 | CQL4: 0 | CQM4: 0 | CQN4: 0 | CQO4: 5 | CQP4: 0 | CQQ4: 10 | CQR4: 0 | CQS4: 0 | CQT4: 0 | CQU4: 0 | CQV4: 6 | CQW4: 0 | CQX4: 0 | CQY4: 0 | CQZ4: 11 | CRA4: 0 | CRB4: 0 | CRC4: 0 | CRD4: 9 | CRE4: 0 | CRF4: 0 | CRG4: 0 | CRH4: 31 | CRI4: 0 | CRJ4: 0 | CRK4: 0 | CRL4: 36 | CRM4: 0 | CRN4: 0 | CRO4: 0 | CRP4: 0 | CRQ4: 0 | CRR4: 0 | CRS4: 0 | CRT4: 0 | CRU4: 0 | CRV4: 0 | CRW4: 0 | CRX4: 0 | CRY4: 0 | CRZ4: 0 | CSA4: 0 | CSB4: 0 | CSC4: 0 | CSD4: 39 | CSE4: 49 | CSF4: 34 | CSG4: 6 | CSH4: 0 | CSI4: 0 | CSJ4: 0 | CSK4: 13 | CSL4: 0 | CSM4: 0 | CSN4: 4 | CSO4: 0 | CSP4: 0 | CSQ4: 0 | CSR4: 0 | CSS4: 3 | CST4: 3 | CSU4: 0 | CSV4: 9 | CSW4: 0 | CSX4: 0 | CSY4: 0 | CSZ4: 3 | CTA4: 0 | CTB4: 0 | CTC4: 0 | CTD4: 0 | CTE4: 0 | CTF4: 0 | CTG4: 0 | CTH4: 8 | CTI4: 0 | CTJ4: 0 | CTK4: 7 | CTL4: 0 | CTM4: 0 | CTN4: 0 | CTO4: 0 | CTP4: 0 | CTQ4: 0 | CTR4: 0 | CTS4: 0 | CTT4: 0 | CTU4: 9 | CTV4: 0 | CTW4: 0 | CTX4: 3 | CTY4: 0 | CTZ4: 0 | CUA4: 0 | CUB4: 0 | CUC4: 0 | CUD4: 0 | CUE4: 0 | CUF4: 9 | CUG4: 3 | CUH4: 0 | CUI4: 0 | CUJ4: 0 | CUK4: 0 | CUL4: 0 | CUM4: 0 | CUN4: 0 | CUO4: 0 | CUP4: 0 | CUQ4: 4 | CUR4: 0 | CUS4: 0 | CUT4: 0 | CUU4: 0 | CUV4: 0 | CUW4: 0 | CUX4: 0 | CUY4: 0 | CUZ4: 8 | CVA4: 0 | CVB4: 0 | CVC4: 0 | CVD4: 6 | CVE4: 0 | CVF4: 0 | CVG4: 0 | CVH4: 0 | CVI4: 0 | CVJ4: 0 | CVK4: 0 | CVL4: 0 | CVM4: 0 | CVN4: 4 | CVO4: 3 | CVP4: 0 | CVQ4: 0 | CVR4: 3 | CVS4: 0 | CVT4: 0 | CVU4: 0 | CVV4: 0 | CVW4: 0 | CVX4: 6 | CVY4: 6 | CVZ4: 0 | CWA4: 0 | CWB4: 3 | CWC4: 0 | CWD4: 0 | CWE4: 0 | CWF4: 7 | CWG4: 7 | CWH4: 0 | CWI4: 7 | CWJ4: 15 | CWK4: 37 | CWL4: 155 | CWM4: 3 | CWN4: 0 | CWO4: 0 | CWP4: 0 | CWQ4: 0 | CWR4: 149 | CWS4: 15 | CWT4: 0 | CWU4: 3 | CWV4: 0 | CWW4: 27 | CWX4: 8 | CWY4: 0 | CWZ4: 3 | CXA4: 0 | CXB4: 0 | CXC4: 4 | CXD4: 0 | CXE4: 0 | CXF4: 0 | CXG4: 10 | CXH4: 0 | CXI4: 4 | CXJ4: 0 | CXK4: 11 | CXL4: 0 | CXM4: 0 | CXN4: 0 | CXO4: 0 | CXP4: 0 | CXQ4: 42 | CXR4: 0 | CXS4: 0 | CXT4: 19 | CXU4: 0 | CXV4: 0 | CXW4: 0 | CXX4: 4 | CXY4: 0 | CXZ4: 0 | CYA4: 0 | CYB4: 0 | CYC4: 0 | CYD4: 0 | CYE4: 0 | CYF4: 0 | CYG4: 0 | CYH4: 0 | CYI4: 33 | CYJ4: 28 | CYK4: 9 | CYL4: 0 | CYM4: 0 | CYN4: 0 | CYO4: 0 | CYP4: 0 | CYQ4: 0 | CYR4: 0 | CYS4: 0 | CYT4: 0 | CYU4: 0 | CYV4: 6 | CYW4: 0 | CYX4: 0 | CYY4: 5 | CYZ4: 0 | CZA4: 7 | CZB4: 0 | CZC4: 9 | CZD4: 23 | CZE4: 8 | CZF4: 0 | CZG4: 13 | CZH4: 0 | CZI4: 52 | CZJ4: 15 | CZK4: 26 | CZL4: 3 | CZM4: 0 | CZN4: 5 | CZO4: 0 | CZP4: 4 | CZQ4: 43 | CZR4: 0 | CZS4: 0 | CZT4: 0 | CZU4: 0 | CZV4: 46 | CZW4: 0 | CZX4: 0 | CZY4: 7 | CZZ4: 0 | DAA4: 0 | DAB4: 0 | DAC4: 667 | DAD4: 3 | DAE4: 0 | DAF4: 0 | DAG4: 0 | DAH4: 8 | DAI4: 0 | DAJ4: 0 | DAK4: 3 | DAL4: 0 | DAM4: 0 | DAN4: 0 | DAO4: 0 | DAP4: 20 | DAQ4: 3 | DAR4: 0 | DAS4: 0 | DAT4: 32 | DAU4: 0 | DAV4: 0 | DAW4: 6 | DAX4: 4 | DAY4: 12 | DAZ4: 0 | DBA4: 0 | DBB4: 0 | DBC4: 0 | DBD4: 12 | DBE4: 0 | DBF4: 0 | DBG4: 0 | DBH4: 0 | DBI4: 0 | DBJ4: 0 | DBK4: 0 | DBL4: 0 | DBM4: 0 | DBN4: 0 | DBO4: 4 | DBP4: 54 | DBQ4: 80 | DBR4: 6 | DBS4: 0 | DBT4: 0 | DBU4: 0 | DBV4: 0 | DBW4: 0 | DBX4: 0 | DBY4: 0 | DBZ4: 10 | DCA4: 0 | DCB4: 3 | DCC4: 0 | DCD4: 4 | DCE4: 73 | DCF4: 10 | DCG4: 0 | DCH4: 0 | DCI4: 0 | DCJ4: 0 | DCK4: 0 | DCL4: 0 | DCM4: 0 | DCN4: 0 | DCO4: 9 | DCP4: 0 | DCQ4: 0 | DCR4: 0 | DCS4: 0 | DCT4: 3 | DCU4: 3 | DCV4: 0 | DCW4: 0 | DCX4: 0 | DCY4: 0 | DCZ4: 0 | DDA4: 0 | DDB4: 0 | DDC4: 0 | DDD4: 0 | DDE4: 0 | DDF4: 21 | DDG4: 15 | DDH4: 0 | DDI4: 7 | DDJ4: 5 | DDK4: 0 | DDL4: 4 | DDM4: 0 | DDN4: 0 | DDO4: 173 | DDP4: 6 | DDQ4: 5 | DDR4: 17 | DDS4: 129 | DDT4: 44 | DDU4: 26 | DDV4: 24 | DDW4: 6 | DDX4: 109 | DDY4: 0 | DDZ4: 5 | DEA4: 99 | DEB4: 42 | DEC4: 21 | DED4: 38 | DEE4: 8 | DEF4: 4 | DEG4: 4 | DEH4: 65 | DEI4: 23 | DEJ4: 25 | DEK4: 0 | DEL4: 4 | DEM4: 6 | DEN4: 15 | DEO4: 0 | DEP4: 0 | DEQ4: 0 | DER4: 0 | DES4: 9 | DET4: 0 | DEU4: 8 | DEV4: 0 | DEW4: 12 | DEX4: 12 | DEY4: 0 | DEZ4: 3 | DFA4: 7 | DFB4: 4 | DFC4: 0 | DFD4: 42 | DFE4: 112 | DFF4: 130 | DFG4: 64 | DFH4: 58 | DFI4: 165 | DFJ4: 0 | DFK4: 0 | DFL4: 47 | DFM4: 27 | DFN4: 0 | DFO4: 0 | DFP4: 0 | DFQ4: 4 | DFR4: 31 | DFS4: 63 | DFT4: 685 | DFU4: 166 | DFV4: 394 | DFW4: 262 | DFX4: 262 | DFY4: 10 | DFZ4: 40 | DGA4: 611 | DGB4: 372 | DGC4: 38 | DGD4: 73 | DGE4: 156 | DGF4: 37 | DGG4: 16 | DGH4: 600 | DGI4: 266 | DGJ4: 7 | DGK4: 445 | DGL4: 24 | DGM4: 362 | DGN4: 22 | DGO4: 289 | DGP4: 11 | DGQ4: 330 | DGR4: 780 | DGS4: 28 | DGT4: 419 | DGU4: 26 | DGV4: 23 | DGW4: 193 | DGX4: 8 | DGY4: 67 | DGZ4: 93 | DHA4: 290 | DHB4: 45 | DHC4: 28 | DHD4: 443 | DHE4: 11 | DHF4: 40 | DHG4: 570 | DHH4: 275 | DHI4: 9 | DHJ4: 26 | DHK4: 46 | DHL4: 99 | DHM4: 352 | DHN4: 64 | DHO4: 23 | DHP4: 101 | DHQ4: 1299 | DHR4: 88 | DHS4: 63 | DHT4: 596 | DHU4: 4 | DHV4: 114 | DHW4: 544 | DHX4: 264 | DHY4: 18 | DHZ4: 423 | DIA4: 10 | DIB4: 58 | DIC4: 245 | DID4: 353 | DIE4: 18 | DIF4: 1212 | DIG4: 47 | DIH4: 61 | DII4: 35 | DIJ4: 6 | DIK4: 135 | DIL4: 5 | DIM4: 44 | DIN4: 45 | DIO4: 29 | DIP4: 503 | DIQ4: 46 | DIR4: 900 | DIS4: 233 | DIT4: 17 | DIU4: 26 | DIV4: 8 | DIW4: 260 | DIX4: 13 | DIY4: 8 | DIZ4: 4 | DJA4: 24 | DJB4: 618 | DJC4: 359 | DJD4: 37 | DJE4: 53 | DJF4: 47 | DJG4: 163 | DJH4: 45 | DJI4: 44 | DJJ4: 47 | DJK4: 0 | DJL4: 34 | DJM4: 396 | DJN4: 472 | DJO4: 436 | DJP4: 33 | DJQ4: 42 | DJR4: 40 | DJS4: 66 | DJT4: 54 | DJU4: 109 | DJV4: 15 | DJW4: 780 | DJX4: 805 | DJY4: 27 | DJZ4: 1265 | DKA4: 31 | DKB4: 155 | DKC4: 12 | DKD4: 383 | DKE4: 454 | DKF4: 5 | DKG4: 457 | DKH4: 355 | DKI4: 21 | DKJ4: 349 | DKK4: 24 | DKL4: 43 | DKM4: 35 | DKN4: 23 | DKO4: 8 | DKP4: 51 | DKQ4: 71 | DKR4: 3 | DKS4: 4 | DKT4: 3 | DKU4: 16 | DKV4: 53 | DKW4: 0 | DKX4: 0
A5: =IF('Paste CCD Numbers Here'!D6>0,'Paste CCD Numbers Here'!D6,0) -> 0 | C5: Mining | D5: 0 | E5: 7 | F5: 57 | G5: 0 | H5: 3 | I5: 0 | J5: 0 | K5: 0 | L5: 0 | M5: 4 | N5: 0 | O5: 6 | P5: 0 | Q5: 3 | R5: 4 | S5: 0 | T5: 3 | U5: 0 | V5: 8 | W5: 5 | X5: 6 | Y5: 28 | Z5: 0 | AA5: 0 | AB5: 47 | AC5: 0 | AD5: 0 | AE5: 0 | AF5: 0 | AG5: 3 | AH5: 12 | AI5: 0 | AJ5: 0 | AK5: 0 | AL5: 0 | AM5: 0 | AN5: 3 | AO5: 0 | AP5: 0 | AQ5: 0 | AR5: 0 | AS5: 0 | AT5: 0 | AU5: 0 | AV5: 8 | AW5: 0 | AX5: 0 | AY5: 8 | AZ5: 198 | BA5: 0 | BB5: 0 | BC5: 0 | BD5: 0 | BE5: 0 | BF5: 10 | BG5: 3 | BH5: 4 | BI5: 3 | BJ5: 0 | BK5: 6 | BL5: 0 | BM5: 6 | BN5: 5 | BO5: 0 | BP5: 6 | BQ5: 26 | BR5: 0 | BS5: 9 | BT5: 6 | BU5: 3 | BV5: 0 | BW5: 21 | BX5: 0 | BY5: 12 | BZ5: 11 | CA5: 0 | CB5: 4 | CC5: 11 | CD5: 0 | CE5: 3 | CF5: 4 | CG5: 13 | CH5: 0 | CI5: 0 | CJ5: 0 | CK5: 0 | CL5: 0 | CM5: 0 | CN5: 0 | CO5: 0 | CP5: 0 | CQ5: 4 | CR5: 0 | CS5: 3 | CT5: 3 | CU5: 5 | CV5: 10 | CW5: 0 | CX5: 0 | CY5: 11 | CZ5: 0 | DA5: 0 | DB5: 16 | DC5: 0 | DD5: 0 | DE5: 3 | DF5: 0 | DG5: 5 | DH5: 0 | DI5: 0 | DJ5: 0 | DK5: 0 | DL5: 0 | DM5: 3 | DN5: 0 | DO5: 0 | DP5: 29 | DQ5: 0 | DR5: 0 | DS5: 0 | DT5: 0 | DU5: 6 | DV5: 0 | DW5: 0 | DX5: 0 | DY5: 0 | DZ5: 0 | EA5: 0 | EB5: 59 | EC5: 0 | ED5: 0 | EE5: 0 | EF5: 11 | EG5: 3 | EH5: 0 | EI5: 0 | EJ5: 7 | EK5: 8 | EL5: 0 | EM5: 9 | EN5: 14 | EO5: 0 | EP5: 95 | EQ5: 6 | ER5: 0 | ES5: 4 | ET5: 9 | EU5: 0 | EV5: 9 | EW5: 16 | EX5: 3 | EY5: 13 | EZ5: 0 | FA5: 0 | FB5: 20 | FC5: 0 | FD5: 0 | FE5: 9 | FF5: 258 | FG5: 3 | FH5: 0 | FI5: 0 | FJ5: 0 | FK5: 0 | FL5: 3 | FM5: 589 | FN5: 0 | FO5: 0 | FP5: 0 | FQ5: 13 | FR5: 27 | FS5: 0 | FT5: 0 | FU5: 4 | FV5: 33 | FW5: 0 | FX5: 0 | FY5: 10 | FZ5: 0 | GA5: 0 | GB5: 0 | GC5: 0 | GD5: 0 | GE5: 0 | GF5: 0 | GG5: 0 | GH5: 0 | GI5: 0 | GJ5: 0 | GK5: 0 | GL5: 0 | GM5: 0 | GN5: 8 | GO5: 0 | GP5: 3 | GQ5: 0 | GR5: 0 | GS5: 0 | GT5: 0 | GU5: 0 | GV5: 0 | GW5: 0 | GX5: 0 | GY5: 5 | GZ5: 0 | HA5: 0 | HB5: 0 | HC5: 0 | HD5: 0 | HE5: 0 | HF5: 0 | HG5: 0 | HH5: 0 | HI5: 0 | HJ5: 0 | HK5: 0 | HL5: 0 | HM5: 14 | HN5: 0 | HO5: 0 | HP5: 0 | HQ5: 0 | HR5: 0 | HS5: 0 | HT5: 0 | HU5: 0 | HV5: 0 | HW5: 0 | HX5: 0 | HY5: 0 | HZ5: 0 | IA5: 0 | IB5: 0 | IC5: 0 | ID5: 0 | IE5: 0 | IF5: 0 | IG5: 24 | IH5: 27 | II5: 26 | IJ5: 0 | IK5: 0 | IL5: 0 | IM5: 0 | IN5: 3 | IO5: 0 | IP5: 0 | IQ5: 0 | IR5: 0 | IS5: 5 | IT5: 0 | IU5: 0 | IV5: 0 | IW5: 0 | IX5: 0 | IY5: 0 | IZ5: 0 | JA5: 0 | JB5: 0 | JC5: 0 | JD5: 8 | JE5: 0 | JF5: 8 | JG5: 5 | JH5: 0 | JI5: 0 | JJ5: 0 | JK5: 0 | JL5: 0 | JM5: 0 | JN5: 0 | JO5: 0 | JP5: 0 | JQ5: 0 | JR5: 0 | JS5: 0 | JT5: 0 | JU5: 0 | JV5: 0 | JW5: 5 | JX5: 0 | JY5: 3 | JZ5: 0 | KA5: 0 | KB5: 0 | KC5: 0 | KD5: 0 | KE5: 0 | KF5: 0 | KG5: 0 | KH5: 0 | KI5: 4 | KJ5: 0 | KK5: 0 | KL5: 0 | KM5: 0 | KN5: 0 | KO5: 0 | KP5: 0 | KQ5: 0 | KR5: 0 | KS5: 0 | KT5: 0 | KU5: 6 | KV5: 0 | KW5: 5 | KX5: 0 | KY5: 0 | KZ5: 0 | LA5: 0 | LB5: 0 | LC5: 0 | LD5: 3 | LE5: 6 | LF5: 0 | LG5: 0 | LH5: 4 | LI5: 0 | LJ5: 6 | LK5: 0 | LL5: 30 | LM5: 0 | LN5: 12 | LO5: 82 | LP5: 8 | LQ5: 0 | LR5: 0 | LS5: 20 | LT5: 8 | LU5: 9 | LV5: 8 | LW5: 0 | LX5: 0 | LY5: 3 | LZ5: 0 | MA5: 0 | MB5: 0 | MC5: 8 | MD5: 48 | ME5: 0 | MF5: 0 | MG5: 6 | MH5: 0 | MI5: 0 | MJ5: 0 | MK5: 3 | ML5: 0 | MM5: 25 | MN5: 0 | MO5: 4 | MP5: 0 | MQ5: 0 | MR5: 8 | MS5: 0 | MT5: 0 | MU5: 0 | MV5: 4 | MW5: 0 | MX5: 0 | MY5: 0 | MZ5: 3 | NA5: 0 | NB5: 0 | NC5: 3 | ND5: 5 | NE5: 4 | NF5: 0 | NG5: 0 | NH5: 0 | NI5: 0 | NJ5: 3 | NK5: 0 | NL5: 0 | NM5: 0 | NN5: 0 | NO5: 0 | NP5: 0 | NQ5: 0 | NR5: 0 | NS5: 9 | NT5: 3 | NU5: 0 | NV5: 0 | NW5: 0 | NX5: 0 | NY5: 0 | NZ5: 0 | OA5: 0 | OB5: 0 | OC5: 0 | OD5: 3 | OE5: 20 | OF5: 12 | OG5: 0 | OH5: 0 | OI5: 0 | OJ5: 0 | OK5: 0 | OL5: 0 | OM5: 0 | ON5: 3 | OO5: 4 | OP5: 0 | OQ5: 0 | OR5: 0 | OS5: 15 | OT5: 10 | OU5: 0 | OV5: 8 | OW5: 11 | OX5: 0 | OY5: 0 | OZ5: 0 | PA5: 0 | PB5: 20 | PC5: 0 | PD5: 0 | PE5: 0 | PF5: 0 | PG5: 6 | PH5: 0 | PI5: 68 | PJ5: 0 | PK5: 19 | PL5: 0 | PM5: 0 | PN5: 4 | PO5: 0 | PP5: 3 | PQ5: 0 | PR5: 0 | PS5: 0 | PT5: 0 | PU5: 3 | PV5: 0 | PW5: 4 | PX5: 0 | PY5: 0 | PZ5: 12 | QA5: 8 | QB5: 0 | QC5: 20 | QD5: 111 | QE5: 8 | QF5: 0 | QG5: 0 | QH5: 0 | QI5: 0 | QJ5: 0 | QK5: 0 | QL5: 92 | QM5: 0 | QN5: 61 | QO5: 24 | QP5: 0 | QQ5: 0 | QR5: 26 | QS5: 0 | QT5: 0 | QU5: 0 | QV5: 0 | QW5: 0 | QX5: 0 | QY5: 0 | QZ5: 0 | RA5: 0 | RB5: 4 | RC5: 30 | RD5: 0 | RE5: 11 | RF5: 0 | RG5: 0 | RH5: 11 | RI5: 0 | RJ5: 0 | RK5: 0 | RL5: 0 | RM5: 0 | RN5: 0 | RO5: 10 | RP5: 8 | RQ5: 0 | RR5: 0 | RS5: 0 | RT5: 0 | RU5: 0 | RV5: 313 | RW5: 0 | RX5: 0 | RY5: 0 | RZ5: 4 | SA5: 4 | SB5: 3 | SC5: 8 | SD5: 0 | SE5: 7 | SF5: 14 | SG5: 0 | SH5: 62 | SI5: 0 | SJ5: 3 | SK5: 3 | SL5: 3 | SM5: 6 | SN5: 4 | SO5: 22 | SP5: 3 | SQ5: 0 | SR5: 0 | SS5: 0 | ST5: 0 | SU5: 0 | SV5: 3 | SW5: 0 | SX5: 0 | SY5: 0 | SZ5: 0 | TA5: 0 | TB5: 0 | TC5: 0 | TD5: 0 | TE5: 0 | TF5: 4 | TG5: 0 | TH5: 0 | TI5: 0 | TJ5: 0 | TK5: 0 | TL5: 0 | TM5: 0 | TN5: 0 | TO5: 0 | TP5: 0 | TQ5: 0 | TR5: 0 | TS5: 0 | TT5: 0 | TU5: 0 | TV5: 0 | TW5: 0 | TX5: 0 | TY5: 0 | TZ5: 0 | UA5: 0 | UB5: 0 | UC5: 0 | UD5: 0 | UE5: 0 | UF5: 0 | UG5: 0 | UH5: 0 | UI5: 0 | UJ5: 0 | UK5: 0 | UL5: 0 | UM5: 0 | UN5: 0 | UO5: 0 | UP5: 0 | UQ5: 0 | UR5: 4 | US5: 0 | UT5: 0 | UU5: 0 | UV5: 0 | UW5: 0 | UX5: 0 | UY5: 0 | UZ5: 0 | VA5: 0 | VB5: 0 | VC5: 0 | VD5: 0 | VE5: 0 | VF5: 0 | VG5: 0 | VH5: 0 | VI5: 0 | VJ5: 0 | VK5: 0 | VL5: 0 | VM5: 0 | VN5: 0 | VO5: 0 | VP5: 0 | VQ5: 0 | VR5: 0 | VS5: 0 | VT5: 0 | VU5: 0 | VV5: 0 | VW5: 0 | VX5: 0 | VY5: 0 | VZ5: 0 | WA5: 0 | WB5: 0 | WC5: 0 | WD5: 0 | WE5: 7 | WF5: 0 | WG5: 0 | WH5: 0 | WI5: 0 | WJ5: 0 | WK5: 0 | WL5: 0 | WM5: 0 | WN5: 0 | WO5: 0 | WP5: 0 | WQ5: 0 | WR5: 0 | WS5: 0 | WT5: 19 | WU5: 0 | WV5: 0 | WW5: 0 | WX5: 0 | WY5: 0 | WZ5: 3 | XA5: 0 | XB5: 0 | XC5: 0 | XD5: 0 | XE5: 0 | XF5: 300 | XG5: 0 | XH5: 0 | XI5: 0 | XJ5: 0 | XK5: 0 | XL5: 7 | XM5: 17 | XN5: 0 | XO5: 9 | XP5: 0 | XQ5: 0 | XR5: 0 | XS5: 3 | XT5: 0 | XU5: 0 | XV5: 0 | XW5: 0 | XX5: 0 | XY5: 0 | XZ5: 0 | YA5: 0 | YB5: 0 | YC5: 0 | YD5: 5 | YE5: 0 | YF5: 0 | YG5: 0 | YH5: 0 | YI5: 0 | YJ5: 0 | YK5: 0 | YL5: 6 | YM5: 0 | YN5: 0 | YO5: 3 | YP5: 0 | YQ5: 0 | YR5: 3 | YS5: 0 | YT5: 6 | YU5: 0 | YV5: 0 | YW5: 8 | YX5: 24 | YY5: 0 | YZ5: 0 | ZA5: 0 | ZB5: 3 | ZC5: 0 | ZD5: 0 | ZE5: 15 | ZF5: 42 | ZG5: 0 | ZH5: 0 | ZI5: 0 | ZJ5: 0 | ZK5: 0 | ZL5: 0 | ZM5: 0 | ZN5: 0 | ZO5: 0 | ZP5: 0 | ZQ5: 0 | ZR5: 8 | ZS5: 50 | ZT5: 0 | ZU5: 0 | ZV5: 0 | ZW5: 0 | ZX5: 0 | ZY5: 0 | ZZ5: 0 | AAA5: 0 | AAB5: 0 | AAC5: 11 | AAD5: 0 | AAE5: 0 | AAF5: 28 | AAG5: 41 | AAH5: 0 | AAI5: 3 | AAJ5: 8 | AAK5: 3 | AAL5: 0 | AAM5: 0 | AAN5: 7 | AAO5: 0 | AAP5: 4 | AAQ5: 21 | AAR5: 9 | AAS5: 0 | AAT5: 0 | AAU5: 79 | AAV5: 0 | AAW5: 0 | AAX5: 3 | AAY5: 0 | AAZ5: 0 | ABA5: 0 | ABB5: 0 | ABC5: 0 | ABD5: 0 | ABE5: 0 | ABF5: 0 | ABG5: 0 | ABH5: 0 | ABI5: 0 | ABJ5: 0 | ABK5: 0 | ABL5: 8 | ABM5: 0 | ABN5: 0 | ABO5: 0 | ABP5: 0 | ABQ5: 0 | ABR5: 0 | ABS5: 0 | ABT5: 0 | ABU5: 0 | ABV5: 0 | ABW5: 3 | ABX5: 0 | ABY5: 105 | ABZ5: 20 | ACA5: 0 | ACB5: 0 | ACC5: 7 | ACD5: 0 | ACE5: 0 | ACF5: 0 | ACG5: 0 | ACH5: 0 | ACI5: 0 | ACJ5: 0 | ACK5: 0 | ACL5: 0 | ACM5: 11 | ACN5: 0 | ACO5: 8 | ACP5: 46 | ACQ5: 4 | ACR5: 0 | ACS5: 6 | ACT5: 0 | ACU5: 0 | ACV5: 0 | ACW5: 0 | ACX5: 0 | ACY5: 0 | ACZ5: 0 | ADA5: 0 | ADB5: 0 | ADC5: 0 | ADD5: 0 | ADE5: 0 | ADF5: 0 | ADG5: 0 | ADH5: 0 | ADI5: 0 | ADJ5: 0 | ADK5: 0 | ADL5: 0 | ADM5: 0 | ADN5: 0 | ADO5: 0 | ADP5: 0 | ADQ5: 17 | ADR5: 3 | ADS5: 0 | ADT5: 3 | ADU5: 0 | ADV5: 0 | ADW5: 0 | ADX5: 0 | ADY5: 0 | ADZ5: 6 | AEA5: 0 | AEB5: 0 | AEC5: 0 | AED5: 0 | AEE5: 0 | AEF5: 3 | AEG5: 0 | AEH5: 0 | AEI5: 3 | AEJ5: 0 | AEK5: 0 | AEL5: 0 | AEM5: 0 | AEN5: 0 | AEO5: 0 | AEP5: 0 | AEQ5: 0 | AER5: 0 | AES5: 0 | AET5: 0 | AEU5: 0 | AEV5: 0 | AEW5: 383 | AEX5: 0 | AEY5: 0 | AEZ5: 0 | AFA5: 0 | AFB5: 4 | AFC5: 0 | AFD5: 0 | AFE5: 0 | AFF5: 0 | AFG5: 0 | AFH5: 4 | AFI5: 0 | AFJ5: 3 | AFK5: 0 | AFL5: 0 | AFM5: 0 | AFN5: 0 | AFO5: 0 | AFP5: 0 | AFQ5: 3 | AFR5: 3 | AFS5: 0 | AFT5: 0 | AFU5: 0 | AFV5: 0 | AFW5: 21 | AFX5: 0 | AFY5: 0 | AFZ5: 0 | AGA5: 0 | AGB5: 0 | AGC5: 0 | AGD5: 0 | AGE5: 5 | AGF5: 3 | AGG5: 0 | AGH5: 0 | AGI5: 0 | AGJ5: 0 | AGK5: 0 | AGL5: 0 | AGM5: 0 | AGN5: 5 | AGO5: 3 | AGP5: 0 | AGQ5: 0 | AGR5: 0 | AGS5: 0 | AGT5: 0 | AGU5: 0 | AGV5: 0 | AGW5: 0 | AGX5: 0 | AGY5: 0 | AGZ5: 0 | AHA5: 0 | AHB5: 0 | AHC5: 0 | AHD5: 0 | AHE5: 0 | AHF5: 0 | AHG5: 0 | AHH5: 0 | AHI5: 0 | AHJ5: 0 | AHK5: 0 | AHL5: 0 | AHM5: 0 | AHN5: 0 | AHO5: 0 | AHP5: 0 | AHQ5: 0 | AHR5: 0 | AHS5: 0 | AHT5: 0 | AHU5: 0 | AHV5: 0 | AHW5: 8 | AHX5: 6 | AHY5: 0 | AHZ5: 0 | AIA5: 0 | AIB5: 0 | AIC5: 0 | AID5: 0 | AIE5: 0 | AIF5: 0 | AIG5: 0 | AIH5: 0 | AII5: 0 | AIJ5: 0 | AIK5: 0 | AIL5: 0 | AIM5: 0 | AIN5: 0 | AIO5: 0 | AIP5: 0 | AIQ5: 0 | AIR5: 0 | AIS5: 0 | AIT5: 0 | AIU5: 0 | AIV5: 0 | AIW5: 0 | AIX5: 0 | AIY5: 0 | AIZ5: 0 | AJA5: 7 | AJB5: 0 | AJC5: 0 | AJD5: 0 | AJE5: 0 | AJF5: 0 | AJG5: 0 | AJH5: 0 | AJI5: 0 | AJJ5: 0 | AJK5: 0 | AJL5: 0 | AJM5: 0 | AJN5: 0 | AJO5: 0 | AJP5: 0 | AJQ5: 0 | AJR5: 0 | AJS5: 0 | AJT5: 0 | AJU5: 0 | AJV5: 0 | AJW5: 0 | AJX5: 0 | AJY5: 0 | AJZ5: 0 | AKA5: 0 | AKB5: 0 | AKC5: 3 | AKD5: 0 | AKE5: 0 | AKF5: 0 | AKG5: 0 | AKH5: 0 | AKI5: 0 | AKJ5: 0 | AKK5: 0 | AKL5: 4 | AKM5: 0 | AKN5: 0 | AKO5: 0 | AKP5: 0 | AKQ5: 0 | AKR5: 0 | AKS5: 0 | AKT5: 0 | AKU5: 0 | AKV5: 0 | AKW5: 0 | AKX5: 0 | AKY5: 0 | AKZ5: 0 | ALA5: 0 | ALB5: 9 | ALC5: 0 | ALD5: 12 | ALE5: 0 | ALF5: 0 | ALG5: 0 | ALH5: 0 | ALI5: 0 | ALJ5: 0 | ALK5: 0 | ALL5: 0 | ALM5: 5 | ALN5: 0 | ALO5: 0 | ALP5: 0 | ALQ5: 0 | ALR5: 0 | ALS5: 0 | ALT5: 0 | ALU5: 0 | ALV5: 0 | ALW5: 0 | ALX5: 0 | ALY5: 0 | ALZ5: 0 | AMA5: 0 | AMB5: 0 | AMC5: 0 | AMD5: 6 | AME5: 0 | AMF5: 0 | AMG5: 0 | AMH5: 0 | AMI5: 0 | AMJ5: 0 | AMK5: 4 | AML5: 0 | AMM5: 0 | AMN5: 0 | AMO5: 0 | AMP5: 0 | AMQ5: 0 | AMR5: 0 | AMS5: 0 | AMT5: 0 | AMU5: 0 | AMV5: 0 | AMW5: 0 | AMX5: 0 | AMY5: 0 | AMZ5: 0 | ANA5: 0 | ANB5: 0 | ANC5: 0 | AND5: 0 | ANE5: 0 | ANF5: 8 | ANG5: 0 | ANH5: 0 | ANI5: 0 | ANJ5: 0 | ANK5: 0 | ANL5: 0 | ANM5: 0 | ANN5: 0 | ANO5: 0 | ANP5: 0 | ANQ5: 0 | ANR5: 0 | ANS5: 0 | ANT5: 0 | ANU5: 0 | ANV5: 0 | ANW5: 0 | ANX5: 0 | ANY5: 0 | ANZ5: 0 | AOA5: 0 | AOB5: 0 | AOC5: 0 | AOD5: 0 | AOE5: 3 | AOF5: 0 | AOG5: 0 | AOH5: 0 | AOI5: 0 | AOJ5: 0 | AOK5: 0 | AOL5: 0 | AOM5: 0 | AON5: 0 | AOO5: 0 | AOP5: 0 | AOQ5: 0 | AOR5: 0 | AOS5: 0 | AOT5: 0 | AOU5: 0 | AOV5: 0 | AOW5: 0 | AOX5: 0 | AOY5: 0 | AOZ5: 0 | APA5: 0 | APB5: 0 | APC5: 0 | APD5: 0 | APE5: 0 | APF5: 0 | APG5: 0 | APH5: 0 | API5: 0 | APJ5: 0 | APK5: 0 | APL5: 0 | APM5: 0 | APN5: 0 | APO5: 0 | APP5: 0 | APQ5: 0 | APR5: 0 | APS5: 0 | APT5: 0 | APU5: 0 | APV5: 0 | APW5: 0 | APX5: 0 | APY5: 0 | APZ5: 0 | AQA5: 0 | AQB5: 0 | AQC5: 0 | AQD5: 0 | AQE5: 0 | AQF5: 0 | AQG5: 0 | AQH5: 0 | AQI5: 0 | AQJ5: 0 | AQK5: 0 | AQL5: 0 | AQM5: 0 | AQN5: 0 | AQO5: 0 | AQP5: 0 | AQQ5: 0 | AQR5: 0 | AQS5: 0 | AQT5: 0 | AQU5: 0 | AQV5: 0 | AQW5: 0 | AQX5: 0 | AQY5: 0 | AQZ5: 3 | ARA5: 0 | ARB5: 0 | ARC5: 0 | ARD5: 0 | ARE5: 0 | ARF5: 0 | ARG5: 0 | ARH5: 0 | ARI5: 0 | ARJ5: 0 | ARK5: 0 | ARL5: 0 | ARM5: 0 | ARN5: 0 | ARO5: 6 | ARP5: 0 | ARQ5: 4 | ARR5: 0 | ARS5: 3 | ART5: 0 | ARU5: 0 | ARV5: 3 | ARW5: 0 | ARX5: 3 | ARY5: 0 | ARZ5: 0 | ASA5: 0 | ASB5: 0 | ASC5: 0 | ASD5: 0 | ASE5: 0 | ASF5: 0 | ASG5: 0 | ASH5: 0 | ASI5: 0 | ASJ5: 3 | ASK5: 0 | ASL5: 0 | ASM5: 0 | ASN5: 0 | ASO5: 0 | ASP5: 0 | ASQ5: 0 | ASR5: 0 | ASS5: 0 | AST5: 0 | ASU5: 0 | ASV5: 0 | ASW5: 0 | ASX5: 0 | ASY5: 0 | ASZ5: 0 | ATA5: 0 | ATB5: 0 | ATC5: 0 | ATD5: 0 | ATE5: 0 | ATF5: 0 | ATG5: 0 | ATH5: 0 | ATI5: 0 | ATJ5: 0 | ATK5: 0 | ATL5: 0 | ATM5: 0 | ATN5: 0 | ATO5: 0 | ATP5: 0 | ATQ5: 0 | ATR5: 0 | ATS5: 0 | ATT5: 0 | ATU5: 0 | ATV5: 0 | ATW5: 0 | ATX5: 0 | ATY5: 0 | ATZ5: 0 | AUA5: 0 | AUB5: 0 | AUC5: 0 | AUD5: 0 | AUE5: 0 | AUF5: 0 | AUG5: 0 | AUH5: 0 | AUI5: 0 | AUJ5: 0 | AUK5: 0 | AUL5: 0 | AUM5: 3 | AUN5: 0 | AUO5: 0 | AUP5: 0 | AUQ5: 0 | AUR5: 0 | AUS5: 0 | AUT5: 0 | AUU5: 0 | AUV5: 0 | AUW5: 0 | AUX5: 0 | AUY5: 0 | AUZ5: 0 | AVA5: 0 | AVB5: 0 | AVC5: 0 | AVD5: 0 | AVE5: 0 | AVF5: 0 | AVG5: 0 | AVH5: 0 | AVI5: 4 | AVJ5: 0 | AVK5: 0 | AVL5: 0 | AVM5: 0 | AVN5: 0 | AVO5: 0 | AVP5: 0 | AVQ5: 0 | AVR5: 0 | AVS5: 0 | AVT5: 0 | AVU5: 0 | AVV5: 0 | AVW5: 0 | AVX5: 0 | AVY5: 0 | AVZ5: 0 | AWA5: 0 | AWB5: 0 | AWC5: 4 | AWD5: 13 | AWE5: 3 | AWF5: 0 | AWG5: 0 | AWH5: 11 | AWI5: 0 | AWJ5: 0 | AWK5: 0 | AWL5: 0 | AWM5: 0 | AWN5: 0 | AWO5: 0 | AWP5: 0 | AWQ5: 0 | AWR5: 0 | AWS5: 0 | AWT5: 0 | AWU5: 0 | AWV5: 0 | AWW5: 0 | AWX5: 0 | AWY5: 0 | AWZ5: 0 | AXA5: 0 | AXB5: 0 | AXC5: 0 | AXD5: 0 | AXE5: 0 | AXF5: 0 | AXG5: 0 | AXH5: 0 | AXI5: 0 | AXJ5: 0 | AXK5: 0 | AXL5: 0 | AXM5: 0 | AXN5: 0 | AXO5: 0 | AXP5: 0 | AXQ5: 0 | AXR5: 3 | AXS5: 0 | AXT5: 0 | AXU5: 0 | AXV5: 0 | AXW5: 0 | AXX5: 0 | AXY5: 0 | AXZ5: 0 | AYA5: 0 | AYB5: 0 | AYC5: 0 | AYD5: 8 | AYE5: 0 | AYF5: 0 | AYG5: 0 | AYH5: 0 | AYI5: 5 | AYJ5: 0 | AYK5: 0 | AYL5: 6 | AYM5: 4 | AYN5: 0 | AYO5: 0 | AYP5: 0 | AYQ5: 0 | AYR5: 0 | AYS5: 0 | AYT5: 0 | AYU5: 3 | AYV5: 0 | AYW5: 0 | AYX5: 0 | AYY5: 0 | AYZ5: 0 | AZA5: 0 | AZB5: 0 | AZC5: 0 | AZD5: 0 | AZE5: 0 | AZF5: 0 | AZG5: 0 | AZH5: 0 | AZI5: 0 | AZJ5: 0 | AZK5: 0 | AZL5: 0 | AZM5: 0 | AZN5: 0 | AZO5: 0 | AZP5: 0 | AZQ5: 0 | AZR5: 0 | AZS5: 0 | AZT5: 0 | AZU5: 0 | AZV5: 0 | AZW5: 0 | AZX5: 0 | AZY5: 0 | AZZ5: 0 | BAA5: 0 | BAB5: 0 | BAC5: 0 | BAD5: 0 | BAE5: 0 | BAF5: 0 | BAG5: 0 | BAH5: 0 | BAI5: 0 | BAJ5: 0 | BAK5: 0 | BAL5: 0 | BAM5: 0 | BAN5: 0 | BAO5: 0 | BAP5: 0 | BAQ5: 0 | BAR5: 0 | BAS5: 0 | BAT5: 0 | BAU5: 0 | BAV5: 0 | BAW5: 0 | BAX5: 4 | BAY5: 12 | BAZ5: 0 | BBA5: 0 | BBB5: 0 | BBC5: 0 | BBD5: 0 | BBE5: 0 | BBF5: 0 | BBG5: 0 | BBH5: 0 | BBI5: 0 | BBJ5: 0 | BBK5: 0 | BBL5: 0 | BBM5: 6 | BBN5: 0 | BBO5: 0 | BBP5: 0 | BBQ5: 0 | BBR5: 0 | BBS5: 0 | BBT5: 0 | BBU5: 0 | BBV5: 0 | BBW5: 3 | BBX5: 0 | BBY5: 0 | BBZ5: 0 | BCA5: 0 | BCB5: 0 | BCC5: 0 | BCD5: 0 | BCE5: 0 | BCF5: 0 | BCG5: 0 | BCH5: 0 | BCI5: 0 | BCJ5: 0 | BCK5: 0 | BCL5: 72 | BCM5: 0 | BCN5: 0 | BCO5: 0 | BCP5: 0 | BCQ5: 0 | BCR5: 0 | BCS5: 0 | BCT5: 0 | BCU5: 0 | BCV5: 0 | BCW5: 0 | BCX5: 0 | BCY5: 0 | BCZ5: 4 | BDA5: 0 | BDB5: 0 | BDC5: 0 | BDD5: 3 | BDE5: 0 | BDF5: 0 | BDG5: 0 | BDH5: 0 | BDI5: 0 | BDJ5: 0 | BDK5: 0 | BDL5: 3 | BDM5: 0 | BDN5: 0 | BDO5: 0 | BDP5: 0 | BDQ5: 0 | BDR5: 0 | BDS5: 0 | BDT5: 0 | BDU5: 0 | BDV5: 0 | BDW5: 0 | BDX5: 0 | BDY5: 0 | BDZ5: 0 | BEA5: 0 | BEB5: 0 | BEC5: 0 | BED5: 0 | BEE5: 0 | BEF5: 0 | BEG5: 0 | BEH5: 0 | BEI5: 0 | BEJ5: 3 | BEK5: 0 | BEL5: 0 | BEM5: 0 | BEN5: 0 | BEO5: 0 | BEP5: 0 | BEQ5: 4 | BER5: 0 | BES5: 0 | BET5: 0 | BEU5: 0 | BEV5: 0 | BEW5: 0 | BEX5: 10 | BEY5: 0 | BEZ5: 0 | BFA5: 0 | BFB5: 3 | BFC5: 0 | BFD5: 0 | BFE5: 0 | BFF5: 0 | BFG5: 0 | BFH5: 0 | BFI5: 0 | BFJ5: 0 | BFK5: 3 | BFL5: 0 | BFM5: 0 | BFN5: 0 | BFO5: 0 | BFP5: 0 | BFQ5: 0 | BFR5: 0 | BFS5: 0 | BFT5: 0 | BFU5: 0 | BFV5: 0 | BFW5: 0 | BFX5: 0 | BFY5: 0 | BFZ5: 0 | BGA5: 0 | BGB5: 0 | BGC5: 0 | BGD5: 0 | BGE5: 0 | BGF5: 0 | BGG5: 3 | BGH5: 0 | BGI5: 5 | BGJ5: 6 | BGK5: 0 | BGL5: 0 | BGM5: 12 | BGN5: 0 | BGO5: 0 | BGP5: 0 | BGQ5: 0 | BGR5: 0 | BGS5: 0 | BGT5: 4 | BGU5: 13 | BGV5: 0 | BGW5: 0 | BGX5: 0 | BGY5: 6 | BGZ5: 7 | BHA5: 0 | BHB5: 4 | BHC5: 0 | BHD5: 0 | BHE5: 0 | BHF5: 0 | BHG5: 0 | BHH5: 0 | BHI5: 0 | BHJ5: 23 | BHK5: 0 | BHL5: 21 | BHM5: 0 | BHN5: 0 | BHO5: 0 | BHP5: 0 | BHQ5: 0 | BHR5: 0 | BHS5: 0 | BHT5: 0 | BHU5: 0 | BHV5: 0 | BHW5: 0 | BHX5: 0 | BHY5: 0 | BHZ5: 0 | BIA5: 18 | BIB5: 0 | BIC5: 0 | BID5: 0 | BIE5: 0 | BIF5: 3 | BIG5: 0 | BIH5: 0 | BII5: 0 | BIJ5: 0 | BIK5: 0 | BIL5: 0 | BIM5: 0 | BIN5: 0 | BIO5: 0 | BIP5: 0 | BIQ5: 6 | BIR5: 0 | BIS5: 0 | BIT5: 36 | BIU5: 0 | BIV5: 3 | BIW5: 5 | BIX5: 0 | BIY5: 0 | BIZ5: 0 | BJA5: 0 | BJB5: 0 | BJC5: 0 | BJD5: 16 | BJE5: 7 | BJF5: 0 | BJG5: 0 | BJH5: 0 | BJI5: 0 | BJJ5: 0 | BJK5: 0 | BJL5: 0 | BJM5: 0 | BJN5: 0 | BJO5: 3 | BJP5: 0 | BJQ5: 0 | BJR5: 0 | BJS5: 0 | BJT5: 0 | BJU5: 0 | BJV5: 0 | BJW5: 0 | BJX5: 0 | BJY5: 0 | BJZ5: 0 | BKA5: 0 | BKB5: 0 | BKC5: 0 | BKD5: 0 | BKE5: 0 | BKF5: 0 | BKG5: 0 | BKH5: 0 | BKI5: 0 | BKJ5: 0 | BKK5: 0 | BKL5: 0 | BKM5: 0 | BKN5: 0 | BKO5: 0 | BKP5: 0 | BKQ5: 0 | BKR5: 0 | BKS5: 0 | BKT5: 0 | BKU5: 0 | BKV5: 0 | BKW5: 0 | BKX5: 0 | BKY5: 0 | BKZ5: 0 | BLA5: 0 | BLB5: 0 | BLC5: 0 | BLD5: 0 | BLE5: 0 | BLF5: 0 | BLG5: 0 | BLH5: 0 | BLI5: 0 | BLJ5: 0 | BLK5: 0 | BLL5: 0 | BLM5: 3 | BLN5: 0 | BLO5: 0 | BLP5: 0 | BLQ5: 0 | BLR5: 0 | BLS5: 0 | BLT5: 0 | BLU5: 0 | BLV5: 0 | BLW5: 0 | BLX5: 0 | BLY5: 0 | BLZ5: 0 | BMA5: 0 | BMB5: 3 | BMC5: 0 | BMD5: 0 | BME5: 0 | BMF5: 0 | BMG5: 0 | BMH5: 0 | BMI5: 0 | BMJ5: 0 | BMK5: 0 | BML5: 0 | BMM5: 0 | BMN5: 0 | BMO5: 0 | BMP5: 0 | BMQ5: 0 | BMR5: 0 | BMS5: 0 | BMT5: 0 | BMU5: 0 | BMV5: 6 | BMW5: 0 | BMX5: 11 | BMY5: 22 | BMZ5: 3 | BNA5: 3 | BNB5: 0 | BNC5: 0 | BND5: 0 | BNE5: 0 | BNF5: 0 | BNG5: 0 | BNH5: 0 | BNI5: 0 | BNJ5: 29 | BNK5: 0 | BNL5: 0 | BNM5: 0 | BNN5: 0 | BNO5: 0 | BNP5: 0 | BNQ5: 24 | BNR5: 0 | BNS5: 0 | BNT5: 3 | BNU5: 0 | BNV5: 0 | BNW5: 0 | BNX5: 0 | BNY5: 0 | BNZ5: 0 | BOA5: 0 | BOB5: 0 | BOC5: 0 | BOD5: 0 | BOE5: 0 | BOF5: 0 | BOG5: 0 | BOH5: 0 | BOI5: 0 | BOJ5: 0 | BOK5: 0 | BOL5: 0 | BOM5: 0 | BON5: 0 | BOO5: 0 | BOP5: 0 | BOQ5: 0 | BOR5: 0 | BOS5: 0 | BOT5: 0 | BOU5: 0 | BOV5: 0 | BOW5: 4 | BOX5: 0 | BOY5: 13 | BOZ5: 0 | BPA5: 0 | BPB5: 0 | BPC5: 0 | BPD5: 0 | BPE5: 12 | BPF5: 0 | BPG5: 0 | BPH5: 0 | BPI5: 0 | BPJ5: 28 | BPK5: 0 | BPL5: 5 | BPM5: 0 | BPN5: 0 | BPO5: 0 | BPP5: 4 | BPQ5: 0 | BPR5: 0 | BPS5: 0 | BPT5: 0 | BPU5: 6 | BPV5: 3 | BPW5: 0 | BPX5: 0 | BPY5: 36 | BPZ5: 0 | BQA5: 0 | BQB5: 0 | BQC5: 0 | BQD5: 0 | BQE5: 0 | BQF5: 0 | BQG5: 0 | BQH5: 3 | BQI5: 0 | BQJ5: 0 | BQK5: 3 | BQL5: 0 | BQM5: 25 | BQN5: 0 | BQO5: 0 | BQP5: 0 | BQQ5: 0 | BQR5: 0 | BQS5: 0 | BQT5: 0 | BQU5: 0 | BQV5: 0 | BQW5: 0 | BQX5: 0 | BQY5: 0 | BQZ5: 0 | BRA5: 0 | BRB5: 0 | BRC5: 0 | BRD5: 0 | BRE5: 0 | BRF5: 0 | BRG5: 0 | BRH5: 0 | BRI5: 0 | BRJ5: 0 | BRK5: 9 | BRL5: 0 | BRM5: 0 | BRN5: 0 | BRO5: 0 | BRP5: 0 | BRQ5: 0 | BRR5: 0 | BRS5: 0 | BRT5: 0 | BRU5: 0 | BRV5: 0 | BRW5: 0 | BRX5: 0 | BRY5: 0 | BRZ5: 0 | BSA5: 0 | BSB5: 0 | BSC5: 0 | BSD5: 0 | BSE5: 0 | BSF5: 0 | BSG5: 0 | BSH5: 0 | BSI5: 0 | BSJ5: 4 | BSK5: 0 | BSL5: 0 | BSM5: 0 | BSN5: 0 | BSO5: 0 | BSP5: 0 | BSQ5: 0 | BSR5: 0 | BSS5: 0 | BST5: 0 | BSU5: 0 | BSV5: 0 | BSW5: 0 | BSX5: 0 | BSY5: 0 | BSZ5: 0 | BTA5: 0 | BTB5: 3 | BTC5: 0 | BTD5: 15 | BTE5: 0 | BTF5: 0 | BTG5: 7 | BTH5: 0 | BTI5: 0 | BTJ5: 0 | BTK5: 0 | BTL5: 0 | BTM5: 0 | BTN5: 0 | BTO5: 0 | BTP5: 0 | BTQ5: 0 | BTR5: 0 | BTS5: 0 | BTT5: 5 | BTU5: 0 | BTV5: 0 | BTW5: 0 | BTX5: 0 | BTY5: 0 | BTZ5: 0 | BUA5: 0 | BUB5: 14 | BUC5: 0 | BUD5: 0 | BUE5: 0 | BUF5: 0 | BUG5: 0 | BUH5: 0 | BUI5: 0 | BUJ5: 0 | BUK5: 0 | BUL5: 0 | BUM5: 0 | BUN5: 0 | BUO5: 0 | BUP5: 0 | BUQ5: 0 | BUR5: 0 | BUS5: 0 | BUT5: 0 | BUU5: 0 | BUV5: 0 | BUW5: 0 | BUX5: 0 | BUY5: 0 | BUZ5: 0 | BVA5: 0 | BVB5: 0 | BVC5: 0 | BVD5: 0 | BVE5: 0 | BVF5: 0 | BVG5: 0 | BVH5: 0 | BVI5: 0 | BVJ5: 0 | BVK5: 0 | BVL5: 0 | BVM5: 0 | BVN5: 0 | BVO5: 0 | BVP5: 0 | BVQ5: 0 | BVR5: 0 | BVS5: 0 | BVT5: 0 | BVU5: 0 | BVV5: 0 | BVW5: 5 | BVX5: 0 | BVY5: 0 | BVZ5: 0 | BWA5: 0 | BWB5: 0 | BWC5: 0 | BWD5: 0 | BWE5: 0 | BWF5: 0 | BWG5: 0 | BWH5: 0 | BWI5: 0 | BWJ5: 0 | BWK5: 0 | BWL5: 0 | BWM5: 0 | BWN5: 0 | BWO5: 0 | BWP5: 7 | BWQ5: 0 | BWR5: 0 | BWS5: 0 | BWT5: 0 | BWU5: 0 | BWV5: 0 | BWW5: 0 | BWX5: 4 | BWY5: 0 | BWZ5: 0 | BXA5: 0 | BXB5: 0 | BXC5: 0 | BXD5: 0 | BXE5: 0 | BXF5: 0 | BXG5: 0 | BXH5: 0 | BXI5: 6 | BXJ5: 0 | BXK5: 0 | BXL5: 0 | BXM5: 0 | BXN5: 0 | BXO5: 0 | BXP5: 0 | BXQ5: 0 | BXR5: 0 | BXS5: 0 | BXT5: 0 | BXU5: 12 | BXV5: 0 | BXW5: 0 | BXX5: 0 | BXY5: 0 | BXZ5: 0 | BYA5: 0 | BYB5: 0 | BYC5: 3 | BYD5: 0 | BYE5: 0 | BYF5: 0 | BYG5: 0 | BYH5: 0 | BYI5: 0 | BYJ5: 0 | BYK5: 0 | BYL5: 0 | BYM5: 3 | BYN5: 0 | BYO5: 0 | BYP5: 0 | BYQ5: 0 | BYR5: 0 | BYS5: 0 | BYT5: 0 | BYU5: 16 | BYV5: 0 | BYW5: 0 | BYX5: 0 | BYY5: 3 | BYZ5: 0 | BZA5: 0 | BZB5: 0 | BZC5: 0 | BZD5: 0 | BZE5: 0 | BZF5: 0 | BZG5: 0 | BZH5: 0 | BZI5: 0 | BZJ5: 0 | BZK5: 0 | BZL5: 0 | BZM5: 0 | BZN5: 0 | BZO5: 0 | BZP5: 0 | BZQ5: 0 | BZR5: 0 | BZS5: 0 | BZT5: 0 | BZU5: 0 | BZV5: 0 | BZW5: 0 | BZX5: 0 | BZY5: 0 | BZZ5: 0 | CAA5: 0 | CAB5: 0 | CAC5: 0 | CAD5: 8 | CAE5: 6 | CAF5: 5 | CAG5: 0 | CAH5: 0 | CAI5: 0 | CAJ5: 0 | CAK5: 0 | CAL5: 0 | CAM5: 3 | CAN5: 0 | CAO5: 0 | CAP5: 0 | CAQ5: 0 | CAR5: 0 | CAS5: 0 | CAT5: 0 | CAU5: 0 | CAV5: 0 | CAW5: 0 | CAX5: 0 | CAY5: 0 | CAZ5: 7 | CBA5: 4 | CBB5: 9 | CBC5: 0 | CBD5: 3 | CBE5: 8 | CBF5: 0 | CBG5: 3 | CBH5: 0 | CBI5: 0 | CBJ5: 0 | CBK5: 0 | CBL5: 98 | CBM5: 4 | CBN5: 0 | CBO5: 0 | CBP5: 0 | CBQ5: 0 | CBR5: 0 | CBS5: 0 | CBT5: 0 | CBU5: 0 | CBV5: 0 | CBW5: 0 | CBX5: 18 | CBY5: 0 | CBZ5: 0 | CCA5: 6 | CCB5: 5 | CCC5: 0 | CCD5: 0 | CCE5: 5 | CCF5: 0 | CCG5: 0 | CCH5: 0 | CCI5: 7 | CCJ5: 0 | CCK5: 0 | CCL5: 0 | CCM5: 0 | CCN5: 0 | CCO5: 0 | CCP5: 0 | CCQ5: 0 | CCR5: 0 | CCS5: 0 | CCT5: 0 | CCU5: 0 | CCV5: 0 | CCW5: 0 | CCX5: 3 | CCY5: 0 | CCZ5: 0 | CDA5: 0 | CDB5: 0 | CDC5: 0 | CDD5: 0 | CDE5: 0 | CDF5: 0 | CDG5: 0 | CDH5: 14 | CDI5: 0 | CDJ5: 4 | CDK5: 10 | CDL5: 0 | CDM5: 0 | CDN5: 0 | CDO5: 0 | CDP5: 0 | CDQ5: 0 | CDR5: 0 | CDS5: 0 | CDT5: 0 | CDU5: 0 | CDV5: 0 | CDW5: 0 | CDX5: 0 | CDY5: 0 | CDZ5: 0 | CEA5: 0 | CEB5: 0 | CEC5: 0 | CED5: 0 | CEE5: 0 | CEF5: 0 | CEG5: 0 | CEH5: 0 | CEI5: 3 | CEJ5: 0 | CEK5: 0 | CEL5: 0 | CEM5: 0 | CEN5: 0 | CEO5: 0 | CEP5: 0 | CEQ5: 0 | CER5: 5 | CES5: 0 | CET5: 0 | CEU5: 0 | CEV5: 0 | CEW5: 0 | CEX5: 0 | CEY5: 0 | CEZ5: 0 | CFA5: 9 | CFB5: 4 | CFC5: 0 | CFD5: 3 | CFE5: 4 | CFF5: 0 | CFG5: 3 | CFH5: 0 | CFI5: 0 | CFJ5: 0 | CFK5: 3 | CFL5: 0 | CFM5: 0 | CFN5: 3 | CFO5: 0 | CFP5: 0 | CFQ5: 3 | CFR5: 0 | CFS5: 0 | CFT5: 0 | CFU5: 0 | CFV5: 0 | CFW5: 0 | CFX5: 0 | CFY5: 0 | CFZ5: 0 | CGA5: 0 | CGB5: 0 | CGC5: 0 | CGD5: 0 | CGE5: 0 | CGF5: 0 | CGG5: 0 | CGH5: 0 | CGI5: 0 | CGJ5: 0 | CGK5: 0 | CGL5: 0 | CGM5: 0 | CGN5: 0 | CGO5: 0 | CGP5: 0 | CGQ5: 0 | CGR5: 0 | CGS5: 0 | CGT5: 0 | CGU5: 0 | CGV5: 0 | CGW5: 0 | CGX5: 0 | CGY5: 0 | CGZ5: 0 | CHA5: 0 | CHB5: 0 | CHC5: 0 | CHD5: 0 | CHE5: 0 | CHF5: 0 | CHG5: 0 | CHH5: 5 | CHI5: 0 | CHJ5: 0 | CHK5: 0 | CHL5: 0 | CHM5: 0 | CHN5: 0 | CHO5: 0 | CHP5: 0 | CHQ5: 0 | CHR5: 0 | CHS5: 0 | CHT5: 0 | CHU5: 0 | CHV5: 0 | CHW5: 0 | CHX5: 0 | CHY5: 0 | CHZ5: 0 | CIA5: 0 | CIB5: 0 | CIC5: 0 | CID5: 0 | CIE5: 0 | CIF5: 0 | CIG5: 0 | CIH5: 0 | CII5: 0 | CIJ5: 0 | CIK5: 0 | CIL5: 0 | CIM5: 0 | CIN5: 0 | CIO5: 0 | CIP5: 0 | CIQ5: 0 | CIR5: 0 | CIS5: 0 | CIT5: 0 | CIU5: 0 | CIV5: 0 | CIW5: 0 | CIX5: 0 | CIY5: 0 | CIZ5: 0 | CJA5: 0 | CJB5: 0 | CJC5: 0 | CJD5: 0 | CJE5: 0 | CJF5: 0 | CJG5: 0 | CJH5: 0 | CJI5: 0 | CJJ5: 0 | CJK5: 0 | CJL5: 0 | CJM5: 6 | CJN5: 0 | CJO5: 0 | CJP5: 0 | CJQ5: 0 | CJR5: 0 | CJS5: 11 | CJT5: 7 | CJU5: 0 | CJV5: 4 | CJW5: 0 | CJX5: 0 | CJY5: 3 | CJZ5: 6 | CKA5: 0 | CKB5: 0 | CKC5: 4 | CKD5: 5 | CKE5: 3 | CKF5: 11 | CKG5: 0 | CKH5: 3 | CKI5: 0 | CKJ5: 0 | CKK5: 3 | CKL5: 0 | CKM5: 0 | CKN5: 0 | CKO5: 0 | CKP5: 0 | CKQ5: 0 | CKR5: 0 | CKS5: 0 | CKT5: 5 | CKU5: 0 | CKV5: 0 | CKW5: 0 | CKX5: 0 | CKY5: 0 | CKZ5: 0 | CLA5: 0 | CLB5: 0 | CLC5: 0 | CLD5: 0 | CLE5: 0 | CLF5: 0 | CLG5: 0 | CLH5: 0 | CLI5: 0 | CLJ5: 0 | CLK5: 0 | CLL5: 0 | CLM5: 5 | CLN5: 0 | CLO5: 0 | CLP5: 0 | CLQ5: 0 | CLR5: 0 | CLS5: 0 | CLT5: 0 | CLU5: 0 | CLV5: 0 | CLW5: 0 | CLX5: 0 | CLY5: 0 | CLZ5: 0 | CMA5: 0 | CMB5: 0 | CMC5: 0 | CMD5: 0 | CME5: 0 | CMF5: 0 | CMG5: 0 | CMH5: 0 | CMI5: 0 | CMJ5: 0 | CMK5: 0 | CML5: 0 | CMM5: 0 | CMN5: 0 | CMO5: 0 | CMP5: 0 | CMQ5: 0 | CMR5: 0 | CMS5: 0 | CMT5: 0 | CMU5: 0 | CMV5: 0 | CMW5: 0 | CMX5: 0 | CMY5: 7 | CMZ5: 0 | CNA5: 0 | CNB5: 0 | CNC5: 0 | CND5: 0 | CNE5: 0 | CNF5: 0 | CNG5: 0 | CNH5: 0 | CNI5: 0 | CNJ5: 0 | CNK5: 0 | CNL5: 4 | CNM5: 0 | CNN5: 0 | CNO5: 0 | CNP5: 0 | CNQ5: 0 | CNR5: 0 | CNS5: 0 | CNT5: 0 | CNU5: 0 | CNV5: 0 | CNW5: 0 | CNX5: 0 | CNY5: 0 | CNZ5: 0 | COA5: 0 | COB5: 0 | COC5: 0 | COD5: 0 | COE5: 0 | COF5: 0 | COG5: 0 | COH5: 0 | COI5: 0 | COJ5: 3 | COK5: 0 | COL5: 0 | COM5: 0 | CON5: 15 | COO5: 0 | COP5: 3 | COQ5: 0 | COR5: 0 | COS5: 6 | COT5: 26 | COU5: 0 | COV5: 0 | COW5: 0 | COX5: 0 | COY5: 0 | COZ5: 0 | CPA5: 0 | CPB5: 0 | CPC5: 0 | CPD5: 5 | CPE5: 0 | CPF5: 0 | CPG5: 0 | CPH5: 0 | CPI5: 0 | CPJ5: 0 | CPK5: 0 | CPL5: 0 | CPM5: 0 | CPN5: 0 | CPO5: 0 | CPP5: 0 | CPQ5: 0 | CPR5: 0 | CPS5: 0 | CPT5: 0 | CPU5: 0 | CPV5: 0 | CPW5: 0 | CPX5: 0 | CPY5: 0 | CPZ5: 0 | CQA5: 0 | CQB5: 0 | CQC5: 0 | CQD5: 0 | CQE5: 0 | CQF5: 0 | CQG5: 0 | CQH5: 0 | CQI5: 0 | CQJ5: 0 | CQK5: 0 | CQL5: 10 | CQM5: 0 | CQN5: 0 | CQO5: 0 | CQP5: 0 | CQQ5: 0 | CQR5: 0 | CQS5: 0 | CQT5: 0 | CQU5: 0 | CQV5: 0 | CQW5: 0 | CQX5: 0 | CQY5: 0 | CQZ5: 7 | CRA5: 3 | CRB5: 0 | CRC5: 0 | CRD5: 0 | CRE5: 14 | CRF5: 0 | CRG5: 0 | CRH5: 10 | CRI5: 0 | CRJ5: 0 | CRK5: 0 | CRL5: 9 | CRM5: 0 | CRN5: 0 | CRO5: 0 | CRP5: 4 | CRQ5: 0 | CRR5: 0 | CRS5: 0 | CRT5: 0 | CRU5: 0 | CRV5: 0 | CRW5: 0 | CRX5: 0 | CRY5: 0 | CRZ5: 0 | CSA5: 27 | CSB5: 0 | CSC5: 0 | CSD5: 11 | CSE5: 0 | CSF5: 4 | CSG5: 0 | CSH5: 0 | CSI5: 0 | CSJ5: 0 | CSK5: 14 | CSL5: 0 | CSM5: 0 | CSN5: 0 | CSO5: 0 | CSP5: 0 | CSQ5: 0 | CSR5: 0 | CSS5: 0 | CST5: 11 | CSU5: 0 | CSV5: 4 | CSW5: 4 | CSX5: 0 | CSY5: 0 | CSZ5: 4 | CTA5: 0 | CTB5: 0 | CTC5: 0 | CTD5: 0 | CTE5: 0 | CTF5: 0 | CTG5: 0 | CTH5: 0 | CTI5: 0 | CTJ5: 0 | CTK5: 0 | CTL5: 4 | CTM5: 0 | CTN5: 0 | CTO5: 4 | CTP5: 4 | CTQ5: 0 | CTR5: 0 | CTS5: 7 | CTT5: 0 | CTU5: 0 | CTV5: 0 | CTW5: 0 | CTX5: 0 | CTY5: 0 | CTZ5: 3 | CUA5: 0 | CUB5: 0 | CUC5: 11 | CUD5: 0 | CUE5: 0 | CUF5: 0 | CUG5: 0 | CUH5: 0 | CUI5: 0 | CUJ5: 0 | CUK5: 0 | CUL5: 0 | CUM5: 0 | CUN5: 0 | CUO5: 0 | CUP5: 0 | CUQ5: 0 | CUR5: 0 | CUS5: 3 | CUT5: 0 | CUU5: 0 | CUV5: 0 | CUW5: 0 | CUX5: 0 | CUY5: 0 | CUZ5: 0 | CVA5: 0 | CVB5: 0 | CVC5: 0 | CVD5: 0 | CVE5: 0 | CVF5: 0 | CVG5: 0 | CVH5: 0 | CVI5: 0 | CVJ5: 0 | CVK5: 0 | CVL5: 0 | CVM5: 0 | CVN5: 0 | CVO5: 0 | CVP5: 0 | CVQ5: 0 | CVR5: 0 | CVS5: 0 | CVT5: 0 | CVU5: 0 | CVV5: 6 | CVW5: 0 | CVX5: 0 | CVY5: 0 | CVZ5: 0 | CWA5: 0 | CWB5: 0 | CWC5: 0 | CWD5: 0 | CWE5: 3 | CWF5: 0 | CWG5: 0 | CWH5: 0 | CWI5: 0 | CWJ5: 44 | CWK5: 30 | CWL5: 0 | CWM5: 0 | CWN5: 0 | CWO5: 0 | CWP5: 0 | CWQ5: 0 | CWR5: 25 | CWS5: 0 | CWT5: 9 | CWU5: 12 | CWV5: 0 | CWW5: 0 | CWX5: 0 | CWY5: 0 | CWZ5: 0 | CXA5: 0 | CXB5: 0 | CXC5: 0 | CXD5: 0 | CXE5: 0 | CXF5: 0 | CXG5: 0 | CXH5: 6 | CXI5: 0 | CXJ5: 0 | CXK5: 16 | CXL5: 0 | CXM5: 3 | CXN5: 0 | CXO5: 0 | CXP5: 0 | CXQ5: 8 | CXR5: 6 | CXS5: 0 | CXT5: 11 | CXU5: 0 | CXV5: 0 | CXW5: 0 | CXX5: 0 | CXY5: 0 | CXZ5: 0 | CYA5: 0 | CYB5: 0 | CYC5: 0 | CYD5: 0 | CYE5: 0 | CYF5: 0 | CYG5: 0 | CYH5: 3 | CYI5: 0 | CYJ5: 6 | CYK5: 0 | CYL5: 0 | CYM5: 0 | CYN5: 0 | CYO5: 0 | CYP5: 0 | CYQ5: 0 | CYR5: 0 | CYS5: 0 | CYT5: 0 | CYU5: 0 | CYV5: 0 | CYW5: 0 | CYX5: 0 | CYY5: 0 | CYZ5: 15 | CZA5: 0 | CZB5: 0 | CZC5: 0 | CZD5: 0 | CZE5: 5 | CZF5: 0 | CZG5: 0 | CZH5: 0 | CZI5: 10 | CZJ5: 0 | CZK5: 0 | CZL5: 0 | CZM5: 0 | CZN5: 0 | CZO5: 0 | CZP5: 0 | CZQ5: 0 | CZR5: 0 | CZS5: 0 | CZT5: 0 | CZU5: 0 | CZV5: 0 | CZW5: 0 | CZX5: 0 | CZY5: 0 | CZZ5: 0 | DAA5: 0 | DAB5: 0 | DAC5: 3 | DAD5: 0 | DAE5: 0 | DAF5: 0 | DAG5: 0 | DAH5: 0 | DAI5: 0 | DAJ5: 0 | DAK5: 0 | DAL5: 0 | DAM5: 0 | DAN5: 0 | DAO5: 0 | DAP5: 0 | DAQ5: 5 | DAR5: 0 | DAS5: 0 | DAT5: 33 | DAU5: 0 | DAV5: 0 | DAW5: 0 | DAX5: 0 | DAY5: 3 | DAZ5: 0 | DBA5: 0 | DBB5: 0 | DBC5: 0 | DBD5: 0 | DBE5: 0 | DBF5: 0 | DBG5: 0 | DBH5: 0 | DBI5: 0 | DBJ5: 0 | DBK5: 0 | DBL5: 0 | DBM5: 0 | DBN5: 0 | DBO5: 7 | DBP5: 0 | DBQ5: 0 | DBR5: 0 | DBS5: 0 | DBT5: 0 | DBU5: 0 | DBV5: 0 | DBW5: 0 | DBX5: 0 | DBY5: 0 | DBZ5: 0 | DCA5: 0 | DCB5: 0 | DCC5: 0 | DCD5: 0 | DCE5: 14 | DCF5: 0 | DCG5: 0 | DCH5: 0 | DCI5: 0 | DCJ5: 0 | DCK5: 0 | DCL5: 0 | DCM5: 0 | DCN5: 0 | DCO5: 0 | DCP5: 0 | DCQ5: 3 | DCR5: 0 | DCS5: 0 | DCT5: 0 | DCU5: 0 | DCV5: 0 | DCW5: 0 | DCX5: 0 | DCY5: 0 | DCZ5: 0 | DDA5: 0 | DDB5: 0 | DDC5: 0 | DDD5: 0 | DDE5: 0 | DDF5: 5 | DDG5: 27 | DDH5: 0 | DDI5: 8 | DDJ5: 0 | DDK5: 0 | DDL5: 0 | DDM5: 0 | DDN5: 0 | DDO5: 4 | DDP5: 0 | DDQ5: 0 | DDR5: 0 | DDS5: 22 | DDT5: 0 | DDU5: 0 | DDV5: 0 | DDW5: 0 | DDX5: 0 | DDY5: 0 | DDZ5: 0 | DEA5: 0 | DEB5: 0 | DEC5: 0 | DED5: 0 | DEE5: 0 | DEF5: 0 | DEG5: 3 | DEH5: 0 | DEI5: 0 | DEJ5: 0 | DEK5: 0 | DEL5: 73 | DEM5: 0 | DEN5: 0 | DEO5: 0 | DEP5: 3 | DEQ5: 0 | DER5: 0 | DES5: 0 | DET5: 0 | DEU5: 0 | DEV5: 0 | DEW5: 0 | DEX5: 0 | DEY5: 0 | DEZ5: 3 | DFA5: 0 | DFB5: 0 | DFC5: 0 | DFD5: 0 | DFE5: 0 | DFF5: 4 | DFG5: 10 | DFH5: 0 | DFI5: 0 | DFJ5: 0 | DFK5: 0 | DFL5: 4 | DFM5: 0 | DFN5: 0 | DFO5: 0 | DFP5: 0 | DFQ5: 0 | DFR5: 3 | DFS5: 0 | DFT5: 31 | DFU5: 9 | DFV5: 12 | DFW5: 0 | DFX5: 0 | DFY5: 0 | DFZ5: 0 | DGA5: 5 | DGB5: 0 | DGC5: 0 | DGD5: 148 | DGE5: 0 | DGF5: 104 | DGG5: 0 | DGH5: 7 | DGI5: 0 | DGJ5: 0 | DGK5: 5 | DGL5: 0 | DGM5: 10 | DGN5: 0 | DGO5: 0 | DGP5: 0 | DGQ5: 12 | DGR5: 19 | DGS5: 0 | DGT5: 0 | DGU5: 3 | DGV5: 0 | DGW5: 39 | DGX5: 0 | DGY5: 3 | DGZ5: 0 | DHA5: 10 | DHB5: 0 | DHC5: 0 | DHD5: 0 | DHE5: 0 | DHF5: 28 | DHG5: 7 | DHH5: 0 | DHI5: 0 | DHJ5: 5 | DHK5: 0 | DHL5: 0 | DHM5: 0 | DHN5: 0 | DHO5: 0 | DHP5: 0 | DHQ5: 9 | DHR5: 4 | DHS5: 0 | DHT5: 0 | DHU5: 0 | DHV5: 0 | DHW5: 0 | DHX5: 0 | DHY5: 0 | DHZ5: 14 | DIA5: 0 | DIB5: 6 | DIC5: 0 | DID5: 19 | DIE5: 0 | DIF5: 6 | DIG5: 0 | DIH5: 4 | DII5: 0 | DIJ5: 0 | DIK5: 0 | DIL5: 0 | DIM5: 0 | DIN5: 7 | DIO5: 0 | DIP5: 27 | DIQ5: 0 | DIR5: 0 | DIS5: 0 | DIT5: 0 | DIU5: 0 | DIV5: 0 | DIW5: 0 | DIX5: 0 | DIY5: 0 | DIZ5: 0 | DJA5: 0 | DJB5: 5 | DJC5: 0 | DJD5: 0 | DJE5: 0 | DJF5: 7 | DJG5: 0 | DJH5: 4 | DJI5: 0 | DJJ5: 0 | DJK5: 0 | DJL5: 0 | DJM5: 7 | DJN5: 7 | DJO5: 0 | DJP5: 0 | DJQ5: 0 | DJR5: 0 | DJS5: 0 | DJT5: 3 | DJU5: 0 | DJV5: 0 | DJW5: 24 | DJX5: 9 | DJY5: 0 | DJZ5: 58 | DKA5: 0 | DKB5: 6 | DKC5: 0 | DKD5: 0 | DKE5: 0 | DKF5: 0 | DKG5: 7 | DKH5: 22 | DKI5: 0 | DKJ5: 9 | DKK5: 0 | DKL5: 0 | DKM5: 0 | DKN5: 0 | DKO5: 5 | DKP5: 3 | DKQ5: 0 | DKR5: 0 | DKS5: 0 | DKT5: 0 | DKU5: 0 | DKV5: 5 | DKW5: 0 | DKX5: 0
A6: =IF('Paste CCD Numbers Here'!D7>0,'Paste CCD Numbers Here'!D7,0) -> 0 | C6: Manufacturing | D6: 11 | E6: 16 | F6: 238 | G6: 24 | H6: 57 | I6: 76 | J6: 0 | K6: 55 | L6: 0 | M6: 9 | N6: 62 | O6: 3 | P6: 90 | Q6: 41 | R6: 46 | S6: 9 | T6: 10 | U6: 0 | V6: 7 | W6: 159 | X6: 14 | Y6: 345 | Z6: 11 | AA6: 15 | AB6: 1050 | AC6: 37 | AD6: 30 | AE6: 28 | AF6: 953 | AG6: 17 | AH6: 204 | AI6: 37 | AJ6: 8 | AK6: 21 | AL6: 23 | AM6: 57 | AN6: 21 | AO6: 0 | AP6: 19 | AQ6: 15 | AR6: 4 | AS6: 8 | AT6: 93 | AU6: 3 | AV6: 16 | AW6: 38 | AX6: 46 | AY6: 76 | AZ6: 9 | BA6: 19 | BB6: 4 | BC6: 77 | BD6: 3 | BE6: 0 | BF6: 31 | BG6: 12 | BH6: 19 | BI6: 24 | BJ6: 18 | BK6: 38 | BL6: 7 | BM6: 87 | BN6: 25 | BO6: 55 | BP6: 17 | BQ6: 20 | BR6: 6 | BS6: 108 | BT6: 17 | BU6: 15 | BV6: 12 | BW6: 14 | BX6: 7 | BY6: 492 | BZ6: 7 | CA6: 3 | CB6: 38 | CC6: 162 | CD6: 6 | CE6: 16 | CF6: 4 | CG6: 64 | CH6: 89 | CI6: 4 | CJ6: 0 | CK6: 29 | CL6: 4 | CM6: 14 | CN6: 60 | CO6: 0 | CP6: 50 | CQ6: 62 | CR6: 11 | CS6: 158 | CT6: 0 | CU6: 387 | CV6: 7 | CW6: 0 | CX6: 4 | CY6: 0 | CZ6: 41 | DA6: 0 | DB6: 117 | DC6: 0 | DD6: 0 | DE6: 30 | DF6: 0 | DG6: 17 | DH6: 0 | DI6: 21 | DJ6: 3 | DK6: 16 | DL6: 6 | DM6: 27 | DN6: 53 | DO6: 129 | DP6: 389 | DQ6: 15 | DR6: 0 | DS6: 9 | DT6: 13 | DU6: 12 | DV6: 0 | DW6: 0 | DX6: 14 | DY6: 6 | DZ6: 9 | EA6: 0 | EB6: 205 | EC6: 42 | ED6: 4 | EE6: 117 | EF6: 0 | EG6: 3 | EH6: 26 | EI6: 7 | EJ6: 8 | EK6: 33 | EL6: 15 | EM6: 29 | EN6: 57 | EO6: 33 | EP6: 54 | EQ6: 129 | ER6: 17 | ES6: 3 | ET6: 132 | EU6: 799 | EV6: 21 | EW6: 1317 | EX6: 19 | EY6: 13 | EZ6: 4 | FA6: 23 | FB6: 54 | FC6: 7 | FD6: 41 | FE6: 40 | FF6: 70 | FG6: 221 | FH6: 28 | FI6: 321 | FJ6: 128 | FK6: 10 | FL6: 63 | FM6: 54 | FN6: 15 | FO6: 23 | FP6: 4 | FQ6: 22 | FR6: 150 | FS6: 4 | FT6: 51 | FU6: 100 | FV6: 26 | FW6: 4 | FX6: 81 | FY6: 65 | FZ6: 25 | GA6: 4 | GB6: 37 | GC6: 4 | GD6: 13 | GE6: 27 | GF6: 18 | GG6: 20 | GH6: 3 | GI6: 0 | GJ6: 291 | GK6: 713 | GL6: 14 | GM6: 30 | GN6: 626 | GO6: 18 | GP6: 4 | GQ6: 6 | GR6: 53 | GS6: 10 | GT6: 0 | GU6: 3 | GV6: 12 | GW6: 0 | GX6: 9 | GY6: 3 | GZ6: 14 | HA6: 8 | HB6: 8 | HC6: 0 | HD6: 0 | HE6: 24 | HF6: 28 | HG6: 3 | HH6: 20 | HI6: 0 | HJ6: 24 | HK6: 10 | HL6: 9 | HM6: 9 | HN6: 31 | HO6: 4 | HP6: 8 | HQ6: 70 | HR6: 3 | HS6: 11 | HT6: 5 | HU6: 0 | HV6: 16 | HW6: 429 | HX6: 10 | HY6: 13 | HZ6: 6 | IA6: 0 | IB6: 16 | IC6: 36 | ID6: 330 | IE6: 24 | IF6: 20 | IG6: 159 | IH6: 62 | II6: 67 | IJ6: 33 | IK6: 29 | IL6: 20 | IM6: 39 | IN6: 184 | IO6: 0 | IP6: 7 | IQ6: 14 | IR6: 35 | IS6: 264 | IT6: 27 | IU6: 4 | IV6: 5 | IW6: 9 | IX6: 145 | IY6: 8 | IZ6: 109 | JA6: 4 | JB6: 267 | JC6: 5 | JD6: 72 | JE6: 325 | JF6: 68 | JG6: 164 | JH6: 10 | JI6: 0 | JJ6: 146 | JK6: 13 | JL6: 38 | JM6: 0 | JN6: 0 | JO6: 0 | JP6: 60 | JQ6: 6 | JR6: 24 | JS6: 34 | JT6: 8 | JU6: 196 | JV6: 60 | JW6: 405 | JX6: 0 | JY6: 62 | JZ6: 104 | KA6: 32 | KB6: 10 | KC6: 9 | KD6: 9 | KE6: 7 | KF6: 231 | KG6: 23 | KH6: 6 | KI6: 303 | KJ6: 20 | KK6: 46 | KL6: 59 | KM6: 19 | KN6: 7 | KO6: 10 | KP6: 9 | KQ6: 11 | KR6: 36 | KS6: 13 | KT6: 33 | KU6: 11 | KV6: 35 | KW6: 158 | KX6: 15 | KY6: 20 | KZ6: 116 | LA6: 31 | LB6: 17 | LC6: 100 | LD6: 44 | LE6: 58 | LF6: 27 | LG6: 47 | LH6: 81 | LI6: 47 | LJ6: 33 | LK6: 248 | LL6: 30 | LM6: 43 | LN6: 43 | LO6: 68 | LP6: 60 | LQ6: 0 | LR6: 14 | LS6: 254 | LT6: 72 | LU6: 64 | LV6: 15 | LW6: 21 | LX6: 0 | LY6: 30 | LZ6: 19 | MA6: 379 | MB6: 3 | MC6: 197 | MD6: 24 | ME6: 59 | MF6: 537 | MG6: 57 | MH6: 294 | MI6: 296 | MJ6: 24 | MK6: 126 | ML6: 36 | MM6: 373 | MN6: 51 | MO6: 137 | MP6: 53 | MQ6: 27 | MR6: 56 | MS6: 5 | MT6: 0 | MU6: 19 | MV6: 45 | MW6: 52 | MX6: 264 | MY6: 80 | MZ6: 9 | NA6: 20 | NB6: 29 | NC6: 259 | ND6: 31 | NE6: 316 | NF6: 157 | NG6: 50 | NH6: 208 | NI6: 3 | NJ6: 3 | NK6: 5 | NL6: 61 | NM6: 10 | NN6: 96 | NO6: 9 | NP6: 35 | NQ6: 11 | NR6: 0 | NS6: 378 | NT6: 190 | NU6: 32 | NV6: 617 | NW6: 103 | NX6: 99 | NY6: 28 | NZ6: 59 | OA6: 4 | OB6: 17 | OC6: 9 | OD6: 105 | OE6: 150 | OF6: 22 | OG6: 40 | OH6: 57 | OI6: 13 | OJ6: 84 | OK6: 4 | OL6: 169 | OM6: 4 | ON6: 23 | OO6: 48 | OP6: 165 | OQ6: 55 | OR6: 0 | OS6: 453 | OT6: 490 | OU6: 20 | OV6: 64 | OW6: 50 | OX6: 0 | OY6: 50 | OZ6: 48 | PA6: 24 | PB6: 50 | PC6: 30 | PD6: 44 | PE6: 23 | PF6: 18 | PG6: 63 | PH6: 5 | PI6: 176 | PJ6: 218 | PK6: 19 | PL6: 23 | PM6: 27 | PN6: 376 | PO6: 44 | PP6: 12 | PQ6: 92 | PR6: 0 | PS6: 8 | PT6: 46 | PU6: 16 | PV6: 115 | PW6: 49 | PX6: 16 | PY6: 24 | PZ6: 19 | QA6: 42 | QB6: 8 | QC6: 67 | QD6: 10 | QE6: 5 | QF6: 0 | QG6: 0 | QH6: 124 | QI6: 3 | QJ6: 3 | QK6: 32 | QL6: 4 | QM6: 39 | QN6: 12 | QO6: 809 | QP6: 5 | QQ6: 13 | QR6: 170 | QS6: 11 | QT6: 0 | QU6: 3 | QV6: 55 | QW6: 26 | QX6: 7 | QY6: 3 | QZ6: 0 | RA6: 6 | RB6: 119 | RC6: 24 | RD6: 4 | RE6: 3 | RF6: 58 | RG6: 8 | RH6: 110 | RI6: 25 | RJ6: 3 | RK6: 28 | RL6: 0 | RM6: 3 | RN6: 6 | RO6: 12 | RP6: 224 | RQ6: 0 | RR6: 4 | RS6: 0 | RT6: 20 | RU6: 8 | RV6: 17 | RW6: 4 | RX6: 12 | RY6: 14 | RZ6: 90 | SA6: 101 | SB6: 159 | SC6: 20 | SD6: 54 | SE6: 3 | SF6: 3 | SG6: 0 | SH6: 74 | SI6: 9 | SJ6: 29 | SK6: 27 | SL6: 4 | SM6: 7 | SN6: 13 | SO6: 106 | SP6: 50 | SQ6: 76 | SR6: 55 | SS6: 91 | ST6: 12 | SU6: 25 | SV6: 0 | SW6: 5 | SX6: 13 | SY6: 5 | SZ6: 3 | TA6: 0 | TB6: 3 | TC6: 8 | TD6: 3 | TE6: 10 | TF6: 10 | TG6: 105 | TH6: 3 | TI6: 11 | TJ6: 89 | TK6: 25 | TL6: 20 | TM6: 0 | TN6: 217 | TO6: 193 | TP6: 14 | TQ6: 151 | TR6: 41 | TS6: 40 | TT6: 10 | TU6: 34 | TV6: 28 | TW6: 64 | TX6: 14 | TY6: 7 | TZ6: 3 | UA6: 8 | UB6: 11 | UC6: 34 | UD6: 0 | UE6: 35 | UF6: 414 | UG6: 0 | UH6: 0 | UI6: 13 | UJ6: 4 | UK6: 3 | UL6: 0 | UM6: 92 | UN6: 8 | UO6: 98 | UP6: 30 | UQ6: 5 | UR6: 18 | US6: 22 | UT6: 10 | UU6: 64 | UV6: 10 | UW6: 8 | UX6: 19 | UY6: 0 | UZ6: 4 | VA6: 0 | VB6: 0 | VC6: 11 | VD6: 22 | VE6: 0 | VF6: 0 | VG6: 13 | VH6: 37 | VI6: 21 | VJ6: 0 | VK6: 11 | VL6: 11 | VM6: 36 | VN6: 3 | VO6: 3 | VP6: 127 | VQ6: 4 | VR6: 0 | VS6: 0 | VT6: 9 | VU6: 0 | VV6: 56 | VW6: 4 | VX6: 0 | VY6: 0 | VZ6: 6 | WA6: 13 | WB6: 8 | WC6: 4 | WD6: 10 | WE6: 26 | WF6: 5 | WG6: 37 | WH6: 19 | WI6: 9 | WJ6: 35 | WK6: 6 | WL6: 7 | WM6: 22 | WN6: 6 | WO6: 21 | WP6: 0 | WQ6: 3 | WR6: 17 | WS6: 0 | WT6: 76 | WU6: 16 | WV6: 11 | WW6: 11 | WX6: 11 | WY6: 0 | WZ6: 23 | XA6: 42 | XB6: 0 | XC6: 50 | XD6: 19 | XE6: 45 | XF6: 12 | XG6: 17 | XH6: 7 | XI6: 0 | XJ6: 26 | XK6: 4 | XL6: 11 | XM6: 474 | XN6: 12 | XO6: 696 | XP6: 17 | XQ6: 6 | XR6: 9 | XS6: 245 | XT6: 6 | XU6: 23 | XV6: 6 | XW6: 19 | XX6: 47 | XY6: 0 | XZ6: 46 | YA6: 176 | YB6: 93 | YC6: 9 | YD6: 1320 | YE6: 0 | YF6: 4 | YG6: 4 | YH6: 0 | YI6: 141 | YJ6: 7 | YK6: 5 | YL6: 33 | YM6: 0 | YN6: 0 | YO6: 14 | YP6: 0 | YQ6: 7 | YR6: 98 | YS6: 0 | YT6: 3 | YU6: 20 | YV6: 15 | YW6: 13 | YX6: 392 | YY6: 7 | YZ6: 118 | ZA6: 18 | ZB6: 106 | ZC6: 9 | ZD6: 6 | ZE6: 12 | ZF6: 107 | ZG6: 13 | ZH6: 43 | ZI6: 13 | ZJ6: 3 | ZK6: 10 | ZL6: 4 | ZM6: 6 | ZN6: 33 | ZO6: 16 | ZP6: 12 | ZQ6: 33 | ZR6: 5 | ZS6: 7 | ZT6: 4 | ZU6: 0 | ZV6: 4 | ZW6: 9 | ZX6: 0 | ZY6: 42 | ZZ6: 16 | AAA6: 0 | AAB6: 20 | AAC6: 70 | AAD6: 0 | AAE6: 5 | AAF6: 23 | AAG6: 38 | AAH6: 18 | AAI6: 10 | AAJ6: 5 | AAK6: 130 | AAL6: 97 | AAM6: 4 | AAN6: 37 | AAO6: 44 | AAP6: 165 | AAQ6: 16 | AAR6: 20 | AAS6: 23 | AAT6: 8 | AAU6: 21 | AAV6: 6 | AAW6: 7 | AAX6: 0 | AAY6: 33 | AAZ6: 0 | ABA6: 210 | ABB6: 34 | ABC6: 4 | ABD6: 20 | ABE6: 0 | ABF6: 0 | ABG6: 3 | ABH6: 0 | ABI6: 0 | ABJ6: 0 | ABK6: 4 | ABL6: 92 | ABM6: 41 | ABN6: 4 | ABO6: 21 | ABP6: 17 | ABQ6: 28 | ABR6: 17 | ABS6: 10 | ABT6: 46 | ABU6: 3 | ABV6: 0 | ABW6: 30 | ABX6: 6 | ABY6: 1589 | ABZ6: 141 | ACA6: 4 | ACB6: 0 | ACC6: 29 | ACD6: 0 | ACE6: 0 | ACF6: 26 | ACG6: 40 | ACH6: 0 | ACI6: 5 | ACJ6: 30 | ACK6: 12 | ACL6: 0 | ACM6: 59 | ACN6: 19 | ACO6: 58 | ACP6: 77 | ACQ6: 49 | ACR6: 10 | ACS6: 11 | ACT6: 28 | ACU6: 8 | ACV6: 0 | ACW6: 17 | ACX6: 17 | ACY6: 5 | ACZ6: 22 | ADA6: 0 | ADB6: 12 | ADC6: 8 | ADD6: 40 | ADE6: 31 | ADF6: 3 | ADG6: 20 | ADH6: 24 | ADI6: 20 | ADJ6: 5 | ADK6: 5 | ADL6: 0 | ADM6: 8 | ADN6: 8 | ADO6: 5 | ADP6: 0 | ADQ6: 129 | ADR6: 113 | ADS6: 447 | ADT6: 237 | ADU6: 3 | ADV6: 745 | ADW6: 1208 | ADX6: 318 | ADY6: 49 | ADZ6: 46 | AEA6: 221 | AEB6: 10 | AEC6: 76 | AED6: 42 | AEE6: 3 | AEF6: 174 | AEG6: 11 | AEH6: 21 | AEI6: 48 | AEJ6: 11 | AEK6: 33 | AEL6: 418 | AEM6: 69 | AEN6: 4 | AEO6: 10 | AEP6: 9 | AEQ6: 18 | AER6: 0 | AES6: 3 | AET6: 3 | AEU6: 18 | AEV6: 14 | AEW6: 193 | AEX6: 0 | AEY6: 9 | AEZ6: 7 | AFA6: 6 | AFB6: 74 | AFC6: 9 | AFD6: 7 | AFE6: 9 | AFF6: 4 | AFG6: 5 | AFH6: 22 | AFI6: 10 | AFJ6: 9 | AFK6: 66 | AFL6: 15 | AFM6: 5 | AFN6: 29 | AFO6: 32 | AFP6: 3 | AFQ6: 13 | AFR6: 5 | AFS6: 3 | AFT6: 0 | AFU6: 5 | AFV6: 0 | AFW6: 87 | AFX6: 0 | AFY6: 8 | AFZ6: 9 | AGA6: 33 | AGB6: 13 | AGC6: 4 | AGD6: 3 | AGE6: 50 | AGF6: 359 | AGG6: 120 | AGH6: 40 | AGI6: 36 | AGJ6: 29 | AGK6: 438 | AGL6: 0 | AGM6: 20 | AGN6: 26 | AGO6: 0 | AGP6: 37 | AGQ6: 73 | AGR6: 57 | AGS6: 185 | AGT6: 8 | AGU6: 56 | AGV6: 14 | AGW6: 9 | AGX6: 28 | AGY6: 53 | AGZ6: 0 | AHA6: 28 | AHB6: 65 | AHC6: 24 | AHD6: 11 | AHE6: 0 | AHF6: 10 | AHG6: 6 | AHH6: 31 | AHI6: 71 | AHJ6: 0 | AHK6: 8 | AHL6: 11 | AHM6: 11 | AHN6: 17 | AHO6: 19 | AHP6: 32 | AHQ6: 10 | AHR6: 8 | AHS6: 32 | AHT6: 89 | AHU6: 3 | AHV6: 3 | AHW6: 59 | AHX6: 183 | AHY6: 147 | AHZ6: 32 | AIA6: 16 | AIB6: 3 | AIC6: 12 | AID6: 14 | AIE6: 20 | AIF6: 16 | AIG6: 10 | AIH6: 11 | AII6: 3 | AIJ6: 21 | AIK6: 5 | AIL6: 3 | AIM6: 11 | AIN6: 16 | AIO6: 22 | AIP6: 9 | AIQ6: 0 | AIR6: 23 | AIS6: 36 | AIT6: 11 | AIU6: 17 | AIV6: 662 | AIW6: 102 | AIX6: 13 | AIY6: 6 | AIZ6: 33 | AJA6: 9 | AJB6: 9 | AJC6: 17 | AJD6: 7 | AJE6: 38 | AJF6: 5 | AJG6: 37 | AJH6: 12 | AJI6: 7 | AJJ6: 4 | AJK6: 0 | AJL6: 11 | AJM6: 30 | AJN6: 4 | AJO6: 0 | AJP6: 9 | AJQ6: 9 | AJR6: 8 | AJS6: 8 | AJT6: 0 | AJU6: 7 | AJV6: 136 | AJW6: 6 | AJX6: 3 | AJY6: 71 | AJZ6: 0 | AKA6: 16 | AKB6: 0 | AKC6: 3 | AKD6: 3 | AKE6: 7 | AKF6: 3 | AKG6: 51 | AKH6: 6 | AKI6: 8 | AKJ6: 6 | AKK6: 45 | AKL6: 5 | AKM6: 3 | AKN6: 5 | AKO6: 3 | AKP6: 4 | AKQ6: 11 | AKR6: 4 | AKS6: 15 | AKT6: 11 | AKU6: 14 | AKV6: 5 | AKW6: 4 | AKX6: 4 | AKY6: 0 | AKZ6: 108 | ALA6: 7 | ALB6: 13 | ALC6: 8 | ALD6: 24 | ALE6: 14 | ALF6: 42 | ALG6: 0 | ALH6: 0 | ALI6: 13 | ALJ6: 24 | ALK6: 4 | ALL6: 0 | ALM6: 45 | ALN6: 0 | ALO6: 8 | ALP6: 9 | ALQ6: 29 | ALR6: 0 | ALS6: 16 | ALT6: 45 | ALU6: 14 | ALV6: 4 | ALW6: 14 | ALX6: 17 | ALY6: 28 | ALZ6: 295 | AMA6: 0 | AMB6: 12 | AMC6: 0 | AMD6: 72 | AME6: 8 | AMF6: 21 | AMG6: 19 | AMH6: 3 | AMI6: 8 | AMJ6: 8 | AMK6: 26 | AML6: 8 | AMM6: 5 | AMN6: 6 | AMO6: 21 | AMP6: 7 | AMQ6: 13 | AMR6: 3 | AMS6: 4 | AMT6: 39 | AMU6: 39 | AMV6: 9 | AMW6: 8 | AMX6: 0 | AMY6: 4 | AMZ6: 36 | ANA6: 54 | ANB6: 0 | ANC6: 11 | AND6: 3 | ANE6: 5 | ANF6: 37 | ANG6: 5 | ANH6: 0 | ANI6: 79 | ANJ6: 9 | ANK6: 6 | ANL6: 88 | ANM6: 3 | ANN6: 3 | ANO6: 3 | ANP6: 15 | ANQ6: 6 | ANR6: 3 | ANS6: 9 | ANT6: 0 | ANU6: 22 | ANV6: 11 | ANW6: 10 | ANX6: 52 | ANY6: 0 | ANZ6: 7 | AOA6: 0 | AOB6: 10 | AOC6: 17 | AOD6: 3 | AOE6: 31 | AOF6: 32 | AOG6: 0 | AOH6: 14 | AOI6: 5 | AOJ6: 18 | AOK6: 5 | AOL6: 12 | AOM6: 46 | AON6: 6 | AOO6: 11 | AOP6: 3 | AOQ6: 293 | AOR6: 6 | AOS6: 10 | AOT6: 33 | AOU6: 0 | AOV6: 0 | AOW6: 0 | AOX6: 4 | AOY6: 9 | AOZ6: 11 | APA6: 8 | APB6: 3 | APC6: 0 | APD6: 14 | APE6: 5 | APF6: 315 | APG6: 16 | APH6: 0 | API6: 0 | APJ6: 9 | APK6: 7 | APL6: 0 | APM6: 112 | APN6: 10 | APO6: 3 | APP6: 3 | APQ6: 0 | APR6: 0 | APS6: 0 | APT6: 0 | APU6: 0 | APV6: 0 | APW6: 9 | APX6: 10 | APY6: 3 | APZ6: 4 | AQA6: 13 | AQB6: 100 | AQC6: 9 | AQD6: 83 | AQE6: 41 | AQF6: 0 | AQG6: 0 | AQH6: 16 | AQI6: 0 | AQJ6: 0 | AQK6: 15 | AQL6: 6 | AQM6: 15 | AQN6: 3 | AQO6: 0 | AQP6: 5 | AQQ6: 5 | AQR6: 4 | AQS6: 3 | AQT6: 8 | AQU6: 0 | AQV6: 6 | AQW6: 0 | AQX6: 10 | AQY6: 8 | AQZ6: 44 | ARA6: 15 | ARB6: 5 | ARC6: 8 | ARD6: 0 | ARE6: 3 | ARF6: 3 | ARG6: 0 | ARH6: 0 | ARI6: 19 | ARJ6: 0 | ARK6: 36 | ARL6: 15 | ARM6: 0 | ARN6: 6 | ARO6: 5 | ARP6: 0 | ARQ6: 6 | ARR6: 0 | ARS6: 4 | ART6: 15 | ARU6: 11 | ARV6: 0 | ARW6: 0 | ARX6: 0 | ARY6: 10 | ARZ6: 6 | ASA6: 10 | ASB6: 9 | ASC6: 13 | ASD6: 0 | ASE6: 0 | ASF6: 53 | ASG6: 4 | ASH6: 41 | ASI6: 420 | ASJ6: 278 | ASK6: 36 | ASL6: 8 | ASM6: 0 | ASN6: 23 | ASO6: 0 | ASP6: 7 | ASQ6: 19 | ASR6: 6 | ASS6: 10 | AST6: 4 | ASU6: 10 | ASV6: 13 | ASW6: 12 | ASX6: 9 | ASY6: 29 | ASZ6: 11 | ATA6: 9 | ATB6: 3 | ATC6: 0 | ATD6: 12 | ATE6: 15 | ATF6: 3 | ATG6: 24 | ATH6: 12 | ATI6: 0 | ATJ6: 10 | ATK6: 0 | ATL6: 36 | ATM6: 4 | ATN6: 6 | ATO6: 0 | ATP6: 5 | ATQ6: 4 | ATR6: 0 | ATS6: 0 | ATT6: 0 | ATU6: 23 | ATV6: 3 | ATW6: 7 | ATX6: 3 | ATY6: 47 | ATZ6: 7 | AUA6: 11 | AUB6: 11 | AUC6: 6 | AUD6: 0 | AUE6: 0 | AUF6: 5 | AUG6: 13 | AUH6: 10 | AUI6: 4 | AUJ6: 3 | AUK6: 30 | AUL6: 0 | AUM6: 12 | AUN6: 11 | AUO6: 22 | AUP6: 8 | AUQ6: 14 | AUR6: 9 | AUS6: 14 | AUT6: 10 | AUU6: 8 | AUV6: 29 | AUW6: 0 | AUX6: 12 | AUY6: 3 | AUZ6: 5 | AVA6: 35 | AVB6: 10 | AVC6: 0 | AVD6: 0 | AVE6: 13 | AVF6: 0 | AVG6: 28 | AVH6: 15 | AVI6: 13 | AVJ6: 3 | AVK6: 0 | AVL6: 6 | AVM6: 4 | AVN6: 0 | AVO6: 4 | AVP6: 8 | AVQ6: 9 | AVR6: 21 | AVS6: 9 | AVT6: 185 | AVU6: 3 | AVV6: 94 | AVW6: 9 | AVX6: 0 | AVY6: 23 | AVZ6: 198 | AWA6: 9 | AWB6: 0 | AWC6: 1171 | AWD6: 811 | AWE6: 1113 | AWF6: 585 | AWG6: 4 | AWH6: 428 | AWI6: 0 | AWJ6: 10 | AWK6: 6 | AWL6: 7 | AWM6: 30 | AWN6: 14 | AWO6: 23 | AWP6: 13 | AWQ6: 4 | AWR6: 3 | AWS6: 24 | AWT6: 0 | AWU6: 3 | AWV6: 5 | AWW6: 9 | AWX6: 279 | AWY6: 3 | AWZ6: 10 | AXA6: 6 | AXB6: 61 | AXC6: 10 | AXD6: 0 | AXE6: 27 | AXF6: 16 | AXG6: 4 | AXH6: 15 | AXI6: 84 | AXJ6: 197 | AXK6: 178 | AXL6: 3 | AXM6: 3 | AXN6: 389 | AXO6: 240 | AXP6: 11 | AXQ6: 4 | AXR6: 12 | AXS6: 11 | AXT6: 4 | AXU6: 22 | AXV6: 3 | AXW6: 44 | AXX6: 3 | AXY6: 0 | AXZ6: 4 | AYA6: 4 | AYB6: 6 | AYC6: 0 | AYD6: 137 | AYE6: 4 | AYF6: 25 | AYG6: 4 | AYH6: 234 | AYI6: 697 | AYJ6: 857 | AYK6: 418 | AYL6: 305 | AYM6: 165 | AYN6: 3 | AYO6: 8 | AYP6: 26 | AYQ6: 930 | AYR6: 5 | AYS6: 6 | AYT6: 28 | AYU6: 19 | AYV6: 18 | AYW6: 205 | AYX6: 11 | AYY6: 848 | AYZ6: 37 | AZA6: 30 | AZB6: 3 | AZC6: 17 | AZD6: 16 | AZE6: 3 | AZF6: 5 | AZG6: 3 | AZH6: 22 | AZI6: 7 | AZJ6: 0 | AZK6: 7 | AZL6: 16 | AZM6: 5 | AZN6: 5 | AZO6: 12 | AZP6: 9 | AZQ6: 6 | AZR6: 4 | AZS6: 3 | AZT6: 15 | AZU6: 3 | AZV6: 4 | AZW6: 134 | AZX6: 0 | AZY6: 0 | AZZ6: 109 | BAA6: 10 | BAB6: 96 | BAC6: 0 | BAD6: 0 | BAE6: 6 | BAF6: 0 | BAG6: 42 | BAH6: 0 | BAI6: 37 | BAJ6: 0 | BAK6: 0 | BAL6: 4 | BAM6: 44 | BAN6: 3 | BAO6: 3 | BAP6: 25 | BAQ6: 3 | BAR6: 37 | BAS6: 0 | BAT6: 9 | BAU6: 9 | BAV6: 3 | BAW6: 8 | BAX6: 554 | BAY6: 919 | BAZ6: 6 | BBA6: 5 | BBB6: 3 | BBC6: 4 | BBD6: 0 | BBE6: 5 | BBF6: 29 | BBG6: 3 | BBH6: 27 | BBI6: 0 | BBJ6: 11 | BBK6: 0 | BBL6: 10 | BBM6: 9 | BBN6: 0 | BBO6: 0 | BBP6: 5 | BBQ6: 8 | BBR6: 0 | BBS6: 8 | BBT6: 6 | BBU6: 6 | BBV6: 0 | BBW6: 24 | BBX6: 26 | BBY6: 13 | BBZ6: 3 | BCA6: 0 | BCB6: 9 | BCC6: 9 | BCD6: 5 | BCE6: 6 | BCF6: 0 | BCG6: 13 | BCH6: 4 | BCI6: 3 | BCJ6: 20 | BCK6: 8 | BCL6: 11 | BCM6: 4 | BCN6: 8 | BCO6: 0 | BCP6: 0 | BCQ6: 54 | BCR6: 49 | BCS6: 33 | BCT6: 6 | BCU6: 19 | BCV6: 6 | BCW6: 5 | BCX6: 0 | BCY6: 55 | BCZ6: 35 | BDA6: 4 | BDB6: 435 | BDC6: 25 | BDD6: 486 | BDE6: 336 | BDF6: 8 | BDG6: 0 | BDH6: 19 | BDI6: 3 | BDJ6: 5 | BDK6: 0 | BDL6: 13 | BDM6: 0 | BDN6: 3 | BDO6: 6 | BDP6: 0 | BDQ6: 15 | BDR6: 9 | BDS6: 9 | BDT6: 5 | BDU6: 3 | BDV6: 4 | BDW6: 15 | BDX6: 3 | BDY6: 14 | BDZ6: 8 | BEA6: 0 | BEB6: 1060 | BEC6: 6 | BED6: 28 | BEE6: 8 | BEF6: 9 | BEG6: 38 | BEH6: 9 | BEI6: 0 | BEJ6: 68 | BEK6: 8 | BEL6: 77 | BEM6: 36 | BEN6: 6 | BEO6: 13 | BEP6: 20 | BEQ6: 10 | BER6: 3 | BES6: 5 | BET6: 4 | BEU6: 3 | BEV6: 4 | BEW6: 3 | BEX6: 3 | BEY6: 29 | BEZ6: 8 | BFA6: 19 | BFB6: 16 | BFC6: 15 | BFD6: 11 | BFE6: 7 | BFF6: 7 | BFG6: 15 | BFH6: 24 | BFI6: 5 | BFJ6: 44 | BFK6: 9 | BFL6: 8 | BFM6: 3 | BFN6: 10 | BFO6: 13 | BFP6: 0 | BFQ6: 16 | BFR6: 36 | BFS6: 3 | BFT6: 11 | BFU6: 149 | BFV6: 8 | BFW6: 34 | BFX6: 7 | BFY6: 34 | BFZ6: 11 | BGA6: 11 | BGB6: 64 | BGC6: 13 | BGD6: 6 | BGE6: 0 | BGF6: 517 | BGG6: 1108 | BGH6: 7 | BGI6: 146 | BGJ6: 1063 | BGK6: 11 | BGL6: 354 | BGM6: 369 | BGN6: 9 | BGO6: 1039 | BGP6: 8 | BGQ6: 22 | BGR6: 12 | BGS6: 37 | BGT6: 14 | BGU6: 21 | BGV6: 9 | BGW6: 0 | BGX6: 65 | BGY6: 3 | BGZ6: 15 | BHA6: 0 | BHB6: 9 | BHC6: 7 | BHD6: 65 | BHE6: 14 | BHF6: 0 | BHG6: 5 | BHH6: 3 | BHI6: 3 | BHJ6: 4 | BHK6: 33 | BHL6: 1235 | BHM6: 19 | BHN6: 32 | BHO6: 11 | BHP6: 0 | BHQ6: 258 | BHR6: 3 | BHS6: 8 | BHT6: 0 | BHU6: 0 | BHV6: 8 | BHW6: 16 | BHX6: 0 | BHY6: 3 | BHZ6: 0 | BIA6: 158 | BIB6: 18 | BIC6: 3 | BID6: 11 | BIE6: 55 | BIF6: 16 | BIG6: 5 | BIH6: 29 | BII6: 5 | BIJ6: 8 | BIK6: 0 | BIL6: 0 | BIM6: 132 | BIN6: 3 | BIO6: 9 | BIP6: 27 | BIQ6: 11 | BIR6: 8 | BIS6: 30 | BIT6: 546 | BIU6: 7 | BIV6: 358 | BIW6: 524 | BIX6: 5 | BIY6: 6 | BIZ6: 0 | BJA6: 24 | BJB6: 36 | BJC6: 202 | BJD6: 2015 | BJE6: 389 | BJF6: 3 | BJG6: 14 | BJH6: 41 | BJI6: 6 | BJJ6: 33 | BJK6: 3 | BJL6: 6 | BJM6: 4 | BJN6: 16 | BJO6: 6 | BJP6: 21 | BJQ6: 13 | BJR6: 4 | BJS6: 4 | BJT6: 5 | BJU6: 15 | BJV6: 29 | BJW6: 87 | BJX6: 48 | BJY6: 6 | BJZ6: 0 | BKA6: 9 | BKB6: 5 | BKC6: 12 | BKD6: 32 | BKE6: 27 | BKF6: 21 | BKG6: 21 | BKH6: 30 | BKI6: 139 | BKJ6: 473 | BKK6: 0 | BKL6: 6 | BKM6: 24 | BKN6: 312 | BKO6: 8 | BKP6: 28 | BKQ6: 20 | BKR6: 290 | BKS6: 9 | BKT6: 8 | BKU6: 66 | BKV6: 72 | BKW6: 0 | BKX6: 0 | BKY6: 55 | BKZ6: 7 | BLA6: 0 | BLB6: 0 | BLC6: 7 | BLD6: 5 | BLE6: 4 | BLF6: 3 | BLG6: 61 | BLH6: 15 | BLI6: 0 | BLJ6: 0 | BLK6: 5 | BLL6: 3 | BLM6: 0 | BLN6: 0 | BLO6: 0 | BLP6: 0 | BLQ6: 0 | BLR6: 12 | BLS6: 15 | BLT6: 9 | BLU6: 51 | BLV6: 15 | BLW6: 98 | BLX6: 24 | BLY6: 14 | BLZ6: 8 | BMA6: 12 | BMB6: 7 | BMC6: 0 | BMD6: 4 | BME6: 3 | BMF6: 3 | BMG6: 0 | BMH6: 61 | BMI6: 0 | BMJ6: 5 | BMK6: 1284 | BML6: 0 | BMM6: 15 | BMN6: 34 | BMO6: 380 | BMP6: 999 | BMQ6: 6 | BMR6: 4 | BMS6: 0 | BMT6: 518 | BMU6: 331 | BMV6: 2172 | BMW6: 613 | BMX6: 2265 | BMY6: 1699 | BMZ6: 263 | BNA6: 678 | BNB6: 4 | BNC6: 619 | BND6: 73 | BNE6: 30 | BNF6: 29 | BNG6: 3 | BNH6: 0 | BNI6: 7 | BNJ6: 4 | BNK6: 0 | BNL6: 5 | BNM6: 0 | BNN6: 3 | BNO6: 15 | BNP6: 11 | BNQ6: 3 | BNR6: 7 | BNS6: 14 | BNT6: 398 | BNU6: 187 | BNV6: 138 | BNW6: 0 | BNX6: 174 | BNY6: 4 | BNZ6: 4 | BOA6: 4 | BOB6: 4 | BOC6: 3 | BOD6: 18 | BOE6: 0 | BOF6: 183 | BOG6: 453 | BOH6: 4 | BOI6: 3 | BOJ6: 8 | BOK6: 5 | BOL6: 0 | BOM6: 5 | BON6: 7 | BOO6: 0 | BOP6: 200 | BOQ6: 289 | BOR6: 10 | BOS6: 0 | BOT6: 41 | BOU6: 0 | BOV6: 0 | BOW6: 5 | BOX6: 511 | BOY6: 901 | BOZ6: 16 | BPA6: 8 | BPB6: 6 | BPC6: 0 | BPD6: 109 | BPE6: 71 | BPF6: 8 | BPG6: 18 | BPH6: 25 | BPI6: 605 | BPJ6: 522 | BPK6: 911 | BPL6: 397 | BPM6: 783 | BPN6: 312 | BPO6: 3 | BPP6: 4 | BPQ6: 1300 | BPR6: 4 | BPS6: 23 | BPT6: 8 | BPU6: 261 | BPV6: 410 | BPW6: 968 | BPX6: 666 | BPY6: 4 | BPZ6: 6 | BQA6: 9 | BQB6: 209 | BQC6: 143 | BQD6: 6 | BQE6: 48 | BQF6: 5 | BQG6: 3 | BQH6: 10 | BQI6: 0 | BQJ6: 767 | BQK6: 9 | BQL6: 294 | BQM6: 79 | BQN6: 24 | BQO6: 0 | BQP6: 19 | BQQ6: 9 | BQR6: 28 | BQS6: 6 | BQT6: 15 | BQU6: 7 | BQV6: 0 | BQW6: 4 | BQX6: 3 | BQY6: 38 | BQZ6: 22 | BRA6: 50 | BRB6: 5 | BRC6: 6 | BRD6: 3 | BRE6: 22 | BRF6: 26 | BRG6: 7 | BRH6: 197 | BRI6: 6 | BRJ6: 0 | BRK6: 761 | BRL6: 0 | BRM6: 5 | BRN6: 0 | BRO6: 16 | BRP6: 13 | BRQ6: 63 | BRR6: 0 | BRS6: 7 | BRT6: 0 | BRU6: 5 | BRV6: 4 | BRW6: 16 | BRX6: 76 | BRY6: 13 | BRZ6: 147 | BSA6: 0 | BSB6: 25 | BSC6: 0 | BSD6: 21 | BSE6: 85 | BSF6: 31 | BSG6: 0 | BSH6: 8 | BSI6: 4 | BSJ6: 14 | BSK6: 3 | BSL6: 3 | BSM6: 0 | BSN6: 4 | BSO6: 0 | BSP6: 8 | BSQ6: 0 | BSR6: 3 | BSS6: 7 | BST6: 0 | BSU6: 0 | BSV6: 12 | BSW6: 17 | BSX6: 4 | BSY6: 5 | BSZ6: 22 | BTA6: 13 | BTB6: 353 | BTC6: 58 | BTD6: 684 | BTE6: 74 | BTF6: 28 | BTG6: 1885 | BTH6: 9 | BTI6: 23 | BTJ6: 8 | BTK6: 4 | BTL6: 11 | BTM6: 3 | BTN6: 0 | BTO6: 45 | BTP6: 0 | BTQ6: 0 | BTR6: 0 | BTS6: 57 | BTT6: 0 | BTU6: 4 | BTV6: 0 | BTW6: 3 | BTX6: 13 | BTY6: 0 | BTZ6: 537 | BUA6: 224 | BUB6: 156 | BUC6: 15 | BUD6: 7 | BUE6: 9 | BUF6: 0 | BUG6: 0 | BUH6: 3 | BUI6: 62 | BUJ6: 0 | BUK6: 49 | BUL6: 3 | BUM6: 4 | BUN6: 4 | BUO6: 0 | BUP6: 18 | BUQ6: 3 | BUR6: 3 | BUS6: 9 | BUT6: 6 | BUU6: 14 | BUV6: 502 | BUW6: 3 | BUX6: 10 | BUY6: 3 | BUZ6: 3 | BVA6: 4 | BVB6: 0 | BVC6: 49 | BVD6: 29 | BVE6: 24 | BVF6: 16 | BVG6: 82 | BVH6: 0 | BVI6: 8 | BVJ6: 5 | BVK6: 0 | BVL6: 4 | BVM6: 22 | BVN6: 3 | BVO6: 0 | BVP6: 9 | BVQ6: 3 | BVR6: 6 | BVS6: 16 | BVT6: 0 | BVU6: 10 | BVV6: 4 | BVW6: 789 | BVX6: 0 | BVY6: 21 | BVZ6: 3 | BWA6: 4 | BWB6: 42 | BWC6: 0 | BWD6: 0 | BWE6: 98 | BWF6: 3 | BWG6: 9 | BWH6: 16 | BWI6: 84 | BWJ6: 3 | BWK6: 73 | BWL6: 102 | BWM6: 3 | BWN6: 0 | BWO6: 3 | BWP6: 217 | BWQ6: 0 | BWR6: 19 | BWS6: 3 | BWT6: 3 | BWU6: 125 | BWV6: 0 | BWW6: 4 | BWX6: 194 | BWY6: 0 | BWZ6: 3 | BXA6: 8 | BXB6: 9 | BXC6: 35 | BXD6: 0 | BXE6: 6 | BXF6: 14 | BXG6: 7 | BXH6: 26 | BXI6: 6 | BXJ6: 151 | BXK6: 6 | BXL6: 17 | BXM6: 13 | BXN6: 25 | BXO6: 4 | BXP6: 234 | BXQ6: 19 | BXR6: 16 | BXS6: 49 | BXT6: 117 | BXU6: 1146 | BXV6: 7 | BXW6: 224 | BXX6: 148 | BXY6: 6 | BXZ6: 49 | BYA6: 32 | BYB6: 0 | BYC6: 574 | BYD6: 6 | BYE6: 4 | BYF6: 3 | BYG6: 13 | BYH6: 4 | BYI6: 11 | BYJ6: 183 | BYK6: 15 | BYL6: 10 | BYM6: 69 | BYN6: 6 | BYO6: 8 | BYP6: 6 | BYQ6: 13 | BYR6: 4 | BYS6: 14 | BYT6: 85 | BYU6: 24 | BYV6: 0 | BYW6: 3 | BYX6: 40 | BYY6: 8 | BYZ6: 0 | BZA6: 8 | BZB6: 3 | BZC6: 0 | BZD6: 14 | BZE6: 5 | BZF6: 21 | BZG6: 0 | BZH6: 28 | BZI6: 15 | BZJ6: 5 | BZK6: 26 | BZL6: 64 | BZM6: 19 | BZN6: 20 | BZO6: 0 | BZP6: 65 | BZQ6: 21 | BZR6: 38 | BZS6: 15 | BZT6: 11 | BZU6: 20 | BZV6: 11 | BZW6: 62 | BZX6: 40 | BZY6: 19 | BZZ6: 0 | CAA6: 8 | CAB6: 16 | CAC6: 28 | CAD6: 8 | CAE6: 9 | CAF6: 8 | CAG6: 0 | CAH6: 3 | CAI6: 7 | CAJ6: 11 | CAK6: 24 | CAL6: 11 | CAM6: 23 | CAN6: 22 | CAO6: 24 | CAP6: 8 | CAQ6: 51 | CAR6: 13 | CAS6: 10 | CAT6: 26 | CAU6: 13 | CAV6: 5 | CAW6: 15 | CAX6: 4 | CAY6: 18 | CAZ6: 19 | CBA6: 49 | CBB6: 13 | CBC6: 0 | CBD6: 6 | CBE6: 14 | CBF6: 9 | CBG6: 0 | CBH6: 3 | CBI6: 13 | CBJ6: 26 | CBK6: 35 | CBL6: 46 | CBM6: 10 | CBN6: 7 | CBO6: 14 | CBP6: 3 | CBQ6: 5 | CBR6: 10 | CBS6: 0 | CBT6: 0 | CBU6: 0 | CBV6: 4 | CBW6: 0 | CBX6: 3 | CBY6: 7 | CBZ6: 10 | CCA6: 184 | CCB6: 430 | CCC6: 42 | CCD6: 121 | CCE6: 133 | CCF6: 21 | CCG6: 277 | CCH6: 3 | CCI6: 327 | CCJ6: 8 | CCK6: 16 | CCL6: 11 | CCM6: 262 | CCN6: 0 | CCO6: 10 | CCP6: 0 | CCQ6: 0 | CCR6: 9 | CCS6: 21 | CCT6: 6 | CCU6: 67 | CCV6: 3 | CCW6: 12 | CCX6: 25 | CCY6: 4 | CCZ6: 23 | CDA6: 0 | CDB6: 16 | CDC6: 51 | CDD6: 119 | CDE6: 6 | CDF6: 7 | CDG6: 15 | CDH6: 942 | CDI6: 4 | CDJ6: 1045 | CDK6: 352 | CDL6: 0 | CDM6: 12 | CDN6: 113 | CDO6: 6 | CDP6: 12 | CDQ6: 4 | CDR6: 3 | CDS6: 0 | CDT6: 6 | CDU6: 0 | CDV6: 9 | CDW6: 0 | CDX6: 0 | CDY6: 4 | CDZ6: 8 | CEA6: 0 | CEB6: 10 | CEC6: 25 | CED6: 10 | CEE6: 18 | CEF6: 21 | CEG6: 5 | CEH6: 6 | CEI6: 31 | CEJ6: 72 | CEK6: 0 | CEL6: 0 | CEM6: 48 | CEN6: 18 | CEO6: 19 | CEP6: 11 | CEQ6: 4 | CER6: 8 | CES6: 0 | CET6: 38 | CEU6: 10 | CEV6: 21 | CEW6: 38 | CEX6: 36 | CEY6: 5 | CEZ6: 11 | CFA6: 17 | CFB6: 5 | CFC6: 46 | CFD6: 5 | CFE6: 42 | CFF6: 61 | CFG6: 205 | CFH6: 4 | CFI6: 0 | CFJ6: 17 | CFK6: 181 | CFL6: 4 | CFM6: 37 | CFN6: 45 | CFO6: 3 | CFP6: 17 | CFQ6: 15 | CFR6: 9 | CFS6: 6 | CFT6: 3 | CFU6: 31 | CFV6: 20 | CFW6: 7 | CFX6: 3 | CFY6: 4 | CFZ6: 25 | CGA6: 29 | CGB6: 228 | CGC6: 10 | CGD6: 42 | CGE6: 6 | CGF6: 0 | CGG6: 5 | CGH6: 6 | CGI6: 7 | CGJ6: 3 | CGK6: 25 | CGL6: 12 | CGM6: 152 | CGN6: 432 | CGO6: 24 | CGP6: 21 | CGQ6: 99 | CGR6: 103 | CGS6: 6 | CGT6: 5 | CGU6: 517 | CGV6: 519 | CGW6: 408 | CGX6: 273 | CGY6: 11 | CGZ6: 5 | CHA6: 0 | CHB6: 34 | CHC6: 14 | CHD6: 3 | CHE6: 3 | CHF6: 0 | CHG6: 3 | CHH6: 170 | CHI6: 10 | CHJ6: 34 | CHK6: 12 | CHL6: 0 | CHM6: 547 | CHN6: 205 | CHO6: 0 | CHP6: 19 | CHQ6: 25 | CHR6: 149 | CHS6: 91 | CHT6: 374 | CHU6: 146 | CHV6: 12 | CHW6: 5 | CHX6: 40 | CHY6: 67 | CHZ6: 13 | CIA6: 76 | CIB6: 9 | CIC6: 0 | CID6: 5 | CIE6: 0 | CIF6: 7 | CIG6: 3 | CIH6: 11 | CII6: 6 | CIJ6: 5 | CIK6: 5 | CIL6: 23 | CIM6: 0 | CIN6: 4 | CIO6: 9 | CIP6: 49 | CIQ6: 4 | CIR6: 11 | CIS6: 25 | CIT6: 77 | CIU6: 16 | CIV6: 9 | CIW6: 66 | CIX6: 23 | CIY6: 8 | CIZ6: 96 | CJA6: 29 | CJB6: 32 | CJC6: 0 | CJD6: 128 | CJE6: 7 | CJF6: 29 | CJG6: 10 | CJH6: 0 | CJI6: 110 | CJJ6: 57 | CJK6: 11 | CJL6: 131 | CJM6: 2448 | CJN6: 4 | CJO6: 1476 | CJP6: 586 | CJQ6: 369 | CJR6: 757 | CJS6: 1028 | CJT6: 1557 | CJU6: 283 | CJV6: 105 | CJW6: 810 | CJX6: 9 | CJY6: 327 | CJZ6: 1002 | CKA6: 284 | CKB6: 340 | CKC6: 1283 | CKD6: 933 | CKE6: 640 | CKF6: 356 | CKG6: 573 | CKH6: 443 | CKI6: 479 | CKJ6: 528 | CKK6: 465 | CKL6: 62 | CKM6: 48 | CKN6: 370 | CKO6: 611 | CKP6: 0 | CKQ6: 0 | CKR6: 3 | CKS6: 3 | CKT6: 412 | CKU6: 9 | CKV6: 253 | CKW6: 327 | CKX6: 113 | CKY6: 9 | CKZ6: 15 | CLA6: 471 | CLB6: 15 | CLC6: 8 | CLD6: 811 | CLE6: 0 | CLF6: 5 | CLG6: 11 | CLH6: 0 | CLI6: 0 | CLJ6: 3 | CLK6: 4 | CLL6: 0 | CLM6: 51 | CLN6: 12 | CLO6: 11 | CLP6: 0 | CLQ6: 22 | CLR6: 0 | CLS6: 0 | CLT6: 253 | CLU6: 4 | CLV6: 10 | CLW6: 4 | CLX6: 8 | CLY6: 11 | CLZ6: 5 | CMA6: 5 | CMB6: 0 | CMC6: 0 | CMD6: 4 | CME6: 61 | CMF6: 9 | CMG6: 8 | CMH6: 3 | CMI6: 3 | CMJ6: 0 | CMK6: 23 | CML6: 105 | CMM6: 4 | CMN6: 10 | CMO6: 4 | CMP6: 5 | CMQ6: 0 | CMR6: 14 | CMS6: 8 | CMT6: 9 | CMU6: 7 | CMV6: 0 | CMW6: 3 | CMX6: 35 | CMY6: 835 | CMZ6: 19 | CNA6: 358 | CNB6: 5 | CNC6: 10 | CND6: 4 | CNE6: 197 | CNF6: 8 | CNG6: 17 | CNH6: 20 | CNI6: 387 | CNJ6: 23 | CNK6: 3 | CNL6: 890 | CNM6: 25 | CNN6: 1940 | CNO6: 4 | CNP6: 14 | CNQ6: 0 | CNR6: 0 | CNS6: 22 | CNT6: 81 | CNU6: 120 | CNV6: 19 | CNW6: 9 | CNX6: 207 | CNY6: 5 | CNZ6: 65 | COA6: 75 | COB6: 508 | COC6: 0 | COD6: 4 | COE6: 12 | COF6: 8 | COG6: 4 | COH6: 5 | COI6: 8 | COJ6: 23 | COK6: 0 | COL6: 4 | COM6: 37 | CON6: 253 | COO6: 75 | COP6: 26 | COQ6: 6 | COR6: 237 | COS6: 54 | COT6: 635 | COU6: 44 | COV6: 39 | COW6: 3 | COX6: 5 | COY6: 0 | COZ6: 8 | CPA6: 5 | CPB6: 13 | CPC6: 70 | CPD6: 2298 | CPE6: 0 | CPF6: 3 | CPG6: 237 | CPH6: 21 | CPI6: 33 | CPJ6: 15 | CPK6: 12 | CPL6: 3 | CPM6: 10 | CPN6: 8 | CPO6: 17 | CPP6: 4 | CPQ6: 4 | CPR6: 0 | CPS6: 14 | CPT6: 0 | CPU6: 3 | CPV6: 10 | CPW6: 9 | CPX6: 0 | CPY6: 12 | CPZ6: 11 | CQA6: 18 | CQB6: 10 | CQC6: 0 | CQD6: 5 | CQE6: 5 | CQF6: 0 | CQG6: 6 | CQH6: 7 | CQI6: 77 | CQJ6: 4 | CQK6: 3 | CQL6: 381 | CQM6: 9 | CQN6: 0 | CQO6: 0 | CQP6: 42 | CQQ6: 11 | CQR6: 5 | CQS6: 7 | CQT6: 23 | CQU6: 373 | CQV6: 3 | CQW6: 28 | CQX6: 42 | CQY6: 13 | CQZ6: 203 | CRA6: 533 | CRB6: 14 | CRC6: 991 | CRD6: 206 | CRE6: 68 | CRF6: 25 | CRG6: 16 | CRH6: 325 | CRI6: 18 | CRJ6: 3 | CRK6: 14 | CRL6: 718 | CRM6: 8 | CRN6: 7 | CRO6: 3 | CRP6: 4 | CRQ6: 32 | CRR6: 4 | CRS6: 3 | CRT6: 9 | CRU6: 6 | CRV6: 10 | CRW6: 8 | CRX6: 8 | CRY6: 0 | CRZ6: 15 | CSA6: 217 | CSB6: 9 | CSC6: 23 | CSD6: 720 | CSE6: 775 | CSF6: 821 | CSG6: 173 | CSH6: 17 | CSI6: 371 | CSJ6: 98 | CSK6: 548 | CSL6: 25 | CSM6: 4 | CSN6: 28 | CSO6: 3 | CSP6: 14 | CSQ6: 8 | CSR6: 11 | CSS6: 7 | CST6: 133 | CSU6: 239 | CSV6: 180 | CSW6: 400 | CSX6: 72 | CSY6: 7 | CSZ6: 164 | CTA6: 23 | CTB6: 6 | CTC6: 38 | CTD6: 12 | CTE6: 13 | CTF6: 30 | CTG6: 7 | CTH6: 16 | CTI6: 4 | CTJ6: 164 | CTK6: 0 | CTL6: 7 | CTM6: 39 | CTN6: 25 | CTO6: 367 | CTP6: 0 | CTQ6: 28 | CTR6: 4 | CTS6: 160 | CTT6: 46 | CTU6: 41 | CTV6: 14 | CTW6: 4 | CTX6: 8 | CTY6: 3 | CTZ6: 31 | CUA6: 63 | CUB6: 110 | CUC6: 17 | CUD6: 90 | CUE6: 26 | CUF6: 84 | CUG6: 291 | CUH6: 7 | CUI6: 83 | CUJ6: 11 | CUK6: 36 | CUL6: 8 | CUM6: 0 | CUN6: 3 | CUO6: 0 | CUP6: 0 | CUQ6: 0 | CUR6: 26 | CUS6: 13 | CUT6: 0 | CUU6: 6 | CUV6: 0 | CUW6: 0 | CUX6: 4 | CUY6: 35 | CUZ6: 111 | CVA6: 0 | CVB6: 0 | CVC6: 0 | CVD6: 23 | CVE6: 6 | CVF6: 25 | CVG6: 0 | CVH6: 61 | CVI6: 8 | CVJ6: 3 | CVK6: 5 | CVL6: 5 | CVM6: 11 | CVN6: 142 | CVO6: 388 | CVP6: 111 | CVQ6: 11 | CVR6: 86 | CVS6: 59 | CVT6: 10 | CVU6: 7 | CVV6: 437 | CVW6: 4 | CVX6: 54 | CVY6: 27 | CVZ6: 15 | CWA6: 19 | CWB6: 4 | CWC6: 0 | CWD6: 0 | CWE6: 23 | CWF6: 0 | CWG6: 425 | CWH6: 4 | CWI6: 25 | CWJ6: 60 | CWK6: 125 | CWL6: 95 | CWM6: 4 | CWN6: 7 | CWO6: 5 | CWP6: 3 | CWQ6: 50 | CWR6: 119 | CWS6: 5 | CWT6: 14 | CWU6: 258 | CWV6: 9 | CWW6: 347 | CWX6: 23 | CWY6: 13 | CWZ6: 7 | CXA6: 0 | CXB6: 49 | CXC6: 33 | CXD6: 4 | CXE6: 0 | CXF6: 12 | CXG6: 17 | CXH6: 203 | CXI6: 0 | CXJ6: 7 | CXK6: 0 | CXL6: 11 | CXM6: 0 | CXN6: 8 | CXO6: 8 | CXP6: 4 | CXQ6: 6 | CXR6: 16 | CXS6: 0 | CXT6: 154 | CXU6: 0 | CXV6: 0 | CXW6: 21 | CXX6: 22 | CXY6: 22 | CXZ6: 0 | CYA6: 4 | CYB6: 4 | CYC6: 3 | CYD6: 5 | CYE6: 8 | CYF6: 3 | CYG6: 4 | CYH6: 5 | CYI6: 37 | CYJ6: 365 | CYK6: 264 | CYL6: 4 | CYM6: 13 | CYN6: 0 | CYO6: 3 | CYP6: 43 | CYQ6: 4 | CYR6: 0 | CYS6: 11 | CYT6: 0 | CYU6: 0 | CYV6: 0 | CYW6: 30 | CYX6: 47 | CYY6: 96 | CYZ6: 96 | CZA6: 139 | CZB6: 59 | CZC6: 252 | CZD6: 144 | CZE6: 162 | CZF6: 396 | CZG6: 455 | CZH6: 359 | CZI6: 491 | CZJ6: 353 | CZK6: 521 | CZL6: 14 | CZM6: 0 | CZN6: 20 | CZO6: 0 | CZP6: 3 | CZQ6: 12 | CZR6: 0 | CZS6: 0 | CZT6: 10 | CZU6: 8 | CZV6: 153 | CZW6: 5 | CZX6: 18 | CZY6: 11 | CZZ6: 5 | DAA6: 0 | DAB6: 27 | DAC6: 24 | DAD6: 21 | DAE6: 0 | DAF6: 14 | DAG6: 39 | DAH6: 19 | DAI6: 0 | DAJ6: 0 | DAK6: 12 | DAL6: 0 | DAM6: 5 | DAN6: 0 | DAO6: 5 | DAP6: 10 | DAQ6: 4 | DAR6: 4 | DAS6: 3 | DAT6: 36 | DAU6: 5 | DAV6: 0 | DAW6: 0 | DAX6: 10 | DAY6: 90 | DAZ6: 5 | DBA6: 29 | DBB6: 3 | DBC6: 7 | DBD6: 7 | DBE6: 5 | DBF6: 0 | DBG6: 0 | DBH6: 9 | DBI6: 0 | DBJ6: 5 | DBK6: 9 | DBL6: 8 | DBM6: 6 | DBN6: 5 | DBO6: 120 | DBP6: 242 | DBQ6: 646 | DBR6: 519 | DBS6: 0 | DBT6: 3 | DBU6: 8 | DBV6: 5 | DBW6: 0 | DBX6: 4 | DBY6: 0 | DBZ6: 19 | DCA6: 19 | DCB6: 3 | DCC6: 29 | DCD6: 31 | DCE6: 2331 | DCF6: 24 | DCG6: 26 | DCH6: 3 | DCI6: 4 | DCJ6: 0 | DCK6: 3 | DCL6: 0 | DCM6: 0 | DCN6: 9 | DCO6: 33 | DCP6: 0 | DCQ6: 5 | DCR6: 3 | DCS6: 87 | DCT6: 6 | DCU6: 4 | DCV6: 0 | DCW6: 41 | DCX6: 9 | DCY6: 11 | DCZ6: 21 | DDA6: 21 | DDB6: 5 | DDC6: 4 | DDD6: 9 | DDE6: 0 | DDF6: 46 | DDG6: 90 | DDH6: 59 | DDI6: 339 | DDJ6: 142 | DDK6: 14 | DDL6: 294 | DDM6: 21 | DDN6: 24 | DDO6: 29 | DDP6: 0 | DDQ6: 16 | DDR6: 61 | DDS6: 137 | DDT6: 92 | DDU6: 40 | DDV6: 10 | DDW6: 4 | DDX6: 15 | DDY6: 10 | DDZ6: 12 | DEA6: 58 | DEB6: 0 | DEC6: 35 | DED6: 26 | DEE6: 4 | DEF6: 19 | DEG6: 11 | DEH6: 56 | DEI6: 118 | DEJ6: 63 | DEK6: 36 | DEL6: 50 | DEM6: 806 | DEN6: 36 | DEO6: 15 | DEP6: 24 | DEQ6: 7 | DER6: 14 | DES6: 13 | DET6: 16 | DEU6: 12 | DEV6: 14 | DEW6: 37 | DEX6: 45 | DEY6: 30 | DEZ6: 65 | DFA6: 29 | DFB6: 52 | DFC6: 113 | DFD6: 13 | DFE6: 44 | DFF6: 106 | DFG6: 18 | DFH6: 53 | DFI6: 1015 | DFJ6: 33 | DFK6: 44 | DFL6: 193 | DFM6: 8 | DFN6: 49 | DFO6: 9 | DFP6: 7 | DFQ6: 96 | DFR6: 150 | DFS6: 403 | DFT6: 47 | DFU6: 316 | DFV6: 22 | DFW6: 31 | DFX6: 3 | DFY6: 9 | DFZ6: 15 | DGA6: 129 | DGB6: 33 | DGC6: 67 | DGD6: 56 | DGE6: 6 | DGF6: 433 | DGG6: 3 | DGH6: 8 | DGI6: 0 | DGJ6: 0 | DGK6: 42 | DGL6: 32 | DGM6: 261 | DGN6: 86 | DGO6: 45 | DGP6: 7 | DGQ6: 7 | DGR6: 123 | DGS6: 23 | DGT6: 169 | DGU6: 24 | DGV6: 20 | DGW6: 457 | DGX6: 0 | DGY6: 66 | DGZ6: 10 | DHA6: 36 | DHB6: 11 | DHC6: 27 | DHD6: 28 | DHE6: 6 | DHF6: 46 | DHG6: 57 | DHH6: 14 | DHI6: 94 | DHJ6: 35 | DHK6: 18 | DHL6: 22 | DHM6: 20 | DHN6: 157 | DHO6: 148 | DHP6: 241 | DHQ6: 162 | DHR6: 753 | DHS6: 78 | DHT6: 143 | DHU6: 25 | DHV6: 266 | DHW6: 44 | DHX6: 17 | DHY6: 82 | DHZ6: 335 | DIA6: 16 | DIB6: 415 | DIC6: 134 | DID6: 43 | DIE6: 90 | DIF6: 462 | DIG6: 49 | DIH6: 112 | DII6: 77 | DIJ6: 5 | DIK6: 632 | DIL6: 32 | DIM6: 648 | DIN6: 49 | DIO6: 47 | DIP6: 218 | DIQ6: 654 | DIR6: 52 | DIS6: 23 | DIT6: 61 | DIU6: 3 | DIV6: 21 | DIW6: 40 | DIX6: 3 | DIY6: 88 | DIZ6: 155 | DJA6: 11 | DJB6: 95 | DJC6: 9 | DJD6: 7 | DJE6: 8 | DJF6: 6 | DJG6: 180 | DJH6: 190 | DJI6: 396 | DJJ6: 149 | DJK6: 148 | DJL6: 7 | DJM6: 3 | DJN6: 29 | DJO6: 20 | DJP6: 56 | DJQ6: 0 | DJR6: 9 | DJS6: 266 | DJT6: 42 | DJU6: 977 | DJV6: 189 | DJW6: 123 | DJX6: 74 | DJY6: 28 | DJZ6: 145 | DKA6: 248 | DKB6: 28 | DKC6: 35 | DKD6: 16 | DKE6: 5 | DKF6: 16 | DKG6: 21 | DKH6: 41 | DKI6: 85 | DKJ6: 16 | DKK6: 153 | DKL6: 71 | DKM6: 14 | DKN6: 13 | DKO6: 33 | DKP6: 13 | DKQ6: 641 | DKR6: 14 | DKS6: 9 | DKT6: 15 | DKU6: 89 | DKV6: 681 | DKW6: 0 | DKX6: 4
A7: =IF('Paste CCD Numbers Here'!D8>0,'Paste CCD Numbers Here'!D8,0) -> 0 | C7: Electricity, Gas, Water and Waste Services | D7: 0 | E7: 0 | F7: 3 | G7: 0 | H7: 6 | I7: 6 | J7: 0 | K7: 0 | L7: 0 | M7: 0 | N7: 3 | O7: 0 | P7: 0 | Q7: 8 | R7: 4 | S7: 0 | T7: 3 | U7: 0 | V7: 0 | W7: 10 | X7: 0 | Y7: 22 | Z7: 0 | AA7: 5 | AB7: 198 | AC7: 0 | AD7: 0 | AE7: 0 | AF7: 9 | AG7: 13 | AH7: 179 | AI7: 0 | AJ7: 0 | AK7: 0 | AL7: 8 | AM7: 0 | AN7: 5 | AO7: 0 | AP7: 0 | AQ7: 0 | AR7: 13 | AS7: 0 | AT7: 0 | AU7: 0 | AV7: 0 | AW7: 0 | AX7: 0 | AY7: 0 | AZ7: 4 | BA7: 0 | BB7: 0 | BC7: 10 | BD7: 12 | BE7: 0 | BF7: 11 | BG7: 0 | BH7: 0 | BI7: 0 | BJ7: 0 | BK7: 0 | BL7: 0 | BM7: 0 | BN7: 6 | BO7: 6 | BP7: 15 | BQ7: 0 | BR7: 4 | BS7: 8 | BT7: 0 | BU7: 12 | BV7: 4 | BW7: 21 | BX7: 4 | BY7: 10 | BZ7: 28 | CA7: 0 | CB7: 10 | CC7: 6 | CD7: 0 | CE7: 6 | CF7: 0 | CG7: 0 | CH7: 0 | CI7: 0 | CJ7: 0 | CK7: 0 | CL7: 0 | CM7: 0 | CN7: 7 | CO7: 0 | CP7: 0 | CQ7: 11 | CR7: 182 | CS7: 30 | CT7: 0 | CU7: 0 | CV7: 3 | CW7: 0 | CX7: 0 | CY7: 0 | CZ7: 0 | DA7: 0 | DB7: 23 | DC7: 0 | DD7: 5 | DE7: 0 | DF7: 0 | DG7: 3 | DH7: 0 | DI7: 0 | DJ7: 0 | DK7: 0 | DL7: 0 | DM7: 0 | DN7: 0 | DO7: 33 | DP7: 35 | DQ7: 0 | DR7: 0 | DS7: 0 | DT7: 0 | DU7: 0 | DV7: 0 | DW7: 0 | DX7: 0 | DY7: 0 | DZ7: 0 | EA7: 0 | EB7: 12 | EC7: 0 | ED7: 3 | EE7: 18 | EF7: 0 | EG7: 0 | EH7: 0 | EI7: 3 | EJ7: 14 | EK7: 11 | EL7: 8 | EM7: 0 | EN7: 3 | EO7: 3 | EP7: 0 | EQ7: 0 | ER7: 0 | ES7: 3 | ET7: 220 | EU7: 3 | EV7: 7 | EW7: 11 | EX7: 0 | EY7: 0 | EZ7: 4 | FA7: 0 | FB7: 3 | FC7: 0 | FD7: 0 | FE7: 0 | FF7: 0 | FG7: 48 | FH7: 0 | FI7: 7 | FJ7: 0 | FK7: 3 | FL7: 4 | FM7: 10 | FN7: 0 | FO7: 0 | FP7: 0 | FQ7: 9 | FR7: 3 | FS7: 0 | FT7: 5 | FU7: 0 | FV7: 0 | FW7: 0 | FX7: 8 | FY7: 6 | FZ7: 5 | GA7: 4 | GB7: 3 | GC7: 0 | GD7: 0 | GE7: 3 | GF7: 0 | GG7: 0 | GH7: 0 | GI7: 0 | GJ7: 59 | GK7: 41 | GL7: 0 | GM7: 9 | GN7: 24 | GO7: 0 | GP7: 0 | GQ7: 0 | GR7: 0 | GS7: 296 | GT7: 0 | GU7: 0 | GV7: 195 | GW7: 3 | GX7: 0 | GY7: 0 | GZ7: 0 | HA7: 4 | HB7: 0 | HC7: 0 | HD7: 3 | HE7: 0 | HF7: 0 | HG7: 0 | HH7: 3 | HI7: 0 | HJ7: 0 | HK7: 0 | HL7: 0 | HM7: 11 | HN7: 0 | HO7: 0 | HP7: 0 | HQ7: 9 | HR7: 0 | HS7: 0 | HT7: 0 | HU7: 0 | HV7: 4 | HW7: 0 | HX7: 0 | HY7: 4 | HZ7: 0 | IA7: 4 | IB7: 0 | IC7: 0 | ID7: 13 | IE7: 3 | IF7: 0 | IG7: 0 | IH7: 0 | II7: 0 | IJ7: 4 | IK7: 0 | IL7: 4 | IM7: 0 | IN7: 81 | IO7: 0 | IP7: 0 | IQ7: 0 | IR7: 0 | IS7: 46 | IT7: 0 | IU7: 0 | IV7: 0 | IW7: 3 | IX7: 4 | IY7: 0 | IZ7: 0 | JA7: 0 | JB7: 7 | JC7: 0 | JD7: 19 | JE7: 25 | JF7: 211 | JG7: 55 | JH7: 0 | JI7: 0 | JJ7: 10 | JK7: 0 | JL7: 0 | JM7: 0 | JN7: 0 | JO7: 0 | JP7: 11 | JQ7: 0 | JR7: 0 | JS7: 0 | JT7: 0 | JU7: 39 | JV7: 3 | JW7: 74 | JX7: 4 | JY7: 0 | JZ7: 21 | KA7: 0 | KB7: 0 | KC7: 0 | KD7: 0 | KE7: 0 | KF7: 6 | KG7: 13 | KH7: 0 | KI7: 8 | KJ7: 0 | KK7: 6 | KL7: 3 | KM7: 5 | KN7: 0 | KO7: 3 | KP7: 0 | KQ7: 4 | KR7: 0 | KS7: 0 | KT7: 0 | KU7: 4 | KV7: 0 | KW7: 16 | KX7: 0 | KY7: 3 | KZ7: 0 | LA7: 0 | LB7: 25 | LC7: 4 | LD7: 5 | LE7: 0 | LF7: 4 | LG7: 4 | LH7: 19 | LI7: 4 | LJ7: 8 | LK7: 4 | LL7: 5 | LM7: 7 | LN7: 0 | LO7: 14 | LP7: 12 | LQ7: 3 | LR7: 0 | LS7: 8 | LT7: 53 | LU7: 0 | LV7: 3 | LW7: 0 | LX7: 0 | LY7: 6 | LZ7: 0 | MA7: 0 | MB7: 0 | MC7: 49 | MD7: 3 | ME7: 4 | MF7: 7 | MG7: 0 | MH7: 28 | MI7: 15 | MJ7: 3 | MK7: 0 | ML7: 0 | MM7: 0 | MN7: 0 | MO7: 9 | MP7: 0 | MQ7: 73 | MR7: 14 | MS7: 6 | MT7: 0 | MU7: 0 | MV7: 0 | MW7: 11 | MX7: 0 | MY7: 0 | MZ7: 5 | NA7: 3 | NB7: 14 | NC7: 3 | ND7: 0 | NE7: 0 | NF7: 0 | NG7: 6 | NH7: 5 | NI7: 0 | NJ7: 3 | NK7: 0 | NL7: 5 | NM7: 0 | NN7: 7 | NO7: 0 | NP7: 10 | NQ7: 3 | NR7: 0 | NS7: 26 | NT7: 0 | NU7: 0 | NV7: 46 | NW7: 10 | NX7: 8 | NY7: 7 | NZ7: 0 | OA7: 0 | OB7: 8 | OC7: 0 | OD7: 4 | OE7: 7 | OF7: 4 | OG7: 9 | OH7: 7 | OI7: 0 | OJ7: 5 | OK7: 0 | OL7: 4 | OM7: 0 | ON7: 12 | OO7: 23 | OP7: 11 | OQ7: 0 | OR7: 0 | OS7: 133 | OT7: 22 | OU7: 6 | OV7: 0 | OW7: 3 | OX7: 0 | OY7: 20 | OZ7: 3 | PA7: 6 | PB7: 3 | PC7: 10 | PD7: 11 | PE7: 0 | PF7: 87 | PG7: 15 | PH7: 0 | PI7: 11 | PJ7: 0 | PK7: 3 | PL7: 3 | PM7: 0 | PN7: 58 | PO7: 9 | PP7: 73 | PQ7: 11 | PR7: 0 | PS7: 4 | PT7: 8 | PU7: 33 | PV7: 53 | PW7: 0 | PX7: 47 | PY7: 9 | PZ7: 5 | QA7: 0 | QB7: 9 | QC7: 79 | QD7: 1061 | QE7: 0 | QF7: 0 | QG7: 6 | QH7: 0 | QI7: 0 | QJ7: 4 | QK7: 0 | QL7: 216 | QM7: 3 | QN7: 149 | QO7: 48 | QP7: 122 | QQ7: 5 | QR7: 131 | QS7: 3 | QT7: 4 | QU7: 0 | QV7: 20 | QW7: 4 | QX7: 0 | QY7: 0 | QZ7: 0 | RA7: 0 | RB7: 16 | RC7: 10 | RD7: 4 | RE7: 78 | RF7: 6 | RG7: 5 | RH7: 81 | RI7: 3 | RJ7: 0 | RK7: 0 | RL7: 0 | RM7: 0 | RN7: 0 | RO7: 0 | RP7: 3 | RQ7: 3 | RR7: 258 | RS7: 0 | RT7: 0 | RU7: 17 | RV7: 28 | RW7: 0 | RX7: 0 | RY7: 0 | RZ7: 5 | SA7: 88 | SB7: 5 | SC7: 11 | SD7: 0 | SE7: 0 | SF7: 5 | SG7: 0 | SH7: 42 | SI7: 0 | SJ7: 0 | SK7: 0 | SL7: 0 | SM7: 0 | SN7: 0 | SO7: 45 | SP7: 4 | SQ7: 9 | SR7: 0 | SS7: 0 | ST7: 34 | SU7: 0 | SV7: 0 | SW7: 0 | SX7: 0 | SY7: 0 | SZ7: 0 | TA7: 0 | TB7: 0 | TC7: 0 | TD7: 0 | TE7: 0 | TF7: 0 | TG7: 13 | TH7: 0 | TI7: 0 | TJ7: 0 | TK7: 5 | TL7: 3 | TM7: 0 | TN7: 14 | TO7: 4 | TP7: 0 | TQ7: 3 | TR7: 0 | TS7: 5 | TT7: 0 | TU7: 0 | TV7: 5 | TW7: 0 | TX7: 0 | TY7: 0 | TZ7: 0 | UA7: 6 | UB7: 0 | UC7: 0 | UD7: 0 | UE7: 0 | UF7: 38 | UG7: 0 | UH7: 0 | UI7: 8 | UJ7: 0 | UK7: 0 | UL7: 0 | UM7: 0 | UN7: 0 | UO7: 0 | UP7: 4 | UQ7: 0 | UR7: 0 | US7: 4 | UT7: 0 | UU7: 4 | UV7: 8 | UW7: 0 | UX7: 0 | UY7: 0 | UZ7: 0 | VA7: 0 | VB7: 0 | VC7: 0 | VD7: 0 | VE7: 0 | VF7: 0 | VG7: 7 | VH7: 0 | VI7: 0 | VJ7: 0 | VK7: 0 | VL7: 0 | VM7: 0 | VN7: 0 | VO7: 0 | VP7: 0 | VQ7: 0 | VR7: 0 | VS7: 4 | VT7: 0 | VU7: 0 | VV7: 4 | VW7: 0 | VX7: 0 | VY7: 0 | VZ7: 0 | WA7: 0 | WB7: 0 | WC7: 0 | WD7: 0 | WE7: 11 | WF7: 0 | WG7: 0 | WH7: 0 | WI7: 0 | WJ7: 3 | WK7: 0 | WL7: 0 | WM7: 9 | WN7: 4 | WO7: 0 | WP7: 0 | WQ7: 0 | WR7: 0 | WS7: 5 | WT7: 0 | WU7: 0 | WV7: 0 | WW7: 5 | WX7: 0 | WY7: 0 | WZ7: 0 | XA7: 0 | XB7: 0 | XC7: 24 | XD7: 6 | XE7: 0 | XF7: 1617 | XG7: 23 | XH7: 0 | XI7: 0 | XJ7: 4 | XK7: 812 | XL7: 23 | XM7: 118 | XN7: 0 | XO7: 1267 | XP7: 7 | XQ7: 0 | XR7: 0 | XS7: 17 | XT7: 0 | XU7: 4 | XV7: 0 | XW7: 0 | XX7: 5 | XY7: 5 | XZ7: 3 | YA7: 35 | YB7: 0 | YC7: 0 | YD7: 0 | YE7: 0 | YF7: 0 | YG7: 0 | YH7: 0 | YI7: 0 | YJ7: 0 | YK7: 0 | YL7: 170 | YM7: 0 | YN7: 0 | YO7: 3 | YP7: 0 | YQ7: 0 | YR7: 63 | YS7: 0 | YT7: 10 | YU7: 23 | YV7: 9 | YW7: 0 | YX7: 17 | YY7: 5 | YZ7: 48 | ZA7: 3 | ZB7: 0 | ZC7: 0 | ZD7: 4 | ZE7: 0 | ZF7: 18 | ZG7: 25 | ZH7: 3 | ZI7: 3 | ZJ7: 0 | ZK7: 19 | ZL7: 5 | ZM7: 4 | ZN7: 14 | ZO7: 4 | ZP7: 0 | ZQ7: 0 | ZR7: 1294 | ZS7: 58 | ZT7: 4 | ZU7: 3 | ZV7: 3 | ZW7: 0 | ZX7: 0 | ZY7: 34 | ZZ7: 0 | AAA7: 0 | AAB7: 0 | AAC7: 6 | AAD7: 0 | AAE7: 0 | AAF7: 56 | AAG7: 86 | AAH7: 866 | AAI7: 20 | AAJ7: 167 | AAK7: 218 | AAL7: 57 | AAM7: 10 | AAN7: 45 | AAO7: 14 | AAP7: 52 | AAQ7: 661 | AAR7: 44 | AAS7: 21 | AAT7: 20 | AAU7: 63 | AAV7: 5 | AAW7: 5 | AAX7: 3 | AAY7: 0 | AAZ7: 0 | ABA7: 16 | ABB7: 20 | ABC7: 0 | ABD7: 0 | ABE7: 0 | ABF7: 4 | ABG7: 0 | ABH7: 0 | ABI7: 0 | ABJ7: 8 | ABK7: 0 | ABL7: 6 | ABM7: 155 | ABN7: 0 | ABO7: 3 | ABP7: 0 | ABQ7: 3 | ABR7: 3 | ABS7: 11 | ABT7: 9 | ABU7: 0 | ABV7: 0 | ABW7: 3 | ABX7: 0 | ABY7: 826 | ABZ7: 302 | ACA7: 11 | ACB7: 0 | ACC7: 7 | ACD7: 4 | ACE7: 0 | ACF7: 20 | ACG7: 57 | ACH7: 0 | ACI7: 3 | ACJ7: 8 | ACK7: 0 | ACL7: 0 | ACM7: 6 | ACN7: 0 | ACO7: 13 | ACP7: 3 | ACQ7: 6 | ACR7: 0 | ACS7: 0 | ACT7: 0 | ACU7: 0 | ACV7: 0 | ACW7: 0 | ACX7: 0 | ACY7: 0 | ACZ7: 0 | ADA7: 0 | ADB7: 0 | ADC7: 0 | ADD7: 8 | ADE7: 5 | ADF7: 0 | ADG7: 3 | ADH7: 0 | ADI7: 0 | ADJ7: 5 | ADK7: 6 | ADL7: 0 | ADM7: 4 | ADN7: 0 | ADO7: 0 | ADP7: 0 | ADQ7: 13 | ADR7: 9 | ADS7: 26 | ADT7: 4 | ADU7: 0 | ADV7: 58 | ADW7: 23 | ADX7: 24 | ADY7: 7 | ADZ7: 3 | AEA7: 16 | AEB7: 18 | AEC7: 43 | AED7: 11 | AEE7: 0 | AEF7: 15 | AEG7: 0 | AEH7: 0 | AEI7: 0 | AEJ7: 0 | AEK7: 14 | AEL7: 12 | AEM7: 6 | AEN7: 4 | AEO7: 3 | AEP7: 0 | AEQ7: 0 | AER7: 0 | AES7: 0 | AET7: 0 | AEU7: 0 | AEV7: 0 | AEW7: 5 | AEX7: 0 | AEY7: 0 | AEZ7: 0 | AFA7: 0 | AFB7: 0 | AFC7: 0 | AFD7: 0 | AFE7: 0 | AFF7: 0 | AFG7: 0 | AFH7: 0 | AFI7: 0 | AFJ7: 0 | AFK7: 40 | AFL7: 0 | AFM7: 0 | AFN7: 0 | AFO7: 0 | AFP7: 4 | AFQ7: 0 | AFR7: 0 | AFS7: 0 | AFT7: 0 | AFU7: 0 | AFV7: 0 | AFW7: 28 | AFX7: 0 | AFY7: 3 | AFZ7: 0 | AGA7: 0 | AGB7: 0 | AGC7: 0 | AGD7: 0 | AGE7: 4 | AGF7: 5 | AGG7: 0 | AGH7: 0 | AGI7: 0 | AGJ7: 0 | AGK7: 3 | AGL7: 0 | AGM7: 0 | AGN7: 0 | AGO7: 0 | AGP7: 0 | AGQ7: 0 | AGR7: 0 | AGS7: 12 | AGT7: 0 | AGU7: 13 | AGV7: 0 | AGW7: 0 | AGX7: 0 | AGY7: 7 | AGZ7: 0 | AHA7: 0 | AHB7: 0 | AHC7: 0 | AHD7: 0 | AHE7: 0 | AHF7: 0 | AHG7: 0 | AHH7: 0 | AHI7: 4 | AHJ7: 5 | AHK7: 0 | AHL7: 0 | AHM7: 3 | AHN7: 0 | AHO7: 0 | AHP7: 0 | AHQ7: 0 | AHR7: 0 | AHS7: 6 | AHT7: 0 | AHU7: 0 | AHV7: 183 | AHW7: 11 | AHX7: 24 | AHY7: 4 | AHZ7: 873 | AIA7: 31 | AIB7: 0 | AIC7: 0 | AID7: 0 | AIE7: 15 | AIF7: 56 | AIG7: 3 | AIH7: 0 | AII7: 0 | AIJ7: 0 | AIK7: 0 | AIL7: 0 | AIM7: 0 | AIN7: 15 | AIO7: 0 | AIP7: 0 | AIQ7: 0 | AIR7: 0 | AIS7: 9 | AIT7: 0 | AIU7: 0 | AIV7: 5 | AIW7: 4 | AIX7: 0 | AIY7: 0 | AIZ7: 0 | AJA7: 0 | AJB7: 0 | AJC7: 0 | AJD7: 0 | AJE7: 3 | AJF7: 0 | AJG7: 0 | AJH7: 0 | AJI7: 0 | AJJ7: 0 | AJK7: 0 | AJL7: 0 | AJM7: 0 | AJN7: 0 | AJO7: 0 | AJP7: 0 | AJQ7: 0 | AJR7: 0 | AJS7: 3 | AJT7: 5 | AJU7: 0 | AJV7: 0 | AJW7: 0 | AJX7: 0 | AJY7: 0 | AJZ7: 0 | AKA7: 0 | AKB7: 0 | AKC7: 0 | AKD7: 0 | AKE7: 0 | AKF7: 0 | AKG7: 0 | AKH7: 0 | AKI7: 0 | AKJ7: 5 | AKK7: 0 | AKL7: 0 | AKM7: 0 | AKN7: 0 | AKO7: 3 | AKP7: 0 | AKQ7: 0 | AKR7: 0 | AKS7: 0 | AKT7: 0 | AKU7: 0 | AKV7: 0 | AKW7: 0 | AKX7: 0 | AKY7: 0 | AKZ7: 7 | ALA7: 0 | ALB7: 0 | ALC7: 0 | ALD7: 5 | ALE7: 5 | ALF7: 84 | ALG7: 0 | ALH7: 0 | ALI7: 0 | ALJ7: 4 | ALK7: 0 | ALL7: 0 | ALM7: 4 | ALN7: 0 | ALO7: 0 | ALP7: 6 | ALQ7: 0 | ALR7: 0 | ALS7: 0 | ALT7: 3 | ALU7: 3 | ALV7: 0 | ALW7: 0 | ALX7: 0 | ALY7: 0 | ALZ7: 79 | AMA7: 0 | AMB7: 0 | AMC7: 0 | AMD7: 0 | AME7: 0 | AMF7: 4 | AMG7: 0 | AMH7: 0 | AMI7: 0 | AMJ7: 9 | AMK7: 0 | AML7: 0 | AMM7: 0 | AMN7: 0 | AMO7: 3 | AMP7: 4 | AMQ7: 0 | AMR7: 0 | AMS7: 0 | AMT7: 3 | AMU7: 0 | AMV7: 0 | AMW7: 0 | AMX7: 0 | AMY7: 0 | AMZ7: 9 | ANA7: 0 | ANB7: 0 | ANC7: 0 | AND7: 0 | ANE7: 0 | ANF7: 9 | ANG7: 0 | ANH7: 0 | ANI7: 0 | ANJ7: 0 | ANK7: 0 | ANL7: 0 | ANM7: 0 | ANN7: 0 | ANO7: 0 | ANP7: 0 | ANQ7: 0 | ANR7: 0 | ANS7: 0 | ANT7: 0 | ANU7: 0 | ANV7: 0 | ANW7: 4 | ANX7: 0 | ANY7: 0 | ANZ7: 0 | AOA7: 0 | AOB7: 0 | AOC7: 0 | AOD7: 0 | AOE7: 0 | AOF7: 0 | AOG7: 0 | AOH7: 6 | AOI7: 5 | AOJ7: 0 | AOK7: 0 | AOL7: 0 | AOM7: 0 | AON7: 7 | AOO7: 4 | AOP7: 0 | AOQ7: 6 | AOR7: 0 | AOS7: 0 | AOT7: 0 | AOU7: 0 | AOV7: 0 | AOW7: 0 | AOX7: 0 | AOY7: 0 | AOZ7: 0 | APA7: 3 | APB7: 0 | APC7: 0 | APD7: 10 | APE7: 0 | APF7: 0 | APG7: 3 | APH7: 0 | API7: 0 | APJ7: 3 | APK7: 0 | APL7: 0 | APM7: 0 | APN7: 6 | APO7: 0 | APP7: 0 | APQ7: 3 | APR7: 0 | APS7: 0 | APT7: 0 | APU7: 0 | APV7: 0 | APW7: 0 | APX7: 0 | APY7: 0 | APZ7: 0 | AQA7: 0 | AQB7: 0 | AQC7: 0 | AQD7: 5 | AQE7: 49 | AQF7: 0 | AQG7: 0 | AQH7: 3 | AQI7: 0 | AQJ7: 0 | AQK7: 0 | AQL7: 0 | AQM7: 0 | AQN7: 0 | AQO7: 0 | AQP7: 0 | AQQ7: 0 | AQR7: 0 | AQS7: 0 | AQT7: 0 | AQU7: 0 | AQV7: 0 | AQW7: 0 | AQX7: 0 | AQY7: 0 | AQZ7: 5 | ARA7: 3 | ARB7: 0 | ARC7: 0 | ARD7: 0 | ARE7: 0 | ARF7: 0 | ARG7: 0 | ARH7: 5 | ARI7: 0 | ARJ7: 0 | ARK7: 0 | ARL7: 0 | ARM7: 0 | ARN7: 0 | ARO7: 0 | ARP7: 0 | ARQ7: 0 | ARR7: 0 | ARS7: 0 | ART7: 0 | ARU7: 0 | ARV7: 0 | ARW7: 0 | ARX7: 0 | ARY7: 0 | ARZ7: 0 | ASA7: 0 | ASB7: 3 | ASC7: 0 | ASD7: 4 | ASE7: 0 | ASF7: 3 | ASG7: 0 | ASH7: 0 | ASI7: 22 | ASJ7: 3 | ASK7: 0 | ASL7: 0 | ASM7: 0 | ASN7: 0 | ASO7: 0 | ASP7: 3 | ASQ7: 5 | ASR7: 0 | ASS7: 3 | AST7: 0 | ASU7: 0 | ASV7: 0 | ASW7: 0 | ASX7: 7 | ASY7: 0 | ASZ7: 6 | ATA7: 0 | ATB7: 0 | ATC7: 0 | ATD7: 0 | ATE7: 0 | ATF7: 0 | ATG7: 0 | ATH7: 6 | ATI7: 0 | ATJ7: 4 | ATK7: 0 | ATL7: 0 | ATM7: 0 | ATN7: 0 | ATO7: 0 | ATP7: 4 | ATQ7: 0 | ATR7: 0 | ATS7: 0 | ATT7: 0 | ATU7: 4 | ATV7: 0 | ATW7: 0 | ATX7: 0 | ATY7: 0 | ATZ7: 0 | AUA7: 3 | AUB7: 0 | AUC7: 0 | AUD7: 0 | AUE7: 0 | AUF7: 0 | AUG7: 0 | AUH7: 0 | AUI7: 0 | AUJ7: 0 | AUK7: 0 | AUL7: 0 | AUM7: 0 | AUN7: 0 | AUO7: 0 | AUP7: 0 | AUQ7: 4 | AUR7: 0 | AUS7: 0 | AUT7: 0 | AUU7: 0 | AUV7: 0 | AUW7: 0 | AUX7: 0 | AUY7: 0 | AUZ7: 8 | AVA7: 6 | AVB7: 3 | AVC7: 0 | AVD7: 3 | AVE7: 0 | AVF7: 0 | AVG7: 3 | AVH7: 0 | AVI7: 0 | AVJ7: 0 | AVK7: 4 | AVL7: 5 | AVM7: 0 | AVN7: 0 | AVO7: 6 | AVP7: 0 | AVQ7: 0 | AVR7: 4 | AVS7: 0 | AVT7: 0 | AVU7: 5 | AVV7: 0 | AVW7: 7 | AVX7: 0 | AVY7: 0 | AVZ7: 0 | AWA7: 3 | AWB7: 0 | AWC7: 171 | AWD7: 26 | AWE7: 29 | AWF7: 14 | AWG7: 0 | AWH7: 34 | AWI7: 0 | AWJ7: 0 | AWK7: 4 | AWL7: 0 | AWM7: 0 | AWN7: 0 | AWO7: 0 | AWP7: 0 | AWQ7: 0 | AWR7: 0 | AWS7: 0 | AWT7: 0 | AWU7: 0 | AWV7: 0 | AWW7: 0 | AWX7: 4 | AWY7: 0 | AWZ7: 0 | AXA7: 0 | AXB7: 0 | AXC7: 0 | AXD7: 0 | AXE7: 3 | AXF7: 0 | AXG7: 0 | AXH7: 0 | AXI7: 0 | AXJ7: 6 | AXK7: 6 | AXL7: 0 | AXM7: 0 | AXN7: 0 | AXO7: 3 | AXP7: 5 | AXQ7: 0 | AXR7: 6 | AXS7: 0 | AXT7: 0 | AXU7: 0 | AXV7: 0 | AXW7: 0 | AXX7: 0 | AXY7: 0 | AXZ7: 0 | AYA7: 0 | AYB7: 0 | AYC7: 0 | AYD7: 0 | AYE7: 0 | AYF7: 6 | AYG7: 0 | AYH7: 10 | AYI7: 24 | AYJ7: 3 | AYK7: 5 | AYL7: 20 | AYM7: 0 | AYN7: 0 | AYO7: 0 | AYP7: 5 | AYQ7: 11 | AYR7: 8 | AYS7: 6 | AYT7: 4 | AYU7: 0 | AYV7: 3 | AYW7: 6 | AYX7: 0 | AYY7: 45 | AYZ7: 0 | AZA7: 0 | AZB7: 0 | AZC7: 0 | AZD7: 0 | AZE7: 0 | AZF7: 0 | AZG7: 3 | AZH7: 0 | AZI7: 0 | AZJ7: 0 | AZK7: 0 | AZL7: 4 | AZM7: 0 | AZN7: 0 | AZO7: 3 | AZP7: 0 | AZQ7: 0 | AZR7: 0 | AZS7: 0 | AZT7: 0 | AZU7: 0 | AZV7: 24 | AZW7: 11 | AZX7: 0 | AZY7: 0 | AZZ7: 3 | BAA7: 0 | BAB7: 0 | BAC7: 3 | BAD7: 0 | BAE7: 0 | BAF7: 0 | BAG7: 0 | BAH7: 0 | BAI7: 3 | BAJ7: 0 | BAK7: 0 | BAL7: 0 | BAM7: 0 | BAN7: 0 | BAO7: 0 | BAP7: 0 | BAQ7: 0 | BAR7: 4 | BAS7: 0 | BAT7: 0 | BAU7: 0 | BAV7: 0 | BAW7: 0 | BAX7: 3 | BAY7: 0 | BAZ7: 0 | BBA7: 29 | BBB7: 0 | BBC7: 0 | BBD7: 0 | BBE7: 5 | BBF7: 0 | BBG7: 0 | BBH7: 0 | BBI7: 0 | BBJ7: 0 | BBK7: 0 | BBL7: 0 | BBM7: 0 | BBN7: 0 | BBO7: 0 | BBP7: 0 | BBQ7: 0 | BBR7: 4 | BBS7: 3 | BBT7: 0 | BBU7: 0 | BBV7: 0 | BBW7: 3 | BBX7: 0 | BBY7: 0 | BBZ7: 0 | BCA7: 6 | BCB7: 0 | BCC7: 3 | BCD7: 3 | BCE7: 0 | BCF7: 0 | BCG7: 8 | BCH7: 0 | BCI7: 0 | BCJ7: 0 | BCK7: 4 | BCL7: 0 | BCM7: 0 | BCN7: 0 | BCO7: 0 | BCP7: 0 | BCQ7: 4 | BCR7: 4 | BCS7: 4 | BCT7: 0 | BCU7: 6 | BCV7: 0 | BCW7: 0 | BCX7: 0 | BCY7: 0 | BCZ7: 0 | BDA7: 6 | BDB7: 0 | BDC7: 0 | BDD7: 9 | BDE7: 0 | BDF7: 0 | BDG7: 0 | BDH7: 0 | BDI7: 0 | BDJ7: 0 | BDK7: 0 | BDL7: 5 | BDM7: 0 | BDN7: 0 | BDO7: 0 | BDP7: 3 | BDQ7: 0 | BDR7: 5 | BDS7: 0 | BDT7: 0 | BDU7: 0 | BDV7: 0 | BDW7: 0 | BDX7: 0 | BDY7: 0 | BDZ7: 0 | BEA7: 0 | BEB7: 29 | BEC7: 3 | BED7: 13 | BEE7: 0 | BEF7: 0 | BEG7: 0 | BEH7: 3 | BEI7: 0 | BEJ7: 3 | BEK7: 0 | BEL7: 7 | BEM7: 0 | BEN7: 0 | BEO7: 3 | BEP7: 0 | BEQ7: 0 | BER7: 0 | BES7: 0 | BET7: 0 | BEU7: 0 | BEV7: 0 | BEW7: 0 | BEX7: 0 | BEY7: 0 | BEZ7: 0 | BFA7: 30 | BFB7: 8 | BFC7: 0 | BFD7: 0 | BFE7: 0 | BFF7: 0 | BFG7: 0 | BFH7: 9 | BFI7: 0 | BFJ7: 13 | BFK7: 0 | BFL7: 0 | BFM7: 0 | BFN7: 0 | BFO7: 0 | BFP7: 0 | BFQ7: 0 | BFR7: 4 | BFS7: 0 | BFT7: 0 | BFU7: 21 | BFV7: 0 | BFW7: 0 | BFX7: 0 | BFY7: 3 | BFZ7: 0 | BGA7: 0 | BGB7: 3 | BGC7: 0 | BGD7: 0 | BGE7: 0 | BGF7: 0 | BGG7: 86 | BGH7: 6 | BGI7: 28 | BGJ7: 20 | BGK7: 0 | BGL7: 4 | BGM7: 65 | BGN7: 3 | BGO7: 44 | BGP7: 0 | BGQ7: 7 | BGR7: 3 | BGS7: 0 | BGT7: 0 | BGU7: 0 | BGV7: 7 | BGW7: 0 | BGX7: 3 | BGY7: 0 | BGZ7: 7 | BHA7: 0 | BHB7: 0 | BHC7: 0 | BHD7: 3 | BHE7: 0 | BHF7: 0 | BHG7: 0 | BHH7: 0 | BHI7: 0 | BHJ7: 26 | BHK7: 13 | BHL7: 28 | BHM7: 0 | BHN7: 4 | BHO7: 3 | BHP7: 0 | BHQ7: 14 | BHR7: 3 | BHS7: 0 | BHT7: 0 | BHU7: 0 | BHV7: 3 | BHW7: 0 | BHX7: 0 | BHY7: 0 | BHZ7: 0 | BIA7: 13 | BIB7: 8 | BIC7: 0 | BID7: 4 | BIE7: 5 | BIF7: 0 | BIG7: 0 | BIH7: 0 | BII7: 0 | BIJ7: 0 | BIK7: 0 | BIL7: 0 | BIM7: 7 | BIN7: 0 | BIO7: 3 | BIP7: 0 | BIQ7: 7 | BIR7: 6 | BIS7: 0 | BIT7: 6 | BIU7: 0 | BIV7: 49 | BIW7: 11 | BIX7: 0 | BIY7: 0 | BIZ7: 0 | BJA7: 0 | BJB7: 6 | BJC7: 24 | BJD7: 26 | BJE7: 138 | BJF7: 4 | BJG7: 0 | BJH7: 5 | BJI7: 0 | BJJ7: 0 | BJK7: 0 | BJL7: 5 | BJM7: 0 | BJN7: 0 | BJO7: 0 | BJP7: 0 | BJQ7: 8 | BJR7: 0 | BJS7: 0 | BJT7: 0 | BJU7: 0 | BJV7: 5 | BJW7: 0 | BJX7: 14 | BJY7: 0 | BJZ7: 0 | BKA7: 0 | BKB7: 0 | BKC7: 0 | BKD7: 6 | BKE7: 7 | BKF7: 7 | BKG7: 3 | BKH7: 3 | BKI7: 8 | BKJ7: 12 | BKK7: 0 | BKL7: 0 | BKM7: 0 | BKN7: 22 | BKO7: 0 | BKP7: 0 | BKQ7: 0 | BKR7: 0 | BKS7: 0 | BKT7: 0 | BKU7: 3 | BKV7: 0 | BKW7: 0 | BKX7: 0 | BKY7: 0 | BKZ7: 0 | BLA7: 0 | BLB7: 3 | BLC7: 3 | BLD7: 3 | BLE7: 0 | BLF7: 3 | BLG7: 0 | BLH7: 0 | BLI7: 0 | BLJ7: 0 | BLK7: 0 | BLL7: 0 | BLM7: 0 | BLN7: 0 | BLO7: 0 | BLP7: 0 | BLQ7: 0 | BLR7: 3 | BLS7: 0 | BLT7: 0 | BLU7: 281 | BLV7: 0 | BLW7: 6 | BLX7: 0 | BLY7: 0 | BLZ7: 9 | BMA7: 0 | BMB7: 0 | BMC7: 0 | BMD7: 0 | BME7: 0 | BMF7: 0 | BMG7: 0 | BMH7: 0 | BMI7: 0 | BMJ7: 0 | BMK7: 0 | BML7: 0 | BMM7: 0 | BMN7: 0 | BMO7: 47 | BMP7: 29 | BMQ7: 5 | BMR7: 0 | BMS7: 3 | BMT7: 57 | BMU7: 4 | BMV7: 17 | BMW7: 77 | BMX7: 56 | BMY7: 85 | BMZ7: 33 | BNA7: 37 | BNB7: 0 | BNC7: 92 | BND7: 3 | BNE7: 0 | BNF7: 25 | BNG7: 0 | BNH7: 0 | BNI7: 8 | BNJ7: 0 | BNK7: 0 | BNL7: 0 | BNM7: 0 | BNN7: 0 | BNO7: 0 | BNP7: 4 | BNQ7: 34 | BNR7: 0 | BNS7: 0 | BNT7: 81 | BNU7: 14 | BNV7: 22 | BNW7: 0 | BNX7: 8 | BNY7: 0 | BNZ7: 5 | BOA7: 3 | BOB7: 0 | BOC7: 0 | BOD7: 0 | BOE7: 0 | BOF7: 5 | BOG7: 0 | BOH7: 0 | BOI7: 0 | BOJ7: 0 | BOK7: 0 | BOL7: 0 | BOM7: 0 | BON7: 0 | BOO7: 3 | BOP7: 19 | BOQ7: 6 | BOR7: 7 | BOS7: 3 | BOT7: 0 | BOU7: 0 | BOV7: 0 | BOW7: 14 | BOX7: 15 | BOY7: 145 | BOZ7: 0 | BPA7: 0 | BPB7: 0 | BPC7: 0 | BPD7: 5 | BPE7: 0 | BPF7: 0 | BPG7: 0 | BPH7: 0 | BPI7: 19 | BPJ7: 24 | BPK7: 8 | BPL7: 56 | BPM7: 3 | BPN7: 8 | BPO7: 0 | BPP7: 0 | BPQ7: 27 | BPR7: 0 | BPS7: 4 | BPT7: 0 | BPU7: 0 | BPV7: 4 | BPW7: 0 | BPX7: 15 | BPY7: 0 | BPZ7: 0 | BQA7: 0 | BQB7: 23 | BQC7: 24 | BQD7: 0 | BQE7: 0 | BQF7: 0 | BQG7: 0 | BQH7: 0 | BQI7: 0 | BQJ7: 11 | BQK7: 6 | BQL7: 39 | BQM7: 6 | BQN7: 9 | BQO7: 0 | BQP7: 4 | BQQ7: 4 | BQR7: 3 | BQS7: 33 | BQT7: 0 | BQU7: 0 | BQV7: 0 | BQW7: 0 | BQX7: 0 | BQY7: 4 | BQZ7: 0 | BRA7: 3 | BRB7: 0 | BRC7: 0 | BRD7: 0 | BRE7: 5 | BRF7: 0 | BRG7: 3 | BRH7: 10 | BRI7: 0 | BRJ7: 0 | BRK7: 60 | BRL7: 3 | BRM7: 0 | BRN7: 5 | BRO7: 0 | BRP7: 0 | BRQ7: 0 | BRR7: 0 | BRS7: 0 | BRT7: 0 | BRU7: 0 | BRV7: 0 | BRW7: 0 | BRX7: 0 | BRY7: 0 | BRZ7: 14 | BSA7: 0 | BSB7: 0 | BSC7: 0 | BSD7: 0 | BSE7: 0 | BSF7: 0 | BSG7: 0 | BSH7: 0 | BSI7: 0 | BSJ7: 0 | BSK7: 0 | BSL7: 0 | BSM7: 0 | BSN7: 0 | BSO7: 0 | BSP7: 0 | BSQ7: 0 | BSR7: 0 | BSS7: 0 | BST7: 0 | BSU7: 0 | BSV7: 0 | BSW7: 3 | BSX7: 0 | BSY7: 0 | BSZ7: 3 | BTA7: 0 | BTB7: 13 | BTC7: 0 | BTD7: 8 | BTE7: 0 | BTF7: 0 | BTG7: 65 | BTH7: 0 | BTI7: 0 | BTJ7: 0 | BTK7: 0 | BTL7: 5 | BTM7: 0 | BTN7: 0 | BTO7: 0 | BTP7: 5 | BTQ7: 0 | BTR7: 0 | BTS7: 0 | BTT7: 0 | BTU7: 0 | BTV7: 0 | BTW7: 0 | BTX7: 0 | BTY7: 0 | BTZ7: 0 | BUA7: 29 | BUB7: 19 | BUC7: 3 | BUD7: 0 | BUE7: 3 | BUF7: 0 | BUG7: 0 | BUH7: 0 | BUI7: 5 | BUJ7: 6 | BUK7: 42 | BUL7: 0 | BUM7: 0 | BUN7: 3 | BUO7: 0 | BUP7: 7 | BUQ7: 0 | BUR7: 0 | BUS7: 0 | BUT7: 0 | BUU7: 0 | BUV7: 0 | BUW7: 0 | BUX7: 0 | BUY7: 7 | BUZ7: 0 | BVA7: 0 | BVB7: 0 | BVC7: 3 | BVD7: 3 | BVE7: 0 | BVF7: 0 | BVG7: 0 | BVH7: 0 | BVI7: 3 | BVJ7: 0 | BVK7: 0 | BVL7: 0 | BVM7: 0 | BVN7: 0 | BVO7: 0 | BVP7: 0 | BVQ7: 0 | BVR7: 0 | BVS7: 4 | BVT7: 0 | BVU7: 0 | BVV7: 0 | BVW7: 70 | BVX7: 0 | BVY7: 0 | BVZ7: 0 | BWA7: 0 | BWB7: 0 | BWC7: 0 | BWD7: 0 | BWE7: 7 | BWF7: 0 | BWG7: 0 | BWH7: 0 | BWI7: 711 | BWJ7: 5 | BWK7: 3 | BWL7: 45 | BWM7: 0 | BWN7: 0 | BWO7: 6 | BWP7: 37 | BWQ7: 0 | BWR7: 3 | BWS7: 0 | BWT7: 0 | BWU7: 20 | BWV7: 0 | BWW7: 0 | BWX7: 3 | BWY7: 0 | BWZ7: 0 | BXA7: 0 | BXB7: 0 | BXC7: 4 | BXD7: 7 | BXE7: 0 | BXF7: 5 | BXG7: 0 | BXH7: 3 | BXI7: 0 | BXJ7: 3 | BXK7: 6 | BXL7: 0 | BXM7: 7 | BXN7: 3 | BXO7: 0 | BXP7: 28 | BXQ7: 0 | BXR7: 5 | BXS7: 0 | BXT7: 0 | BXU7: 24 | BXV7: 4 | BXW7: 3 | BXX7: 8 | BXY7: 0 | BXZ7: 6 | BYA7: 108 | BYB7: 14 | BYC7: 40 | BYD7: 0 | BYE7: 0 | BYF7: 0 | BYG7: 9 | BYH7: 14 | BYI7: 18 | BYJ7: 0 | BYK7: 0 | BYL7: 0 | BYM7: 0 | BYN7: 0 | BYO7: 0 | BYP7: 0 | BYQ7: 0 | BYR7: 0 | BYS7: 4 | BYT7: 11 | BYU7: 5 | BYV7: 0 | BYW7: 5 | BYX7: 0 | BYY7: 0 | BYZ7: 0 | BZA7: 5 | BZB7: 5 | BZC7: 0 | BZD7: 0 | BZE7: 0 | BZF7: 0 | BZG7: 11 | BZH7: 0 | BZI7: 0 | BZJ7: 0 | BZK7: 3 | BZL7: 0 | BZM7: 0 | BZN7: 0 | BZO7: 4 | BZP7: 4 | BZQ7: 0 | BZR7: 0 | BZS7: 4 | BZT7: 0 | BZU7: 0 | BZV7: 8 | BZW7: 3 | BZX7: 0 | BZY7: 0 | BZZ7: 4 | CAA7: 4 | CAB7: 0 | CAC7: 10 | CAD7: 0 | CAE7: 0 | CAF7: 0 | CAG7: 0 | CAH7: 0 | CAI7: 0 | CAJ7: 0 | CAK7: 0 | CAL7: 0 | CAM7: 0 | CAN7: 0 | CAO7: 0 | CAP7: 0 | CAQ7: 6 | CAR7: 0 | CAS7: 0 | CAT7: 3 | CAU7: 0 | CAV7: 69 | CAW7: 5 | CAX7: 0 | CAY7: 4 | CAZ7: 0 | CBA7: 0 | CBB7: 3 | CBC7: 0 | CBD7: 0 | CBE7: 7 | CBF7: 5 | CBG7: 0 | CBH7: 4 | CBI7: 0 | CBJ7: 0 | CBK7: 3 | CBL7: 0 | CBM7: 0 | CBN7: 0 | CBO7: 0 | CBP7: 7 | CBQ7: 0 | CBR7: 0 | CBS7: 0 | CBT7: 0 | CBU7: 0 | CBV7: 0 | CBW7: 0 | CBX7: 0 | CBY7: 8 | CBZ7: 0 | CCA7: 11 | CCB7: 30 | CCC7: 0 | CCD7: 0 | CCE7: 6 | CCF7: 0 | CCG7: 7 | CCH7: 0 | CCI7: 12 | CCJ7: 0 | CCK7: 6 | CCL7: 6 | CCM7: 0 | CCN7: 0 | CCO7: 0 | CCP7: 0 | CCQ7: 0 | CCR7: 0 | CCS7: 0 | CCT7: 0 | CCU7: 0 | CCV7: 0 | CCW7: 0 | CCX7: 0 | CCY7: 0 | CCZ7: 0 | CDA7: 0 | CDB7: 0 | CDC7: 0 | CDD7: 8 | CDE7: 0 | CDF7: 0 | CDG7: 0 | CDH7: 40 | CDI7: 0 | CDJ7: 202 | CDK7: 22 | CDL7: 0 | CDM7: 3 | CDN7: 4 | CDO7: 3 | CDP7: 0 | CDQ7: 7 | CDR7: 0 | CDS7: 0 | CDT7: 0 | CDU7: 0 | CDV7: 0 | CDW7: 0 | CDX7: 0 | CDY7: 0 | CDZ7: 4 | CEA7: 0 | CEB7: 0 | CEC7: 0 | CED7: 3 | CEE7: 0 | CEF7: 0 | CEG7: 0 | CEH7: 0 | CEI7: 4 | CEJ7: 5 | CEK7: 3 | CEL7: 0 | CEM7: 0 | CEN7: 0 | CEO7: 8 | CEP7: 0 | CEQ7: 0 | CER7: 0 | CES7: 0 | CET7: 0 | CEU7: 0 | CEV7: 0 | CEW7: 4 | CEX7: 0 | CEY7: 0 | CEZ7: 0 | CFA7: 14 | CFB7: 3 | CFC7: 0 | CFD7: 0 | CFE7: 3 | CFF7: 5 | CFG7: 20 | CFH7: 5 | CFI7: 0 | CFJ7: 0 | CFK7: 8 | CFL7: 23 | CFM7: 6 | CFN7: 0 | CFO7: 3 | CFP7: 0 | CFQ7: 5 | CFR7: 0 | CFS7: 0 | CFT7: 0 | CFU7: 0 | CFV7: 9 | CFW7: 4 | CFX7: 0 | CFY7: 0 | CFZ7: 9 | CGA7: 5 | CGB7: 0 | CGC7: 7 | CGD7: 5 | CGE7: 0 | CGF7: 0 | CGG7: 0 | CGH7: 14 | CGI7: 0 | CGJ7: 0 | CGK7: 0 | CGL7: 4 | CGM7: 0 | CGN7: 9 | CGO7: 7 | CGP7: 0 | CGQ7: 0 | CGR7: 15 | CGS7: 0 | CGT7: 0 | CGU7: 53 | CGV7: 63 | CGW7: 0 | CGX7: 0 | CGY7: 0 | CGZ7: 0 | CHA7: 0 | CHB7: 0 | CHC7: 3 | CHD7: 3 | CHE7: 0 | CHF7: 0 | CHG7: 0 | CHH7: 69 | CHI7: 0 | CHJ7: 0 | CHK7: 0 | CHL7: 0 | CHM7: 45 | CHN7: 3 | CHO7: 0 | CHP7: 4 | CHQ7: 0 | CHR7: 0 | CHS7: 3 | CHT7: 10 | CHU7: 15 | CHV7: 0 | CHW7: 0 | CHX7: 3 | CHY7: 3 | CHZ7: 0 | CIA7: 7 | CIB7: 45 | CIC7: 0 | CID7: 0 | CIE7: 0 | CIF7: 0 | CIG7: 0 | CIH7: 0 | CII7: 0 | CIJ7: 0 | CIK7: 0 | CIL7: 0 | CIM7: 0 | CIN7: 0 | CIO7: 0 | CIP7: 0 | CIQ7: 0 | CIR7: 0 | CIS7: 0 | CIT7: 0 | CIU7: 0 | CIV7: 0 | CIW7: 0 | CIX7: 0 | CIY7: 0 | CIZ7: 0 | CJA7: 0 | CJB7: 3 | CJC7: 0 | CJD7: 0 | CJE7: 0 | CJF7: 0 | CJG7: 3 | CJH7: 0 | CJI7: 0 | CJJ7: 6 | CJK7: 4 | CJL7: 58 | CJM7: 34 | CJN7: 0 | CJO7: 412 | CJP7: 348 | CJQ7: 0 | CJR7: 18 | CJS7: 58 | CJT7: 25 | CJU7: 170 | CJV7: 32 | CJW7: 14 | CJX7: 0 | CJY7: 18 | CJZ7: 10 | CKA7: 17 | CKB7: 0 | CKC7: 26 | CKD7: 27 | CKE7: 30 | CKF7: 10 | CKG7: 7 | CKH7: 0 | CKI7: 4 | CKJ7: 7 | CKK7: 4 | CKL7: 140 | CKM7: 26 | CKN7: 0 | CKO7: 15 | CKP7: 122 | CKQ7: 0 | CKR7: 0 | CKS7: 0 | CKT7: 17 | CKU7: 28 | CKV7: 103 | CKW7: 6 | CKX7: 3 | CKY7: 0 | CKZ7: 0 | CLA7: 23 | CLB7: 0 | CLC7: 0 | CLD7: 56 | CLE7: 0 | CLF7: 0 | CLG7: 0 | CLH7: 0 | CLI7: 0 | CLJ7: 0 | CLK7: 0 | CLL7: 0 | CLM7: 10 | CLN7: 0 | CLO7: 0 | CLP7: 5 | CLQ7: 6 | CLR7: 0 | CLS7: 0 | CLT7: 0 | CLU7: 0 | CLV7: 0 | CLW7: 0 | CLX7: 0 | CLY7: 0 | CLZ7: 0 | CMA7: 3 | CMB7: 0 | CMC7: 0 | CMD7: 0 | CME7: 0 | CMF7: 0 | CMG7: 0 | CMH7: 3 | CMI7: 0 | CMJ7: 0 | CMK7: 0 | CML7: 0 | CMM7: 0 | CMN7: 4 | CMO7: 0 | CMP7: 0 | CMQ7: 0 | CMR7: 0 | CMS7: 0 | CMT7: 4 | CMU7: 0 | CMV7: 0 | CMW7: 0 | CMX7: 5 | CMY7: 81 | CMZ7: 305 | CNA7: 7 | CNB7: 0 | CNC7: 0 | CND7: 0 | CNE7: 6 | CNF7: 0 | CNG7: 0 | CNH7: 0 | CNI7: 0 | CNJ7: 0 | CNK7: 0 | CNL7: 29 | CNM7: 0 | CNN7: 65 | CNO7: 0 | CNP7: 0 | CNQ7: 0 | CNR7: 0 | CNS7: 0 | CNT7: 0 | CNU7: 0 | CNV7: 10 | CNW7: 0 | CNX7: 0 | CNY7: 0 | CNZ7: 0 | COA7: 5 | COB7: 32 | COC7: 0 | COD7: 3 | COE7: 0 | COF7: 0 | COG7: 0 | COH7: 0 | COI7: 0 | COJ7: 0 | COK7: 0 | COL7: 0 | COM7: 30 | CON7: 9 | COO7: 9 | COP7: 0 | COQ7: 0 | COR7: 3 | COS7: 22 | COT7: 106 | COU7: 0 | COV7: 0 | COW7: 0 | COX7: 0 | COY7: 0 | COZ7: 0 | CPA7: 0 | CPB7: 0 | CPC7: 0 | CPD7: 62 | CPE7: 0 | CPF7: 0 | CPG7: 3 | CPH7: 3 | CPI7: 163 | CPJ7: 6 | CPK7: 3 | CPL7: 0 | CPM7: 0 | CPN7: 0 | CPO7: 0 | CPP7: 0 | CPQ7: 0 | CPR7: 5 | CPS7: 0 | CPT7: 6 | CPU7: 0 | CPV7: 0 | CPW7: 0 | CPX7: 0 | CPY7: 0 | CPZ7: 0 | CQA7: 0 | CQB7: 0 | CQC7: 0 | CQD7: 0 | CQE7: 0 | CQF7: 0 | CQG7: 0 | CQH7: 0 | CQI7: 0 | CQJ7: 0 | CQK7: 0 | CQL7: 23 | CQM7: 0 | CQN7: 0 | CQO7: 0 | CQP7: 3 | CQQ7: 0 | CQR7: 0 | CQS7: 4 | CQT7: 0 | CQU7: 0 | CQV7: 0 | CQW7: 0 | CQX7: 0 | CQY7: 0 | CQZ7: 29 | CRA7: 41 | CRB7: 4 | CRC7: 70 | CRD7: 17 | CRE7: 176 | CRF7: 0 | CRG7: 0 | CRH7: 70 | CRI7: 0 | CRJ7: 0 | CRK7: 0 | CRL7: 10 | CRM7: 0 | CRN7: 0 | CRO7: 0 | CRP7: 3 | CRQ7: 0 | CRR7: 0 | CRS7: 0 | CRT7: 0 | CRU7: 6 | CRV7: 3 | CRW7: 0 | CRX7: 0 | CRY7: 0 | CRZ7: 6 | CSA7: 8 | CSB7: 0 | CSC7: 0 | CSD7: 154 | CSE7: 0 | CSF7: 27 | CSG7: 5 | CSH7: 0 | CSI7: 18 | CSJ7: 4 | CSK7: 36 | CSL7: 9 | CSM7: 0 | CSN7: 0 | CSO7: 0 | CSP7: 5 | CSQ7: 0 | CSR7: 3 | CSS7: 0 | CST7: 100 | CSU7: 0 | CSV7: 136 | CSW7: 11 | CSX7: 7 | CSY7: 0 | CSZ7: 14 | CTA7: 0 | CTB7: 8 | CTC7: 16 | CTD7: 0 | CTE7: 0 | CTF7: 5 | CTG7: 0 | CTH7: 0 | CTI7: 0 | CTJ7: 0 | CTK7: 0 | CTL7: 43 | CTM7: 0 | CTN7: 0 | CTO7: 0 | CTP7: 0 | CTQ7: 0 | CTR7: 0 | CTS7: 39 | CTT7: 0 | CTU7: 0 | CTV7: 0 | CTW7: 0 | CTX7: 0 | CTY7: 0 | CTZ7: 0 | CUA7: 4 | CUB7: 0 | CUC7: 0 | CUD7: 4 | CUE7: 0 | CUF7: 14 | CUG7: 0 | CUH7: 0 | CUI7: 5 | CUJ7: 0 | CUK7: 0 | CUL7: 0 | CUM7: 0 | CUN7: 0 | CUO7: 0 | CUP7: 0 | CUQ7: 0 | CUR7: 0 | CUS7: 0 | CUT7: 0 | CUU7: 0 | CUV7: 0 | CUW7: 0 | CUX7: 415 | CUY7: 0 | CUZ7: 0 | CVA7: 0 | CVB7: 0 | CVC7: 0 | CVD7: 0 | CVE7: 0 | CVF7: 0 | CVG7: 0 | CVH7: 0 | CVI7: 0 | CVJ7: 0 | CVK7: 0 | CVL7: 0 | CVM7: 6 | CVN7: 13 | CVO7: 0 | CVP7: 0 | CVQ7: 0 | CVR7: 3 | CVS7: 0 | CVT7: 0 | CVU7: 0 | CVV7: 0 | CVW7: 0 | CVX7: 11 | CVY7: 0 | CVZ7: 0 | CWA7: 5 | CWB7: 0 | CWC7: 0 | CWD7: 0 | CWE7: 0 | CWF7: 3 | CWG7: 77 | CWH7: 0 | CWI7: 0 | CWJ7: 21 | CWK7: 32 | CWL7: 5 | CWM7: 4 | CWN7: 0 | CWO7: 0 | CWP7: 3 | CWQ7: 0 | CWR7: 60 | CWS7: 13 | CWT7: 0 | CWU7: 24 | CWV7: 0 | CWW7: 26 | CWX7: 0 | CWY7: 0 | CWZ7: 0 | CXA7: 0 | CXB7: 0 | CXC7: 0 | CXD7: 0 | CXE7: 0 | CXF7: 0 | CXG7: 3 | CXH7: 7 | CXI7: 4 | CXJ7: 4 | CXK7: 0 | CXL7: 0 | CXM7: 0 | CXN7: 4 | CXO7: 5 | CXP7: 0 | CXQ7: 0 | CXR7: 0 | CXS7: 0 | CXT7: 38 | CXU7: 0 | CXV7: 0 | CXW7: 6 | CXX7: 0 | CXY7: 0 | CXZ7: 0 | CYA7: 0 | CYB7: 0 | CYC7: 0 | CYD7: 4 | CYE7: 0 | CYF7: 0 | CYG7: 4 | CYH7: 0 | CYI7: 0 | CYJ7: 4 | CYK7: 9 | CYL7: 0 | CYM7: 0 | CYN7: 0 | CYO7: 0 | CYP7: 0 | CYQ7: 0 | CYR7: 0 | CYS7: 0 | CYT7: 0 | CYU7: 0 | CYV7: 0 | CYW7: 5 | CYX7: 0 | CYY7: 7 | CYZ7: 46 | CZA7: 28 | CZB7: 3 | CZC7: 0 | CZD7: 9 | CZE7: 57 | CZF7: 99 | CZG7: 87 | CZH7: 12 | CZI7: 4 | CZJ7: 27 | CZK7: 38 | CZL7: 3 | CZM7: 4 | CZN7: 3 | CZO7: 0 | CZP7: 0 | CZQ7: 0 | CZR7: 0 | CZS7: 0 | CZT7: 0 | CZU7: 0 | CZV7: 13 | CZW7: 0 | CZX7: 0 | CZY7: 0 | CZZ7: 21 | DAA7: 0 | DAB7: 0 | DAC7: 37 | DAD7: 3 | DAE7: 0 | DAF7: 4 | DAG7: 0 | DAH7: 7 | DAI7: 3 | DAJ7: 0 | DAK7: 0 | DAL7: 0 | DAM7: 0 | DAN7: 0 | DAO7: 0 | DAP7: 5 | DAQ7: 0 | DAR7: 6 | DAS7: 0 | DAT7: 28 | DAU7: 11 | DAV7: 0 | DAW7: 0 | DAX7: 7 | DAY7: 6 | DAZ7: 3 | DBA7: 0 | DBB7: 0 | DBC7: 6 | DBD7: 3 | DBE7: 0 | DBF7: 4 | DBG7: 5 | DBH7: 0 | DBI7: 0 | DBJ7: 0 | DBK7: 0 | DBL7: 0 | DBM7: 3 | DBN7: 4 | DBO7: 5 | DBP7: 3 | DBQ7: 17 | DBR7: 0 | DBS7: 3 | DBT7: 3 | DBU7: 0 | DBV7: 5 | DBW7: 5 | DBX7: 4 | DBY7: 0 | DBZ7: 7 | DCA7: 0 | DCB7: 6 | DCC7: 6 | DCD7: 0 | DCE7: 165 | DCF7: 20 | DCG7: 7 | DCH7: 0 | DCI7: 641 | DCJ7: 0 | DCK7: 0 | DCL7: 0 | DCM7: 0 | DCN7: 0 | DCO7: 36 | DCP7: 0 | DCQ7: 3 | DCR7: 0 | DCS7: 0 | DCT7: 0 | DCU7: 0 | DCV7: 0 | DCW7: 5 | DCX7: 0 | DCY7: 6 | DCZ7: 0 | DDA7: 0 | DDB7: 0 | DDC7: 3 | DDD7: 0 | DDE7: 0 | DDF7: 0 | DDG7: 17 | DDH7: 0 | DDI7: 32 | DDJ7: 6 | DDK7: 4 | DDL7: 34 | DDM7: 0 | DDN7: 0 | DDO7: 17 | DDP7: 0 | DDQ7: 0 | DDR7: 0 | DDS7: 41 | DDT7: 0 | DDU7: 0 | DDV7: 4 | DDW7: 15 | DDX7: 0 | DDY7: 0 | DDZ7: 0 | DEA7: 0 | DEB7: 0 | DEC7: 0 | DED7: 0 | DEE7: 0 | DEF7: 0 | DEG7: 0 | DEH7: 0 | DEI7: 8 | DEJ7: 19 | DEK7: 0 | DEL7: 14 | DEM7: 8 | DEN7: 3 | DEO7: 6 | DEP7: 0 | DEQ7: 0 | DER7: 0 | DES7: 8 | DET7: 0 | DEU7: 7 | DEV7: 6 | DEW7: 11 | DEX7: 9 | DEY7: 13 | DEZ7: 0 | DFA7: 3 | DFB7: 0 | DFC7: 43 | DFD7: 0 | DFE7: 0 | DFF7: 3 | DFG7: 4 | DFH7: 8 | DFI7: 10 | DFJ7: 3 | DFK7: 22 | DFL7: 52 | DFM7: 0 | DFN7: 0 | DFO7: 0 | DFP7: 0 | DFQ7: 3 | DFR7: 5 | DFS7: 24 | DFT7: 7 | DFU7: 208 | DFV7: 0 | DFW7: 10 | DFX7: 6 | DFY7: 0 | DFZ7: 5 | DGA7: 17 | DGB7: 0 | DGC7: 5 | DGD7: 4 | DGE7: 4 | DGF7: 18 | DGG7: 0 | DGH7: 0 | DGI7: 0 | DGJ7: 4 | DGK7: 9 | DGL7: 11 | DGM7: 10 | DGN7: 4 | DGO7: 7 | DGP7: 3 | DGQ7: 0 | DGR7: 15 | DGS7: 0 | DGT7: 3 | DGU7: 8 | DGV7: 3 | DGW7: 54 | DGX7: 0 | DGY7: 210 | DGZ7: 0 | DHA7: 0 | DHB7: 0 | DHC7: 0 | DHD7: 3 | DHE7: 5 | DHF7: 27 | DHG7: 8 | DHH7: 0 | DHI7: 0 | DHJ7: 39 | DHK7: 0 | DHL7: 14 | DHM7: 0 | DHN7: 9 | DHO7: 18 | DHP7: 48 | DHQ7: 5 | DHR7: 75 | DHS7: 4 | DHT7: 3 | DHU7: 0 | DHV7: 25 | DHW7: 12 | DHX7: 0 | DHY7: 9 | DHZ7: 16 | DIA7: 0 | DIB7: 52 | DIC7: 0 | DID7: 0 | DIE7: 0 | DIF7: 13 | DIG7: 22 | DIH7: 9 | DII7: 3 | DIJ7: 4 | DIK7: 144 | DIL7: 179 | DIM7: 92 | DIN7: 3 | DIO7: 13 | DIP7: 12 | DIQ7: 290 | DIR7: 7 | DIS7: 0 | DIT7: 5 | DIU7: 0 | DIV7: 14 | DIW7: 19 | DIX7: 0 | DIY7: 12 | DIZ7: 7 | DJA7: 0 | DJB7: 4 | DJC7: 0 | DJD7: 0 | DJE7: 0 | DJF7: 6 | DJG7: 30 | DJH7: 8 | DJI7: 62 | DJJ7: 13 | DJK7: 6 | DJL7: 0 | DJM7: 0 | DJN7: 3 | DJO7: 3 | DJP7: 12 | DJQ7: 3 | DJR7: 0 | DJS7: 3 | DJT7: 17 | DJU7: 42 | DJV7: 8 | DJW7: 16 | DJX7: 11 | DJY7: 0 | DJZ7: 71 | DKA7: 3 | DKB7: 8 | DKC7: 9 | DKD7: 0 | DKE7: 17 | DKF7: 3 | DKG7: 3 | DKH7: 6 | DKI7: 0 | DKJ7: 14 | DKK7: 0 | DKL7: 0 | DKM7: 0 | DKN7: 147 | DKO7: 0 | DKP7: 0 | DKQ7: 0 | DKR7: 0 | DKS7: 4 | DKT7: 3 | DKU7: 10 | DKV7: 129 | DKW7: 0 | DKX7: 0
A8: =IF('Paste CCD Numbers Here'!D9>0,'Paste CCD Numbers Here'!D9,0) -> 0 | C8: Construction | D8: 74 | E8: 65 | F8: 343 | G8: 81 | H8: 130 | I8: 50 | J8: 21 | K8: 107 | L8: 9 | M8: 19 | N8: 80 | O8: 33 | P8: 58 | Q8: 50 | R8: 60 | S8: 21 | T8: 32 | U8: 49 | V8: 60 | W8: 281 | X8: 45 | Y8: 424 | Z8: 78 | AA8: 162 | AB8: 456 | AC8: 37 | AD8: 29 | AE8: 60 | AF8: 104 | AG8: 142 | AH8: 417 | AI8: 44 | AJ8: 14 | AK8: 45 | AL8: 62 | AM8: 23 | AN8: 81 | AO8: 19 | AP8: 29 | AQ8: 79 | AR8: 67 | AS8: 34 | AT8: 20 | AU8: 40 | AV8: 34 | AW8: 7 | AX8: 63 | AY8: 126 | AZ8: 33 | BA8: 58 | BB8: 42 | BC8: 152 | BD8: 24 | BE8: 5 | BF8: 32 | BG8: 75 | BH8: 76 | BI8: 30 | BJ8: 52 | BK8: 57 | BL8: 6 | BM8: 123 | BN8: 28 | BO8: 109 | BP8: 126 | BQ8: 17 | BR8: 40 | BS8: 45 | BT8: 26 | BU8: 35 | BV8: 26 | BW8: 59 | BX8: 29 | BY8: 110 | BZ8: 43 | CA8: 17 | CB8: 18 | CC8: 32 | CD8: 24 | CE8: 29 | CF8: 14 | CG8: 83 | CH8: 58 | CI8: 35 | CJ8: 13 | CK8: 17 | CL8: 26 | CM8: 10 | CN8: 101 | CO8: 7 | CP8: 64 | CQ8: 96 | CR8: 84 | CS8: 136 | CT8: 17 | CU8: 11 | CV8: 25 | CW8: 13 | CX8: 34 | CY8: 27 | CZ8: 53 | DA8: 27 | DB8: 76 | DC8: 4 | DD8: 35 | DE8: 8 | DF8: 6 | DG8: 86 | DH8: 7 | DI8: 110 | DJ8: 24 | DK8: 12 | DL8: 8 | DM8: 22 | DN8: 12 | DO8: 416 | DP8: 380 | DQ8: 26 | DR8: 13 | DS8: 53 | DT8: 65 | DU8: 14 | DV8: 0 | DW8: 0 | DX8: 4 | DY8: 22 | DZ8: 3 | EA8: 9 | EB8: 348 | EC8: 96 | ED8: 50 | EE8: 84 | EF8: 38 | EG8: 3 | EH8: 27 | EI8: 28 | EJ8: 35 | EK8: 154 | EL8: 95 | EM8: 108 | EN8: 54 | EO8: 38 | EP8: 33 | EQ8: 0 | ER8: 14 | ES8: 16 | ET8: 104 | EU8: 94 | EV8: 102 | EW8: 283 | EX8: 101 | EY8: 28 | EZ8: 23 | FA8: 44 | FB8: 67 | FC8: 15 | FD8: 7 | FE8: 17 | FF8: 50 | FG8: 206 | FH8: 50 | FI8: 107 | FJ8: 77 | FK8: 53 | FL8: 55 | FM8: 64 | FN8: 30 | FO8: 13 | FP8: 11 | FQ8: 23 | FR8: 40 | FS8: 9 | FT8: 113 | FU8: 89 | FV8: 39 | FW8: 30 | FX8: 60 | FY8: 179 | FZ8: 23 | GA8: 17 | GB8: 66 | GC8: 22 | GD8: 32 | GE8: 15 | GF8: 118 | GG8: 45 | GH8: 3 | GI8: 9 | GJ8: 327 | GK8: 208 | GL8: 78 | GM8: 219 | GN8: 924 | GO8: 20 | GP8: 39 | GQ8: 17 | GR8: 26 | GS8: 97 | GT8: 68 | GU8: 33 | GV8: 16 | GW8: 25 | GX8: 8 | GY8: 12 | GZ8: 12 | HA8: 25 | HB8: 39 | HC8: 0 | HD8: 14 | HE8: 33 | HF8: 35 | HG8: 14 | HH8: 12 | HI8: 7 | HJ8: 41 | HK8: 43 | HL8: 52 | HM8: 72 | HN8: 36 | HO8: 25 | HP8: 57 | HQ8: 116 | HR8: 49 | HS8: 44 | HT8: 79 | HU8: 22 | HV8: 94 | HW8: 44 | HX8: 57 | HY8: 46 | HZ8: 18 | IA8: 19 | IB8: 26 | IC8: 95 | ID8: 152 | IE8: 109 | IF8: 52 | IG8: 588 | IH8: 59 | II8: 21 | IJ8: 148 | IK8: 54 | IL8: 19 | IM8: 52 | IN8: 193 | IO8: 0 | IP8: 45 | IQ8: 16 | IR8: 57 | IS8: 467 | IT8: 7 | IU8: 45 | IV8: 37 | IW8: 62 | IX8: 345 | IY8: 36 | IZ8: 16 | JA8: 44 | JB8: 163 | JC8: 37 | JD8: 147 | JE8: 362 | JF8: 103 | JG8: 184 | JH8: 40 | JI8: 21 | JJ8: 145 | JK8: 26 | JL8: 187 | JM8: 16 | JN8: 20 | JO8: 12 | JP8: 114 | JQ8: 21 | JR8: 6 | JS8: 42 | JT8: 25 | JU8: 143 | JV8: 71 | JW8: 380 | JX8: 8 | JY8: 217 | JZ8: 528 | KA8: 0 | KB8: 66 | KC8: 85 | KD8: 42 | KE8: 34 | KF8: 64 | KG8: 39 | KH8: 13 | KI8: 205 | KJ8: 53 | KK8: 114 | KL8: 28 | KM8: 103 | KN8: 12 | KO8: 89 | KP8: 59 | KQ8: 105 | KR8: 33 | KS8: 51 | KT8: 136 | KU8: 82 | KV8: 107 | KW8: 433 | KX8: 85 | KY8: 176 | KZ8: 230 | LA8: 118 | LB8: 151 | LC8: 253 | LD8: 101 | LE8: 220 | LF8: 50 | LG8: 110 | LH8: 83 | LI8: 73 | LJ8: 55 | LK8: 96 | LL8: 71 | LM8: 168 | LN8: 207 | LO8: 269 | LP8: 117 | LQ8: 6 | LR8: 48 | LS8: 89 | LT8: 121 | LU8: 35 | LV8: 26 | LW8: 332 | LX8: 19 | LY8: 17 | LZ8: 90 | MA8: 256 | MB8: 31 | MC8: 506 | MD8: 28 | ME8: 16 | MF8: 58 | MG8: 36 | MH8: 249 | MI8: 375 | MJ8: 66 | MK8: 72 | ML8: 25 | MM8: 111 | MN8: 25 | MO8: 65 | MP8: 108 | MQ8: 32 | MR8: 107 | MS8: 3 | MT8: 0 | MU8: 5 | MV8: 25 | MW8: 57 | MX8: 39 | MY8: 24 | MZ8: 24 | NA8: 32 | NB8: 34 | NC8: 75 | ND8: 44 | NE8: 136 | NF8: 30 | NG8: 147 | NH8: 128 | NI8: 44 | NJ8: 47 | NK8: 41 | NL8: 276 | NM8: 16 | NN8: 50 | NO8: 47 | NP8: 150 | NQ8: 88 | NR8: 4 | NS8: 457 | NT8: 81 | NU8: 76 | NV8: 317 | NW8: 227 | NX8: 164 | NY8: 37 | NZ8: 58 | OA8: 5 | OB8: 50 | OC8: 23 | OD8: 35 | OE8: 107 | OF8: 43 | OG8: 157 | OH8: 24 | OI8: 34 | OJ8: 70 | OK8: 37 | OL8: 122 | OM8: 33 | ON8: 174 | OO8: 87 | OP8: 366 | OQ8: 53 | OR8: 0 | OS8: 512 | OT8: 257 | OU8: 37 | OV8: 74 | OW8: 52 | OX8: 0 | OY8: 78 | OZ8: 145 | PA8: 37 | PB8: 95 | PC8: 21 | PD8: 92 | PE8: 0 | PF8: 24 | PG8: 197 | PH8: 6 | PI8: 122 | PJ8: 137 | PK8: 102 | PL8: 26 | PM8: 24 | PN8: 303 | PO8: 109 | PP8: 92 | PQ8: 165 | PR8: 0 | PS8: 33 | PT8: 155 | PU8: 117 | PV8: 307 | PW8: 68 | PX8: 33 | PY8: 86 | PZ8: 79 | QA8: 33 | QB8: 42 | QC8: 170 | QD8: 169 | QE8: 17 | QF8: 25 | QG8: 14 | QH8: 175 | QI8: 55 | QJ8: 3 | QK8: 25 | QL8: 101 | QM8: 25 | QN8: 99 | QO8: 94 | QP8: 0 | QQ8: 15 | QR8: 203 | QS8: 19 | QT8: 8 | QU8: 12 | QV8: 77 | QW8: 11 | QX8: 6 | QY8: 4 | QZ8: 3 | RA8: 24 | RB8: 174 | RC8: 85 | RD8: 9 | RE8: 22 | RF8: 86 | RG8: 19 | RH8: 419 | RI8: 195 | RJ8: 29 | RK8: 72 | RL8: 37 | RM8: 16 | RN8: 0 | RO8: 53 | RP8: 45 | RQ8: 27 | RR8: 63 | RS8: 0 | RT8: 129 | RU8: 28 | RV8: 93 | RW8: 27 | RX8: 21 | RY8: 81 | RZ8: 177 | SA8: 102 | SB8: 42 | SC8: 50 | SD8: 20 | SE8: 6 | SF8: 20 | SG8: 12 | SH8: 120 | SI8: 24 | SJ8: 22 | SK8: 18 | SL8: 35 | SM8: 38 | SN8: 43 | SO8: 305 | SP8: 61 | SQ8: 35 | SR8: 65 | SS8: 102 | ST8: 21 | SU8: 16 | SV8: 14 | SW8: 18 | SX8: 19 | SY8: 21 | SZ8: 8 | TA8: 9 | TB8: 25 | TC8: 75 | TD8: 21 | TE8: 59 | TF8: 10 | TG8: 107 | TH8: 14 | TI8: 18 | TJ8: 147 | TK8: 23 | TL8: 18 | TM8: 9 | TN8: 80 | TO8: 131 | TP8: 14 | TQ8: 82 | TR8: 16 | TS8: 62 | TT8: 29 | TU8: 51 | TV8: 27 | TW8: 68 | TX8: 60 | TY8: 18 | TZ8: 95 | UA8: 60 | UB8: 52 | UC8: 61 | UD8: 12 | UE8: 83 | UF8: 547 | UG8: 3 | UH8: 18 | UI8: 30 | UJ8: 17 | UK8: 4 | UL8: 4 | UM8: 48 | UN8: 40 | UO8: 22 | UP8: 57 | UQ8: 18 | UR8: 3 | US8: 69 | UT8: 29 | UU8: 123 | UV8: 75 | UW8: 29 | UX8: 13 | UY8: 7 | UZ8: 26 | VA8: 0 | VB8: 0 | VC8: 29 | VD8: 58 | VE8: 21 | VF8: 16 | VG8: 113 | VH8: 54 | VI8: 43 | VJ8: 3 | VK8: 41 | VL8: 52 | VM8: 44 | VN8: 35 | VO8: 8 | VP8: 7 | VQ8: 18 | VR8: 19 | VS8: 21 | VT8: 11 | VU8: 81 | VV8: 82 | VW8: 45 | VX8: 8 | VY8: 58 | VZ8: 8 | WA8: 12 | WB8: 53 | WC8: 40 | WD8: 27 | WE8: 134 | WF8: 74 | WG8: 86 | WH8: 101 | WI8: 34 | WJ8: 35 | WK8: 46 | WL8: 50 | WM8: 89 | WN8: 16 | WO8: 24 | WP8: 24 | WQ8: 19 | WR8: 21 | WS8: 11 | WT8: 48 | WU8: 101 | WV8: 53 | WW8: 35 | WX8: 14 | WY8: 23 | WZ8: 17 | XA8: 60 | XB8: 0 | XC8: 84 | XD8: 102 | XE8: 4 | XF8: 32 | XG8: 124 | XH8: 19 | XI8: 0 | XJ8: 25 | XK8: 137 | XL8: 308 | XM8: 126 | XN8: 80 | XO8: 559 | XP8: 160 | XQ8: 117 | XR8: 56 | XS8: 89 | XT8: 81 | XU8: 108 | XV8: 3 | XW8: 16 | XX8: 238 | XY8: 11 | XZ8: 156 | YA8: 55 | YB8: 32 | YC8: 12 | YD8: 48 | YE8: 0 | YF8: 0 | YG8: 26 | YH8: 24 | YI8: 27 | YJ8: 19 | YK8: 78 | YL8: 149 | YM8: 66 | YN8: 366 | YO8: 131 | YP8: 0 | YQ8: 30 | YR8: 269 | YS8: 41 | YT8: 329 | YU8: 105 | YV8: 36 | YW8: 115 | YX8: 164 | YY8: 572 | YZ8: 56 | ZA8: 48 | ZB8: 65 | ZC8: 19 | ZD8: 3 | ZE8: 26 | ZF8: 285 | ZG8: 162 | ZH8: 55 | ZI8: 70 | ZJ8: 66 | ZK8: 97 | ZL8: 10 | ZM8: 32 | ZN8: 18 | ZO8: 11 | ZP8: 30 | ZQ8: 7 | ZR8: 48 | ZS8: 261 | ZT8: 47 | ZU8: 202 | ZV8: 12 | ZW8: 59 | ZX8: 44 | ZY8: 124 | ZZ8: 267 | AAA8: 4 | AAB8: 159 | AAC8: 286 | AAD8: 241 | AAE8: 132 | AAF8: 69 | AAG8: 542 | AAH8: 68 | AAI8: 72 | AAJ8: 29 | AAK8: 155 | AAL8: 1390 | AAM8: 113 | AAN8: 144 | AAO8: 47 | AAP8: 74 | AAQ8: 57 | AAR8: 77 | AAS8: 117 | AAT8: 296 | AAU8: 131 | AAV8: 15 | AAW8: 48 | AAX8: 34 | AAY8: 27 | AAZ8: 13 | ABA8: 69 | ABB8: 115 | ABC8: 153 | ABD8: 36 | ABE8: 252 | ABF8: 30 | ABG8: 46 | ABH8: 21 | ABI8: 43 | ABJ8: 0 | ABK8: 16 | ABL8: 430 | ABM8: 332 | ABN8: 13 | ABO8: 176 | ABP8: 13 | ABQ8: 40 | ABR8: 57 | ABS8: 166 | ABT8: 99 | ABU8: 102 | ABV8: 9 | ABW8: 75 | ABX8: 29 | ABY8: 318 | ABZ8: 387 | ACA8: 101 | ACB8: 53 | ACC8: 106 | ACD8: 44 | ACE8: 8 | ACF8: 37 | ACG8: 377 | ACH8: 0 | ACI8: 40 | ACJ8: 295 | ACK8: 28 | ACL8: 34 | ACM8: 183 | ACN8: 23 | ACO8: 307 | ACP8: 537 | ACQ8: 390 | ACR8: 62 | ACS8: 51 | ACT8: 52 | ACU8: 55 | ACV8: 16 | ACW8: 49 | ACX8: 40 | ACY8: 36 | ACZ8: 96 | ADA8: 12 | ADB8: 89 | ADC8: 35 | ADD8: 102 | ADE8: 95 | ADF8: 10 | ADG8: 9 | ADH8: 12 | ADI8: 10 | ADJ8: 22 | ADK8: 25 | ADL8: 20 | ADM8: 29 | ADN8: 15 | ADO8: 14 | ADP8: 26 | ADQ8: 912 | ADR8: 590 | ADS8: 103 | ADT8: 337 | ADU8: 22 | ADV8: 394 | ADW8: 741 | ADX8: 411 | ADY8: 341 | ADZ8: 27 | AEA8: 284 | AEB8: 173 | AEC8: 332 | AED8: 237 | AEE8: 58 | AEF8: 346 | AEG8: 80 | AEH8: 9 | AEI8: 247 | AEJ8: 18 | AEK8: 104 | AEL8: 334 | AEM8: 91 | AEN8: 28 | AEO8: 62 | AEP8: 37 | AEQ8: 54 | AER8: 28 | AES8: 68 | AET8: 112 | AEU8: 44 | AEV8: 38 | AEW8: 93 | AEX8: 3 | AEY8: 143 | AEZ8: 38 | AFA8: 30 | AFB8: 145 | AFC8: 48 | AFD8: 21 | AFE8: 3 | AFF8: 0 | AFG8: 29 | AFH8: 30 | AFI8: 27 | AFJ8: 38 | AFK8: 156 | AFL8: 55 | AFM8: 90 | AFN8: 19 | AFO8: 91 | AFP8: 83 | AFQ8: 97 | AFR8: 66 | AFS8: 68 | AFT8: 21 | AFU8: 48 | AFV8: 10 | AFW8: 296 | AFX8: 13 | AFY8: 17 | AFZ8: 46 | AGA8: 26 | AGB8: 58 | AGC8: 30 | AGD8: 17 | AGE8: 36 | AGF8: 167 | AGG8: 40 | AGH8: 36 | AGI8: 93 | AGJ8: 49 | AGK8: 195 | AGL8: 8 | AGM8: 28 | AGN8: 121 | AGO8: 25 | AGP8: 43 | AGQ8: 92 | AGR8: 111 | AGS8: 225 | AGT8: 85 | AGU8: 122 | AGV8: 67 | AGW8: 14 | AGX8: 37 | AGY8: 20 | AGZ8: 8 | AHA8: 54 | AHB8: 15 | AHC8: 59 | AHD8: 19 | AHE8: 13 | AHF8: 28 | AHG8: 8 | AHH8: 7 | AHI8: 48 | AHJ8: 15 | AHK8: 40 | AHL8: 22 | AHM8: 124 | AHN8: 34 | AHO8: 21 | AHP8: 66 | AHQ8: 30 | AHR8: 29 | AHS8: 48 | AHT8: 21 | AHU8: 133 | AHV8: 24 | AHW8: 136 | AHX8: 290 | AHY8: 304 | AHZ8: 243 | AIA8: 56 | AIB8: 19 | AIC8: 61 | AID8: 27 | AIE8: 53 | AIF8: 217 | AIG8: 21 | AIH8: 13 | AII8: 14 | AIJ8: 59 | AIK8: 45 | AIL8: 145 | AIM8: 11 | AIN8: 70 | AIO8: 129 | AIP8: 81 | AIQ8: 38 | AIR8: 100 | AIS8: 113 | AIT8: 56 | AIU8: 61 | AIV8: 148 | AIW8: 115 | AIX8: 21 | AIY8: 32 | AIZ8: 24 | AJA8: 26 | AJB8: 12 | AJC8: 20 | AJD8: 43 | AJE8: 50 | AJF8: 34 | AJG8: 39 | AJH8: 29 | AJI8: 15 | AJJ8: 17 | AJK8: 9 | AJL8: 16 | AJM8: 34 | AJN8: 45 | AJO8: 28 | AJP8: 31 | AJQ8: 74 | AJR8: 18 | AJS8: 36 | AJT8: 4 | AJU8: 40 | AJV8: 11 | AJW8: 8 | AJX8: 15 | AJY8: 4 | AJZ8: 5 | AKA8: 0 | AKB8: 26 | AKC8: 25 | AKD8: 18 | AKE8: 26 | AKF8: 16 | AKG8: 21 | AKH8: 47 | AKI8: 54 | AKJ8: 60 | AKK8: 52 | AKL8: 33 | AKM8: 12 | AKN8: 44 | AKO8: 10 | AKP8: 16 | AKQ8: 53 | AKR8: 11 | AKS8: 87 | AKT8: 29 | AKU8: 129 | AKV8: 12 | AKW8: 21 | AKX8: 67 | AKY8: 10 | AKZ8: 44 | ALA8: 51 | ALB8: 55 | ALC8: 23 | ALD8: 45 | ALE8: 13 | ALF8: 244 | ALG8: 26 | ALH8: 20 | ALI8: 69 | ALJ8: 113 | ALK8: 19 | ALL8: 26 | ALM8: 115 | ALN8: 18 | ALO8: 4 | ALP8: 9 | ALQ8: 45 | ALR8: 45 | ALS8: 65 | ALT8: 61 | ALU8: 48 | ALV8: 25 | ALW8: 50 | ALX8: 38 | ALY8: 10 | ALZ8: 294 | AMA8: 3 | AMB8: 22 | AMC8: 16 | AMD8: 119 | AME8: 72 | AMF8: 48 | AMG8: 99 | AMH8: 25 | AMI8: 20 | AMJ8: 26 | AMK8: 56 | AML8: 35 | AMM8: 20 | AMN8: 64 | AMO8: 45 | AMP8: 128 | AMQ8: 23 | AMR8: 45 | AMS8: 17 | AMT8: 54 | AMU8: 10 | AMV8: 45 | AMW8: 41 | AMX8: 11 | AMY8: 28 | AMZ8: 214 | ANA8: 29 | ANB8: 23 | ANC8: 25 | AND8: 26 | ANE8: 40 | ANF8: 227 | ANG8: 76 | ANH8: 43 | ANI8: 75 | ANJ8: 47 | ANK8: 15 | ANL8: 69 | ANM8: 53 | ANN8: 18 | ANO8: 3 | ANP8: 36 | ANQ8: 22 | ANR8: 33 | ANS8: 6 | ANT8: 72 | ANU8: 70 | ANV8: 28 | ANW8: 64 | ANX8: 64 | ANY8: 33 | ANZ8: 21 | AOA8: 5 | AOB8: 32 | AOC8: 76 | AOD8: 19 | AOE8: 13 | AOF8: 40 | AOG8: 23 | AOH8: 51 | AOI8: 49 | AOJ8: 47 | AOK8: 16 | AOL8: 46 | AOM8: 91 | AON8: 34 | AOO8: 19 | AOP8: 30 | AOQ8: 234 | AOR8: 48 | AOS8: 17 | AOT8: 88 | AOU8: 8 | AOV8: 18 | AOW8: 21 | AOX8: 19 | AOY8: 73 | AOZ8: 44 | APA8: 29 | APB8: 23 | APC8: 27 | APD8: 20 | APE8: 14 | APF8: 113 | APG8: 32 | APH8: 0 | API8: 11 | APJ8: 44 | APK8: 29 | APL8: 19 | APM8: 158 | APN8: 123 | APO8: 3 | APP8: 18 | APQ8: 9 | APR8: 3 | APS8: 9 | APT8: 10 | APU8: 7 | APV8: 24 | APW8: 27 | APX8: 17 | APY8: 13 | APZ8: 33 | AQA8: 49 | AQB8: 70 | AQC8: 81 | AQD8: 153 | AQE8: 266 | AQF8: 9 | AQG8: 3 | AQH8: 30 | AQI8: 36 | AQJ8: 3 | AQK8: 21 | AQL8: 56 | AQM8: 24 | AQN8: 19 | AQO8: 19 | AQP8: 16 | AQQ8: 41 | AQR8: 36 | AQS8: 35 | AQT8: 38 | AQU8: 13 | AQV8: 96 | AQW8: 0 | AQX8: 89 | AQY8: 73 | AQZ8: 105 | ARA8: 56 | ARB8: 10 | ARC8: 31 | ARD8: 50 | ARE8: 56 | ARF8: 58 | ARG8: 33 | ARH8: 13 | ARI8: 7 | ARJ8: 36 | ARK8: 70 | ARL8: 28 | ARM8: 14 | ARN8: 29 | ARO8: 49 | ARP8: 21 | ARQ8: 67 | ARR8: 29 | ARS8: 66 | ART8: 49 | ARU8: 33 | ARV8: 18 | ARW8: 15 | ARX8: 48 | ARY8: 45 | ARZ8: 23 | ASA8: 38 | ASB8: 72 | ASC8: 30 | ASD8: 36 | ASE8: 14 | ASF8: 198 | ASG8: 49 | ASH8: 72 | ASI8: 243 | ASJ8: 165 | ASK8: 31 | ASL8: 9 | ASM8: 17 | ASN8: 29 | ASO8: 38 | ASP8: 13 | ASQ8: 47 | ASR8: 52 | ASS8: 70 | AST8: 26 | ASU8: 20 | ASV8: 53 | ASW8: 80 | ASX8: 89 | ASY8: 26 | ASZ8: 45 | ATA8: 20 | ATB8: 29 | ATC8: 35 | ATD8: 36 | ATE8: 39 | ATF8: 16 | ATG8: 68 | ATH8: 64 | ATI8: 14 | ATJ8: 28 | ATK8: 12 | ATL8: 18 | ATM8: 5 | ATN8: 74 | ATO8: 24 | ATP8: 22 | ATQ8: 13 | ATR8: 11 | ATS8: 8 | ATT8: 25 | ATU8: 67 | ATV8: 13 | ATW8: 16 | ATX8: 23 | ATY8: 279 | ATZ8: 14 | AUA8: 18 | AUB8: 14 | AUC8: 77 | AUD8: 24 | AUE8: 21 | AUF8: 31 | AUG8: 35 | AUH8: 18 | AUI8: 77 | AUJ8: 42 | AUK8: 43 | AUL8: 35 | AUM8: 60 | AUN8: 164 | AUO8: 53 | AUP8: 29 | AUQ8: 70 | AUR8: 35 | AUS8: 19 | AUT8: 55 | AUU8: 21 | AUV8: 24 | AUW8: 12 | AUX8: 42 | AUY8: 15 | AUZ8: 54 | AVA8: 58 | AVB8: 61 | AVC8: 17 | AVD8: 20 | AVE8: 42 | AVF8: 20 | AVG8: 66 | AVH8: 34 | AVI8: 65 | AVJ8: 8 | AVK8: 26 | AVL8: 36 | AVM8: 21 | AVN8: 7 | AVO8: 12 | AVP8: 16 | AVQ8: 35 | AVR8: 48 | AVS8: 39 | AVT8: 237 | AVU8: 18 | AVV8: 35 | AVW8: 70 | AVX8: 77 | AVY8: 90 | AVZ8: 83 | AWA8: 37 | AWB8: 34 | AWC8: 490 | AWD8: 214 | AWE8: 403 | AWF8: 426 | AWG8: 6 | AWH8: 493 | AWI8: 10 | AWJ8: 55 | AWK8: 64 | AWL8: 27 | AWM8: 14 | AWN8: 49 | AWO8: 5 | AWP8: 130 | AWQ8: 11 | AWR8: 29 | AWS8: 56 | AWT8: 23 | AWU8: 62 | AWV8: 19 | AWW8: 37 | AWX8: 187 | AWY8: 13 | AWZ8: 30 | AXA8: 5 | AXB8: 30 | AXC8: 23 | AXD8: 8 | AXE8: 12 | AXF8: 32 | AXG8: 28 | AXH8: 36 | AXI8: 64 | AXJ8: 272 | AXK8: 272 | AXL8: 26 | AXM8: 27 | AXN8: 86 | AXO8: 152 | AXP8: 38 | AXQ8: 41 | AXR8: 83 | AXS8: 86 | AXT8: 25 | AXU8: 7 | AXV8: 110 | AXW8: 13 | AXX8: 21 | AXY8: 33 | AXZ8: 6 | AYA8: 14 | AYB8: 19 | AYC8: 22 | AYD8: 122 | AYE8: 5 | AYF8: 97 | AYG8: 24 | AYH8: 203 | AYI8: 416 | AYJ8: 341 | AYK8: 247 | AYL8: 170 | AYM8: 619 | AYN8: 5 | AYO8: 5 | AYP8: 40 | AYQ8: 163 | AYR8: 70 | AYS8: 62 | AYT8: 94 | AYU8: 71 | AYV8: 37 | AYW8: 171 | AYX8: 27 | AYY8: 343 | AYZ8: 30 | AZA8: 28 | AZB8: 31 | AZC8: 34 | AZD8: 8 | AZE8: 37 | AZF8: 12 | AZG8: 25 | AZH8: 29 | AZI8: 33 | AZJ8: 23 | AZK8: 154 | AZL8: 70 | AZM8: 34 | AZN8: 18 | AZO8: 37 | AZP8: 69 | AZQ8: 11 | AZR8: 20 | AZS8: 26 | AZT8: 38 | AZU8: 37 | AZV8: 44 | AZW8: 130 | AZX8: 29 | AZY8: 9 | AZZ8: 244 | BAA8: 81 | BAB8: 198 | BAC8: 32 | BAD8: 13 | BAE8: 65 | BAF8: 7 | BAG8: 45 | BAH8: 36 | BAI8: 73 | BAJ8: 31 | BAK8: 39 | BAL8: 12 | BAM8: 69 | BAN8: 7 | BAO8: 37 | BAP8: 19 | BAQ8: 32 | BAR8: 67 | BAS8: 27 | BAT8: 23 | BAU8: 62 | BAV8: 18 | BAW8: 17 | BAX8: 452 | BAY8: 421 | BAZ8: 5 | BBA8: 7 | BBB8: 19 | BBC8: 4 | BBD8: 36 | BBE8: 26 | BBF8: 122 | BBG8: 19 | BBH8: 12 | BBI8: 25 | BBJ8: 53 | BBK8: 29 | BBL8: 23 | BBM8: 19 | BBN8: 23 | BBO8: 8 | BBP8: 51 | BBQ8: 47 | BBR8: 21 | BBS8: 38 | BBT8: 9 | BBU8: 24 | BBV8: 35 | BBW8: 75 | BBX8: 96 | BBY8: 86 | BBZ8: 32 | BCA8: 11 | BCB8: 31 | BCC8: 65 | BCD8: 102 | BCE8: 55 | BCF8: 3 | BCG8: 51 | BCH8: 22 | BCI8: 16 | BCJ8: 21 | BCK8: 25 | BCL8: 11 | BCM8: 42 | BCN8: 32 | BCO8: 4 | BCP8: 18 | BCQ8: 71 | BCR8: 44 | BCS8: 74 | BCT8: 29 | BCU8: 19 | BCV8: 18 | BCW8: 17 | BCX8: 5 | BCY8: 44 | BCZ8: 14 | BDA8: 20 | BDB8: 82 | BDC8: 51 | BDD8: 209 | BDE8: 257 | BDF8: 0 | BDG8: 7 | BDH8: 16 | BDI8: 4 | BDJ8: 13 | BDK8: 67 | BDL8: 52 | BDM8: 29 | BDN8: 16 | BDO8: 31 | BDP8: 30 | BDQ8: 57 | BDR8: 38 | BDS8: 36 | BDT8: 20 | BDU8: 39 | BDV8: 20 | BDW8: 67 | BDX8: 4 | BDY8: 24 | BDZ8: 9 | BEA8: 36 | BEB8: 282 | BEC8: 23 | BED8: 49 | BEE8: 46 | BEF8: 26 | BEG8: 41 | BEH8: 34 | BEI8: 30 | BEJ8: 190 | BEK8: 13 | BEL8: 76 | BEM8: 41 | BEN8: 40 | BEO8: 80 | BEP8: 58 | BEQ8: 22 | BER8: 15 | BES8: 57 | BET8: 77 | BEU8: 17 | BEV8: 26 | BEW8: 26 | BEX8: 13 | BEY8: 75 | BEZ8: 12 | BFA8: 65 | BFB8: 81 | BFC8: 18 | BFD8: 26 | BFE8: 60 | BFF8: 15 | BFG8: 66 | BFH8: 108 | BFI8: 30 | BFJ8: 108 | BFK8: 38 | BFL8: 25 | BFM8: 40 | BFN8: 38 | BFO8: 50 | BFP8: 68 | BFQ8: 109 | BFR8: 106 | BFS8: 17 | BFT8: 40 | BFU8: 179 | BFV8: 24 | BFW8: 59 | BFX8: 45 | BFY8: 25 | BFZ8: 31 | BGA8: 98 | BGB8: 77 | BGC8: 42 | BGD8: 20 | BGE8: 49 | BGF8: 173 | BGG8: 595 | BGH8: 39 | BGI8: 198 | BGJ8: 457 | BGK8: 34 | BGL8: 362 | BGM8: 292 | BGN8: 24 | BGO8: 903 | BGP8: 37 | BGQ8: 223 | BGR8: 25 | BGS8: 227 | BGT8: 122 | BGU8: 291 | BGV8: 60 | BGW8: 37 | BGX8: 76 | BGY8: 36 | BGZ8: 79 | BHA8: 3 | BHB8: 62 | BHC8: 55 | BHD8: 119 | BHE8: 19 | BHF8: 7 | BHG8: 39 | BHH8: 5 | BHI8: 36 | BHJ8: 52 | BHK8: 75 | BHL8: 702 | BHM8: 17 | BHN8: 4 | BHO8: 136 | BHP8: 6 | BHQ8: 550 | BHR8: 71 | BHS8: 56 | BHT8: 16 | BHU8: 0 | BHV8: 40 | BHW8: 141 | BHX8: 0 | BHY8: 32 | BHZ8: 27 | BIA8: 198 | BIB8: 231 | BIC8: 42 | BID8: 94 | BIE8: 158 | BIF8: 131 | BIG8: 20 | BIH8: 33 | BII8: 0 | BIJ8: 5 | BIK8: 34 | BIL8: 10 | BIM8: 156 | BIN8: 0 | BIO8: 45 | BIP8: 37 | BIQ8: 78 | BIR8: 71 | BIS8: 153 | BIT8: 549 | BIU8: 41 | BIV8: 170 | BIW8: 987 | BIX8: 28 | BIY8: 41 | BIZ8: 0 | BJA8: 25 | BJB8: 335 | BJC8: 537 | BJD8: 972 | BJE8: 906 | BJF8: 56 | BJG8: 11 | BJH8: 221 | BJI8: 27 | BJJ8: 44 | BJK8: 35 | BJL8: 58 | BJM8: 13 | BJN8: 72 | BJO8: 65 | BJP8: 40 | BJQ8: 111 | BJR8: 24 | BJS8: 40 | BJT8: 44 | BJU8: 42 | BJV8: 70 | BJW8: 239 | BJX8: 215 | BJY8: 22 | BJZ8: 0 | BKA8: 39 | BKB8: 22 | BKC8: 42 | BKD8: 119 | BKE8: 71 | BKF8: 151 | BKG8: 42 | BKH8: 56 | BKI8: 82 | BKJ8: 335 | BKK8: 3 | BKL8: 17 | BKM8: 0 | BKN8: 219 | BKO8: 26 | BKP8: 46 | BKQ8: 53 | BKR8: 37 | BKS8: 27 | BKT8: 33 | BKU8: 121 | BKV8: 44 | BKW8: 41 | BKX8: 65 | BKY8: 82 | BKZ8: 56 | BLA8: 24 | BLB8: 18 | BLC8: 74 | BLD8: 27 | BLE8: 24 | BLF8: 36 | BLG8: 72 | BLH8: 51 | BLI8: 21 | BLJ8: 5 | BLK8: 50 | BLL8: 24 | BLM8: 67 | BLN8: 25 | BLO8: 10 | BLP8: 73 | BLQ8: 20 | BLR8: 27 | BLS8: 71 | BLT8: 19 | BLU8: 48 | BLV8: 54 | BLW8: 466 | BLX8: 44 | BLY8: 8 | BLZ8: 47 | BMA8: 39 | BMB8: 27 | BMC8: 8 | BMD8: 46 | BME8: 24 | BMF8: 9 | BMG8: 6 | BMH8: 10 | BMI8: 13 | BMJ8: 9 | BMK8: 179 | BML8: 27 | BMM8: 26 | BMN8: 34 | BMO8: 54 | BMP8: 192 | BMQ8: 30 | BMR8: 36 | BMS8: 20 | BMT8: 254 | BMU8: 67 | BMV8: 296 | BMW8: 103 | BMX8: 1379 | BMY8: 951 | BMZ8: 186 | BNA8: 374 | BNB8: 14 | BNC8: 195 | BND8: 48 | BNE8: 96 | BNF8: 136 | BNG8: 34 | BNH8: 13 | BNI8: 54 | BNJ8: 41 | BNK8: 54 | BNL8: 58 | BNM8: 15 | BNN8: 86 | BNO8: 123 | BNP8: 107 | BNQ8: 48 | BNR8: 77 | BNS8: 44 | BNT8: 290 | BNU8: 274 | BNV8: 165 | BNW8: 19 | BNX8: 193 | BNY8: 4 | BNZ8: 26 | BOA8: 23 | BOB8: 16 | BOC8: 0 | BOD8: 99 | BOE8: 7 | BOF8: 259 | BOG8: 21 | BOH8: 23 | BOI8: 14 | BOJ8: 8 | BOK8: 35 | BOL8: 0 | BOM8: 49 | BON8: 62 | BOO8: 55 | BOP8: 356 | BOQ8: 546 | BOR8: 54 | BOS8: 61 | BOT8: 94 | BOU8: 19 | BOV8: 24 | BOW8: 13 | BOX8: 113 | BOY8: 828 | BOZ8: 19 | BPA8: 56 | BPB8: 47 | BPC8: 14 | BPD8: 106 | BPE8: 40 | BPF8: 31 | BPG8: 20 | BPH8: 21 | BPI8: 201 | BPJ8: 267 | BPK8: 588 | BPL8: 166 | BPM8: 311 | BPN8: 160 | BPO8: 17 | BPP8: 27 | BPQ8: 499 | BPR8: 12 | BPS8: 33 | BPT8: 46 | BPU8: 148 | BPV8: 300 | BPW8: 190 | BPX8: 348 | BPY8: 27 | BPZ8: 44 | BQA8: 93 | BQB8: 408 | BQC8: 166 | BQD8: 27 | BQE8: 25 | BQF8: 15 | BQG8: 32 | BQH8: 77 | BQI8: 24 | BQJ8: 389 | BQK8: 73 | BQL8: 141 | BQM8: 134 | BQN8: 94 | BQO8: 11 | BQP8: 36 | BQQ8: 24 | BQR8: 46 | BQS8: 3 | BQT8: 41 | BQU8: 15 | BQV8: 16 | BQW8: 18 | BQX8: 17 | BQY8: 23 | BQZ8: 29 | BRA8: 20 | BRB8: 24 | BRC8: 57 | BRD8: 17 | BRE8: 54 | BRF8: 15 | BRG8: 34 | BRH8: 116 | BRI8: 17 | BRJ8: 13 | BRK8: 216 | BRL8: 33 | BRM8: 19 | BRN8: 9 | BRO8: 9 | BRP8: 47 | BRQ8: 135 | BRR8: 13 | BRS8: 33 | BRT8: 17 | BRU8: 27 | BRV8: 18 | BRW8: 40 | BRX8: 150 | BRY8: 33 | BRZ8: 98 | BSA8: 19 | BSB8: 30 | BSC8: 34 | BSD8: 39 | BSE8: 86 | BSF8: 58 | BSG8: 28 | BSH8: 23 | BSI8: 54 | BSJ8: 69 | BSK8: 60 | BSL8: 13 | BSM8: 20 | BSN8: 8 | BSO8: 14 | BSP8: 29 | BSQ8: 16 | BSR8: 39 | BSS8: 35 | BST8: 24 | BSU8: 26 | BSV8: 26 | BSW8: 24 | BSX8: 33 | BSY8: 29 | BSZ8: 127 | BTA8: 67 | BTB8: 227 | BTC8: 36 | BTD8: 580 | BTE8: 56 | BTF8: 36 | BTG8: 565 | BTH8: 47 | BTI8: 104 | BTJ8: 45 | BTK8: 31 | BTL8: 41 | BTM8: 30 | BTN8: 4 | BTO8: 23 | BTP8: 31 | BTQ8: 47 | BTR8: 4 | BTS8: 18 | BTT8: 26 | BTU8: 9 | BTV8: 30 | BTW8: 3 | BTX8: 6 | BTY8: 17 | BTZ8: 59 | BUA8: 208 | BUB8: 139 | BUC8: 84 | BUD8: 0 | BUE8: 12 | BUF8: 30 | BUG8: 53 | BUH8: 47 | BUI8: 171 | BUJ8: 53 | BUK8: 157 | BUL8: 21 | BUM8: 5 | BUN8: 29 | BUO8: 6 | BUP8: 57 | BUQ8: 0 | BUR8: 23 | BUS8: 37 | BUT8: 11 | BUU8: 47 | BUV8: 44 | BUW8: 44 | BUX8: 87 | BUY8: 35 | BUZ8: 41 | BVA8: 43 | BVB8: 17 | BVC8: 107 | BVD8: 61 | BVE8: 31 | BVF8: 29 | BVG8: 71 | BVH8: 36 | BVI8: 16 | BVJ8: 26 | BVK8: 24 | BVL8: 22 | BVM8: 9 | BVN8: 6 | BVO8: 16 | BVP8: 37 | BVQ8: 12 | BVR8: 39 | BVS8: 73 | BVT8: 19 | BVU8: 52 | BVV8: 36 | BVW8: 324 | BVX8: 9 | BVY8: 40 | BVZ8: 28 | BWA8: 16 | BWB8: 0 | BWC8: 11 | BWD8: 9 | BWE8: 97 | BWF8: 26 | BWG8: 9 | BWH8: 16 | BWI8: 115 | BWJ8: 32 | BWK8: 44 | BWL8: 203 | BWM8: 40 | BWN8: 24 | BWO8: 30 | BWP8: 345 | BWQ8: 15 | BWR8: 54 | BWS8: 21 | BWT8: 20 | BWU8: 227 | BWV8: 27 | BWW8: 16 | BWX8: 219 | BWY8: 19 | BWZ8: 38 | BXA8: 25 | BXB8: 34 | BXC8: 25 | BXD8: 5 | BXE8: 33 | BXF8: 42 | BXG8: 106 | BXH8: 127 | BXI8: 35 | BXJ8: 228 | BXK8: 50 | BXL8: 23 | BXM8: 119 | BXN8: 86 | BXO8: 16 | BXP8: 217 | BXQ8: 20 | BXR8: 46 | BXS8: 43 | BXT8: 62 | BXU8: 236 | BXV8: 103 | BXW8: 172 | BXX8: 81 | BXY8: 68 | BXZ8: 46 | BYA8: 165 | BYB8: 31 | BYC8: 402 | BYD8: 40 | BYE8: 70 | BYF8: 19 | BYG8: 46 | BYH8: 49 | BYI8: 73 | BYJ8: 19 | BYK8: 38 | BYL8: 24 | BYM8: 38 | BYN8: 39 | BYO8: 26 | BYP8: 19 | BYQ8: 92 | BYR8: 8 | BYS8: 47 | BYT8: 80 | BYU8: 83 | BYV8: 49 | BYW8: 39 | BYX8: 48 | BYY8: 197 | BYZ8: 21 | BZA8: 148 | BZB8: 49 | BZC8: 9 | BZD8: 35 | BZE8: 27 | BZF8: 56 | BZG8: 15 | BZH8: 44 | BZI8: 21 | BZJ8: 21 | BZK8: 186 | BZL8: 141 | BZM8: 100 | BZN8: 77 | BZO8: 23 | BZP8: 155 | BZQ8: 39 | BZR8: 11 | BZS8: 65 | BZT8: 14 | BZU8: 44 | BZV8: 51 | BZW8: 103 | BZX8: 79 | BZY8: 51 | BZZ8: 5 | CAA8: 19 | CAB8: 26 | CAC8: 20 | CAD8: 36 | CAE8: 63 | CAF8: 70 | CAG8: 61 | CAH8: 52 | CAI8: 39 | CAJ8: 53 | CAK8: 34 | CAL8: 41 | CAM8: 22 | CAN8: 16 | CAO8: 60 | CAP8: 39 | CAQ8: 32 | CAR8: 67 | CAS8: 24 | CAT8: 150 | CAU8: 24 | CAV8: 99 | CAW8: 114 | CAX8: 31 | CAY8: 45 | CAZ8: 62 | CBA8: 42 | CBB8: 38 | CBC8: 17 | CBD8: 13 | CBE8: 131 | CBF8: 57 | CBG8: 25 | CBH8: 85 | CBI8: 66 | CBJ8: 116 | CBK8: 77 | CBL8: 87 | CBM8: 8 | CBN8: 19 | CBO8: 30 | CBP8: 28 | CBQ8: 29 | CBR8: 45 | CBS8: 13 | CBT8: 20 | CBU8: 25 | CBV8: 37 | CBW8: 45 | CBX8: 46 | CBY8: 67 | CBZ8: 0 | CCA8: 138 | CCB8: 260 | CCC8: 33 | CCD8: 231 | CCE8: 221 | CCF8: 60 | CCG8: 124 | CCH8: 21 | CCI8: 734 | CCJ8: 17 | CCK8: 33 | CCL8: 97 | CCM8: 24 | CCN8: 18 | CCO8: 80 | CCP8: 26 | CCQ8: 9 | CCR8: 7 | CCS8: 113 | CCT8: 12 | CCU8: 116 | CCV8: 27 | CCW8: 135 | CCX8: 149 | CCY8: 62 | CCZ8: 18 | CDA8: 18 | CDB8: 30 | CDC8: 6 | CDD8: 96 | CDE8: 30 | CDF8: 50 | CDG8: 55 | CDH8: 682 | CDI8: 36 | CDJ8: 1159 | CDK8: 287 | CDL8: 33 | CDM8: 15 | CDN8: 319 | CDO8: 22 | CDP8: 83 | CDQ8: 20 | CDR8: 13 | CDS8: 42 | CDT8: 39 | CDU8: 115 | CDV8: 59 | CDW8: 20 | CDX8: 45 | CDY8: 35 | CDZ8: 80 | CEA8: 51 | CEB8: 103 | CEC8: 74 | CED8: 31 | CEE8: 88 | CEF8: 68 | CEG8: 52 | CEH8: 66 | CEI8: 58 | CEJ8: 304 | CEK8: 3 | CEL8: 14 | CEM8: 21 | CEN8: 87 | CEO8: 169 | CEP8: 81 | CEQ8: 45 | CER8: 86 | CES8: 30 | CET8: 80 | CEU8: 68 | CEV8: 27 | CEW8: 175 | CEX8: 32 | CEY8: 37 | CEZ8: 23 | CFA8: 163 | CFB8: 93 | CFC8: 42 | CFD8: 55 | CFE8: 85 | CFF8: 294 | CFG8: 418 | CFH8: 87 | CFI8: 21 | CFJ8: 70 | CFK8: 205 | CFL8: 25 | CFM8: 147 | CFN8: 82 | CFO8: 56 | CFP8: 59 | CFQ8: 104 | CFR8: 42 | CFS8: 74 | CFT8: 41 | CFU8: 48 | CFV8: 130 | CFW8: 27 | CFX8: 68 | CFY8: 69 | CFZ8: 399 | CGA8: 87 | CGB8: 101 | CGC8: 110 | CGD8: 117 | CGE8: 40 | CGF8: 20 | CGG8: 39 | CGH8: 35 | CGI8: 44 | CGJ8: 17 | CGK8: 94 | CGL8: 29 | CGM8: 28 | CGN8: 125 | CGO8: 36 | CGP8: 36 | CGQ8: 83 | CGR8: 119 | CGS8: 26 | CGT8: 16 | CGU8: 153 | CGV8: 193 | CGW8: 35 | CGX8: 15 | CGY8: 35 | CGZ8: 39 | CHA8: 20 | CHB8: 39 | CHC8: 49 | CHD8: 38 | CHE8: 35 | CHF8: 0 | CHG8: 15 | CHH8: 52 | CHI8: 50 | CHJ8: 22 | CHK8: 34 | CHL8: 13 | CHM8: 256 | CHN8: 150 | CHO8: 17 | CHP8: 28 | CHQ8: 15 | CHR8: 46 | CHS8: 102 | CHT8: 89 | CHU8: 158 | CHV8: 11 | CHW8: 23 | CHX8: 102 | CHY8: 89 | CHZ8: 24 | CIA8: 87 | CIB8: 10 | CIC8: 0 | CID8: 22 | CIE8: 7 | CIF8: 25 | CIG8: 17 | CIH8: 30 | CII8: 23 | CIJ8: 12 | CIK8: 17 | CIL8: 23 | CIM8: 34 | CIN8: 6 | CIO8: 21 | CIP8: 25 | CIQ8: 23 | CIR8: 46 | CIS8: 50 | CIT8: 74 | CIU8: 45 | CIV8: 16 | CIW8: 26 | CIX8: 10 | CIY8: 15 | CIZ8: 54 | CJA8: 13 | CJB8: 11 | CJC8: 7 | CJD8: 64 | CJE8: 20 | CJF8: 47 | CJG8: 21 | CJH8: 4 | CJI8: 64 | CJJ8: 88 | CJK8: 24 | CJL8: 190 | CJM8: 479 | CJN8: 23 | CJO8: 276 | CJP8: 170 | CJQ8: 212 | CJR8: 216 | CJS8: 548 | CJT8: 413 | CJU8: 131 | CJV8: 69 | CJW8: 482 | CJX8: 37 | CJY8: 142 | CJZ8: 175 | CKA8: 313 | CKB8: 39 | CKC8: 412 | CKD8: 272 | CKE8: 235 | CKF8: 108 | CKG8: 265 | CKH8: 117 | CKI8: 94 | CKJ8: 134 | CKK8: 193 | CKL8: 77 | CKM8: 68 | CKN8: 77 | CKO8: 243 | CKP8: 41 | CKQ8: 15 | CKR8: 19 | CKS8: 19 | CKT8: 245 | CKU8: 98 | CKV8: 138 | CKW8: 265 | CKX8: 14 | CKY8: 9 | CKZ8: 0 | CLA8: 304 | CLB8: 60 | CLC8: 43 | CLD8: 462 | CLE8: 18 | CLF8: 11 | CLG8: 22 | CLH8: 25 | CLI8: 35 | CLJ8: 22 | CLK8: 8 | CLL8: 15 | CLM8: 311 | CLN8: 38 | CLO8: 52 | CLP8: 18 | CLQ8: 8 | CLR8: 5 | CLS8: 8 | CLT8: 21 | CLU8: 47 | CLV8: 21 | CLW8: 17 | CLX8: 27 | CLY8: 23 | CLZ8: 14 | CMA8: 31 | CMB8: 13 | CMC8: 20 | CMD8: 15 | CME8: 3 | CMF8: 14 | CMG8: 12 | CMH8: 9 | CMI8: 45 | CMJ8: 3 | CMK8: 15 | CML8: 72 | CMM8: 39 | CMN8: 56 | CMO8: 15 | CMP8: 36 | CMQ8: 20 | CMR8: 25 | CMS8: 48 | CMT8: 22 | CMU8: 14 | CMV8: 8 | CMW8: 19 | CMX8: 27 | CMY8: 1799 | CMZ8: 12 | CNA8: 76 | CNB8: 21 | CNC8: 28 | CND8: 20 | CNE8: 186 | CNF8: 13 | CNG8: 47 | CNH8: 33 | CNI8: 27 | CNJ8: 22 | CNK8: 44 | CNL8: 221 | CNM8: 80 | CNN8: 1184 | CNO8: 28 | CNP8: 30 | CNQ8: 8 | CNR8: 12 | CNS8: 6 | CNT8: 83 | CNU8: 160 | CNV8: 74 | CNW8: 13 | CNX8: 194 | CNY8: 17 | CNZ8: 26 | COA8: 79 | COB8: 370 | COC8: 17 | COD8: 38 | COE8: 19 | COF8: 33 | COG8: 21 | COH8: 20 | COI8: 60 | COJ8: 49 | COK8: 29 | COL8: 9 | COM8: 224 | CON8: 116 | COO8: 210 | COP8: 176 | COQ8: 8 | COR8: 232 | COS8: 73 | COT8: 941 | COU8: 95 | COV8: 63 | COW8: 24 | COX8: 40 | COY8: 17 | COZ8: 7 | CPA8: 5 | CPB8: 0 | CPC8: 24 | CPD8: 271 | CPE8: 16 | CPF8: 40 | CPG8: 140 | CPH8: 41 | CPI8: 11 | CPJ8: 89 | CPK8: 58 | CPL8: 25 | CPM8: 63 | CPN8: 40 | CPO8: 27 | CPP8: 33 | CPQ8: 22 | CPR8: 27 | CPS8: 42 | CPT8: 3 | CPU8: 8 | CPV8: 10 | CPW8: 21 | CPX8: 22 | CPY8: 0 | CPZ8: 5 | CQA8: 41 | CQB8: 31 | CQC8: 27 | CQD8: 25 | CQE8: 11 | CQF8: 9 | CQG8: 8 | CQH8: 7 | CQI8: 36 | CQJ8: 13 | CQK8: 7 | CQL8: 248 | CQM8: 3 | CQN8: 12 | CQO8: 7 | CQP8: 35 | CQQ8: 25 | CQR8: 17 | CQS8: 21 | CQT8: 31 | CQU8: 18 | CQV8: 13 | CQW8: 14 | CQX8: 4 | CQY8: 31 | CQZ8: 302 | CRA8: 175 | CRB8: 73 | CRC8: 28 | CRD8: 136 | CRE8: 49 | CRF8: 0 | CRG8: 36 | CRH8: 315 | CRI8: 21 | CRJ8: 39 | CRK8: 21 | CRL8: 668 | CRM8: 24 | CRN8: 74 | CRO8: 16 | CRP8: 45 | CRQ8: 7 | CRR8: 18 | CRS8: 12 | CRT8: 57 | CRU8: 42 | CRV8: 91 | CRW8: 50 | CRX8: 37 | CRY8: 31 | CRZ8: 57 | CSA8: 14 | CSB8: 22 | CSC8: 44 | CSD8: 711 | CSE8: 57 | CSF8: 560 | CSG8: 69 | CSH8: 63 | CSI8: 342 | CSJ8: 543 | CSK8: 105 | CSL8: 79 | CSM8: 13 | CSN8: 29 | CSO8: 47 | CSP8: 40 | CSQ8: 12 | CSR8: 101 | CSS8: 10 | CST8: 327 | CSU8: 48 | CSV8: 278 | CSW8: 29 | CSX8: 110 | CSY8: 9 | CSZ8: 201 | CTA8: 30 | CTB8: 28 | CTC8: 116 | CTD8: 54 | CTE8: 46 | CTF8: 77 | CTG8: 48 | CTH8: 80 | CTI8: 22 | CTJ8: 53 | CTK8: 38 | CTL8: 67 | CTM8: 58 | CTN8: 228 | CTO8: 479 | CTP8: 0 | CTQ8: 19 | CTR8: 42 | CTS8: 532 | CTT8: 85 | CTU8: 111 | CTV8: 34 | CTW8: 51 | CTX8: 34 | CTY8: 39 | CTZ8: 73 | CUA8: 35 | CUB8: 27 | CUC8: 74 | CUD8: 44 | CUE8: 61 | CUF8: 59 | CUG8: 73 | CUH8: 57 | CUI8: 53 | CUJ8: 53 | CUK8: 25 | CUL8: 119 | CUM8: 0 | CUN8: 8 | CUO8: 4 | CUP8: 138 | CUQ8: 15 | CUR8: 17 | CUS8: 46 | CUT8: 9 | CUU8: 11 | CUV8: 30 | CUW8: 14 | CUX8: 106 | CUY8: 17 | CUZ8: 400 | CVA8: 6 | CVB8: 18 | CVC8: 5 | CVD8: 37 | CVE8: 18 | CVF8: 30 | CVG8: 0 | CVH8: 49 | CVI8: 36 | CVJ8: 14 | CVK8: 23 | CVL8: 61 | CVM8: 37 | CVN8: 22 | CVO8: 86 | CVP8: 6 | CVQ8: 62 | CVR8: 51 | CVS8: 28 | CVT8: 27 | CVU8: 37 | CVV8: 69 | CVW8: 20 | CVX8: 295 | CVY8: 52 | CVZ8: 48 | CWA8: 7 | CWB8: 10 | CWC8: 5 | CWD8: 7 | CWE8: 66 | CWF8: 23 | CWG8: 270 | CWH8: 20 | CWI8: 178 | CWJ8: 146 | CWK8: 377 | CWL8: 107 | CWM8: 63 | CWN8: 37 | CWO8: 50 | CWP8: 89 | CWQ8: 13 | CWR8: 371 | CWS8: 142 | CWT8: 227 | CWU8: 754 | CWV8: 207 | CWW8: 422 | CWX8: 233 | CWY8: 66 | CWZ8: 41 | CXA8: 27 | CXB8: 38 | CXC8: 107 | CXD8: 70 | CXE8: 27 | CXF8: 75 | CXG8: 135 | CXH8: 184 | CXI8: 86 | CXJ8: 233 | CXK8: 46 | CXL8: 94 | CXM8: 130 | CXN8: 91 | CXO8: 33 | CXP8: 35 | CXQ8: 52 | CXR8: 148 | CXS8: 18 | CXT8: 525 | CXU8: 12 | CXV8: 20 | CXW8: 22 | CXX8: 29 | CXY8: 121 | CXZ8: 70 | CYA8: 39 | CYB8: 16 | CYC8: 0 | CYD8: 33 | CYE8: 36 | CYF8: 0 | CYG8: 24 | CYH8: 58 | CYI8: 59 | CYJ8: 330 | CYK8: 237 | CYL8: 58 | CYM8: 48 | CYN8: 29 | CYO8: 16 | CYP8: 13 | CYQ8: 16 | CYR8: 16 | CYS8: 14 | CYT8: 20 | CYU8: 14 | CYV8: 52 | CYW8: 104 | CYX8: 52 | CYY8: 220 | CYZ8: 144 | CZA8: 269 | CZB8: 50 | CZC8: 31 | CZD8: 90 | CZE8: 206 | CZF8: 86 | CZG8: 280 | CZH8: 193 | CZI8: 107 | CZJ8: 67 | CZK8: 309 | CZL8: 74 | CZM8: 9 | CZN8: 4 | CZO8: 20 | CZP8: 34 | CZQ8: 46 | CZR8: 14 | CZS8: 12 | CZT8: 9 | CZU8: 15 | CZV8: 357 | CZW8: 25 | CZX8: 8 | CZY8: 30 | CZZ8: 14 | DAA8: 5 | DAB8: 3 | DAC8: 115 | DAD8: 80 | DAE8: 11 | DAF8: 91 | DAG8: 59 | DAH8: 42 | DAI8: 28 | DAJ8: 35 | DAK8: 39 | DAL8: 12 | DAM8: 23 | DAN8: 15 | DAO8: 25 | DAP8: 55 | DAQ8: 37 | DAR8: 21 | DAS8: 4 | DAT8: 312 | DAU8: 43 | DAV8: 14 | DAW8: 0 | DAX8: 65 | DAY8: 409 | DAZ8: 5 | DBA8: 60 | DBB8: 29 | DBC8: 38 | DBD8: 201 | DBE8: 48 | DBF8: 28 | DBG8: 18 | DBH8: 41 | DBI8: 38 | DBJ8: 40 | DBK8: 210 | DBL8: 66 | DBM8: 38 | DBN8: 91 | DBO8: 384 | DBP8: 308 | DBQ8: 341 | DBR8: 81 | DBS8: 39 | DBT8: 14 | DBU8: 10 | DBV8: 54 | DBW8: 65 | DBX8: 37 | DBY8: 23 | DBZ8: 83 | DCA8: 35 | DCB8: 55 | DCC8: 152 | DCD8: 82 | DCE8: 2470 | DCF8: 30 | DCG8: 113 | DCH8: 48 | DCI8: 12 | DCJ8: 4 | DCK8: 19 | DCL8: 15 | DCM8: 3 | DCN8: 10 | DCO8: 23 | DCP8: 28 | DCQ8: 28 | DCR8: 0 | DCS8: 66 | DCT8: 38 | DCU8: 7 | DCV8: 9 | DCW8: 78 | DCX8: 44 | DCY8: 54 | DCZ8: 57 | DDA8: 162 | DDB8: 44 | DDC8: 76 | DDD8: 51 | DDE8: 14 | DDF8: 256 | DDG8: 404 | DDH8: 49 | DDI8: 375 | DDJ8: 126 | DDK8: 98 | DDL8: 435 | DDM8: 48 | DDN8: 32 | DDO8: 289 | DDP8: 3 | DDQ8: 118 | DDR8: 50 | DDS8: 294 | DDT8: 62 | DDU8: 39 | DDV8: 0 | DDW8: 40 | DDX8: 64 | DDY8: 60 | DDZ8: 27 | DEA8: 49 | DEB8: 9 | DEC8: 21 | DED8: 7 | DEE8: 76 | DEF8: 92 | DEG8: 275 | DEH8: 87 | DEI8: 268 | DEJ8: 166 | DEK8: 13 | DEL8: 110 | DEM8: 5 | DEN8: 114 | DEO8: 90 | DEP8: 90 | DEQ8: 42 | DER8: 73 | DES8: 219 | DET8: 131 | DEU8: 69 | DEV8: 86 | DEW8: 101 | DEX8: 376 | DEY8: 115 | DEZ8: 369 | DFA8: 155 | DFB8: 179 | DFC8: 280 | DFD8: 16 | DFE8: 28 | DFF8: 244 | DFG8: 96 | DFH8: 206 | DFI8: 548 | DFJ8: 116 | DFK8: 212 | DFL8: 682 | DFM8: 51 | DFN8: 24 | DFO8: 24 | DFP8: 57 | DFQ8: 152 | DFR8: 50 | DFS8: 127 | DFT8: 58 | DFU8: 752 | DFV8: 18 | DFW8: 48 | DFX8: 24 | DFY8: 20 | DFZ8: 25 | DGA8: 68 | DGB8: 11 | DGC8: 32 | DGD8: 35 | DGE8: 21 | DGF8: 137 | DGG8: 12 | DGH8: 40 | DGI8: 12 | DGJ8: 11 | DGK8: 38 | DGL8: 50 | DGM8: 240 | DGN8: 16 | DGO8: 43 | DGP8: 23 | DGQ8: 12 | DGR8: 51 | DGS8: 37 | DGT8: 61 | DGU8: 76 | DGV8: 49 | DGW8: 747 | DGX8: 10 | DGY8: 158 | DGZ8: 61 | DHA8: 19 | DHB8: 33 | DHC8: 22 | DHD8: 30 | DHE8: 17 | DHF8: 96 | DHG8: 66 | DHH8: 17 | DHI8: 18 | DHJ8: 53 | DHK8: 14 | DHL8: 27 | DHM8: 29 | DHN8: 26 | DHO8: 153 | DHP8: 336 | DHQ8: 97 | DHR8: 719 | DHS8: 113 | DHT8: 84 | DHU8: 0 | DHV8: 117 | DHW8: 79 | DHX8: 27 | DHY8: 96 | DHZ8: 30 | DIA8: 3 | DIB8: 230 | DIC8: 91 | DID8: 76 | DIE8: 36 | DIF8: 155 | DIG8: 71 | DIH8: 318 | DII8: 81 | DIJ8: 75 | DIK8: 536 | DIL8: 49 | DIM8: 330 | DIN8: 187 | DIO8: 94 | DIP8: 103 | DIQ8: 115 | DIR8: 81 | DIS8: 28 | DIT8: 312 | DIU8: 63 | DIV8: 63 | DIW8: 68 | DIX8: 34 | DIY8: 112 | DIZ8: 192 | DJA8: 27 | DJB8: 67 | DJC8: 19 | DJD8: 23 | DJE8: 64 | DJF8: 12 | DJG8: 309 | DJH8: 134 | DJI8: 135 | DJJ8: 102 | DJK8: 7 | DJL8: 7 | DJM8: 30 | DJN8: 33 | DJO8: 64 | DJP8: 61 | DJQ8: 8 | DJR8: 18 | DJS8: 71 | DJT8: 214 | DJU8: 165 | DJV8: 39 | DJW8: 106 | DJX8: 96 | DJY8: 27 | DJZ8: 150 | DKA8: 61 | DKB8: 88 | DKC8: 79 | DKD8: 58 | DKE8: 35 | DKF8: 36 | DKG8: 47 | DKH8: 102 | DKI8: 95 | DKJ8: 44 | DKK8: 41 | DKL8: 145 | DKM8: 168 | DKN8: 53 | DKO8: 92 | DKP8: 47 | DKQ8: 11 | DKR8: 72 | DKS8: 41 | DKT8: 94 | DKU8: 77 | DKV8: 459 | DKW8: 13 | DKX8: 7
A9: =IF('Paste CCD Numbers Here'!D10>0,'Paste CCD Numbers Here'!D10,0) -> 0 | C9: Wholesale Trade | D9: 0 | E9: 45 | F9: 40 | G9: 3 | H9: 71 | I9: 12 | J9: 0 | K9: 20 | L9: 3 | M9: 3 | N9: 6 | O9: 24 | P9: 55 | Q9: 4 | R9: 45 | S9: 19 | T9: 0 | U9: 0 | V9: 0 | W9: 43 | X9: 0 | Y9: 151 | Z9: 3 | AA9: 4 | AB9: 48 | AC9: 17 | AD9: 7 | AE9: 27 | AF9: 20 | AG9: 14 | AH9: 111 | AI9: 16 | AJ9: 0 | AK9: 5 | AL9: 11 | AM9: 3 | AN9: 12 | AO9: 5 | AP9: 0 | AQ9: 4 | AR9: 12 | AS9: 0 | AT9: 0 | AU9: 3 | AV9: 3 | AW9: 0 | AX9: 18 | AY9: 3 | AZ9: 16 | BA9: 42 | BB9: 0 | BC9: 55 | BD9: 0 | BE9: 0 | BF9: 0 | BG9: 3 | BH9: 7 | BI9: 3 | BJ9: 0 | BK9: 13 | BL9: 0 | BM9: 8 | BN9: 3 | BO9: 34 | BP9: 6 | BQ9: 0 | BR9: 4 | BS9: 5 | BT9: 3 | BU9: 7 | BV9: 0 | BW9: 7 | BX9: 0 | BY9: 38 | BZ9: 9 | CA9: 0 | CB9: 7 | CC9: 0 | CD9: 3 | CE9: 10 | CF9: 0 | CG9: 9 | CH9: 29 | CI9: 0 | CJ9: 0 | CK9: 0 | CL9: 8 | CM9: 10 | CN9: 7 | CO9: 0 | CP9: 0 | CQ9: 15 | CR9: 4 | CS9: 71 | CT9: 0 | CU9: 0 | CV9: 6 | CW9: 0 | CX9: 3 | CY9: 6 | CZ9: 14 | DA9: 0 | DB9: 14 | DC9: 0 | DD9: 4 | DE9: 0 | DF9: 0 | DG9: 5 | DH9: 5 | DI9: 14 | DJ9: 0 | DK9: 0 | DL9: 0 | DM9: 0 | DN9: 23 | DO9: 41 | DP9: 123 | DQ9: 0 | DR9: 0 | DS9: 0 | DT9: 26 | DU9: 0 | DV9: 0 | DW9: 0 | DX9: 0 | DY9: 0 | DZ9: 0 | EA9: 0 | EB9: 117 | EC9: 34 | ED9: 3 | EE9: 9 | EF9: 0 | EG9: 0 | EH9: 31 | EI9: 6 | EJ9: 3 | EK9: 10 | EL9: 5 | EM9: 11 | EN9: 11 | EO9: 9 | EP9: 0 | EQ9: 3 | ER9: 0 | ES9: 0 | ET9: 122 | EU9: 10 | EV9: 0 | EW9: 48 | EX9: 15 | EY9: 10 | EZ9: 0 | FA9: 3 | FB9: 12 | FC9: 0 | FD9: 8 | FE9: 3 | FF9: 4 | FG9: 56 | FH9: 3 | FI9: 36 | FJ9: 9 | FK9: 8 | FL9: 16 | FM9: 22 | FN9: 14 | FO9: 22 | FP9: 9 | FQ9: 17 | FR9: 27 | FS9: 4 | FT9: 29 | FU9: 7 | FV9: 10 | FW9: 0 | FX9: 21 | FY9: 6 | FZ9: 14 | GA9: 4 | GB9: 0 | GC9: 6 | GD9: 0 | GE9: 0 | GF9: 73 | GG9: 21 | GH9: 6 | GI9: 0 | GJ9: 35 | GK9: 143 | GL9: 11 | GM9: 105 | GN9: 222 | GO9: 5 | GP9: 0 | GQ9: 4 | GR9: 5 | GS9: 0 | GT9: 20 | GU9: 0 | GV9: 3 | GW9: 3 | GX9: 20 | GY9: 5 | GZ9: 0 | HA9: 0 | HB9: 22 | HC9: 6 | HD9: 0 | HE9: 6 | HF9: 21 | HG9: 0 | HH9: 12 | HI9: 0 | HJ9: 5 | HK9: 0 | HL9: 0 | HM9: 9 | HN9: 0 | HO9: 0 | HP9: 5 | HQ9: 31 | HR9: 18 | HS9: 11 | HT9: 7 | HU9: 0 | HV9: 7 | HW9: 0 | HX9: 0 | HY9: 3 | HZ9: 3 | IA9: 0 | IB9: 39 | IC9: 8 | ID9: 174 | IE9: 5 | IF9: 4 | IG9: 190 | IH9: 10 | II9: 4 | IJ9: 16 | IK9: 5 | IL9: 0 | IM9: 8 | IN9: 46 | IO9: 0 | IP9: 5 | IQ9: 0 | IR9: 0 | IS9: 125 | IT9: 15 | IU9: 0 | IV9: 0 | IW9: 15 | IX9: 127 | IY9: 5 | IZ9: 84 | JA9: 3 | JB9: 79 | JC9: 0 | JD9: 29 | JE9: 118 | JF9: 6 | JG9: 29 | JH9: 5 | JI9: 3 | JJ9: 51 | JK9: 4 | JL9: 4 | JM9: 0 | JN9: 0 | JO9: 0 | JP9: 77 | JQ9: 0 | JR9: 0 | JS9: 0 | JT9: 0 | JU9: 361 | JV9: 6 | JW9: 228 | JX9: 0 | JY9: 6 | JZ9: 53 | KA9: 0 | KB9: 0 | KC9: 3 | KD9: 4 | KE9: 4 | KF9: 12 | KG9: 19 | KH9: 0 | KI9: 88 | KJ9: 0 | KK9: 28 | KL9: 0 | KM9: 6 | KN9: 0 | KO9: 3 | KP9: 4 | KQ9: 5 | KR9: 3 | KS9: 4 | KT9: 8 | KU9: 4 | KV9: 8 | KW9: 45 | KX9: 3 | KY9: 15 | KZ9: 78 | LA9: 8 | LB9: 9 | LC9: 63 | LD9: 54 | LE9: 13 | LF9: 7 | LG9: 25 | LH9: 8 | LI9: 34 | LJ9: 10 | LK9: 14 | LL9: 0 | LM9: 50 | LN9: 14 | LO9: 13 | LP9: 65 | LQ9: 0 | LR9: 6 | LS9: 13 | LT9: 42 | LU9: 66 | LV9: 3 | LW9: 7 | LX9: 0 | LY9: 12 | LZ9: 4 | MA9: 15 | MB9: 0 | MC9: 99 | MD9: 6 | ME9: 4 | MF9: 3 | MG9: 4 | MH9: 36 | MI9: 143 | MJ9: 38 | MK9: 14 | ML9: 8 | MM9: 13 | MN9: 3 | MO9: 18 | MP9: 9 | MQ9: 11 | MR9: 12 | MS9: 0 | MT9: 0 | MU9: 0 | MV9: 5 | MW9: 51 | MX9: 11 | MY9: 0 | MZ9: 0 | NA9: 10 | NB9: 8 | NC9: 89 | ND9: 22 | NE9: 9 | NF9: 3 | NG9: 32 | NH9: 21 | NI9: 0 | NJ9: 5 | NK9: 0 | NL9: 8 | NM9: 4 | NN9: 7 | NO9: 0 | NP9: 26 | NQ9: 10 | NR9: 0 | NS9: 176 | NT9: 50 | NU9: 34 | NV9: 33 | NW9: 15 | NX9: 59 | NY9: 0 | NZ9: 3 | OA9: 3 | OB9: 8 | OC9: 4 | OD9: 8 | OE9: 20 | OF9: 8 | OG9: 41 | OH9: 14 | OI9: 4 | OJ9: 16 | OK9: 0 | OL9: 26 | OM9: 0 | ON9: 15 | OO9: 30 | OP9: 97 | OQ9: 22 | OR9: 0 | OS9: 231 | OT9: 76 | OU9: 3 | OV9: 14 | OW9: 4 | OX9: 0 | OY9: 22 | OZ9: 6 | PA9: 5 | PB9: 15 | PC9: 12 | PD9: 0 | PE9: 0 | PF9: 3 | PG9: 64 | PH9: 0 | PI9: 17 | PJ9: 36 | PK9: 30 | PL9: 7 | PM9: 4 | PN9: 157 | PO9: 3 | PP9: 7 | PQ9: 66 | PR9: 0 | PS9: 14 | PT9: 9 | PU9: 23 | PV9: 48 | PW9: 5 | PX9: 5 | PY9: 21 | PZ9: 6 | QA9: 4 | QB9: 3 | QC9: 9 | QD9: 10 | QE9: 0 | QF9: 0 | QG9: 0 | QH9: 58 | QI9: 0 | QJ9: 3 | QK9: 0 | QL9: 4 | QM9: 3 | QN9: 0 | QO9: 4 | QP9: 0 | QQ9: 38 | QR9: 64 | QS9: 9 | QT9: 4 | QU9: 0 | QV9: 22 | QW9: 7 | QX9: 0 | QY9: 0 | QZ9: 0 | RA9: 0 | RB9: 38 | RC9: 0 | RD9: 0 | RE9: 0 | RF9: 19 | RG9: 0 | RH9: 99 | RI9: 114 | RJ9: 0 | RK9: 0 | RL9: 0 | RM9: 0 | RN9: 0 | RO9: 9 | RP9: 15 | RQ9: 0 | RR9: 0 | RS9: 0 | RT9: 3 | RU9: 6 | RV9: 0 | RW9: 6 | RX9: 3 | RY9: 9 | RZ9: 13 | SA9: 40 | SB9: 16 | SC9: 4 | SD9: 12 | SE9: 0 | SF9: 12 | SG9: 0 | SH9: 17 | SI9: 5 | SJ9: 15 | SK9: 27 | SL9: 5 | SM9: 22 | SN9: 3 | SO9: 17 | SP9: 14 | SQ9: 28 | SR9: 34 | SS9: 10 | ST9: 8 | SU9: 17 | SV9: 0 | SW9: 3 | SX9: 3 | SY9: 0 | SZ9: 0 | TA9: 0 | TB9: 0 | TC9: 0 | TD9: 0 | TE9: 0 | TF9: 0 | TG9: 43 | TH9: 0 | TI9: 5 | TJ9: 17 | TK9: 3 | TL9: 0 | TM9: 3 | TN9: 70 | TO9: 142 | TP9: 12 | TQ9: 42 | TR9: 7 | TS9: 28 | TT9: 0 | TU9: 3 | TV9: 81 | TW9: 17 | TX9: 0 | TY9: 4 | TZ9: 4 | UA9: 15 | UB9: 4 | UC9: 12 | UD9: 0 | UE9: 7 | UF9: 257 | UG9: 0 | UH9: 0 | UI9: 6 | UJ9: 0 | UK9: 0 | UL9: 0 | UM9: 30 | UN9: 17 | UO9: 24 | UP9: 8 | UQ9: 11 | UR9: 0 | US9: 5 | UT9: 0 | UU9: 36 | UV9: 7 | UW9: 7 | UX9: 6 | UY9: 0 | UZ9: 0 | VA9: 0 | VB9: 0 | VC9: 0 | VD9: 6 | VE9: 0 | VF9: 3 | VG9: 9 | VH9: 13 | VI9: 0 | VJ9: 0 | VK9: 9 | VL9: 0 | VM9: 4 | VN9: 0 | VO9: 3 | VP9: 18 | VQ9: 10 | VR9: 0 | VS9: 0 | VT9: 0 | VU9: 4 | VV9: 9 | VW9: 6 | VX9: 0 | VY9: 5 | VZ9: 6 | WA9: 0 | WB9: 7 | WC9: 14 | WD9: 0 | WE9: 0 | WF9: 13 | WG9: 4 | WH9: 12 | WI9: 6 | WJ9: 5 | WK9: 5 | WL9: 8 | WM9: 8 | WN9: 3 | WO9: 5 | WP9: 4 | WQ9: 0 | WR9: 50 | WS9: 12 | WT9: 7 | WU9: 7 | WV9: 5 | WW9: 7 | WX9: 8 | WY9: 4 | WZ9: 8 | XA9: 6 | XB9: 0 | XC9: 13 | XD9: 114 | XE9: 0 | XF9: 53 | XG9: 31 | XH9: 3 | XI9: 0 | XJ9: 644 | XK9: 4 | XL9: 454 | XM9: 322 | XN9: 6 | XO9: 64 | XP9: 23 | XQ9: 0 | XR9: 0 | XS9: 3 | XT9: 0 | XU9: 17 | XV9: 0 | XW9: 5 | XX9: 29 | XY9: 9 | XZ9: 42 | YA9: 35 | YB9: 8 | YC9: 5 | YD9: 78 | YE9: 0 | YF9: 0 | YG9: 0 | YH9: 0 | YI9: 12 | YJ9: 26 | YK9: 4 | YL9: 497 | YM9: 9 | YN9: 7 | YO9: 6 | YP9: 0 | YQ9: 48 | YR9: 269 | YS9: 0 | YT9: 0 | YU9: 24 | YV9: 10 | YW9: 247 | YX9: 147 | YY9: 0 | YZ9: 67 | ZA9: 10 | ZB9: 55 | ZC9: 8 | ZD9: 0 | ZE9: 3 | ZF9: 89 | ZG9: 8 | ZH9: 21 | ZI9: 9 | ZJ9: 26 | ZK9: 82 | ZL9: 0 | ZM9: 4 | ZN9: 0 | ZO9: 3 | ZP9: 55 | ZQ9: 35 | ZR9: 4 | ZS9: 0 | ZT9: 6 | ZU9: 0 | ZV9: 5 | ZW9: 0 | ZX9: 4 | ZY9: 37 | ZZ9: 6 | AAA9: 0 | AAB9: 14 | AAC9: 26 | AAD9: 0 | AAE9: 6 | AAF9: 32 | AAG9: 45 | AAH9: 7 | AAI9: 6 | AAJ9: 3 | AAK9: 34 | AAL9: 9 | AAM9: 0 | AAN9: 29 | AAO9: 6 | AAP9: 19 | AAQ9: 12 | AAR9: 34 | AAS9: 97 | AAT9: 3 | AAU9: 33 | AAV9: 0 | AAW9: 14 | AAX9: 3 | AAY9: 16 | AAZ9: 0 | ABA9: 104 | ABB9: 94 | ABC9: 0 | ABD9: 0 | ABE9: 5 | ABF9: 9 | ABG9: 4 | ABH9: 3 | ABI9: 3 | ABJ9: 0 | ABK9: 0 | ABL9: 55 | ABM9: 109 | ABN9: 0 | ABO9: 39 | ABP9: 0 | ABQ9: 12 | ABR9: 6 | ABS9: 12 | ABT9: 52 | ABU9: 8 | ABV9: 0 | ABW9: 274 | ABX9: 0 | ABY9: 180 | ABZ9: 47 | ACA9: 3 | ACB9: 0 | ACC9: 27 | ACD9: 11 | ACE9: 7 | ACF9: 6 | ACG9: 51 | ACH9: 0 | ACI9: 4 | ACJ9: 31 | ACK9: 16 | ACL9: 19 | ACM9: 45 | ACN9: 21 | ACO9: 75 | ACP9: 142 | ACQ9: 515 | ACR9: 8 | ACS9: 3 | ACT9: 4 | ACU9: 3 | ACV9: 0 | ACW9: 12 | ACX9: 8 | ACY9: 3 | ACZ9: 17 | ADA9: 3 | ADB9: 16 | ADC9: 5 | ADD9: 20 | ADE9: 45 | ADF9: 3 | ADG9: 4 | ADH9: 4 | ADI9: 7 | ADJ9: 3 | ADK9: 0 | ADL9: 4 | ADM9: 4 | ADN9: 0 | ADO9: 4 | ADP9: 6 | ADQ9: 274 | ADR9: 183 | ADS9: 59 | ADT9: 313 | ADU9: 22 | ADV9: 72 | ADW9: 218 | ADX9: 111 | ADY9: 77 | ADZ9: 137 | AEA9: 425 | AEB9: 27 | AEC9: 116 | AED9: 35 | AEE9: 17 | AEF9: 66 | AEG9: 20 | AEH9: 0 | AEI9: 112 | AEJ9: 4 | AEK9: 16 | AEL9: 18 | AEM9: 45 | AEN9: 4 | AEO9: 25 | AEP9: 3 | AEQ9: 16 | AER9: 0 | AES9: 3 | AET9: 8 | AEU9: 6 | AEV9: 3 | AEW9: 28 | AEX9: 0 | AEY9: 35 | AEZ9: 3 | AFA9: 0 | AFB9: 10 | AFC9: 10 | AFD9: 0 | AFE9: 3 | AFF9: 23 | AFG9: 3 | AFH9: 8 | AFI9: 9 | AFJ9: 3 | AFK9: 38 | AFL9: 11 | AFM9: 24 | AFN9: 4 | AFO9: 14 | AFP9: 32 | AFQ9: 9 | AFR9: 5 | AFS9: 6 | AFT9: 3 | AFU9: 0 | AFV9: 0 | AFW9: 107 | AFX9: 0 | AFY9: 15 | AFZ9: 6 | AGA9: 22 | AGB9: 25 | AGC9: 60 | AGD9: 3 | AGE9: 7 | AGF9: 111 | AGG9: 71 | AGH9: 12 | AGI9: 15 | AGJ9: 74 | AGK9: 102 | AGL9: 0 | AGM9: 4 | AGN9: 15 | AGO9: 5 | AGP9: 5 | AGQ9: 152 | AGR9: 111 | AGS9: 159 | AGT9: 11 | AGU9: 130 | AGV9: 30 | AGW9: 29 | AGX9: 30 | AGY9: 3 | AGZ9: 0 | AHA9: 15 | AHB9: 5 | AHC9: 25 | AHD9: 3 | AHE9: 0 | AHF9: 3 | AHG9: 0 | AHH9: 6 | AHI9: 22 | AHJ9: 0 | AHK9: 10 | AHL9: 11 | AHM9: 13 | AHN9: 0 | AHO9: 0 | AHP9: 9 | AHQ9: 17 | AHR9: 8 | AHS9: 47 | AHT9: 11 | AHU9: 8 | AHV9: 35 | AHW9: 59 | AHX9: 130 | AHY9: 175 | AHZ9: 129 | AIA9: 27 | AIB9: 0 | AIC9: 9 | AID9: 7 | AIE9: 10 | AIF9: 223 | AIG9: 0 | AIH9: 5 | AII9: 0 | AIJ9: 14 | AIK9: 5 | AIL9: 10 | AIM9: 0 | AIN9: 8 | AIO9: 29 | AIP9: 4 | AIQ9: 5 | AIR9: 10 | AIS9: 53 | AIT9: 48 | AIU9: 28 | AIV9: 268 | AIW9: 309 | AIX9: 4 | AIY9: 5 | AIZ9: 5 | AJA9: 3 | AJB9: 5 | AJC9: 4 | AJD9: 6 | AJE9: 18 | AJF9: 10 | AJG9: 15 | AJH9: 6 | AJI9: 11 | AJJ9: 4 | AJK9: 0 | AJL9: 0 | AJM9: 15 | AJN9: 12 | AJO9: 3 | AJP9: 14 | AJQ9: 16 | AJR9: 14 | AJS9: 8 | AJT9: 247 | AJU9: 5 | AJV9: 31 | AJW9: 0 | AJX9: 0 | AJY9: 0 | AJZ9: 0 | AKA9: 0 | AKB9: 0 | AKC9: 8 | AKD9: 7 | AKE9: 12 | AKF9: 13 | AKG9: 4 | AKH9: 9 | AKI9: 10 | AKJ9: 3 | AKK9: 12 | AKL9: 5 | AKM9: 5 | AKN9: 5 | AKO9: 3 | AKP9: 0 | AKQ9: 7 | AKR9: 6 | AKS9: 5 | AKT9: 0 | AKU9: 11 | AKV9: 0 | AKW9: 3 | AKX9: 11 | AKY9: 11 | AKZ9: 52 | ALA9: 3 | ALB9: 13 | ALC9: 20 | ALD9: 27 | ALE9: 12 | ALF9: 185 | ALG9: 5 | ALH9: 3 | ALI9: 5 | ALJ9: 15 | ALK9: 0 | ALL9: 4 | ALM9: 62 | ALN9: 8 | ALO9: 3 | ALP9: 6 | ALQ9: 13 | ALR9: 4 | ALS9: 54 | ALT9: 71 | ALU9: 35 | ALV9: 24 | ALW9: 9 | ALX9: 7 | ALY9: 0 | ALZ9: 15 | AMA9: 0 | AMB9: 3 | AMC9: 4 | AMD9: 68 | AME9: 17 | AMF9: 0 | AMG9: 31 | AMH9: 0 | AMI9: 0 | AMJ9: 10 | AMK9: 102 | AML9: 9 | AMM9: 99 | AMN9: 15 | AMO9: 10 | AMP9: 0 | AMQ9: 5 | AMR9: 7 | AMS9: 10 | AMT9: 5 | AMU9: 27 | AMV9: 3 | AMW9: 6 | AMX9: 0 | AMY9: 0 | AMZ9: 54 | ANA9: 12 | ANB9: 6 | ANC9: 14 | AND9: 3 | ANE9: 5 | ANF9: 35 | ANG9: 8 | ANH9: 8 | ANI9: 52 | ANJ9: 22 | ANK9: 0 | ANL9: 83 | ANM9: 12 | ANN9: 4 | ANO9: 0 | ANP9: 3 | ANQ9: 9 | ANR9: 7 | ANS9: 4 | ANT9: 4 | ANU9: 31 | ANV9: 20 | ANW9: 15 | ANX9: 14 | ANY9: 3 | ANZ9: 0 | AOA9: 0 | AOB9: 7 | AOC9: 46 | AOD9: 0 | AOE9: 9 | AOF9: 7 | AOG9: 0 | AOH9: 12 | AOI9: 6 | AOJ9: 15 | AOK9: 0 | AOL9: 0 | AOM9: 24 | AON9: 30 | AOO9: 4 | AOP9: 5 | AOQ9: 176 | AOR9: 0 | AOS9: 5 | AOT9: 21 | AOU9: 0 | AOV9: 0 | AOW9: 0 | AOX9: 5 | AOY9: 0 | AOZ9: 0 | APA9: 9 | APB9: 0 | APC9: 0 | APD9: 26 | APE9: 0 | APF9: 56 | APG9: 19 | APH9: 0 | API9: 5 | APJ9: 3 | APK9: 0 | APL9: 3 | APM9: 129 | APN9: 18 | APO9: 3 | APP9: 18 | APQ9: 3 | APR9: 0 | APS9: 0 | APT9: 3 | APU9: 15 | APV9: 4 | APW9: 6 | APX9: 5 | APY9: 3 | APZ9: 9 | AQA9: 10 | AQB9: 68 | AQC9: 11 | AQD9: 456 | AQE9: 24 | AQF9: 0 | AQG9: 0 | AQH9: 5 | AQI9: 4 | AQJ9: 0 | AQK9: 6 | AQL9: 5 | AQM9: 13 | AQN9: 0 | AQO9: 4 | AQP9: 4 | AQQ9: 205 | AQR9: 7 | AQS9: 5 | AQT9: 0 | AQU9: 0 | AQV9: 0 | AQW9: 0 | AQX9: 0 | AQY9: 10 | AQZ9: 22 | ARA9: 9 | ARB9: 0 | ARC9: 4 | ARD9: 11 | ARE9: 8 | ARF9: 0 | ARG9: 4 | ARH9: 3 | ARI9: 7 | ARJ9: 9 | ARK9: 10 | ARL9: 7 | ARM9: 0 | ARN9: 6 | ARO9: 11 | ARP9: 6 | ARQ9: 8 | ARR9: 0 | ARS9: 3 | ART9: 4 | ARU9: 3 | ARV9: 0 | ARW9: 3 | ARX9: 4 | ARY9: 30 | ARZ9: 0 | ASA9: 4 | ASB9: 7 | ASC9: 13 | ASD9: 3 | ASE9: 0 | ASF9: 25 | ASG9: 3 | ASH9: 6 | ASI9: 189 | ASJ9: 54 | ASK9: 8 | ASL9: 0 | ASM9: 0 | ASN9: 7 | ASO9: 5 | ASP9: 0 | ASQ9: 9 | ASR9: 11 | ASS9: 22 | AST9: 0 | ASU9: 0 | ASV9: 5 | ASW9: 11 | ASX9: 6 | ASY9: 11 | ASZ9: 0 | ATA9: 10 | ATB9: 0 | ATC9: 13 | ATD9: 0 | ATE9: 0 | ATF9: 8 | ATG9: 8 | ATH9: 14 | ATI9: 10 | ATJ9: 5 | ATK9: 5 | ATL9: 0 | ATM9: 0 | ATN9: 18 | ATO9: 0 | ATP9: 6 | ATQ9: 13 | ATR9: 0 | ATS9: 3 | ATT9: 4 | ATU9: 15 | ATV9: 0 | ATW9: 0 | ATX9: 0 | ATY9: 3 | ATZ9: 5 | AUA9: 3 | AUB9: 0 | AUC9: 4 | AUD9: 0 | AUE9: 0 | AUF9: 3 | AUG9: 4 | AUH9: 5 | AUI9: 8 | AUJ9: 5 | AUK9: 9 | AUL9: 13 | AUM9: 7 | AUN9: 5 | AUO9: 6 | AUP9: 5 | AUQ9: 10 | AUR9: 8 | AUS9: 25 | AUT9: 5 | AUU9: 5 | AUV9: 0 | AUW9: 0 | AUX9: 18 | AUY9: 12 | AUZ9: 3 | AVA9: 15 | AVB9: 4 | AVC9: 0 | AVD9: 0 | AVE9: 4 | AVF9: 3 | AVG9: 16 | AVH9: 0 | AVI9: 11 | AVJ9: 0 | AVK9: 6 | AVL9: 0 | AVM9: 4 | AVN9: 0 | AVO9: 0 | AVP9: 7 | AVQ9: 6 | AVR9: 40 | AVS9: 4 | AVT9: 45 | AVU9: 3 | AVV9: 32 | AVW9: 3 | AVX9: 10 | AVY9: 12 | AVZ9: 81 | AWA9: 3 | AWB9: 8 | AWC9: 227 | AWD9: 194 | AWE9: 263 | AWF9: 151 | AWG9: 14 | AWH9: 207 | AWI9: 0 | AWJ9: 3 | AWK9: 9 | AWL9: 3 | AWM9: 0 | AWN9: 3 | AWO9: 4 | AWP9: 7 | AWQ9: 0 | AWR9: 3 | AWS9: 3 | AWT9: 0 | AWU9: 0 | AWV9: 4 | AWW9: 0 | AWX9: 92 | AWY9: 4 | AWZ9: 9 | AXA9: 0 | AXB9: 26 | AXC9: 0 | AXD9: 0 | AXE9: 8 | AXF9: 3 | AXG9: 10 | AXH9: 7 | AXI9: 95 | AXJ9: 143 | AXK9: 156 | AXL9: 8 | AXM9: 11 | AXN9: 104 | AXO9: 71 | AXP9: 0 | AXQ9: 0 | AXR9: 6 | AXS9: 0 | AXT9: 0 | AXU9: 0 | AXV9: 5 | AXW9: 0 | AXX9: 0 | AXY9: 3 | AXZ9: 0 | AYA9: 23 | AYB9: 18 | AYC9: 0 | AYD9: 63 | AYE9: 5 | AYF9: 18 | AYG9: 9 | AYH9: 97 | AYI9: 323 | AYJ9: 104 | AYK9: 121 | AYL9: 104 | AYM9: 396 | AYN9: 10 | AYO9: 31 | AYP9: 16 | AYQ9: 191 | AYR9: 5 | AYS9: 11 | AYT9: 11 | AYU9: 0 | AYV9: 0 | AYW9: 29 | AYX9: 0 | AYY9: 183 | AYZ9: 3 | AZA9: 7 | AZB9: 5 | AZC9: 20 | AZD9: 70 | AZE9: 4 | AZF9: 0 | AZG9: 0 | AZH9: 27 | AZI9: 14 | AZJ9: 8 | AZK9: 9 | AZL9: 46 | AZM9: 10 | AZN9: 0 | AZO9: 3 | AZP9: 8 | AZQ9: 3 | AZR9: 0 | AZS9: 0 | AZT9: 5 | AZU9: 8 | AZV9: 8 | AZW9: 169 | AZX9: 0 | AZY9: 0 | AZZ9: 39 | BAA9: 0 | BAB9: 0 | BAC9: 0 | BAD9: 0 | BAE9: 3 | BAF9: 0 | BAG9: 6 | BAH9: 0 | BAI9: 0 | BAJ9: 0 | BAK9: 5 | BAL9: 0 | BAM9: 13 | BAN9: 0 | BAO9: 5 | BAP9: 41 | BAQ9: 3 | BAR9: 8 | BAS9: 6 | BAT9: 0 | BAU9: 0 | BAV9: 4 | BAW9: 0 | BAX9: 161 | BAY9: 104 | BAZ9: 0 | BBA9: 0 | BBB9: 3 | BBC9: 4 | BBD9: 0 | BBE9: 3 | BBF9: 25 | BBG9: 0 | BBH9: 4 | BBI9: 0 | BBJ9: 7 | BBK9: 3 | BBL9: 7 | BBM9: 9 | BBN9: 4 | BBO9: 5 | BBP9: 11 | BBQ9: 0 | BBR9: 0 | BBS9: 5 | BBT9: 4 | BBU9: 7 | BBV9: 0 | BBW9: 8 | BBX9: 11 | BBY9: 8 | BBZ9: 0 | BCA9: 0 | BCB9: 0 | BCC9: 11 | BCD9: 8 | BCE9: 0 | BCF9: 0 | BCG9: 0 | BCH9: 3 | BCI9: 0 | BCJ9: 3 | BCK9: 4 | BCL9: 14 | BCM9: 7 | BCN9: 0 | BCO9: 4 | BCP9: 16 | BCQ9: 3 | BCR9: 12 | BCS9: 15 | BCT9: 0 | BCU9: 3 | BCV9: 4 | BCW9: 0 | BCX9: 0 | BCY9: 30 | BCZ9: 15 | BDA9: 0 | BDB9: 148 | BDC9: 21 | BDD9: 312 | BDE9: 101 | BDF9: 74 | BDG9: 0 | BDH9: 10 | BDI9: 0 | BDJ9: 0 | BDK9: 3 | BDL9: 7 | BDM9: 3 | BDN9: 0 | BDO9: 0 | BDP9: 0 | BDQ9: 4 | BDR9: 7 | BDS9: 0 | BDT9: 9 | BDU9: 3 | BDV9: 3 | BDW9: 8 | BDX9: 3 | BDY9: 0 | BDZ9: 4 | BEA9: 0 | BEB9: 278 | BEC9: 0 | BED9: 4 | BEE9: 6 | BEF9: 11 | BEG9: 0 | BEH9: 5 | BEI9: 0 | BEJ9: 34 | BEK9: 3 | BEL9: 8 | BEM9: 11 | BEN9: 8 | BEO9: 5 | BEP9: 7 | BEQ9: 0 | BER9: 25 | BES9: 6 | BET9: 10 | BEU9: 0 | BEV9: 0 | BEW9: 4 | BEX9: 7 | BEY9: 16 | BEZ9: 3 | BFA9: 9 | BFB9: 11 | BFC9: 4 | BFD9: 7 | BFE9: 5 | BFF9: 0 | BFG9: 4 | BFH9: 8 | BFI9: 0 | BFJ9: 11 | BFK9: 0 | BFL9: 0 | BFM9: 5 | BFN9: 7 | BFO9: 13 | BFP9: 8 | BFQ9: 0 | BFR9: 73 | BFS9: 0 | BFT9: 4 | BFU9: 150 | BFV9: 0 | BFW9: 6 | BFX9: 4 | BFY9: 12 | BFZ9: 0 | BGA9: 14 | BGB9: 9 | BGC9: 0 | BGD9: 0 | BGE9: 0 | BGF9: 20 | BGG9: 177 | BGH9: 8 | BGI9: 40 | BGJ9: 292 | BGK9: 4 | BGL9: 228 | BGM9: 141 | BGN9: 0 | BGO9: 251 | BGP9: 0 | BGQ9: 4 | BGR9: 10 | BGS9: 7 | BGT9: 9 | BGU9: 9 | BGV9: 0 | BGW9: 0 | BGX9: 26 | BGY9: 0 | BGZ9: 4 | BHA9: 0 | BHB9: 3 | BHC9: 0 | BHD9: 6 | BHE9: 11 | BHF9: 0 | BHG9: 0 | BHH9: 0 | BHI9: 6 | BHJ9: 34 | BHK9: 40 | BHL9: 295 | BHM9: 0 | BHN9: 37 | BHO9: 11 | BHP9: 0 | BHQ9: 144 | BHR9: 0 | BHS9: 3 | BHT9: 0 | BHU9: 0 | BHV9: 5 | BHW9: 22 | BHX9: 0 | BHY9: 3 | BHZ9: 0 | BIA9: 8 | BIB9: 9 | BIC9: 0 | BID9: 0 | BIE9: 14 | BIF9: 11 | BIG9: 0 | BIH9: 3 | BII9: 0 | BIJ9: 572 | BIK9: 0 | BIL9: 5 | BIM9: 51 | BIN9: 0 | BIO9: 0 | BIP9: 9 | BIQ9: 0 | BIR9: 3 | BIS9: 9 | BIT9: 114 | BIU9: 0 | BIV9: 262 | BIW9: 238 | BIX9: 0 | BIY9: 6 | BIZ9: 0 | BJA9: 5 | BJB9: 16 | BJC9: 103 | BJD9: 711 | BJE9: 284 | BJF9: 5 | BJG9: 24 | BJH9: 18 | BJI9: 0 | BJJ9: 0 | BJK9: 8 | BJL9: 9 | BJM9: 3 | BJN9: 5 | BJO9: 0 | BJP9: 4 | BJQ9: 17 | BJR9: 11 | BJS9: 7 | BJT9: 8 | BJU9: 0 | BJV9: 4 | BJW9: 33 | BJX9: 15 | BJY9: 3 | BJZ9: 0 | BKA9: 5 | BKB9: 6 | BKC9: 0 | BKD9: 5 | BKE9: 16 | BKF9: 15 | BKG9: 9 | BKH9: 5 | BKI9: 39 | BKJ9: 115 | BKK9: 0 | BKL9: 5 | BKM9: 0 | BKN9: 139 | BKO9: 3 | BKP9: 17 | BKQ9: 7 | BKR9: 9 | BKS9: 0 | BKT9: 3 | BKU9: 7 | BKV9: 4 | BKW9: 7 | BKX9: 4 | BKY9: 9 | BKZ9: 15 | BLA9: 4 | BLB9: 0 | BLC9: 6 | BLD9: 3 | BLE9: 4 | BLF9: 3 | BLG9: 58 | BLH9: 4 | BLI9: 3 | BLJ9: 0 | BLK9: 8 | BLL9: 0 | BLM9: 3 | BLN9: 0 | BLO9: 0 | BLP9: 0 | BLQ9: 0 | BLR9: 0 | BLS9: 3 | BLT9: 4 | BLU9: 8 | BLV9: 0 | BLW9: 18 | BLX9: 11 | BLY9: 5 | BLZ9: 3 | BMA9: 0 | BMB9: 0 | BMC9: 0 | BMD9: 0 | BME9: 0 | BMF9: 0 | BMG9: 0 | BMH9: 68 | BMI9: 0 | BMJ9: 0 | BMK9: 14 | BML9: 0 | BMM9: 6 | BMN9: 0 | BMO9: 16 | BMP9: 206 | BMQ9: 0 | BMR9: 0 | BMS9: 0 | BMT9: 19 | BMU9: 113 | BMV9: 174 | BMW9: 44 | BMX9: 763 | BMY9: 324 | BMZ9: 150 | BNA9: 163 | BNB9: 0 | BNC9: 43 | BND9: 29 | BNE9: 6 | BNF9: 33 | BNG9: 0 | BNH9: 0 | BNI9: 6 | BNJ9: 7 | BNK9: 0 | BNL9: 0 | BNM9: 4 | BNN9: 7 | BNO9: 4 | BNP9: 12 | BNQ9: 4 | BNR9: 0 | BNS9: 5 | BNT9: 384 | BNU9: 123 | BNV9: 79 | BNW9: 0 | BNX9: 38 | BNY9: 0 | BNZ9: 0 | BOA9: 0 | BOB9: 0 | BOC9: 0 | BOD9: 7 | BOE9: 0 | BOF9: 32 | BOG9: 49 | BOH9: 4 | BOI9: 0 | BOJ9: 0 | BOK9: 0 | BOL9: 0 | BOM9: 3 | BON9: 0 | BOO9: 3 | BOP9: 61 | BOQ9: 21 | BOR9: 3 | BOS9: 0 | BOT9: 7 | BOU9: 5 | BOV9: 0 | BOW9: 6 | BOX9: 82 | BOY9: 325 | BOZ9: 5 | BPA9: 6 | BPB9: 4 | BPC9: 3 | BPD9: 19 | BPE9: 30 | BPF9: 3 | BPG9: 15 | BPH9: 15 | BPI9: 205 | BPJ9: 162 | BPK9: 235 | BPL9: 821 | BPM9: 110 | BPN9: 83 | BPO9: 6 | BPP9: 6 | BPQ9: 1650 | BPR9: 0 | BPS9: 12 | BPT9: 4 | BPU9: 72 | BPV9: 220 | BPW9: 572 | BPX9: 330 | BPY9: 9 | BPZ9: 9 | BQA9: 5 | BQB9: 219 | BQC9: 101 | BQD9: 4 | BQE9: 3 | BQF9: 0 | BQG9: 0 | BQH9: 7 | BQI9: 0 | BQJ9: 344 | BQK9: 4 | BQL9: 485 | BQM9: 13 | BQN9: 33 | BQO9: 36 | BQP9: 9 | BQQ9: 3 | BQR9: 7 | BQS9: 0 | BQT9: 12 | BQU9: 11 | BQV9: 4 | BQW9: 0 | BQX9: 3 | BQY9: 6 | BQZ9: 4 | BRA9: 29 | BRB9: 0 | BRC9: 5 | BRD9: 0 | BRE9: 6 | BRF9: 6 | BRG9: 5 | BRH9: 48 | BRI9: 8 | BRJ9: 5 | BRK9: 68 | BRL9: 0 | BRM9: 5 | BRN9: 0 | BRO9: 0 | BRP9: 3 | BRQ9: 47 | BRR9: 6 | BRS9: 11 | BRT9: 3 | BRU9: 0 | BRV9: 5 | BRW9: 43 | BRX9: 41 | BRY9: 0 | BRZ9: 27 | BSA9: 0 | BSB9: 8 | BSC9: 0 | BSD9: 0 | BSE9: 43 | BSF9: 3 | BSG9: 0 | BSH9: 0 | BSI9: 0 | BSJ9: 3 | BSK9: 0 | BSL9: 3 | BSM9: 0 | BSN9: 0 | BSO9: 0 | BSP9: 10 | BSQ9: 4 | BSR9: 3 | BSS9: 13 | BST9: 6 | BSU9: 0 | BSV9: 8 | BSW9: 0 | BSX9: 0 | BSY9: 5 | BSZ9: 45 | BTA9: 3 | BTB9: 138 | BTC9: 48 | BTD9: 188 | BTE9: 3 | BTF9: 6 | BTG9: 89 | BTH9: 5 | BTI9: 5 | BTJ9: 4 | BTK9: 0 | BTL9: 9 | BTM9: 6 | BTN9: 0 | BTO9: 28 | BTP9: 0 | BTQ9: 0 | BTR9: 0 | BTS9: 11 | BTT9: 4 | BTU9: 4 | BTV9: 0 | BTW9: 0 | BTX9: 0 | BTY9: 6 | BTZ9: 10 | BUA9: 43 | BUB9: 37 | BUC9: 0 | BUD9: 0 | BUE9: 0 | BUF9: 3 | BUG9: 0 | BUH9: 0 | BUI9: 28 | BUJ9: 4 | BUK9: 83 | BUL9: 12 | BUM9: 3 | BUN9: 0 | BUO9: 0 | BUP9: 9 | BUQ9: 0 | BUR9: 0 | BUS9: 6 | BUT9: 3 | BUU9: 9 | BUV9: 8 | BUW9: 0 | BUX9: 7 | BUY9: 0 | BUZ9: 0 | BVA9: 3 | BVB9: 0 | BVC9: 46 | BVD9: 30 | BVE9: 5 | BVF9: 0 | BVG9: 0 | BVH9: 3 | BVI9: 0 | BVJ9: 0 | BVK9: 0 | BVL9: 3 | BVM9: 0 | BVN9: 0 | BVO9: 0 | BVP9: 0 | BVQ9: 3 | BVR9: 11 | BVS9: 0 | BVT9: 0 | BVU9: 3 | BVV9: 0 | BVW9: 142 | BVX9: 3 | BVY9: 3 | BVZ9: 5 | BWA9: 304 | BWB9: 9 | BWC9: 0 | BWD9: 5 | BWE9: 102 | BWF9: 5 | BWG9: 0 | BWH9: 4 | BWI9: 88 | BWJ9: 10 | BWK9: 23 | BWL9: 56 | BWM9: 5 | BWN9: 5 | BWO9: 8 | BWP9: 138 | BWQ9: 6 | BWR9: 38 | BWS9: 6 | BWT9: 0 | BWU9: 146 | BWV9: 10 | BWW9: 0 | BWX9: 84 | BWY9: 10 | BWZ9: 6 | BXA9: 0 | BXB9: 7 | BXC9: 9 | BXD9: 0 | BXE9: 8 | BXF9: 120 | BXG9: 3 | BXH9: 23 | BXI9: 0 | BXJ9: 25 | BXK9: 7 | BXL9: 15 | BXM9: 10 | BXN9: 16 | BXO9: 0 | BXP9: 24 | BXQ9: 3 | BXR9: 0 | BXS9: 0 | BXT9: 8 | BXU9: 143 | BXV9: 8 | BXW9: 17 | BXX9: 28 | BXY9: 7 | BXZ9: 15 | BYA9: 23 | BYB9: 0 | BYC9: 102 | BYD9: 0 | BYE9: 0 | BYF9: 12 | BYG9: 0 | BYH9: 28 | BYI9: 4 | BYJ9: 3 | BYK9: 4 | BYL9: 10 | BYM9: 11 | BYN9: 3 | BYO9: 15 | BYP9: 10 | BYQ9: 80 | BYR9: 0 | BYS9: 60 | BYT9: 17 | BYU9: 0 | BYV9: 0 | BYW9: 3 | BYX9: 6 | BYY9: 3 | BYZ9: 0 | BZA9: 10 | BZB9: 13 | BZC9: 9 | BZD9: 7 | BZE9: 0 | BZF9: 4 | BZG9: 7 | BZH9: 5 | BZI9: 0 | BZJ9: 23 | BZK9: 41 | BZL9: 15 | BZM9: 4 | BZN9: 6 | BZO9: 0 | BZP9: 21 | BZQ9: 6 | BZR9: 0 | BZS9: 16 | BZT9: 18 | BZU9: 9 | BZV9: 19 | BZW9: 10 | BZX9: 0 | BZY9: 8 | BZZ9: 6 | CAA9: 0 | CAB9: 0 | CAC9: 5 | CAD9: 0 | CAE9: 0 | CAF9: 9 | CAG9: 11 | CAH9: 7 | CAI9: 6 | CAJ9: 11 | CAK9: 10 | CAL9: 0 | CAM9: 0 | CAN9: 0 | CAO9: 7 | CAP9: 0 | CAQ9: 5 | CAR9: 3 | CAS9: 0 | CAT9: 16 | CAU9: 0 | CAV9: 26 | CAW9: 4 | CAX9: 7 | CAY9: 12 | CAZ9: 0 | CBA9: 18 | CBB9: 3 | CBC9: 0 | CBD9: 6 | CBE9: 3 | CBF9: 4 | CBG9: 0 | CBH9: 0 | CBI9: 4 | CBJ9: 8 | CBK9: 24 | CBL9: 18 | CBM9: 4 | CBN9: 4 | CBO9: 4 | CBP9: 0 | CBQ9: 4 | CBR9: 3 | CBS9: 0 | CBT9: 5 | CBU9: 3 | CBV9: 0 | CBW9: 0 | CBX9: 0 | CBY9: 0 | CBZ9: 0 | CCA9: 33 | CCB9: 95 | CCC9: 0 | CCD9: 33 | CCE9: 19 | CCF9: 0 | CCG9: 16 | CCH9: 0 | CCI9: 97 | CCJ9: 6 | CCK9: 3 | CCL9: 12 | CCM9: 13 | CCN9: 0 | CCO9: 0 | CCP9: 0 | CCQ9: 0 | CCR9: 0 | CCS9: 18 | CCT9: 14 | CCU9: 21 | CCV9: 22 | CCW9: 5 | CCX9: 10 | CCY9: 10 | CCZ9: 3 | CDA9: 0 | CDB9: 0 | CDC9: 17 | CDD9: 66 | CDE9: 0 | CDF9: 0 | CDG9: 0 | CDH9: 283 | CDI9: 3 | CDJ9: 298 | CDK9: 155 | CDL9: 0 | CDM9: 3 | CDN9: 30 | CDO9: 0 | CDP9: 6 | CDQ9: 3 | CDR9: 4 | CDS9: 3 | CDT9: 58 | CDU9: 4 | CDV9: 3 | CDW9: 19 | CDX9: 0 | CDY9: 5 | CDZ9: 3 | CEA9: 0 | CEB9: 7 | CEC9: 3 | CED9: 3 | CEE9: 0 | CEF9: 10 | CEG9: 8 | CEH9: 0 | CEI9: 70 | CEJ9: 47 | CEK9: 0 | CEL9: 0 | CEM9: 45 | CEN9: 3 | CEO9: 17 | CEP9: 14 | CEQ9: 3 | CER9: 4 | CES9: 0 | CET9: 29 | CEU9: 4 | CEV9: 15 | CEW9: 17 | CEX9: 7 | CEY9: 6 | CEZ9: 6 | CFA9: 12 | CFB9: 10 | CFC9: 14 | CFD9: 10 | CFE9: 5 | CFF9: 17 | CFG9: 49 | CFH9: 9 | CFI9: 0 | CFJ9: 7 | CFK9: 94 | CFL9: 4 | CFM9: 9 | CFN9: 21 | CFO9: 12 | CFP9: 0 | CFQ9: 15 | CFR9: 0 | CFS9: 4 | CFT9: 0 | CFU9: 13 | CFV9: 7 | CFW9: 0 | CFX9: 0 | CFY9: 8 | CFZ9: 28 | CGA9: 7 | CGB9: 12 | CGC9: 7 | CGD9: 11 | CGE9: 4 | CGF9: 0 | CGG9: 5 | CGH9: 6 | CGI9: 3 | CGJ9: 4 | CGK9: 28 | CGL9: 0 | CGM9: 12 | CGN9: 510 | CGO9: 10 | CGP9: 0 | CGQ9: 46 | CGR9: 56 | CGS9: 0 | CGT9: 0 | CGU9: 126 | CGV9: 64 | CGW9: 58 | CGX9: 75 | CGY9: 3 | CGZ9: 7 | CHA9: 0 | CHB9: 12 | CHC9: 0 | CHD9: 3 | CHE9: 4 | CHF9: 0 | CHG9: 29 | CHH9: 37 | CHI9: 3 | CHJ9: 8 | CHK9: 0 | CHL9: 3 | CHM9: 166 | CHN9: 102 | CHO9: 4 | CHP9: 0 | CHQ9: 14 | CHR9: 78 | CHS9: 51 | CHT9: 57 | CHU9: 200 | CHV9: 0 | CHW9: 3 | CHX9: 11 | CHY9: 14 | CHZ9: 0 | CIA9: 57 | CIB9: 7 | CIC9: 0 | CID9: 4 | CIE9: 0 | CIF9: 8 | CIG9: 0 | CIH9: 6 | CII9: 0 | CIJ9: 0 | CIK9: 0 | CIL9: 3 | CIM9: 0 | CIN9: 0 | CIO9: 9 | CIP9: 10 | CIQ9: 0 | CIR9: 0 | CIS9: 5 | CIT9: 13 | CIU9: 15 | CIV9: 6 | CIW9: 76 | CIX9: 3 | CIY9: 3 | CIZ9: 19 | CJA9: 6 | CJB9: 0 | CJC9: 0 | CJD9: 55 | CJE9: 0 | CJF9: 13 | CJG9: 0 | CJH9: 4 | CJI9: 25 | CJJ9: 26 | CJK9: 3 | CJL9: 91 | CJM9: 882 | CJN9: 0 | CJO9: 280 | CJP9: 171 | CJQ9: 80 | CJR9: 392 | CJS9: 478 | CJT9: 234 | CJU9: 91 | CJV9: 86 | CJW9: 286 | CJX9: 0 | CJY9: 89 | CJZ9: 287 | CKA9: 72 | CKB9: 14 | CKC9: 176 | CKD9: 390 | CKE9: 184 | CKF9: 79 | CKG9: 395 | CKH9: 170 | CKI9: 260 | CKJ9: 399 | CKK9: 110 | CKL9: 231 | CKM9: 21 | CKN9: 129 | CKO9: 126 | CKP9: 0 | CKQ9: 0 | CKR9: 0 | CKS9: 0 | CKT9: 86 | CKU9: 7 | CKV9: 133 | CKW9: 139 | CKX9: 4 | CKY9: 4 | CKZ9: 3 | CLA9: 401 | CLB9: 16 | CLC9: 6 | CLD9: 406 | CLE9: 6 | CLF9: 0 | CLG9: 3 | CLH9: 0 | CLI9: 4 | CLJ9: 5 | CLK9: 59 | CLL9: 0 | CLM9: 46 | CLN9: 4 | CLO9: 43 | CLP9: 0 | CLQ9: 86 | CLR9: 0 | CLS9: 0 | CLT9: 13 | CLU9: 4 | CLV9: 9 | CLW9: 6 | CLX9: 4 | CLY9: 4 | CLZ9: 11 | CMA9: 9 | CMB9: 5 | CMC9: 9 | CMD9: 0 | CME9: 10 | CMF9: 0 | CMG9: 3 | CMH9: 7 | CMI9: 5 | CMJ9: 0 | CMK9: 3 | CML9: 22 | CMM9: 3 | CMN9: 11 | CMO9: 7 | CMP9: 4 | CMQ9: 8 | CMR9: 8 | CMS9: 32 | CMT9: 8 | CMU9: 9 | CMV9: 0 | CMW9: 4 | CMX9: 5 | CMY9: 951 | CMZ9: 9 | CNA9: 240 | CNB9: 4 | CNC9: 16 | CND9: 15 | CNE9: 279 | CNF9: 4 | CNG9: 0 | CNH9: 9 | CNI9: 72 | CNJ9: 44 | CNK9: 3 | CNL9: 470 | CNM9: 54 | CNN9: 1693 | CNO9: 6 | CNP9: 5 | CNQ9: 0 | CNR9: 0 | CNS9: 0 | CNT9: 62 | CNU9: 32 | CNV9: 17 | CNW9: 15 | CNX9: 80 | CNY9: 15 | CNZ9: 7 | COA9: 264 | COB9: 123 | COC9: 0 | COD9: 16 | COE9: 19 | COF9: 14 | COG9: 6 | COH9: 0 | COI9: 12 | COJ9: 26 | COK9: 5 | COL9: 3 | COM9: 31 | CON9: 332 | COO9: 29 | COP9: 7 | COQ9: 0 | COR9: 107 | COS9: 51 | COT9: 693 | COU9: 74 | COV9: 88 | COW9: 0 | COX9: 3 | COY9: 0 | COZ9: 3 | CPA9: 0 | CPB9: 0 | CPC9: 9 | CPD9: 288 | CPE9: 0 | CPF9: 0 | CPG9: 39 | CPH9: 4 | CPI9: 19 | CPJ9: 6 | CPK9: 3 | CPL9: 0 | CPM9: 11 | CPN9: 3 | CPO9: 5 | CPP9: 0 | CPQ9: 4 | CPR9: 0 | CPS9: 0 | CPT9: 0 | CPU9: 0 | CPV9: 0 | CPW9: 6 | CPX9: 0 | CPY9: 0 | CPZ9: 4 | CQA9: 6 | CQB9: 0 | CQC9: 0 | CQD9: 0 | CQE9: 0 | CQF9: 0 | CQG9: 0 | CQH9: 0 | CQI9: 7 | CQJ9: 0 | CQK9: 0 | CQL9: 69 | CQM9: 0 | CQN9: 0 | CQO9: 3 | CQP9: 16 | CQQ9: 6 | CQR9: 0 | CQS9: 3 | CQT9: 6 | CQU9: 48 | CQV9: 3 | CQW9: 36 | CQX9: 9 | CQY9: 9 | CQZ9: 80 | CRA9: 49 | CRB9: 0 | CRC9: 32 | CRD9: 51 | CRE9: 19 | CRF9: 3 | CRG9: 9 | CRH9: 320 | CRI9: 0 | CRJ9: 6 | CRK9: 3 | CRL9: 377 | CRM9: 3 | CRN9: 5 | CRO9: 0 | CRP9: 0 | CRQ9: 18 | CRR9: 6 | CRS9: 41 | CRT9: 7 | CRU9: 5 | CRV9: 6 | CRW9: 0 | CRX9: 7 | CRY9: 5 | CRZ9: 9 | CSA9: 9 | CSB9: 15 | CSC9: 12 | CSD9: 773 | CSE9: 380 | CSF9: 361 | CSG9: 75 | CSH9: 3 | CSI9: 125 | CSJ9: 119 | CSK9: 117 | CSL9: 9 | CSM9: 0 | CSN9: 0 | CSO9: 0 | CSP9: 0 | CSQ9: 0 | CSR9: 10 | CSS9: 0 | CST9: 137 | CSU9: 11 | CSV9: 246 | CSW9: 189 | CSX9: 211 | CSY9: 6 | CSZ9: 34 | CTA9: 6 | CTB9: 32 | CTC9: 33 | CTD9: 3 | CTE9: 0 | CTF9: 4 | CTG9: 4 | CTH9: 22 | CTI9: 5 | CTJ9: 0 | CTK9: 0 | CTL9: 4 | CTM9: 3 | CTN9: 0 | CTO9: 67 | CTP9: 12 | CTQ9: 0 | CTR9: 4 | CTS9: 68 | CTT9: 4 | CTU9: 16 | CTV9: 5 | CTW9: 3 | CTX9: 6 | CTY9: 6 | CTZ9: 13 | CUA9: 0 | CUB9: 3 | CUC9: 0 | CUD9: 51 | CUE9: 13 | CUF9: 22 | CUG9: 25 | CUH9: 4 | CUI9: 14 | CUJ9: 22 | CUK9: 23 | CUL9: 7 | CUM9: 0 | CUN9: 0 | CUO9: 0 | CUP9: 8 | CUQ9: 4 | CUR9: 26 | CUS9: 3 | CUT9: 6 | CUU9: 5 | CUV9: 0 | CUW9: 0 | CUX9: 0 | CUY9: 12 | CUZ9: 240 | CVA9: 0 | CVB9: 0 | CVC9: 6 | CVD9: 4 | CVE9: 0 | CVF9: 11 | CVG9: 0 | CVH9: 67 | CVI9: 0 | CVJ9: 4 | CVK9: 4 | CVL9: 5 | CVM9: 4 | CVN9: 70 | CVO9: 100 | CVP9: 18 | CVQ9: 25 | CVR9: 29 | CVS9: 19 | CVT9: 0 | CVU9: 5 | CVV9: 46 | CVW9: 0 | CVX9: 10 | CVY9: 16 | CVZ9: 40 | CWA9: 25 | CWB9: 10 | CWC9: 0 | CWD9: 0 | CWE9: 10 | CWF9: 3 | CWG9: 61 | CWH9: 7 | CWI9: 9 | CWJ9: 18 | CWK9: 33 | CWL9: 9 | CWM9: 0 | CWN9: 3 | CWO9: 0 | CWP9: 6 | CWQ9: 6 | CWR9: 342 | CWS9: 0 | CWT9: 19 | CWU9: 215 | CWV9: 0 | CWW9: 169 | CWX9: 18 | CWY9: 4 | CWZ9: 0 | CXA9: 0 | CXB9: 0 | CXC9: 12 | CXD9: 6 | CXE9: 0 | CXF9: 3 | CXG9: 0 | CXH9: 8 | CXI9: 0 | CXJ9: 9 | CXK9: 0 | CXL9: 0 | CXM9: 6 | CXN9: 4 | CXO9: 5 | CXP9: 3 | CXQ9: 0 | CXR9: 7 | CXS9: 0 | CXT9: 112 | CXU9: 0 | CXV9: 0 | CXW9: 0 | CXX9: 5 | CXY9: 7 | CXZ9: 4 | CYA9: 0 | CYB9: 0 | CYC9: 0 | CYD9: 0 | CYE9: 0 | CYF9: 0 | CYG9: 0 | CYH9: 0 | CYI9: 85 | CYJ9: 88 | CYK9: 193 | CYL9: 0 | CYM9: 0 | CYN9: 4 | CYO9: 5 | CYP9: 15 | CYQ9: 7 | CYR9: 0 | CYS9: 0 | CYT9: 0 | CYU9: 0 | CYV9: 0 | CYW9: 3 | CYX9: 19 | CYY9: 85 | CYZ9: 572 | CZA9: 63 | CZB9: 25 | CZC9: 35 | CZD9: 291 | CZE9: 89 | CZF9: 25 | CZG9: 136 | CZH9: 160 | CZI9: 200 | CZJ9: 86 | CZK9: 180 | CZL9: 17 | CZM9: 0 | CZN9: 0 | CZO9: 0 | CZP9: 6 | CZQ9: 14 | CZR9: 0 | CZS9: 0 | CZT9: 0 | CZU9: 0 | CZV9: 37 | CZW9: 0 | CZX9: 0 | CZY9: 4 | CZZ9: 0 | DAA9: 4 | DAB9: 0 | DAC9: 58 | DAD9: 18 | DAE9: 0 | DAF9: 9 | DAG9: 15 | DAH9: 8 | DAI9: 14 | DAJ9: 5 | DAK9: 9 | DAL9: 0 | DAM9: 9 | DAN9: 0 | DAO9: 0 | DAP9: 0 | DAQ9: 0 | DAR9: 0 | DAS9: 0 | DAT9: 10 | DAU9: 0 | DAV9: 0 | DAW9: 0 | DAX9: 6 | DAY9: 28 | DAZ9: 0 | DBA9: 10 | DBB9: 6 | DBC9: 9 | DBD9: 0 | DBE9: 0 | DBF9: 5 | DBG9: 3 | DBH9: 0 | DBI9: 3 | DBJ9: 0 | DBK9: 4 | DBL9: 0 | DBM9: 5 | DBN9: 0 | DBO9: 76 | DBP9: 346 | DBQ9: 219 | DBR9: 40 | DBS9: 6 | DBT9: 3 | DBU9: 9 | DBV9: 9 | DBW9: 0 | DBX9: 4 | DBY9: 0 | DBZ9: 0 | DCA9: 0 | DCB9: 5 | DCC9: 12 | DCD9: 19 | DCE9: 651 | DCF9: 3 | DCG9: 0 | DCH9: 3 | DCI9: 0 | DCJ9: 0 | DCK9: 0 | DCL9: 0 | DCM9: 0 | DCN9: 11 | DCO9: 16 | DCP9: 0 | DCQ9: 5 | DCR9: 0 | DCS9: 64 | DCT9: 0 | DCU9: 0 | DCV9: 0 | DCW9: 5 | DCX9: 12 | DCY9: 3 | DCZ9: 33 | DDA9: 11 | DDB9: 4 | DDC9: 7 | DDD9: 6 | DDE9: 7 | DDF9: 42 | DDG9: 21 | DDH9: 7 | DDI9: 64 | DDJ9: 33 | DDK9: 11 | DDL9: 132 | DDM9: 12 | DDN9: 0 | DDO9: 44 | DDP9: 0 | DDQ9: 9 | DDR9: 9 | DDS9: 62 | DDT9: 3 | DDU9: 0 | DDV9: 4 | DDW9: 0 | DDX9: 7 | DDY9: 4 | DDZ9: 0 | DEA9: 3 | DEB9: 3 | DEC9: 0 | DED9: 0 | DEE9: 0 | DEF9: 0 | DEG9: 7 | DEH9: 8 | DEI9: 47 | DEJ9: 31 | DEK9: 7 | DEL9: 9 | DEM9: 4 | DEN9: 15 | DEO9: 3 | DEP9: 6 | DEQ9: 6 | DER9: 5 | DES9: 17 | DET9: 6 | DEU9: 9 | DEV9: 12 | DEW9: 0 | DEX9: 33 | DEY9: 11 | DEZ9: 13 | DFA9: 6 | DFB9: 12 | DFC9: 63 | DFD9: 17 | DFE9: 4 | DFF9: 66 | DFG9: 11 | DFH9: 11 | DFI9: 109 | DFJ9: 6 | DFK9: 38 | DFL9: 108 | DFM9: 8 | DFN9: 14 | DFO9: 0 | DFP9: 8 | DFQ9: 28 | DFR9: 69 | DFS9: 57 | DFT9: 17 | DFU9: 298 | DFV9: 0 | DFW9: 33 | DFX9: 8 | DFY9: 0 | DFZ9: 21 | DGA9: 9 | DGB9: 17 | DGC9: 17 | DGD9: 10 | DGE9: 0 | DGF9: 50 | DGG9: 0 | DGH9: 4 | DGI9: 9 | DGJ9: 0 | DGK9: 36 | DGL9: 45 | DGM9: 56 | DGN9: 6 | DGO9: 19 | DGP9: 8 | DGQ9: 12 | DGR9: 17 | DGS9: 6 | DGT9: 10 | DGU9: 18 | DGV9: 11 | DGW9: 372 | DGX9: 0 | DGY9: 63 | DGZ9: 13 | DHA9: 6 | DHB9: 13 | DHC9: 25 | DHD9: 25 | DHE9: 0 | DHF9: 31 | DHG9: 12 | DHH9: 10 | DHI9: 19 | DHJ9: 18 | DHK9: 6 | DHL9: 10 | DHM9: 12 | DHN9: 52 | DHO9: 25 | DHP9: 160 | DHQ9: 126 | DHR9: 210 | DHS9: 3 | DHT9: 23 | DHU9: 6 | DHV9: 19 | DHW9: 19 | DHX9: 10 | DHY9: 25 | DHZ9: 20 | DIA9: 0 | DIB9: 72 | DIC9: 10 | DID9: 8 | DIE9: 18 | DIF9: 15 | DIG9: 16 | DIH9: 44 | DII9: 21 | DIJ9: 0 | DIK9: 215 | DIL9: 18 | DIM9: 100 | DIN9: 78 | DIO9: 17 | DIP9: 13 | DIQ9: 20 | DIR9: 11 | DIS9: 3 | DIT9: 28 | DIU9: 4 | DIV9: 3 | DIW9: 23 | DIX9: 4 | DIY9: 29 | DIZ9: 86 | DJA9: 16 | DJB9: 32 | DJC9: 0 | DJD9: 21 | DJE9: 10 | DJF9: 5 | DJG9: 177 | DJH9: 24 | DJI9: 39 | DJJ9: 59 | DJK9: 0 | DJL9: 13 | DJM9: 9 | DJN9: 6 | DJO9: 5 | DJP9: 27 | DJQ9: 0 | DJR9: 0 | DJS9: 11 | DJT9: 51 | DJU9: 36 | DJV9: 46 | DJW9: 21 | DJX9: 42 | DJY9: 23 | DJZ9: 49 | DKA9: 18 | DKB9: 0 | DKC9: 8 | DKD9: 11 | DKE9: 11 | DKF9: 17 | DKG9: 7 | DKH9: 11 | DKI9: 44 | DKJ9: 0 | DKK9: 10 | DKL9: 75 | DKM9: 3 | DKN9: 15 | DKO9: 6 | DKP9: 6 | DKQ9: 9 | DKR9: 0 | DKS9: 18 | DKT9: 20 | DKU9: 55 | DKV9: 159 | DKW9: 0 | DKX9: 0
A10: =IF('Paste CCD Numbers Here'!D11>0,'Paste CCD Numbers Here'!D11,0) -> 0 | C10: Retail Trade | D10: 5 | E10: 9 | F10: 45 | G10: 181 | H10: 92 | I10: 32 | J10: 5 | K10: 754 | L10: 8 | M10: 101 | N10: 147 | O10: 62 | P10: 482 | Q10: 328 | R10: 296 | S10: 3 | T10: 80 | U10: 12 | V10: 3 | W10: 50 | X10: 230 | Y10: 244 | Z10: 207 | AA10: 19 | AB10: 194 | AC10: 666 | AD10: 22 | AE10: 4 | AF10: 192 | AG10: 52 | AH10: 73 | AI10: 196 | AJ10: 10 | AK10: 9 | AL10: 52 | AM10: 38 | AN10: 10 | AO10: 80 | AP10: 14 | AQ10: 7 | AR10: 0 | AS10: 15 | AT10: 91 | AU10: 6 | AV10: 118 | AW10: 16 | AX10: 16 | AY10: 26 | AZ10: 5 | BA10: 101 | BB10: 108 | BC10: 333 | BD10: 0 | BE10: 0 | BF10: 0 | BG10: 110 | BH10: 25 | BI10: 7 | BJ10: 132 | BK10: 8 | BL10: 27 | BM10: 73 | BN10: 22 | BO10: 265 | BP10: 12 | BQ10: 0 | BR10: 11 | BS10: 20 | BT10: 31 | BU10: 9 | BV10: 64 | BW10: 48 | BX10: 4 | BY10: 493 | BZ10: 14 | CA10: 0 | CB10: 23 | CC10: 4 | CD10: 21 | CE10: 3 | CF10: 10 | CG10: 10 | CH10: 130 | CI10: 11 | CJ10: 0 | CK10: 7 | CL10: 64 | CM10: 93 | CN10: 214 | CO10: 0 | CP10: 593 | CQ10: 755 | CR10: 27 | CS10: 93 | CT10: 8 | CU10: 0 | CV10: 83 | CW10: 0 | CX10: 7 | CY10: 14 | CZ10: 25 | DA10: 0 | DB10: 4 | DC10: 35 | DD10: 25 | DE10: 108 | DF10: 3 | DG10: 4 | DH10: 44 | DI10: 25 | DJ10: 40 | DK10: 202 | DL10: 102 | DM10: 0 | DN10: 16 | DO10: 70 | DP10: 39 | DQ10: 29 | DR10: 3 | DS10: 14 | DT10: 23 | DU10: 9 | DV10: 0 | DW10: 0 | DX10: 135 | DY10: 24 | DZ10: 28 | EA10: 0 | EB10: 102 | EC10: 32 | ED10: 13 | EE10: 6 | EF10: 68 | EG10: 161 | EH10: 700 | EI10: 43 | EJ10: 23 | EK10: 66 | EL10: 26 | EM10: 150 | EN10: 18 | EO10: 20 | EP10: 0 | EQ10: 4 | ER10: 0 | ES10: 33 | ET10: 580 | EU10: 38 | EV10: 18 | EW10: 546 | EX10: 28 | EY10: 14 | EZ10: 0 | FA10: 39 | FB10: 27 | FC10: 69 | FD10: 3 | FE10: 104 | FF10: 15 | FG10: 66 | FH10: 10 | FI10: 395 | FJ10: 3 | FK10: 7 | FL10: 276 | FM10: 7 | FN10: 8 | FO10: 39 | FP10: 41 | FQ10: 17 | FR10: 78 | FS10: 36 | FT10: 159 | FU10: 9 | FV10: 29 | FW10: 16 | FX10: 32 | FY10: 28 | FZ10: 38 | GA10: 3 | GB10: 72 | GC10: 3 | GD10: 18 | GE10: 91 | GF10: 21 | GG10: 586 | GH10: 9 | GI10: 4 | GJ10: 67 | GK10: 91 | GL10: 307 | GM10: 212 | GN10: 281 | GO10: 17 | GP10: 32 | GQ10: 5 | GR10: 55 | GS10: 22 | GT10: 90 | GU10: 12 | GV10: 8 | GW10: 9 | GX10: 22 | GY10: 41 | GZ10: 78 | HA10: 25 | HB10: 56 | HC10: 247 | HD10: 11 | HE10: 738 | HF10: 188 | HG10: 6 | HH10: 48 | HI10: 9 | HJ10: 110 | HK10: 8 | HL10: 29 | HM10: 0 | HN10: 19 | HO10: 33 | HP10: 238 | HQ10: 455 | HR10: 76 | HS10: 41 | HT10: 15 | HU10: 17 | HV10: 99 | HW10: 24 | HX10: 25 | HY10: 11 | HZ10: 129 | IA10: 4 | IB10: 24 | IC10: 10 | ID10: 22 | IE10: 21 | IF10: 275 | IG10: 15 | IH10: 539 | II10: 0 | IJ10: 60 | IK10: 467 | IL10: 45 | IM10: 39 | IN10: 25 | IO10: 4 | IP10: 10 | IQ10: 5 | IR10: 341 | IS10: 47 | IT10: 3 | IU10: 5 | IV10: 0 | IW10: 96 | IX10: 225 | IY10: 54 | IZ10: 28 | JA10: 38 | JB10: 146 | JC10: 74 | JD10: 1224 | JE10: 157 | JF10: 12 | JG10: 45 | JH10: 39 | JI10: 3 | JJ10: 91 | JK10: 11 | JL10: 48 | JM10: 4 | JN10: 0 | JO10: 0 | JP10: 179 | JQ10: 8 | JR10: 422 | JS10: 16 | JT10: 12 | JU10: 0 | JV10: 25 | JW10: 13 | JX10: 3 | JY10: 22 | JZ10: 252 | KA10: 929 | KB10: 7 | KC10: 82 | KD10: 556 | KE10: 127 | KF10: 40 | KG10: 211 | KH10: 19 | KI10: 61 | KJ10: 111 | KK10: 345 | KL10: 3 | KM10: 29 | KN10: 0 | KO10: 61 | KP10: 26 | KQ10: 130 | KR10: 4 | KS10: 59 | KT10: 123 | KU10: 6 | KV10: 156 | KW10: 339 | KX10: 9 | KY10: 22 | KZ10: 872 | LA10: 150 | LB10: 129 | LC10: 416 | LD10: 60 | LE10: 230 | LF10: 32 | LG10: 188 | LH10: 44 | LI10: 139 | LJ10: 38 | LK10: 90 | LL10: 13 | LM10: 332 | LN10: 106 | LO10: 26 | LP10: 459 | LQ10: 28 | LR10: 54 | LS10: 47 | LT10: 420 | LU10: 4 | LV10: 32 | LW10: 13 | LX10: 0 | LY10: 55 | LZ10: 18 | MA10: 9 | MB10: 0 | MC10: 491 | MD10: 3 | ME10: 3 | MF10: 26 | MG10: 64 | MH10: 71 | MI10: 477 | MJ10: 712 | MK10: 4 | ML10: 3 | MM10: 82 | MN10: 3 | MO10: 181 | MP10: 224 | MQ10: 99 | MR10: 30 | MS10: 21 | MT10: 20 | MU10: 34 | MV10: 73 | MW10: 166 | MX10: 13 | MY10: 0 | MZ10: 52 | NA10: 66 | NB10: 13 | NC10: 14 | ND10: 404 | NE10: 29 | NF10: 85 | NG10: 78 | NH10: 83 | NI10: 7 | NJ10: 7 | NK10: 0 | NL10: 155 | NM10: 12 | NN10: 0 | NO10: 9 | NP10: 183 | NQ10: 23 | NR10: 0 | NS10: 136 | NT10: 263 | NU10: 512 | NV10: 326 | NW10: 25 | NX10: 33 | NY10: 13 | NZ10: 8 | OA10: 251 | OB10: 11 | OC10: 3 | OD10: 12 | OE10: 48 | OF10: 6 | OG10: 113 | OH10: 5 | OI10: 48 | OJ10: 16 | OK10: 13 | OL10: 6 | OM10: 10 | ON10: 37 | OO10: 104 | OP10: 477 | OQ10: 661 | OR10: 0 | OS10: 1083 | OT10: 105 | OU10: 14 | OV10: 25 | OW10: 38 | OX10: 0 | OY10: 272 | OZ10: 40 | PA10: 38 | PB10: 23 | PC10: 110 | PD10: 97 | PE10: 18 | PF10: 112 | PG10: 142 | PH10: 0 | PI10: 44 | PJ10: 161 | PK10: 20 | PL10: 46 | PM10: 9 | PN10: 472 | PO10: 18 | PP10: 32 | PQ10: 401 | PR10: 0 | PS10: 20 | PT10: 205 | PU10: 7 | PV10: 782 | PW10: 74 | PX10: 14 | PY10: 11 | PZ10: 39 | QA10: 3 | QB10: 132 | QC10: 17 | QD10: 8 | QE10: 8 | QF10: 31 | QG10: 0 | QH10: 295 | QI10: 28 | QJ10: 138 | QK10: 8 | QL10: 7 | QM10: 23 | QN10: 0 | QO10: 9 | QP10: 28 | QQ10: 361 | QR10: 33 | QS10: 5 | QT10: 21 | QU10: 3 | QV10: 18 | QW10: 234 | QX10: 0 | QY10: 11 | QZ10: 17 | RA10: 23 | RB10: 80 | RC10: 32 | RD10: 10 | RE10: 16 | RF10: 991 | RG10: 28 | RH10: 94 | RI10: 301 | RJ10: 55 | RK10: 12 | RL10: 3 | RM10: 14 | RN10: 0 | RO10: 14 | RP10: 198 | RQ10: 35 | RR10: 8 | RS10: 0 | RT10: 6 | RU10: 21 | RV10: 4 | RW10: 4 | RX10: 3 | RY10: 34 | RZ10: 20 | SA10: 212 | SB10: 79 | SC10: 6 | SD10: 65 | SE10: 4 | SF10: 25 | SG10: 39 | SH10: 25 | SI10: 76 | SJ10: 640 | SK10: 141 | SL10: 39 | SM10: 13 | SN10: 36 | SO10: 17 | SP10: 19 | SQ10: 129 | SR10: 90 | SS10: 211 | ST10: 3 | SU10: 17 | SV10: 11 | SW10: 67 | SX10: 8 | SY10: 14 | SZ10: 13 | TA10: 10 | TB10: 24 | TC10: 9 | TD10: 12 | TE10: 22 | TF10: 39 | TG10: 97 | TH10: 3 | TI10: 58 | TJ10: 298 | TK10: 93 | TL10: 17 | TM10: 4 | TN10: 68 | TO10: 75 | TP10: 41 | TQ10: 530 | TR10: 28 | TS10: 347 | TT10: 26 | TU10: 63 | TV10: 44 | TW10: 546 | TX10: 45 | TY10: 13 | TZ10: 71 | UA10: 11 | UB10: 18 | UC10: 45 | UD10: 26 | UE10: 194 | UF10: 338 | UG10: 22 | UH10: 3 | UI10: 17 | UJ10: 152 | UK10: 8 | UL10: 7 | UM10: 19 | UN10: 90 | UO10: 15 | UP10: 22 | UQ10: 37 | UR10: 62 | US10: 27 | UT10: 91 | UU10: 43 | UV10: 16 | UW10: 26 | UX10: 197 | UY10: 5 | UZ10: 43 | VA10: 5 | VB10: 4 | VC10: 45 | VD10: 56 | VE10: 8 | VF10: 64 | VG10: 39 | VH10: 266 | VI10: 114 | VJ10: 6 | VK10: 24 | VL10: 20 | VM10: 182 | VN10: 88 | VO10: 54 | VP10: 22 | VQ10: 68 | VR10: 63 | VS10: 23 | VT10: 28 | VU10: 7 | VV10: 867 | VW10: 3 | VX10: 11 | VY10: 12 | VZ10: 24 | WA10: 38 | WB10: 5 | WC10: 34 | WD10: 13 | WE10: 139 | WF10: 90 | WG10: 68 | WH10: 70 | WI10: 8 | WJ10: 116 | WK10: 7 | WL10: 111 | WM10: 74 | WN10: 25 | WO10: 113 | WP10: 13 | WQ10: 16 | WR10: 8 | WS10: 9 | WT10: 18 | WU10: 14 | WV10: 7 | WW10: 80 | WX10: 11 | WY10: 13 | WZ10: 62 | XA10: 246 | XB10: 5 | XC10: 687 | XD10: 421 | XE10: 0 | XF10: 432 | XG10: 63 | XH10: 8 | XI10: 0 | XJ10: 33 | XK10: 0 | XL10: 27 | XM10: 612 | XN10: 29 | XO10: 68 | XP10: 14 | XQ10: 27 | XR10: 11 | XS10: 6 | XT10: 0 | XU10: 69 | XV10: 123 | XW10: 178 | XX10: 29 | XY10: 14 | XZ10: 41 | YA10: 79 | YB10: 23 | YC10: 54 | YD10: 9 | YE10: 0 | YF10: 0 | YG10: 17 | YH10: 0 | YI10: 39 | YJ10: 5 | YK10: 6 | YL10: 1072 | YM10: 21 | YN10: 20 | YO10: 43 | YP10: 0 | YQ10: 3 | YR10: 126 | YS10: 0 | YT10: 55 | YU10: 61 | YV10: 87 | YW10: 195 | YX10: 165 | YY10: 53 | YZ10: 339 | ZA10: 150 | ZB10: 477 | ZC10: 425 | ZD10: 107 | ZE10: 42 | ZF10: 110 | ZG10: 84 | ZH10: 38 | ZI10: 49 | ZJ10: 49 | ZK10: 50 | ZL10: 19 | ZM10: 91 | ZN10: 347 | ZO10: 60 | ZP10: 1344 | ZQ10: 712 | ZR10: 14 | ZS10: 10 | ZT10: 137 | ZU10: 0 | ZV10: 24 | ZW10: 46 | ZX10: 42 | ZY10: 814 | ZZ10: 427 | AAA10: 0 | AAB10: 399 | AAC10: 77 | AAD10: 91 | AAE10: 114 | AAF10: 48 | AAG10: 103 | AAH10: 25 | AAI10: 34 | AAJ10: 36 | AAK10: 61 | AAL10: 24 | AAM10: 14 | AAN10: 59 | AAO10: 202 | AAP10: 42 | AAQ10: 31 | AAR10: 102 | AAS10: 105 | AAT10: 126 | AAU10: 161 | AAV10: 122 | AAW10: 136 | AAX10: 15 | AAY10: 21 | AAZ10: 0 | ABA10: 86 | ABB10: 42 | ABC10: 35 | ABD10: 0 | ABE10: 4 | ABF10: 65 | ABG10: 26 | ABH10: 5 | ABI10: 4 | ABJ10: 3 | ABK10: 19 | ABL10: 40 | ABM10: 125 | ABN10: 0 | ABO10: 63 | ABP10: 51 | ABQ10: 74 | ABR10: 46 | ABS10: 88 | ABT10: 35 | ABU10: 24 | ABV10: 0 | ABW10: 669 | ABX10: 129 | ABY10: 154 | ABZ10: 980 | ACA10: 22 | ACB10: 94 | ACC10: 42 | ACD10: 32 | ACE10: 115 | ACF10: 19 | ACG10: 129 | ACH10: 0 | ACI10: 9 | ACJ10: 49 | ACK10: 19 | ACL10: 53 | ACM10: 54 | ACN10: 19 | ACO10: 34 | ACP10: 97 | ACQ10: 42 | ACR10: 56 | ACS10: 19 | ACT10: 201 | ACU10: 13 | ACV10: 8 | ACW10: 21 | ACX10: 60 | ACY10: 79 | ACZ10: 71 | ADA10: 3 | ADB10: 27 | ADC10: 7 | ADD10: 197 | ADE10: 144 | ADF10: 7 | ADG10: 83 | ADH10: 73 | ADI10: 37 | ADJ10: 29 | ADK10: 6 | ADL10: 4 | ADM10: 6 | ADN10: 14 | ADO10: 3 | ADP10: 230 | ADQ10: 156 | ADR10: 400 | ADS10: 20 | ADT10: 68 | ADU10: 0 | ADV10: 146 | ADW10: 289 | ADX10: 158 | ADY10: 66 | ADZ10: 251 | AEA10: 804 | AEB10: 122 | AEC10: 931 | AED10: 414 | AEE10: 13 | AEF10: 266 | AEG10: 98 | AEH10: 62 | AEI10: 59 | AEJ10: 57 | AEK10: 21 | AEL10: 76 | AEM10: 133 | AEN10: 20 | AEO10: 48 | AEP10: 24 | AEQ10: 58 | AER10: 9 | AES10: 6 | AET10: 16 | AEU10: 71 | AEV10: 298 | AEW10: 47 | AEX10: 38 | AEY10: 54 | AEZ10: 60 | AFA10: 24 | AFB10: 716 | AFC10: 160 | AFD10: 20 | AFE10: 26 | AFF10: 22 | AFG10: 21 | AFH10: 101 | AFI10: 49 | AFJ10: 63 | AFK10: 725 | AFL10: 71 | AFM10: 171 | AFN10: 212 | AFO10: 170 | AFP10: 94 | AFQ10: 19 | AFR10: 12 | AFS10: 10 | AFT10: 3 | AFU10: 90 | AFV10: 0 | AFW10: 497 | AFX10: 4 | AFY10: 65 | AFZ10: 73 | AGA10: 298 | AGB10: 195 | AGC10: 54 | AGD10: 3 | AGE10: 213 | AGF10: 165 | AGG10: 145 | AGH10: 74 | AGI10: 185 | AGJ10: 459 | AGK10: 145 | AGL10: 0 | AGM10: 91 | AGN10: 92 | AGO10: 9 | AGP10: 120 | AGQ10: 230 | AGR10: 109 | AGS10: 266 | AGT10: 72 | AGU10: 368 | AGV10: 32 | AGW10: 21 | AGX10: 123 | AGY10: 59 | AGZ10: 4 | AHA10: 177 | AHB10: 111 | AHC10: 120 | AHD10: 66 | AHE10: 22 | AHF10: 55 | AHG10: 151 | AHH10: 224 | AHI10: 211 | AHJ10: 28 | AHK10: 18 | AHL10: 194 | AHM10: 29 | AHN10: 86 | AHO10: 67 | AHP10: 29 | AHQ10: 81 | AHR10: 10 | AHS10: 97 | AHT10: 82 | AHU10: 13 | AHV10: 132 | AHW10: 190 | AHX10: 551 | AHY10: 713 | AHZ10: 207 | AIA10: 431 | AIB10: 0 | AIC10: 50 | AID10: 99 | AIE10: 23 | AIF10: 1463 | AIG10: 17 | AIH10: 402 | AII10: 4 | AIJ10: 477 | AIK10: 53 | AIL10: 39 | AIM10: 11 | AIN10: 89 | AIO10: 223 | AIP10: 58 | AIQ10: 131 | AIR10: 70 | AIS10: 119 | AIT10: 282 | AIU10: 124 | AIV10: 972 | AIW10: 62 | AIX10: 51 | AIY10: 12 | AIZ10: 57 | AJA10: 30 | AJB10: 126 | AJC10: 91 | AJD10: 49 | AJE10: 62 | AJF10: 157 | AJG10: 226 | AJH10: 9 | AJI10: 79 | AJJ10: 20 | AJK10: 86 | AJL10: 10 | AJM10: 41 | AJN10: 82 | AJO10: 5 | AJP10: 84 | AJQ10: 37 | AJR10: 49 | AJS10: 7 | AJT10: 110 | AJU10: 22 | AJV10: 97 | AJW10: 9 | AJX10: 6 | AJY10: 627 | AJZ10: 3 | AKA10: 13 | AKB10: 8 | AKC10: 10 | AKD10: 3 | AKE10: 77 | AKF10: 111 | AKG10: 33 | AKH10: 16 | AKI10: 66 | AKJ10: 29 | AKK10: 1078 | AKL10: 11 | AKM10: 6 | AKN10: 11 | AKO10: 3 | AKP10: 7 | AKQ10: 101 | AKR10: 6 | AKS10: 61 | AKT10: 30 | AKU10: 40 | AKV10: 9 | AKW10: 22 | AKX10: 18 | AKY10: 0 | AKZ10: 97 | ALA10: 19 | ALB10: 74 | ALC10: 30 | ALD10: 18 | ALE10: 340 | ALF10: 1706 | ALG10: 4 | ALH10: 0 | ALI10: 35 | ALJ10: 108 | ALK10: 6 | ALL10: 5 | ALM10: 231 | ALN10: 19 | ALO10: 0 | ALP10: 10 | ALQ10: 213 | ALR10: 20 | ALS10: 56 | ALT10: 22 | ALU10: 19 | ALV10: 62 | ALW10: 226 | ALX10: 203 | ALY10: 177 | ALZ10: 175 | AMA10: 0 | AMB10: 72 | AMC10: 11 | AMD10: 193 | AME10: 33 | AMF10: 36 | AMG10: 272 | AMH10: 5 | AMI10: 5 | AMJ10: 27 | AMK10: 38 | AML10: 35 | AMM10: 259 | AMN10: 30 | AMO10: 39 | AMP10: 13 | AMQ10: 3 | AMR10: 3 | AMS10: 5 | AMT10: 20 | AMU10: 402 | AMV10: 49 | AMW10: 108 | AMX10: 0 | AMY10: 6 | AMZ10: 122 | ANA10: 168 | ANB10: 8 | ANC10: 28 | AND10: 7 | ANE10: 21 | ANF10: 118 | ANG10: 21 | ANH10: 15 | ANI10: 2308 | ANJ10: 164 | ANK10: 41 | ANL10: 210 | ANM10: 144 | ANN10: 6 | ANO10: 0 | ANP10: 78 | ANQ10: 8 | ANR10: 4 | ANS10: 6 | ANT10: 7 | ANU10: 33 | ANV10: 16 | ANW10: 24 | ANX10: 207 | ANY10: 26 | ANZ10: 5 | AOA10: 0 | AOB10: 22 | AOC10: 75 | AOD10: 0 | AOE10: 587 | AOF10: 248 | AOG10: 5 | AOH10: 49 | AOI10: 91 | AOJ10: 132 | AOK10: 8 | AOL10: 131 | AOM10: 229 | AON10: 105 | AOO10: 42 | AOP10: 23 | AOQ10: 169 | AOR10: 15 | AOS10: 22 | AOT10: 34 | AOU10: 5 | AOV10: 32 | AOW10: 0 | AOX10: 3 | AOY10: 15 | AOZ10: 39 | APA10: 46 | APB10: 3 | APC10: 3 | APD10: 36 | APE10: 4 | APF10: 435 | APG10: 495 | APH10: 0 | API10: 6 | APJ10: 32 | APK10: 24 | APL10: 0 | APM10: 67 | APN10: 72 | APO10: 31 | APP10: 45 | APQ10: 14 | APR10: 3 | APS10: 5 | APT10: 4 | APU10: 8 | APV10: 9 | APW10: 18 | APX10: 8 | APY10: 0 | APZ10: 22 | AQA10: 41 | AQB10: 66 | AQC10: 105 | AQD10: 174 | AQE10: 26 | AQF10: 10 | AQG10: 10 | AQH10: 18 | AQI10: 20 | AQJ10: 3 | AQK10: 103 | AQL10: 161 | AQM10: 498 | AQN10: 8 | AQO10: 0 | AQP10: 4 | AQQ10: 22 | AQR10: 7 | AQS10: 20 | AQT10: 41 | AQU10: 12 | AQV10: 33 | AQW10: 0 | AQX10: 61 | AQY10: 8 | AQZ10: 163 | ARA10: 51 | ARB10: 6 | ARC10: 14 | ARD10: 14 | ARE10: 0 | ARF10: 9 | ARG10: 4 | ARH10: 7 | ARI10: 302 | ARJ10: 111 | ARK10: 164 | ARL10: 24 | ARM10: 39 | ARN10: 140 | ARO10: 75 | ARP10: 10 | ARQ10: 76 | ARR10: 0 | ARS10: 21 | ART10: 30 | ARU10: 57 | ARV10: 31 | ARW10: 165 | ARX10: 57 | ARY10: 117 | ARZ10: 7 | ASA10: 21 | ASB10: 49 | ASC10: 78 | ASD10: 17 | ASE10: 5 | ASF10: 53 | ASG10: 19 | ASH10: 151 | ASI10: 145 | ASJ10: 95 | ASK10: 221 | ASL10: 23 | ASM10: 10 | ASN10: 44 | ASO10: 30 | ASP10: 6 | ASQ10: 67 | ASR10: 13 | ASS10: 125 | AST10: 7 | ASU10: 26 | ASV10: 74 | ASW10: 64 | ASX10: 46 | ASY10: 154 | ASZ10: 31 | ATA10: 9 | ATB10: 3 | ATC10: 19 | ATD10: 11 | ATE10: 27 | ATF10: 5 | ATG10: 148 | ATH10: 135 | ATI10: 56 | ATJ10: 56 | ATK10: 9 | ATL10: 59 | ATM10: 269 | ATN10: 32 | ATO10: 14 | ATP10: 23 | ATQ10: 9 | ATR10: 90 | ATS10: 13 | ATT10: 15 | ATU10: 291 | ATV10: 15 | ATW10: 19 | ATX10: 11 | ATY10: 34 | ATZ10: 149 | AUA10: 12 | AUB10: 5 | AUC10: 92 | AUD10: 3 | AUE10: 8 | AUF10: 5 | AUG10: 14 | AUH10: 52 | AUI10: 48 | AUJ10: 13 | AUK10: 32 | AUL10: 8 | AUM10: 66 | AUN10: 28 | AUO10: 18 | AUP10: 24 | AUQ10: 8 | AUR10: 50 | AUS10: 51 | AUT10: 25 | AUU10: 29 | AUV10: 105 | AUW10: 6 | AUX10: 40 | AUY10: 144 | AUZ10: 13 | AVA10: 143 | AVB10: 221 | AVC10: 5 | AVD10: 21 | AVE10: 30 | AVF10: 5 | AVG10: 111 | AVH10: 12 | AVI10: 28 | AVJ10: 60 | AVK10: 5 | AVL10: 48 | AVM10: 18 | AVN10: 31 | AVO10: 100 | AVP10: 12 | AVQ10: 36 | AVR10: 48 | AVS10: 31 | AVT10: 968 | AVU10: 21 | AVV10: 143 | AVW10: 29 | AVX10: 17 | AVY10: 36 | AVZ10: 22 | AWA10: 124 | AWB10: 5 | AWC10: 159 | AWD10: 104 | AWE10: 115 | AWF10: 96 | AWG10: 63 | AWH10: 119 | AWI10: 10 | AWJ10: 32 | AWK10: 25 | AWL10: 5 | AWM10: 229 | AWN10: 9 | AWO10: 0 | AWP10: 20 | AWQ10: 0 | AWR10: 5 | AWS10: 185 | AWT10: 5 | AWU10: 11 | AWV10: 0 | AWW10: 11 | AWX10: 107 | AWY10: 24 | AWZ10: 24 | AXA10: 68 | AXB10: 2033 | AXC10: 17 | AXD10: 22 | AXE10: 101 | AXF10: 5 | AXG10: 42 | AXH10: 40 | AXI10: 91 | AXJ10: 127 | AXK10: 75 | AXL10: 14 | AXM10: 8 | AXN10: 142 | AXO10: 91 | AXP10: 14 | AXQ10: 23 | AXR10: 11 | AXS10: 37 | AXT10: 23 | AXU10: 191 | AXV10: 22 | AXW10: 275 | AXX10: 10 | AXY10: 23 | AXZ10: 18 | AYA10: 113 | AYB10: 433 | AYC10: 24 | AYD10: 44 | AYE10: 221 | AYF10: 263 | AYG10: 20 | AYH10: 78 | AYI10: 199 | AYJ10: 142 | AYK10: 255 | AYL10: 173 | AYM10: 450 | AYN10: 4 | AYO10: 6 | AYP10: 55 | AYQ10: 957 | AYR10: 46 | AYS10: 13 | AYT10: 107 | AYU10: 189 | AYV10: 17 | AYW10: 50 | AYX10: 3 | AYY10: 133 | AYZ10: 4 | AZA10: 42 | AZB10: 7 | AZC10: 70 | AZD10: 29 | AZE10: 14 | AZF10: 14 | AZG10: 13 | AZH10: 31 | AZI10: 35 | AZJ10: 335 | AZK10: 99 | AZL10: 86 | AZM10: 41 | AZN10: 22 | AZO10: 41 | AZP10: 33 | AZQ10: 13 | AZR10: 14 | AZS10: 3 | AZT10: 41 | AZU10: 11 | AZV10: 10 | AZW10: 4415 | AZX10: 11 | AZY10: 0 | AZZ10: 140 | BAA10: 51 | BAB10: 22 | BAC10: 4 | BAD10: 3 | BAE10: 151 | BAF10: 9 | BAG10: 1068 | BAH10: 10 | BAI10: 208 | BAJ10: 5 | BAK10: 3 | BAL10: 0 | BAM10: 554 | BAN10: 14 | BAO10: 4 | BAP10: 64 | BAQ10: 18 | BAR10: 87 | BAS10: 9 | BAT10: 3 | BAU10: 13 | BAV10: 6 | BAW10: 11 | BAX10: 164 | BAY10: 104 | BAZ10: 0 | BBA10: 4 | BBB10: 50 | BBC10: 18 | BBD10: 0 | BBE10: 8 | BBF10: 55 | BBG10: 7 | BBH10: 230 | BBI10: 10 | BBJ10: 32 | BBK10: 14 | BBL10: 25 | BBM10: 130 | BBN10: 11 | BBO10: 6 | BBP10: 53 | BBQ10: 77 | BBR10: 4 | BBS10: 4 | BBT10: 42 | BBU10: 6 | BBV10: 10 | BBW10: 125 | BBX10: 55 | BBY10: 13 | BBZ10: 112 | BCA10: 0 | BCB10: 0 | BCC10: 13 | BCD10: 13 | BCE10: 31 | BCF10: 0 | BCG10: 15 | BCH10: 31 | BCI10: 40 | BCJ10: 74 | BCK10: 57 | BCL10: 19 | BCM10: 91 | BCN10: 31 | BCO10: 0 | BCP10: 35 | BCQ10: 41 | BCR10: 30 | BCS10: 166 | BCT10: 20 | BCU10: 7 | BCV10: 16 | BCW10: 6 | BCX10: 3 | BCY10: 246 | BCZ10: 1463 | BDA10: 15 | BDB10: 504 | BDC10: 505 | BDD10: 390 | BDE10: 293 | BDF10: 169 | BDG10: 154 | BDH10: 15 | BDI10: 0 | BDJ10: 11 | BDK10: 11 | BDL10: 56 | BDM10: 13 | BDN10: 9 | BDO10: 21 | BDP10: 34 | BDQ10: 16 | BDR10: 22 | BDS10: 18 | BDT10: 4 | BDU10: 3 | BDV10: 4 | BDW10: 34 | BDX10: 4 | BDY10: 15 | BDZ10: 11 | BEA10: 250 | BEB10: 119 | BEC10: 8 | BED10: 26 | BEE10: 30 | BEF10: 23 | BEG10: 143 | BEH10: 11 | BEI10: 12 | BEJ10: 131 | BEK10: 27 | BEL10: 371 | BEM10: 181 | BEN10: 3 | BEO10: 18 | BEP10: 32 | BEQ10: 0 | BER10: 6 | BES10: 19 | BET10: 37 | BEU10: 27 | BEV10: 5 | BEW10: 18 | BEX10: 0 | BEY10: 23 | BEZ10: 5 | BFA10: 5 | BFB10: 13 | BFC10: 6 | BFD10: 4 | BFE10: 25 | BFF10: 6 | BFG10: 10 | BFH10: 31 | BFI10: 5 | BFJ10: 31 | BFK10: 0 | BFL10: 0 | BFM10: 5 | BFN10: 34 | BFO10: 23 | BFP10: 19 | BFQ10: 3 | BFR10: 226 | BFS10: 5 | BFT10: 10 | BFU10: 536 | BFV10: 15 | BFW10: 400 | BFX10: 16 | BFY10: 712 | BFZ10: 134 | BGA10: 227 | BGB10: 104 | BGC10: 14 | BGD10: 0 | BGE10: 7 | BGF10: 27 | BGG10: 195 | BGH10: 59 | BGI10: 53 | BGJ10: 381 | BGK10: 17 | BGL10: 155 | BGM10: 150 | BGN10: 13 | BGO10: 293 | BGP10: 70 | BGQ10: 20 | BGR10: 30 | BGS10: 285 | BGT10: 20 | BGU10: 8 | BGV10: 10 | BGW10: 0 | BGX10: 198 | BGY10: 3 | BGZ10: 22 | BHA10: 3 | BHB10: 11 | BHC10: 38 | BHD10: 64 | BHE10: 163 | BHF10: 0 | BHG10: 274 | BHH10: 5 | BHI10: 13 | BHJ10: 9 | BHK10: 47 | BHL10: 522 | BHM10: 20 | BHN10: 1070 | BHO10: 334 | BHP10: 0 | BHQ10: 61 | BHR10: 23 | BHS10: 43 | BHT10: 4 | BHU10: 0 | BHV10: 3 | BHW10: 437 | BHX10: 0 | BHY10: 15 | BHZ10: 5 | BIA10: 22 | BIB10: 22 | BIC10: 18 | BID10: 23 | BIE10: 225 | BIF10: 33 | BIG10: 76 | BIH10: 244 | BII10: 4 | BIJ10: 183 | BIK10: 55 | BIL10: 22 | BIM10: 50 | BIN10: 0 | BIO10: 125 | BIP10: 112 | BIQ10: 9 | BIR10: 123 | BIS10: 36 | BIT10: 1083 | BIU10: 10 | BIV10: 1152 | BIW10: 283 | BIX10: 0 | BIY10: 4 | BIZ10: 3 | BJA10: 33 | BJB10: 41 | BJC10: 30 | BJD10: 234 | BJE10: 177 | BJF10: 15 | BJG10: 55 | BJH10: 185 | BJI10: 18 | BJJ10: 51 | BJK10: 9 | BJL10: 24 | BJM10: 0 | BJN10: 137 | BJO10: 16 | BJP10: 154 | BJQ10: 57 | BJR10: 12 | BJS10: 26 | BJT10: 20 | BJU10: 4 | BJV10: 11 | BJW10: 19 | BJX10: 414 | BJY10: 3 | BJZ10: 0 | BKA10: 25 | BKB10: 6 | BKC10: 7 | BKD10: 136 | BKE10: 19 | BKF10: 132 | BKG10: 47 | BKH10: 14 | BKI10: 125 | BKJ10: 563 | BKK10: 0 | BKL10: 12 | BKM10: 3 | BKN10: 69 | BKO10: 87 | BKP10: 152 | BKQ10: 43 | BKR10: 12 | BKS10: 0 | BKT10: 9 | BKU10: 133 | BKV10: 9 | BKW10: 10 | BKX10: 18 | BKY10: 5 | BKZ10: 230 | BLA10: 3 | BLB10: 8 | BLC10: 20 | BLD10: 17 | BLE10: 8 | BLF10: 9 | BLG10: 28 | BLH10: 30 | BLI10: 0 | BLJ10: 0 | BLK10: 7 | BLL10: 3 | BLM10: 9 | BLN10: 0 | BLO10: 0 | BLP10: 9 | BLQ10: 3 | BLR10: 18 | BLS10: 9 | BLT10: 5 | BLU10: 567 | BLV10: 0 | BLW10: 369 | BLX10: 121 | BLY10: 355 | BLZ10: 10 | BMA10: 6 | BMB10: 0 | BMC10: 3 | BMD10: 17 | BME10: 3 | BMF10: 4 | BMG10: 3 | BMH10: 33 | BMI10: 0 | BMJ10: 0 | BMK10: 24 | BML10: 18 | BMM10: 830 | BMN10: 38 | BMO10: 22 | BMP10: 65 | BMQ10: 97 | BMR10: 13 | BMS10: 4 | BMT10: 6 | BMU10: 61 | BMV10: 118 | BMW10: 115 | BMX10: 251 | BMY10: 152 | BMZ10: 413 | BNA10: 115 | BNB10: 23 | BNC10: 43 | BND10: 157 | BNE10: 263 | BNF10: 68 | BNG10: 43 | BNH10: 6 | BNI10: 6 | BNJ10: 0 | BNK10: 13 | BNL10: 4 | BNM10: 0 | BNN10: 14 | BNO10: 194 | BNP10: 22 | BNQ10: 3 | BNR10: 4 | BNS10: 52 | BNT10: 541 | BNU10: 72 | BNV10: 33 | BNW10: 31 | BNX10: 29 | BNY10: 231 | BNZ10: 0 | BOA10: 14 | BOB10: 10 | BOC10: 0 | BOD10: 185 | BOE10: 137 | BOF10: 44 | BOG10: 7 | BOH10: 0 | BOI10: 5 | BOJ10: 19 | BOK10: 11 | BOL10: 11 | BOM10: 0 | BON10: 13 | BOO10: 7 | BOP10: 28 | BOQ10: 189 | BOR10: 16 | BOS10: 3 | BOT10: 759 | BOU10: 4 | BOV10: 11 | BOW10: 11 | BOX10: 146 | BOY10: 367 | BOZ10: 399 | BPA10: 14 | BPB10: 3 | BPC10: 81 | BPD10: 26 | BPE10: 119 | BPF10: 32 | BPG10: 211 | BPH10: 19 | BPI10: 102 | BPJ10: 54 | BPK10: 125 | BPL10: 65 | BPM10: 63 | BPN10: 69 | BPO10: 24 | BPP10: 141 | BPQ10: 605 | BPR10: 9 | BPS10: 132 | BPT10: 93 | BPU10: 70 | BPV10: 29 | BPW10: 131 | BPX10: 259 | BPY10: 8 | BPZ10: 25 | BQA10: 13 | BQB10: 37 | BQC10: 354 | BQD10: 39 | BQE10: 590 | BQF10: 4 | BQG10: 46 | BQH10: 26 | BQI10: 9 | BQJ10: 178 | BQK10: 27 | BQL10: 80 | BQM10: 159 | BQN10: 159 | BQO10: 10 | BQP10: 30 | BQQ10: 8 | BQR10: 80 | BQS10: 18 | BQT10: 35 | BQU10: 42 | BQV10: 17 | BQW10: 37 | BQX10: 21 | BQY10: 1130 | BQZ10: 50 | BRA10: 15 | BRB10: 22 | BRC10: 17 | BRD10: 12 | BRE10: 38 | BRF10: 219 | BRG10: 18 | BRH10: 14 | BRI10: 9 | BRJ10: 0 | BRK10: 70 | BRL10: 3 | BRM10: 7 | BRN10: 3 | BRO10: 364 | BRP10: 11 | BRQ10: 106 | BRR10: 57 | BRS10: 6 | BRT10: 46 | BRU10: 10 | BRV10: 12 | BRW10: 81 | BRX10: 269 | BRY10: 6 | BRZ10: 304 | BSA10: 9 | BSB10: 13 | BSC10: 10 | BSD10: 107 | BSE10: 166 | BSF10: 24 | BSG10: 3 | BSH10: 0 | BSI10: 4 | BSJ10: 24 | BSK10: 6 | BSL10: 7 | BSM10: 0 | BSN10: 5 | BSO10: 0 | BSP10: 25 | BSQ10: 9 | BSR10: 6 | BSS10: 31 | BST10: 10 | BSU10: 3 | BSV10: 75 | BSW10: 22 | BSX10: 28 | BSY10: 18 | BSZ10: 19 | BTA10: 14 | BTB10: 109 | BTC10: 287 | BTD10: 288 | BTE10: 133 | BTF10: 15 | BTG10: 108 | BTH10: 14 | BTI10: 80 | BTJ10: 19 | BTK10: 6 | BTL10: 12 | BTM10: 5 | BTN10: 3 | BTO10: 627 | BTP10: 58 | BTQ10: 10 | BTR10: 0 | BTS10: 1874 | BTT10: 20 | BTU10: 121 | BTV10: 5 | BTW10: 0 | BTX10: 17 | BTY10: 23 | BTZ10: 10 | BUA10: 67 | BUB10: 28 | BUC10: 7 | BUD10: 0 | BUE10: 14 | BUF10: 8 | BUG10: 12 | BUH10: 20 | BUI10: 351 | BUJ10: 16 | BUK10: 30 | BUL10: 10 | BUM10: 12 | BUN10: 37 | BUO10: 6 | BUP10: 131 | BUQ10: 4 | BUR10: 4 | BUS10: 30 | BUT10: 21 | BUU10: 38 | BUV10: 118 | BUW10: 11 | BUX10: 156 | BUY10: 6 | BUZ10: 11 | BVA10: 3 | BVB10: 38 | BVC10: 11 | BVD10: 136 | BVE10: 169 | BVF10: 11 | BVG10: 13 | BVH10: 13 | BVI10: 5 | BVJ10: 0 | BVK10: 9 | BVL10: 3 | BVM10: 237 | BVN10: 10 | BVO10: 3 | BVP10: 4 | BVQ10: 73 | BVR10: 110 | BVS10: 45 | BVT10: 4 | BVU10: 71 | BVV10: 9 | BVW10: 111 | BVX10: 4 | BVY10: 219 | BVZ10: 9 | BWA10: 12 | BWB10: 660 | BWC10: 11 | BWD10: 35 | BWE10: 100 | BWF10: 9 | BWG10: 152 | BWH10: 41 | BWI10: 143 | BWJ10: 10 | BWK10: 69 | BWL10: 170 | BWM10: 6 | BWN10: 4 | BWO10: 9 | BWP10: 198 | BWQ10: 10 | BWR10: 292 | BWS10: 9 | BWT10: 5 | BWU10: 479 | BWV10: 223 | BWW10: 23 | BWX10: 122 | BWY10: 28 | BWZ10: 13 | BXA10: 15 | BXB10: 11 | BXC10: 295 | BXD10: 190 | BXE10: 42 | BXF10: 9 | BXG10: 12 | BXH10: 173 | BXI10: 4 | BXJ10: 431 | BXK10: 7 | BXL10: 723 | BXM10: 34 | BXN10: 132 | BXO10: 5 | BXP10: 314 | BXQ10: 3 | BXR10: 4 | BXS10: 3 | BXT10: 24 | BXU10: 326 | BXV10: 13 | BXW10: 101 | BXX10: 6 | BXY10: 7 | BXZ10: 565 | BYA10: 6 | BYB10: 0 | BYC10: 134 | BYD10: 14 | BYE10: 184 | BYF10: 40 | BYG10: 44 | BYH10: 100 | BYI10: 8 | BYJ10: 12 | BYK10: 21 | BYL10: 9 | BYM10: 16 | BYN10: 3 | BYO10: 99 | BYP10: 55 | BYQ10: 37 | BYR10: 0 | BYS10: 37 | BYT10: 4 | BYU10: 45 | BYV10: 11 | BYW10: 4 | BYX10: 226 | BYY10: 21 | BYZ10: 4 | BZA10: 22 | BZB10: 11 | BZC10: 3 | BZD10: 17 | BZE10: 5 | BZF10: 79 | BZG10: 6 | BZH10: 85 | BZI10: 0 | BZJ10: 30 | BZK10: 124 | BZL10: 36 | BZM10: 64 | BZN10: 45 | BZO10: 4 | BZP10: 167 | BZQ10: 4 | BZR10: 6 | BZS10: 31 | BZT10: 3 | BZU10: 9 | BZV10: 25 | BZW10: 8 | BZX10: 55 | BZY10: 141 | BZZ10: 8 | CAA10: 9 | CAB10: 13 | CAC10: 65 | CAD10: 4 | CAE10: 3 | CAF10: 15 | CAG10: 11 | CAH10: 13 | CAI10: 6 | CAJ10: 11 | CAK10: 138 | CAL10: 93 | CAM10: 58 | CAN10: 37 | CAO10: 10 | CAP10: 0 | CAQ10: 9 | CAR10: 56 | CAS10: 6 | CAT10: 29 | CAU10: 144 | CAV10: 66 | CAW10: 199 | CAX10: 9 | CAY10: 22 | CAZ10: 3 | CBA10: 8 | CBB10: 8 | CBC10: 0 | CBD10: 27 | CBE10: 8 | CBF10: 82 | CBG10: 4 | CBH10: 17 | CBI10: 7 | CBJ10: 18 | CBK10: 149 | CBL10: 46 | CBM10: 16 | CBN10: 0 | CBO10: 148 | CBP10: 9 | CBQ10: 10 | CBR10: 10 | CBS10: 0 | CBT10: 33 | CBU10: 0 | CBV10: 9 | CBW10: 0 | CBX10: 0 | CBY10: 9 | CBZ10: 164 | CCA10: 227 | CCB10: 88 | CCC10: 9 | CCD10: 26 | CCE10: 37 | CCF10: 390 | CCG10: 100 | CCH10: 11 | CCI10: 200 | CCJ10: 7 | CCK10: 155 | CCL10: 149 | CCM10: 57 | CCN10: 0 | CCO10: 164 | CCP10: 5 | CCQ10: 4 | CCR10: 184 | CCS10: 139 | CCT10: 161 | CCU10: 79 | CCV10: 119 | CCW10: 50 | CCX10: 389 | CCY10: 3 | CCZ10: 125 | CDA10: 0 | CDB10: 38 | CDC10: 32 | CDD10: 83 | CDE10: 7 | CDF10: 7 | CDG10: 14 | CDH10: 124 | CDI10: 0 | CDJ10: 350 | CDK10: 143 | CDL10: 6 | CDM10: 134 | CDN10: 70 | CDO10: 10 | CDP10: 9 | CDQ10: 5 | CDR10: 0 | CDS10: 5 | CDT10: 5 | CDU10: 59 | CDV10: 7 | CDW10: 9 | CDX10: 0 | CDY10: 18 | CDZ10: 12 | CEA10: 18 | CEB10: 27 | CEC10: 511 | CED10: 4 | CEE10: 47 | CEF10: 42 | CEG10: 17 | CEH10: 121 | CEI10: 725 | CEJ10: 200 | CEK10: 4 | CEL10: 5 | CEM10: 2439 | CEN10: 29 | CEO10: 330 | CEP10: 33 | CEQ10: 12 | CER10: 16 | CES10: 14 | CET10: 43 | CEU10: 34 | CEV10: 44 | CEW10: 31 | CEX10: 856 | CEY10: 93 | CEZ10: 405 | CFA10: 23 | CFB10: 5 | CFC10: 4 | CFD10: 15 | CFE10: 0 | CFF10: 40 | CFG10: 163 | CFH10: 35 | CFI10: 4 | CFJ10: 147 | CFK10: 116 | CFL10: 3 | CFM10: 291 | CFN10: 62 | CFO10: 10 | CFP10: 58 | CFQ10: 8 | CFR10: 3 | CFS10: 14 | CFT10: 6 | CFU10: 430 | CFV10: 83 | CFW10: 6 | CFX10: 4 | CFY10: 84 | CFZ10: 168 | CGA10: 159 | CGB10: 220 | CGC10: 29 | CGD10: 235 | CGE10: 19 | CGF10: 21 | CGG10: 161 | CGH10: 28 | CGI10: 74 | CGJ10: 15 | CGK10: 198 | CGL10: 32 | CGM10: 25 | CGN10: 114 | CGO10: 14 | CGP10: 127 | CGQ10: 57 | CGR10: 57 | CGS10: 4 | CGT10: 20 | CGU10: 83 | CGV10: 12 | CGW10: 35 | CGX10: 74 | CGY10: 4 | CGZ10: 13 | CHA10: 6 | CHB10: 32 | CHC10: 23 | CHD10: 13 | CHE10: 7 | CHF10: 8 | CHG10: 110 | CHH10: 10 | CHI10: 25 | CHJ10: 124 | CHK10: 3 | CHL10: 12 | CHM10: 224 | CHN10: 42 | CHO10: 6 | CHP10: 138 | CHQ10: 371 | CHR10: 77 | CHS10: 49 | CHT10: 63 | CHU10: 845 | CHV10: 33 | CHW10: 6 | CHX10: 187 | CHY10: 74 | CHZ10: 6 | CIA10: 64 | CIB10: 3 | CIC10: 0 | CID10: 35 | CIE10: 15 | CIF10: 65 | CIG10: 0 | CIH10: 30 | CII10: 10 | CIJ10: 36 | CIK10: 20 | CIL10: 146 | CIM10: 0 | CIN10: 0 | CIO10: 9 | CIP10: 10 | CIQ10: 9 | CIR10: 32 | CIS10: 26 | CIT10: 60 | CIU10: 24 | CIV10: 0 | CIW10: 128 | CIX10: 74 | CIY10: 18 | CIZ10: 20 | CJA10: 270 | CJB10: 684 | CJC10: 4 | CJD10: 271 | CJE10: 0 | CJF10: 22 | CJG10: 0 | CJH10: 3 | CJI10: 84 | CJJ10: 16 | CJK10: 0 | CJL10: 31 | CJM10: 878 | CJN10: 4 | CJO10: 70 | CJP10: 42 | CJQ10: 65 | CJR10: 156 | CJS10: 213 | CJT10: 117 | CJU10: 15 | CJV10: 14 | CJW10: 149 | CJX10: 7 | CJY10: 75 | CJZ10: 50 | CKA10: 539 | CKB10: 23 | CKC10: 348 | CKD10: 174 | CKE10: 65 | CKF10: 3 | CKG10: 42 | CKH10: 81 | CKI10: 19 | CKJ10: 186 | CKK10: 36 | CKL10: 47 | CKM10: 48 | CKN10: 174 | CKO10: 41 | CKP10: 0 | CKQ10: 34 | CKR10: 6 | CKS10: 5 | CKT10: 37 | CKU10: 174 | CKV10: 20 | CKW10: 222 | CKX10: 27 | CKY10: 18 | CKZ10: 599 | CLA10: 103 | CLB10: 154 | CLC10: 124 | CLD10: 324 | CLE10: 0 | CLF10: 5 | CLG10: 7 | CLH10: 12 | CLI10: 379 | CLJ10: 21 | CLK10: 152 | CLL10: 13 | CLM10: 71 | CLN10: 24 | CLO10: 48 | CLP10: 8 | CLQ10: 122 | CLR10: 0 | CLS10: 0 | CLT10: 53 | CLU10: 28 | CLV10: 43 | CLW10: 0 | CLX10: 9 | CLY10: 3 | CLZ10: 21 | CMA10: 29 | CMB10: 0 | CMC10: 97 | CMD10: 19 | CME10: 976 | CMF10: 14 | CMG10: 4 | CMH10: 9 | CMI10: 34 | CMJ10: 38 | CMK10: 38 | CML10: 68 | CMM10: 20 | CMN10: 41 | CMO10: 4 | CMP10: 11 | CMQ10: 13 | CMR10: 32 | CMS10: 32 | CMT10: 16 | CMU10: 18 | CMV10: 3 | CMW10: 15 | CMX10: 297 | CMY10: 280 | CMZ10: 119 | CNA10: 130 | CNB10: 21 | CNC10: 12 | CND10: 15 | CNE10: 1080 | CNF10: 21 | CNG10: 29 | CNH10: 375 | CNI10: 721 | CNJ10: 34 | CNK10: 25 | CNL10: 404 | CNM10: 197 | CNN10: 368 | CNO10: 28 | CNP10: 48 | CNQ10: 0 | CNR10: 0 | CNS10: 288 | CNT10: 28 | CNU10: 45 | CNV10: 50 | CNW10: 32 | CNX10: 85 | CNY10: 116 | CNZ10: 478 | COA10: 260 | COB10: 161 | COC10: 6 | COD10: 36 | COE10: 240 | COF10: 3 | COG10: 4 | COH10: 6 | COI10: 19 | COJ10: 161 | COK10: 6 | COL10: 15 | COM10: 122 | CON10: 59 | COO10: 44 | COP10: 19 | COQ10: 25 | COR10: 242 | COS10: 102 | COT10: 557 | COU10: 34 | COV10: 140 | COW10: 3 | COX10: 0 | COY10: 3 | COZ10: 257 | CPA10: 14 | CPB10: 61 | CPC10: 13 | CPD10: 176 | CPE10: 0 | CPF10: 9 | CPG10: 9 | CPH10: 25 | CPI10: 11 | CPJ10: 125 | CPK10: 36 | CPL10: 25 | CPM10: 49 | CPN10: 12 | CPO10: 403 | CPP10: 12 | CPQ10: 11 | CPR10: 10 | CPS10: 18 | CPT10: 11 | CPU10: 0 | CPV10: 8 | CPW10: 0 | CPX10: 10 | CPY10: 78 | CPZ10: 120 | CQA10: 38 | CQB10: 13 | CQC10: 8 | CQD10: 12 | CQE10: 21 | CQF10: 5 | CQG10: 141 | CQH10: 6 | CQI10: 0 | CQJ10: 8 | CQK10: 43 | CQL10: 81 | CQM10: 3 | CQN10: 0 | CQO10: 4 | CQP10: 511 | CQQ10: 17 | CQR10: 29 | CQS10: 0 | CQT10: 0 | CQU10: 123 | CQV10: 3 | CQW10: 16 | CQX10: 141 | CQY10: 23 | CQZ10: 108 | CRA10: 16 | CRB10: 13 | CRC10: 13 | CRD10: 37 | CRE10: 23 | CRF10: 4 | CRG10: 63 | CRH10: 70 | CRI10: 17 | CRJ10: 39 | CRK10: 16 | CRL10: 144 | CRM10: 7 | CRN10: 64 | CRO10: 8 | CRP10: 0 | CRQ10: 1239 | CRR10: 248 | CRS10: 186 | CRT10: 7 | CRU10: 12 | CRV10: 12 | CRW10: 16 | CRX10: 66 | CRY10: 15 | CRZ10: 487 | CSA10: 0 | CSB10: 158 | CSC10: 120 | CSD10: 236 | CSE10: 748 | CSF10: 235 | CSG10: 80 | CSH10: 30 | CSI10: 40 | CSJ10: 91 | CSK10: 81 | CSL10: 18 | CSM10: 18 | CSN10: 84 | CSO10: 23 | CSP10: 423 | CSQ10: 12 | CSR10: 18 | CSS10: 0 | CST10: 188 | CSU10: 13 | CSV10: 139 | CSW10: 400 | CSX10: 369 | CSY10: 123 | CSZ10: 227 | CTA10: 343 | CTB10: 3 | CTC10: 20 | CTD10: 226 | CTE10: 47 | CTF10: 24 | CTG10: 17 | CTH10: 27 | CTI10: 17 | CTJ10: 9 | CTK10: 17 | CTL10: 20 | CTM10: 7 | CTN10: 21 | CTO10: 68 | CTP10: 21 | CTQ10: 14 | CTR10: 34 | CTS10: 56 | CTT10: 13 | CTU10: 10 | CTV10: 92 | CTW10: 6 | CTX10: 4 | CTY10: 4 | CTZ10: 319 | CUA10: 67 | CUB10: 8 | CUC10: 5 | CUD10: 146 | CUE10: 33 | CUF10: 489 | CUG10: 372 | CUH10: 35 | CUI10: 51 | CUJ10: 114 | CUK10: 282 | CUL10: 22 | CUM10: 0 | CUN10: 0 | CUO10: 0 | CUP10: 6 | CUQ10: 119 | CUR10: 57 | CUS10: 21 | CUT10: 5 | CUU10: 72 | CUV10: 0 | CUW10: 3 | CUX10: 16 | CUY10: 203 | CUZ10: 61 | CVA10: 5 | CVB10: 0 | CVC10: 98 | CVD10: 30 | CVE10: 10 | CVF10: 442 | CVG10: 0 | CVH10: 2477 | CVI10: 14 | CVJ10: 17 | CVK10: 20 | CVL10: 50 | CVM10: 97 | CVN10: 56 | CVO10: 66 | CVP10: 38 | CVQ10: 15 | CVR10: 70 | CVS10: 43 | CVT10: 21 | CVU10: 14 | CVV10: 117 | CVW10: 69 | CVX10: 26 | CVY10: 200 | CVZ10: 35 | CWA10: 3 | CWB10: 22 | CWC10: 70 | CWD10: 13 | CWE10: 58 | CWF10: 3 | CWG10: 58 | CWH10: 7 | CWI10: 79 | CWJ10: 29 | CWK10: 589 | CWL10: 32 | CWM10: 16 | CWN10: 8 | CWO10: 9 | CWP10: 20 | CWQ10: 1102 | CWR10: 40 | CWS10: 3 | CWT10: 41 | CWU10: 620 | CWV10: 133 | CWW10: 361 | CWX10: 350 | CWY10: 128 | CWZ10: 8 | CXA10: 10 | CXB10: 405 | CXC10: 144 | CXD10: 25 | CXE10: 7 | CXF10: 8 | CXG10: 95 | CXH10: 7 | CXI10: 14 | CXJ10: 24 | CXK10: 0 | CXL10: 0 | CXM10: 30 | CXN10: 26 | CXO10: 8 | CXP10: 0 | CXQ10: 12 | CXR10: 21 | CXS10: 4 | CXT10: 683 | CXU10: 10 | CXV10: 22 | CXW10: 171 | CXX10: 105 | CXY10: 122 | CXZ10: 91 | CYA10: 0 | CYB10: 9 | CYC10: 12 | CYD10: 10 | CYE10: 10 | CYF10: 64 | CYG10: 5 | CYH10: 23 | CYI10: 742 | CYJ10: 840 | CYK10: 319 | CYL10: 10 | CYM10: 25 | CYN10: 8 | CYO10: 11 | CYP10: 1421 | CYQ10: 14 | CYR10: 28 | CYS10: 41 | CYT10: 9 | CYU10: 3 | CYV10: 0 | CYW10: 50 | CYX10: 28 | CYY10: 506 | CYZ10: 34 | CZA10: 61 | CZB10: 7 | CZC10: 92 | CZD10: 76 | CZE10: 38 | CZF10: 5 | CZG10: 48 | CZH10: 90 | CZI10: 83 | CZJ10: 22 | CZK10: 150 | CZL10: 616 | CZM10: 6 | CZN10: 0 | CZO10: 0 | CZP10: 7 | CZQ10: 16 | CZR10: 0 | CZS10: 29 | CZT10: 150 | CZU10: 101 | CZV10: 32 | CZW10: 56 | CZX10: 141 | CZY10: 10 | CZZ10: 9 | DAA10: 56 | DAB10: 0 | DAC10: 25 | DAD10: 45 | DAE10: 0 | DAF10: 51 | DAG10: 146 | DAH10: 25 | DAI10: 12 | DAJ10: 14 | DAK10: 18 | DAL10: 4 | DAM10: 61 | DAN10: 68 | DAO10: 5 | DAP10: 5 | DAQ10: 22 | DAR10: 14 | DAS10: 3 | DAT10: 64 | DAU10: 5 | DAV10: 0 | DAW10: 0 | DAX10: 21 | DAY10: 835 | DAZ10: 20 | DBA10: 328 | DBB10: 11 | DBC10: 99 | DBD10: 103 | DBE10: 263 | DBF10: 9 | DBG10: 10 | DBH10: 157 | DBI10: 7 | DBJ10: 219 | DBK10: 50 | DBL10: 99 | DBM10: 14 | DBN10: 6 | DBO10: 201 | DBP10: 457 | DBQ10: 227 | DBR10: 524 | DBS10: 25 | DBT10: 10 | DBU10: 97 | DBV10: 25 | DBW10: 22 | DBX10: 11 | DBY10: 10 | DBZ10: 9 | DCA10: 255 | DCB10: 158 | DCC10: 641 | DCD10: 248 | DCE10: 693 | DCF10: 8 | DCG10: 110 | DCH10: 7 | DCI10: 39 | DCJ10: 6 | DCK10: 0 | DCL10: 3 | DCM10: 3 | DCN10: 574 | DCO10: 1308 | DCP10: 3 | DCQ10: 43 | DCR10: 73 | DCS10: 203 | DCT10: 29 | DCU10: 73 | DCV10: 4 | DCW10: 75 | DCX10: 44 | DCY10: 41 | DCZ10: 570 | DDA10: 35 | DDB10: 10 | DDC10: 14 | DDD10: 48 | DDE10: 11 | DDF10: 22 | DDG10: 325 | DDH10: 73 | DDI10: 66 | DDJ10: 92 | DDK10: 192 | DDL10: 208 | DDM10: 36 | DDN10: 65 | DDO10: 46 | DDP10: 0 | DDQ10: 72 | DDR10: 315 | DDS10: 107 | DDT10: 28 | DDU10: 7 | DDV10: 8 | DDW10: 3 | DDX10: 11 | DDY10: 74 | DDZ10: 9 | DEA10: 58 | DEB10: 5 | DEC10: 4 | DED10: 0 | DEE10: 11 | DEF10: 20 | DEG10: 30 | DEH10: 162 | DEI10: 96 | DEJ10: 125 | DEK10: 507 | DEL10: 9 | DEM10: 0 | DEN10: 275 | DEO10: 32 | DEP10: 198 | DEQ10: 12 | DER10: 23 | DES10: 31 | DET10: 123 | DEU10: 3 | DEV10: 17 | DEW10: 19 | DEX10: 119 | DEY10: 160 | DEZ10: 259 | DFA10: 93 | DFB10: 774 | DFC10: 267 | DFD10: 12 | DFE10: 0 | DFF10: 86 | DFG10: 12 | DFH10: 392 | DFI10: 281 | DFJ10: 282 | DFK10: 142 | DFL10: 703 | DFM10: 76 | DFN10: 307 | DFO10: 5 | DFP10: 30 | DFQ10: 821 | DFR10: 8 | DFS10: 330 | DFT10: 30 | DFU10: 1085 | DFV10: 3 | DFW10: 8 | DFX10: 38 | DFY10: 28 | DFZ10: 65 | DGA10: 25 | DGB10: 3 | DGC10: 125 | DGD10: 35 | DGE10: 0 | DGF10: 252 | DGG10: 38 | DGH10: 13 | DGI10: 4 | DGJ10: 16 | DGK10: 27 | DGL10: 130 | DGM10: 126 | DGN10: 73 | DGO10: 13 | DGP10: 29 | DGQ10: 9 | DGR10: 14 | DGS10: 121 | DGT10: 11 | DGU10: 56 | DGV10: 63 | DGW10: 1109 | DGX10: 0 | DGY10: 1075 | DGZ10: 45 | DHA10: 5 | DHB10: 24 | DHC10: 63 | DHD10: 61 | DHE10: 42 | DHF10: 117 | DHG10: 21 | DHH10: 4 | DHI10: 6 | DHJ10: 204 | DHK10: 0 | DHL10: 113 | DHM10: 8 | DHN10: 25 | DHO10: 4 | DHP10: 718 | DHQ10: 40 | DHR10: 1138 | DHS10: 0 | DHT10: 7 | DHU10: 26 | DHV10: 327 | DHW10: 44 | DHX10: 11 | DHY10: 122 | DHZ10: 25 | DIA10: 31 | DIB10: 393 | DIC10: 11 | DID10: 11 | DIE10: 92 | DIF10: 35 | DIG10: 146 | DIH10: 461 | DII10: 209 | DIJ10: 19 | DIK10: 74 | DIL10: 413 | DIM10: 53 | DIN10: 240 | DIO10: 14 | DIP10: 19 | DIQ10: 129 | DIR10: 39 | DIS10: 3 | DIT10: 343 | DIU10: 9 | DIV10: 36 | DIW10: 90 | DIX10: 18 | DIY10: 580 | DIZ10: 798 | DJA10: 76 | DJB10: 18 | DJC10: 0 | DJD10: 82 | DJE10: 47 | DJF10: 0 | DJG10: 593 | DJH10: 17 | DJI10: 29 | DJJ10: 439 | DJK10: 0 | DJL10: 31 | DJM10: 5 | DJN10: 10 | DJO10: 20 | DJP10: 206 | DJQ10: 0 | DJR10: 0 | DJS10: 72 | DJT10: 43 | DJU10: 37 | DJV10: 664 | DJW10: 38 | DJX10: 45 | DJY10: 97 | DJZ10: 119 | DKA10: 65 | DKB10: 33 | DKC10: 95 | DKD10: 14 | DKE10: 3 | DKF10: 47 | DKG10: 24 | DKH10: 8 | DKI10: 179 | DKJ10: 12 | DKK10: 60 | DKL10: 161 | DKM10: 9 | DKN10: 449 | DKO10: 123 | DKP10: 243 | DKQ10: 3 | DKR10: 71 | DKS10: 16 | DKT10: 111 | DKU10: 836 | DKV10: 192 | DKW10: 0 | DKX10: 118
